Workbook

Sheet Notes
A1: IdentifyStartOfTrendWithDMI.xlsm
A2: Coded 2012-SEP-16 by Ronald McAllister (rpmac_xltt@sprynet.com)
A4: This Workbook demonstrates an EXCEL version of the ideas presented
A5: by BC Low in an article titled "Identify The Start Of A Trend With DMI"
A6: which appears in the November 2012 issue of
A7: "Technical Analysis of Stocks and Commodities" magazine.
A9: Data for this EXCEL example was retrieved from Yahoo Finance.
A11: Weekly Price history for the NASDAQ-100 can be retrieved from Yahoo Finance: http://finance.yahoo.com
A12: The Yahoo Finance symbol is "^NDX".
A13: Select "Historical Prices" from the left margin.
B14: At the top of the page select the bullet for "Weekly" and then click "Get Prices". The "Get Prices" button sets the type of download for the next step.
A15: Then go to the bottom of the page and click "Download to Spreadsheet".
A16: Use the "Save As" option to save the file to your drive for later input processing. (See "Automated data import" below)
A17: Note: The resulting .csv file is in date-descending sequence (most recent first) and may be used in this spread sheet with out sorting.
A19: Automated data import
A20: The InputPriceData tab now has a button that will automate importing Price History data which you have previously downloaded to your hard drive from Yahoo Finance (.csv format please!)
A21: The VBA macro code behind this button uses the standard EXCEL file open dialog to allow you to navigate to the directory where you have stored the downloaded
A22: history files. You may then select the file you are interested in.
A23: Subsequent processing will adjust the Open, High, Low, and Close prices as indicated by the Adjusted Close values provided in the downloaded file.
A24: Both the Raw and the Adjusted data will be copied to the InputPriceData tab for use in this workbook.
A25: However, YOU must enter the symbol and description in cell A1 of the InputPriceData tab after you use the button: YAHOO history files DO NOT contain the symbol or a description!
A26: Note: After the data has been transferred to this workbook, the source history file will be closed with out saving it so that it remains unchanged for future uses.
A28: Development Notes:
A29: 1 | C29: This workbook contains and uses VBA macros.
A31: 2 | C31: Input Data
C32: The data in this workbook is sorted date descending (most recent date at the top) and the formulas are built accordingly.
A34: Calculation and Chart Worksheet Usage Comments:
A35: 1 | C35: In General, Items in Bolded BLUE are items you may freely change to play what-if games.
C36: Be sure to have a backup copy of the spreadsheet before you alter anything else.
A37: 2 | C37: Several of the column formulas begin with "IF" logic that determines when there is sufficient data available for the subsequent calculations to be relevant. The cell will calculate to blank or the result of the calculation.
C38: In a couple of cases, this "IF" logic also sets starter values for subsequent smoothing calculations.
A39: 3 | C39: Data windowing can be performed by changing cell A11. Positive values logically "Pan" the data window represented by the Calculation sheet down the input sheet and back in time.
C40: This can have two side effects: First, data may fall outside of the fixed Y-axis scales and be clipped or fall well inside the Y-axis scales wasting a lot of chart vertical space.
C41: Second, you may move far enough back that you do not have sufficient data points to fill the left of the chart.
A42: 4 | C42: The VBA macros behind the Green button address these Data Windowing problems and also resizes and vertically aligns all charts on the work sheet to match the Price chart
C43: and then horizontally adjusts the X-axis positions of all charts on the work sheet so that the corresponding data points align vertically.
C44: The macros behind the green button are sensitive to the user control values in cells A11 and A12, and also uses the computed values in cells A8, F11, and F12
A46: Chart Notes:
A47: 1 | C47: The composite chart presented here attempts to replicate the chart in Figure 6 from the article. In the interests of completeness, I also included the +DI chart.
A48: 2 | C48: Price Data plotted on primary axis as candlesticks
A49: 3 | C49: All data plotted in reverse order to get dates/times to read ascending left to right.
A50: 4 | C50: Added a vertical Cursor, aligned to the same date across all of the charts. This cursor is user controlled by way of a scroll bar located at the bottom of the chart stack.
C51: The individual chart cursors are built using a separate data series plotted as vertical bars, whose max value matches the maximum y-axis value on the particular chart.
C52: To position the cursor, the value of the scroll bar is used in an "IF" statement to determine which data point is set to this maximum y-axis value. All other data points of the series are set to zero.

Sheet InputPriceData
A1: Weekly NASDAQ-100 (^NDX).csv
B6: Available Input Data Rows | F6: Available Date Range:
B7: =COUNTA(B11:B65000) -> 1407 | F7: From | G7: =OFFSET(B10,B7,0,1,1) -> 1985-10-01
F8: To | G8: =OFFSET(B10,1,0,1,1) -> 2012-09-17
B9: Raw Data Values | H9: Adjusted | I9: Adjustment | J9: Adjusted Values
A10: RelRow | B10: Date | C10: Open | D10: High | E10: Low | F10: Close | G10: Volume | H10: Close | I10: Factor | J10: Open | K10: High | L10: Low | M10: Close
A11: 1 | B11: 2012-09-17 | C11: 2857.52 | D11: 2857.52 | E11: 2846.17 | F11: 2856.44 | G11: 1485390000 | H11: 2856.44 | I11: 1 | J11: 2857.52 | K11: 2857.52 | L11: 2846.17 | M11: 2856.44
A12: 2 | B12: 2012-09-10 | C12: 2821.03 | D12: 2865.37 | E12: 2775.4 | F12: 2855.23 | G12: 1741106000 | H12: 2855.23 | I12: 1 | J12: 2821.03 | K12: 2865.37 | L12: 2775.4 | M12: 2855.23
A13: 3 | B13: 2012-09-04 | C13: 2766.93 | D13: 2829.95 | E13: 2744.29 | F13: 2825.11 | G13: 1665132500 | H13: 2825.11 | I13: 1 | J13: 2766.93 | K13: 2829.95 | L13: 2744.29 | M13: 2825.11
A14: 4 | B14: 2012-08-27 | C14: 2792 | D14: 2794.27 | E14: 2746.68 | F14: 2772.24 | G14: 1328514000 | H14: 2772.24 | I14: 1 | J14: 2792 | K14: 2794.27 | L14: 2746.68 | M14: 2772.24
A15: 5 | B15: 2012-08-20 | C15: 2777.71 | D15: 2802.91 | E15: 2750.64 | F15: 2778.05 | G15: 1443700000 | H15: 2778.05 | I15: 1 | J15: 2777.71 | K15: 2802.91 | L15: 2750.64 | M15: 2778.05
A16: 6 | B16: 2012-08-13 | C16: 2721.49 | D16: 2780.77 | E16: 2708.38 | F16: 2780.3 | G16: 1607202000 | H16: 2780.3 | I16: 1 | J16: 2721.49 | K16: 2780.77 | L16: 2708.38 | M16: 2780.3
A17: 7 | B17: 2012-08-06 | C17: 2686.38 | D17: 2727.31 | E17: 2681.72 | F17: 2722.96 | G17: 1707302000 | H17: 2722.96 | I17: 1 | J17: 2686.38 | K17: 2727.31 | L17: 2681.72 | M17: 2722.96
A18: 8 | B18: 2012-07-30 | C18: 2649.78 | D18: 2684.58 | E18: 2606.54 | F18: 2676 | G18: 1712158000 | H18: 2676 | I18: 1 | J18: 2649.78 | K18: 2684.58 | L18: 2606.54 | M18: 2676
A19: 9 | B19: 2012-07-23 | C19: 2575.29 | D19: 2649.98 | E19: 2535.04 | F19: 2647.03 | G19: 1844766000 | H19: 2647.03 | I19: 1 | J19: 2575.29 | K19: 2649.98 | L19: 2535.04 | M19: 2647.03
A20: 10 | B20: 2012-07-16 | C20: 2579.96 | D20: 2663.12 | E20: 2554.34 | F20: 2618.04 | G20: 1710402000 | H20: 2618.04 | I20: 1 | J20: 2579.96 | K20: 2663.12 | L20: 2554.34 | M20: 2618.04
A21: 11 | B21: 2012-07-09 | C21: 2610.38 | D21: 2630.03 | E21: 2522.89 | F21: 2584.97 | G21: 1581886000 | H21: 2584.97 | I21: 1 | J21: 2610.38 | K21: 2630.03 | L21: 2522.89 | M21: 2584.97
A22: 12 | B22: 2012-07-02 | C22: 2616.52 | D22: 2660.26 | E22: 2596.1 | F22: 2612.29 | G22: 1428995000 | H22: 2612.29 | I22: 1 | J22: 2616.52 | K22: 2660.26 | L22: 2596.1 | M22: 2612.29
A23: 13 | B23: 2012-06-25 | C23: 2562.98 | D23: 2615.82 | E23: 2510.37 | F23: 2615.72 | G23: 1724642000 | H23: 2615.72 | I23: 1 | J23: 2562.98 | K23: 2615.82 | L23: 2510.37 | M23: 2615.72
A24: 14 | B24: 2012-06-18 | C24: 2570.98 | D24: 2633.21 | E24: 2554.65 | F24: 2585.53 | G24: 2070192000 | H24: 2585.53 | I24: 1 | J24: 2570.98 | K24: 2633.21 | L24: 2554.65 | M24: 2585.53
A25: 15 | B25: 2012-06-11 | C25: 2578.73 | D25: 2579.23 | E25: 2510.75 | F25: 2571.23 | G25: 1666016000 | H25: 2571.23 | I25: 1 | J25: 2578.73 | K25: 2579.23 | L25: 2510.75 | M25: 2571.23
A26: 16 | B26: 2012-06-04 | C26: 2458.97 | D26: 2570.48 | E26: 2443.92 | F26: 2559.21 | G26: 1637606000 | H26: 2559.21 | I26: 1 | J26: 2458.97 | K26: 2570.48 | L26: 2443.92 | M26: 2559.21
A27: 17 | B27: 2012-05-29 | C27: 2542.66 | D27: 2570.79 | E27: 2458.73 | F27: 2458.83 | G27: 1509742500 | H27: 2458.83 | I27: 1 | J27: 2542.66 | K27: 2570.79 | L27: 2458.73 | M27: 2458.83
A28: 18 | B28: 2012-05-21 | C28: 2482.31 | D28: 2562.48 | E28: 2478.36 | F28: 2527.05 | G28: 1738976000 | H28: 2527.05 | I28: 1 | J28: 2482.31 | K28: 2562.48 | L28: 2478.36 | M28: 2527.05
A29: 19 | B29: 2012-05-14 | C29: 2593.75 | D29: 2617.23 | E29: 2474.7 | F29: 2478.53 | G29: 2030600000 | H29: 2478.53 | I29: 1 | J29: 2593.75 | K29: 2617.23 | L29: 2474.7 | M29: 2478.53
A30: 20 | B30: 2012-05-07 | C30: 2622.67 | D30: 2651.74 | E30: 2587.53 | F30: 2615.98 | G30: 1940578000 | H30: 2615.98 | I30: 1 | J30: 2622.67 | K30: 2651.74 | L30: 2587.53 | M30: 2615.98
A31: 21 | B31: 2012-04-30 | C31: 2731.26 | D31: 2756.81 | E31: 2637.73 | F31: 2637.92 | G31: 1825146000 | H31: 2637.92 | I31: 1 | J31: 2731.26 | K31: 2756.81 | L31: 2637.73 | M31: 2637.92
A32: 22 | B32: 2012-04-23 | C32: 2651.13 | D32: 2750.5 | E32: 2628.96 | F32: 2741.34 | G32: 1744158000 | H32: 2741.34 | I32: 1 | J32: 2651.13 | K32: 2750.5 | L32: 2628.96 | M32: 2741.34
A33: 23 | B33: 2012-04-16 | C33: 2713.89 | D33: 2738.59 | E33: 2660.96 | F33: 2676.04 | G33: 1735172000 | H33: 2676.04 | I33: 1 | J33: 2713.89 | K33: 2738.59 | L33: 2660.96 | M33: 2676.04
A34: 24 | B34: 2012-04-09 | C34: 2726.08 | D34: 2751.44 | E34: 2688.21 | F34: 2698.99 | G34: 1565964000 | H34: 2698.99 | I34: 1 | J34: 2726.08 | K34: 2751.44 | L34: 2688.21 | M34: 2698.99
A35: 25 | B35: 2012-04-02 | C35: 2752.25 | D35: 2795.35 | E35: 2729.21 | F35: 2762.5 | G35: 1733587500 | H35: 2762.5 | I35: 1 | J35: 2752.25 | K35: 2795.35 | L35: 2729.21 | M35: 2762.5
A36: 26 | B36: 2012-03-26 | C36: 2746.98 | D36: 2794 | E36: 2741.32 | F36: 2755.27 | G36: 1728990000 | H36: 2755.27 | I36: 1 | J36: 2746.98 | K36: 2794 | L36: 2741.32 | M36: 2755.27
A37: 27 | B37: 2012-03-19 | C37: 2716.98 | D37: 2752.46 | E37: 2710.63 | F37: 2728.55 | G37: 1512624000 | H37: 2728.55 | I37: 1 | J37: 2716.98 | K37: 2752.46 | L37: 2710.63 | M37: 2728.55
A38: 28 | B38: 2012-03-12 | C38: 2646.98 | D38: 2720.49 | E38: 2635.76 | F38: 2712.78 | G38: 1696002000 | H38: 2712.78 | I38: 1 | J38: 2646.98 | K38: 2720.49 | L38: 2635.76 | M38: 2712.78
A39: 29 | B39: 2012-03-05 | C39: 2636.6 | D39: 2651.98 | E39: 2575.13 | F39: 2646.85 | G39: 1667882000 | H39: 2646.85 | I39: 1 | J39: 2636.6 | K39: 2651.98 | L39: 2575.13 | M39: 2646.85
A40: 30 | B40: 2012-02-27 | C40: 2589.44 | D40: 2650 | E40: 2579.63 | F40: 2641.58 | G40: 1881030000 | H40: 2641.58 | I40: 1 | J40: 2589.44 | K40: 2650 | L40: 2579.63 | M40: 2641.58
A41: 31 | B41: 2012-02-21 | C41: 2589.21 | D41: 2609.45 | E41: 2570.07 | F41: 2604.21 | G41: 1734855000 | H41: 2604.21 | I41: 1 | J41: 2589.21 | K41: 2609.45 | L41: 2570.07 | M41: 2604.21
A42: 32 | B42: 2012-02-13 | C42: 2564.93 | D42: 2600.96 | E42: 2551.35 | F42: 2584.24 | G42: 1891944000 | H42: 2584.24 | I42: 1 | J42: 2564.93 | K42: 2600.96 | L42: 2551.35 | M42: 2584.24
A43: 33 | B43: 2012-02-06 | C43: 2519.33 | D43: 2567.28 | E43: 2513.51 | F43: 2547.32 | G43: 1878190000 | H43: 2547.32 | I43: 1 | J43: 2519.33 | K43: 2567.28 | L43: 2513.51 | M43: 2547.32
A44: 34 | B44: 2012-01-30 | C44: 2438.52 | D44: 2532.26 | E44: 2433.63 | F44: 2529.17 | G44: 1929512000 | H44: 2529.17 | I44: 1 | J44: 2438.52 | K44: 2532.26 | L44: 2433.63 | M44: 2529.17
A45: 35 | B45: 2012-01-23 | C45: 2437.06 | D45: 2479.31 | E45: 2423.24 | F45: 2461.77 | G45: 1779598000 | H45: 2461.77 | I45: 1 | J45: 2437.06 | K45: 2479.31 | L45: 2423.24 | M45: 2461.77
A46: 36 | B46: 2012-01-17 | C46: 2396.14 | D46: 2445.59 | E46: 2385.79 | F46: 2437.02 | G46: 1885690000 | H46: 2437.02 | I46: 1 | J46: 2396.14 | K46: 2445.59 | L46: 2385.79 | M46: 2437.02
A47: 37 | B47: 2012-01-09 | C47: 2362.53 | D47: 2384.26 | E47: 2342.34 | F47: 2371.98 | G47: 1720550000 | H47: 2371.98 | I47: 1 | J47: 2362.53 | K47: 2384.26 | L47: 2342.34 | M47: 2371.98
A48: 38 | B48: 2012-01-03 | C48: 2323.16 | D48: 2362.58 | E48: 2307.56 | F48: 2356.17 | G48: 1706720000 | H48: 2356.17 | I48: 1 | J48: 2323.16 | K48: 2362.58 | L48: 2307.56 | M48: 2356.17
A49: 39 | B49: 2011-12-27 | C49: 2284.29 | D49: 2301.3 | E49: 2262.22 | F49: 2277.83 | G49: 1020922500 | H49: 2277.83 | I49: 1 | J49: 2284.29 | K49: 2301.3 | L49: 2262.22 | M49: 2277.83
A50: 40 | B50: 2011-12-19 | C50: 2244.37 | D50: 2287.96 | E50: 2209.57 | F50: 2287.57 | G50: 1545218000 | H50: 2287.57 | I50: 1 | J50: 2244.37 | K50: 2287.96 | L50: 2209.57 | M50: 2287.57
A51: 41 | B51: 2011-12-12 | C51: 2295.43 | D51: 2316.9 | E51: 2219.68 | F51: 2238.18 | G51: 1906394000 | H51: 2238.18 | I51: 1 | J51: 2295.43 | K51: 2316.9 | L51: 2219.68 | M51: 2238.18
A52: 42 | B52: 2011-12-05 | C52: 2336.55 | D52: 2343.1 | E52: 2278.42 | F52: 2318.68 | G52: 1669230000 | H52: 2318.68 | I52: 1 | J52: 2336.55 | K52: 2343.1 | L52: 2278.42 | M52: 2318.68
A53: 43 | B53: 2011-11-28 | C53: 2207.68 | D53: 2331.12 | E53: 2205.77 | F53: 2302.04 | G53: 1836032000 | H53: 2302.04 | I53: 1 | J53: 2207.68 | K53: 2331.12 | L53: 2205.77 | M53: 2302.04
A54: 44 | B54: 2011-11-21 | C54: 2219.88 | D54: 2225.54 | E54: 2150.71 | F54: 2150.88 | G54: 1560025000 | H54: 2150.88 | I54: 1 | J54: 2219.88 | K54: 2225.54 | L54: 2150.71 | M54: 2150.88
A55: 45 | B55: 2011-11-14 | C55: 2350.91 | D55: 2375.1 | E55: 2250.94 | F55: 2253.95 | G55: 1802276000 | H55: 2253.95 | I55: 1 | J55: 2350.91 | K55: 2375.1 | L55: 2250.94 | M55: 2253.95
A56: 46 | B56: 2011-11-07 | C56: 2353.82 | D56: 2402.51 | E56: 2290.53 | F56: 2355.78 | G56: 1840432000 | H56: 2355.78 | I56: 1 | J56: 2353.82 | K56: 2402.51 | L56: 2290.53 | M56: 2355.78
A57: 47 | B57: 2011-10-31 | C57: 2376.99 | D57: 2389.29 | E57: 2287.74 | F57: 2356.32 | G57: 2005112000 | H57: 2356.32 | I57: 1 | J57: 2376.99 | K57: 2389.29 | L57: 2287.74 | M57: 2356.32
A58: 48 | B58: 2011-10-24 | C58: 2341.71 | D58: 2412.52 | E58: 2291.78 | F58: 2401.29 | G58: 2086016000 | H58: 2401.29 | I58: 1 | J58: 2341.71 | K58: 2412.52 | L58: 2291.78 | M58: 2401.29
A59: 49 | B59: 2011-10-17 | C59: 2359.53 | D59: 2375.26 | E59: 2274.49 | F59: 2335.93 | G59: 1929442000 | H59: 2335.93 | I59: 1 | J59: 2359.53 | K59: 2375.26 | L59: 2274.49 | M59: 2335.93
A60: 50 | B60: 2011-10-10 | C60: 2241.17 | D60: 2371.94 | E60: 2237.48 | F60: 2371.94 | G60: 1708582000 | H60: 2371.94 | I60: 1 | J60: 2241.17 | K60: 2371.94 | L60: 2237.48 | M60: 2371.94
A61: 51 | B61: 2011-10-03 | C61: 2128.02 | D61: 2227.38 | E61: 2042.9 | F61: 2202.76 | G61: 2479014000 | H61: 2202.76 | I61: 1 | J61: 2128.02 | K61: 2227.38 | L61: 2042.9 | M61: 2202.76
A62: 52 | B62: 2011-09-26 | C62: 2216.66 | D62: 2290.71 | E62: 2139.17 | F62: 2139.18 | G62: 2067876000 | H62: 2139.18 | I62: 1 | J62: 2216.66 | K62: 2290.71 | L62: 2139.17 | M62: 2139.18
A63: 53 | B63: 2011-09-19 | C63: 2277.64 | D63: 2337.7 | E63: 2151.48 | F63: 2206.86 | G63: 2174664000 | H63: 2206.86 | I63: 1 | J63: 2277.64 | K63: 2337.7 | L63: 2151.48 | M63: 2206.86
A64: 54 | B64: 2011-09-12 | C64: 2145.78 | D64: 2308.96 | E64: 2139.58 | F64: 2306.09 | G64: 2181394000 | H64: 2306.09 | I64: 1 | J64: 2145.78 | K64: 2308.96 | L64: 2139.58 | M64: 2306.09
A65: 55 | B65: 2011-09-06 | C65: 2116.48 | D65: 2244.51 | E65: 2112.84 | F65: 2163.66 | G65: 1890707500 | H65: 2163.66 | I65: 1 | J65: 2116.48 | K65: 2244.51 | L65: 2112.84 | M65: 2163.66
A66: 56 | B66: 2011-08-29 | C66: 2188.67 | D66: 2268.07 | E66: 2156.99 | F66: 2167.83 | G66: 1759354000 | H66: 2167.83 | I66: 1 | J66: 2188.67 | K66: 2268.07 | L66: 2156.99 | M66: 2167.83
A67: 57 | B67: 2011-08-22 | C67: 2084.27 | D67: 2169.41 | E67: 2038.14 | F67: 2161.97 | G67: 1926900000 | H67: 2161.97 | I67: 1 | J67: 2084.27 | K67: 2169.41 | L67: 2038.14 | M67: 2161.97
A68: 58 | B68: 2011-08-15 | C68: 2189.49 | D68: 2214.26 | E68: 2035.3 | F68: 2038.22 | G68: 2218884000 | H68: 2038.22 | I68: 1 | J68: 2189.49 | K68: 2214.26 | L68: 2035.3 | M68: 2038.22
A69: 59 | B69: 2011-08-08 | C69: 2127.87 | D69: 2195.25 | E69: 2034.92 | F69: 2182.05 | G69: 3310932000 | H69: 2182.05 | I69: 1 | J69: 2127.87 | K69: 2195.25 | L69: 2034.92 | M69: 2182.05
A70: 60 | B70: 2011-08-01 | C70: 2391.42 | D70: 2396.5 | E70: 2131.52 | F70: 2194.38 | G70: 2842298000 | H70: 2194.38 | I70: 1 | J70: 2391.42 | K70: 2396.5 | L70: 2131.52 | M70: 2194.38
A71: 61 | B71: 2011-07-25 | C71: 2408.65 | D71: 2438.44 | E71: 2341.82 | F71: 2362.81 | G71: 2017784000 | H71: 2362.81 | I71: 1 | J71: 2408.65 | K71: 2438.44 | L71: 2341.82 | M71: 2362.81
A72: 62 | B72: 2011-07-18 | C72: 2346.53 | D72: 2432.84 | E72: 2322.62 | F72: 2429.5 | G72: 1889604000 | H72: 2429.5 | I72: 1 | J72: 2346.53 | K72: 2432.84 | L72: 2322.62 | M72: 2429.5
A73: 63 | B73: 2011-07-11 | C73: 2380.56 | D73: 2392.09 | E73: 2318.2 | F73: 2356.67 | G73: 1883544000 | H73: 2356.67 | I73: 1 | J73: 2380.56 | K73: 2392.09 | L73: 2318.2 | M73: 2356.67
A74: 64 | B74: 2011-07-05 | C74: 2363.08 | D74: 2418.99 | E74: 2357.31 | F74: 2405.89 | G74: 1670485000 | H74: 2405.89 | I74: 1 | J74: 2363.08 | K74: 2418.99 | L74: 2357.31 | M74: 2405.89
A75: 65 | B75: 2011-06-27 | C75: 2217.63 | D75: 2363.36 | E75: 2215.14 | F75: 2361.39 | G75: 1740666000 | H75: 2361.39 | I75: 1 | J75: 2217.63 | K75: 2363.36 | L75: 2215.14 | M75: 2361.39
A76: 66 | B76: 2011-06-20 | C76: 2187.21 | D76: 2256.7 | E76: 2186.77 | F76: 2217.06 | G76: 2005806000 | H76: 2217.06 | I76: 1 | J76: 2187.21 | K76: 2256.7 | L76: 2186.77 | M76: 2217.06
A77: 67 | B77: 2011-06-13 | C77: 2225.21 | D77: 2256.46 | E77: 2180.94 | F77: 2192.96 | G77: 1976544000 | H77: 2192.96 | I77: 1 | J77: 2225.21 | K77: 2256.46 | L77: 2180.94 | M77: 2192.96
A78: 68 | B78: 2011-06-06 | C78: 2288.61 | D78: 2299.4 | E78: 2220.83 | F78: 2221.09 | G78: 1898346000 | H78: 2221.09 | I78: 1 | J78: 2288.61 | K78: 2299.4 | L78: 2220.83 | M78: 2221.09
A79: 69 | B79: 2011-05-31 | C79: 2359.05 | D79: 2373.82 | E79: 2289.41 | F79: 2292.31 | G79: 19206486900 | H79: 2292.31 | I79: 1 | J79: 2359.05 | K79: 2373.82 | L79: 2289.41 | M79: 2292.31
A80: 70 | B80: 2011-05-23 | C80: 2318.16 | D80: 2339.1 | E80: 2298.72 | F80: 2336.09 | G80: 1822256000 | H80: 2336.09 | I80: 1 | J80: 2318.16 | K80: 2339.1 | L80: 2298.72 | M80: 2336.09
A81: 71 | B81: 2011-05-16 | C81: 2368.47 | D81: 2375.36 | E81: 2320.33 | F81: 2351.43 | G81: 1939028000 | H81: 2351.43 | I81: 1 | J81: 2368.47 | K81: 2375.36 | L81: 2320.33 | M81: 2351.43
A82: 72 | B82: 2011-05-09 | C82: 2384.2 | D82: 2415.9 | E82: 2372.19 | F82: 2379.24 | G82: 2010516000 | H82: 2379.24 | I82: 1 | J82: 2384.2 | K82: 2415.9 | L82: 2372.19 | M82: 2379.24
A83: 73 | B83: 2011-05-02 | C83: 2410.24 | D83: 2417.83 | E83: 2366.73 | F83: 2383.18 | G83: 2151604000 | H83: 2383.18 | I83: 1 | J83: 2410.24 | K83: 2417.83 | L83: 2366.73 | M83: 2383.18
A84: 74 | B84: 2011-04-25 | C84: 2377.91 | D84: 2415.85 | E84: 2375.12 | F84: 2404.08 | G84: 2009800000 | H84: 2404.08 | I84: 1 | J84: 2377.91 | K84: 2415.85 | L84: 2375.12 | M84: 2404.08
A85: 75 | B85: 2011-04-18 | C85: 2281.92 | D85: 2381.2 | E85: 2254.88 | F85: 2377.3 | G85: 1912785000 | H85: 2377.3 | I85: 1 | J85: 2281.92 | K85: 2381.2 | L85: 2254.88 | M85: 2377.3
A86: 76 | B86: 2011-04-11 | C86: 2330.26 | D86: 2333.98 | E86: 2288.68 | F86: 2307.58 | G86: 1823888000 | H86: 2307.58 | I86: 1 | J86: 2330.26 | K86: 2333.98 | L86: 2288.68 | M86: 2307.58
A87: 77 | B87: 2011-04-04 | C87: 2347.71 | D87: 2352.25 | E87: 2313.33 | F87: 2321.18 | G87: 1822980000 | H87: 2321.18 | I87: 1 | J87: 2347.71 | K87: 2352.25 | L87: 2313.33 | M87: 2321.18
A88: 78 | B88: 2011-03-28 | C88: 2325.13 | D88: 2359.16 | E88: 2291.78 | F88: 2342.92 | G88: 1821074000 | H88: 2342.92 | I88: 1 | J88: 2325.13 | K88: 2359.16 | L88: 2291.78 | M88: 2342.92
A89: 79 | B89: 2011-03-21 | C89: 2250.89 | D89: 2331.63 | E89: 2234.94 | F89: 2316.36 | G89: 1798038000 | H89: 2316.36 | I89: 1 | J89: 2250.89 | K89: 2331.63 | L89: 2234.94 | M89: 2316.36
A90: 80 | B90: 2011-03-14 | C90: 2286.77 | D90: 2302.92 | E90: 2188.92 | F90: 2221.07 | G90: 2143832000 | H90: 2221.07 | I90: 1 | J90: 2286.77 | K90: 2302.92 | L90: 2188.92 | M90: 2221.07
A91: 81 | B91: 2011-03-07 | C91: 2367.92 | D91: 2370.91 | E91: 2275.07 | F91: 2299.26 | G91: 2047470000 | H91: 2299.26 | I91: 1 | J91: 2367.92 | K91: 2370.91 | L91: 2275.07 | M91: 2299.26
A92: 82 | B92: 2011-02-28 | C92: 2354.87 | D92: 2375.67 | E92: 2308.05 | F92: 2359.96 | G92: 2019508000 | H92: 2359.96 | I92: 1 | J92: 2354.87 | K92: 2375.67 | L92: 2308.05 | M92: 2359.96
A93: 83 | B93: 2011-02-22 | C93: 2353.81 | D93: 2366.43 | E93: 2284.65 | F93: 2346.29 | G93: 2168590000 | H93: 2346.29 | I93: 1 | J93: 2353.81 | K93: 2366.43 | L93: 2284.65 | M93: 2346.29
A94: 84 | B94: 2011-02-14 | C94: 2379.52 | D94: 2403.52 | E94: 2371.19 | F94: 2392.47 | G94: 2059352000 | H94: 2392.47 | I94: 1 | J94: 2379.52 | K94: 2403.52 | L94: 2371.19 | M94: 2392.47
A95: 85 | B95: 2011-02-07 | C95: 2340.44 | D95: 2381.4 | E95: 2338.87 | F95: 2379.15 | G95: 2013232000 | H95: 2379.15 | I95: 1 | J95: 2340.44 | K95: 2381.4 | L95: 2338.87 | M95: 2379.15
A96: 86 | B96: 2011-01-31 | C96: 2274.22 | D96: 2338.66 | E96: 2258.05 | F96: 2338.2 | G96: 2026174000 | H96: 2338.2 | I96: 1 | J96: 2274.22 | K96: 2338.66 | L96: 2258.05 | M96: 2338.2
A97: 87 | B97: 2011-01-24 | C97: 2271.73 | D97: 2336.04 | E97: 2260.6 | F97: 2270.51 | G97: 2046104000 | H97: 2270.51 | I97: 1 | J97: 2271.73 | K97: 2336.04 | L97: 2260.6 | M97: 2270.51
A98: 88 | B98: 2011-01-18 | C98: 2300.93 | D98: 2331.63 | E98: 2267.17 | F98: 2268.32 | G98: 2097832500 | H98: 2268.32 | I98: 1 | J98: 2300.93 | K98: 2331.63 | L98: 2267.17 | M98: 2268.32
A99: 89 | B99: 2011-01-10 | C99: 2270.65 | D99: 2323.43 | E99: 2265 | F99: 2323.43 | G99: 1916008000 | H99: 2323.43 | I99: 1 | J99: 2270.65 | K99: 2323.43 | L99: 2265 | M99: 2323.43
A100: 90 | B100: 2011-01-03 | C100: 2238.66 | D100: 2282.87 | E100: 2237.73 | F100: 2276.7 | G100: 2013512000 | H100: 2276.7 | I100: 1 | J100: 2238.66 | K100: 2282.87 | L100: 2237.73 | M100: 2276.7
A101: 91 | B101: 2010-12-27 | C101: 2223.76 | D101: 2236.19 | E101: 2208.8 | F101: 2217.86 | G101: 1090080000 | H101: 2217.86 | I101: 1 | J101: 2223.76 | K101: 2236.19 | L101: 2208.8 | M101: 2217.86
A102: 92 | B102: 2010-12-20 | C102: 2225.41 | D102: 2238.92 | E102: 2206.3 | F102: 2230.27 | G102: 1559957500 | H102: 2230.27 | I102: 1 | J102: 2225.41 | K102: 2238.92 | L102: 2206.3 | M102: 2230.27
A103: 93 | B103: 2010-12-13 | C103: 2223.89 | D103: 2227.04 | E103: 2196.88 | F103: 2218.29 | G103: 1941940000 | H103: 2218.29 | I103: 1 | J103: 2223.89 | K103: 2227.04 | L103: 2196.88 | M103: 2218.29
A104: 94 | B104: 2010-12-06 | C104: 2192.12 | D104: 2217.48 | E104: 2182.99 | F104: 2215.34 | G104: 1789698000 | H104: 2215.34 | I104: 1 | J104: 2192.12 | K104: 2217.48 | L104: 2182.99 | M104: 2215.34
A105: 95 | B105: 2010-11-29 | C105: 2144.04 | D105: 2192.89 | E105: 2110.24 | F105: 2191.17 | G105: 1991842000 | H105: 2191.17 | I105: 1 | J105: 2144.04 | K105: 2192.89 | L105: 2110.24 | M105: 2191.17
A106: 96 | B106: 2010-11-22 | C106: 2126.4 | D106: 2165.15 | E106: 2105.61 | F106: 2153.91 | G106: 1500362500 | H106: 2153.91 | I106: 1 | J106: 2126.4 | K106: 2165.15 | L106: 2105.61 | M106: 2153.91
A107: 97 | B107: 2010-11-15 | C107: 2147.06 | D107: 2152.89 | E107: 2085.27 | F107: 2135.27 | G107: 1957778000 | H107: 2135.27 | I107: 1 | J107: 2147.06 | K107: 2152.89 | L107: 2085.27 | M107: 2135.27
A108: 98 | B108: 2010-11-08 | C108: 2179.7 | D108: 2200.16 | E108: 2122.42 | F108: 2137.95 | G108: 2141480000 | H108: 2137.95 | I108: 1 | J108: 2179.7 | K108: 2200.16 | L108: 2122.42 | M108: 2137.95
A109: 99 | B109: 2010-11-01 | C109: 2135.57 | D109: 2193.66 | E109: 2117.59 | F109: 2186.71 | G109: 2079016000 | H109: 2186.71 | I109: 1 | J109: 2135.57 | K109: 2193.66 | L109: 2117.59 | M109: 2186.71
A110: 100 | B110: 2010-10-25 | C110: 2113.23 | D110: 2137.33 | E110: 2094.84 | F110: 2124.45 | G110: 1948190000 | H110: 2124.45 | I110: 1 | J110: 2113.23 | K110: 2137.33 | L110: 2094.84 | M110: 2124.45
A111: 101 | B111: 2010-10-18 | C111: 2100.21 | D111: 2106.24 | E111: 2054.61 | F111: 2104.21 | G111: 1953396000 | H111: 2104.21 | I111: 1 | J111: 2100.21 | K111: 2106.24 | L111: 2054.61 | M111: 2104.21
A112: 102 | B112: 2010-10-11 | C112: 2028.53 | D112: 2097.73 | E112: 2007.13 | F112: 2097.73 | G112: 2008542000 | H112: 2097.73 | I112: 1 | J112: 2028.53 | K112: 2097.73 | L112: 2007.13 | M112: 2097.73
A113: 103 | B113: 2010-10-04 | C113: 1990.13 | D113: 2030.89 | E113: 1963.68 | F113: 2027.03 | G113: 2011294000 | H113: 2027.03 | I113: 1 | J113: 1990.13 | K113: 2030.89 | L113: 1963.68 | M113: 2027.03
A114: 104 | B114: 2010-09-27 | C114: 2021.68 | D114: 2029.65 | E114: 1979.74 | F114: 1996.6 | G114: 2085546000 | H114: 1996.6 | I114: 1 | J114: 2021.68 | K114: 2029.65 | L114: 1979.74 | M114: 1996.6
A115: 105 | B115: 2010-09-20 | C115: 1962.15 | D115: 2023.85 | E115: 1960.43 | F115: 2023.84 | G115: 2040264000 | H115: 2023.84 | I115: 1 | J115: 1962.15 | K115: 2023.85 | L115: 1960.43 | M115: 2023.84
A116: 106 | B116: 2010-09-13 | C116: 1908.75 | D116: 1961.01 | E116: 1908.41 | F116: 1955.83 | G116: 2065110000 | H116: 1955.83 | I116: 1 | J116: 1908.75 | K116: 1961.01 | L116: 1908.41 | M116: 1955.83
A117: 107 | B117: 2010-09-07 | C117: 1862.88 | D117: 1897.93 | E117: 1854.43 | F117: 1892.34 | G117: 1775642500 | H117: 1892.34 | I117: 1 | J117: 1862.88 | K117: 1897.93 | L117: 1854.43 | M117: 1892.34
A118: 108 | B118: 2010-08-30 | C118: 1785.98 | D118: 1870.31 | E118: 1755.38 | F118: 1870.31 | G118: 1826332000 | H118: 1870.31 | I118: 1 | J118: 1785.98 | K118: 1870.31 | L118: 1755.38 | M118: 1870.31
A119: 109 | B119: 2010-08-23 | C119: 1833.33 | D119: 1842.79 | E119: 1747.32 | F119: 1791.64 | G119: 1953218000 | H119: 1791.64 | I119: 1 | J119: 1833.33 | K119: 1842.79 | L119: 1747.32 | M119: 1791.64
A120: 110 | B120: 2010-08-16 | C120: 1806.97 | D120: 1862.37 | E120: 1801.74 | F120: 1825.75 | G120: 1802470000 | H120: 1825.75 | I120: 1 | J120: 1806.97 | K120: 1862.37 | L120: 1801.74 | M120: 1825.75
A121: 111 | B121: 2010-08-09 | C121: 1911.38 | D121: 1918.78 | E121: 1807.46 | F121: 1818.8 | G121: 1944670000 | H121: 1818.8 | I121: 1 | J121: 1911.38 | K121: 1918.78 | L121: 1807.46 | M121: 1818.8
A122: 112 | B122: 2010-08-02 | C122: 1886.61 | D122: 1911.01 | E122: 1873.44 | F122: 1902.88 | G122: 1924628000 | H122: 1902.88 | I122: 1 | J122: 1886.61 | K122: 1911.01 | L122: 1873.44 | M122: 1902.88
A123: 113 | B123: 2010-07-26 | C123: 1875.77 | D123: 1900.15 | E123: 1833.9 | F123: 1864 | G123: 2108278000 | H123: 1864 | I123: 1 | J123: 1875.77 | K123: 1900.15 | L123: 1833.9 | M123: 1864
A124: 114 | B124: 2010-07-19 | C124: 1807.99 | D124: 1875.38 | E124: 1784.55 | F124: 1875.38 | G124: 2102842000 | H124: 1875.38 | I124: 1 | J124: 1807.99 | K124: 1875.38 | L124: 1784.55 | M124: 1875.38
A125: 115 | B125: 2010-07-12 | C125: 1814.49 | D125: 1863.52 | E125: 1802.54 | F125: 1803.48 | G125: 2093242000 | H125: 1803.48 | I125: 1 | J125: 1814.49 | K125: 1863.52 | L125: 1802.54 | M125: 1803.48
A126: 116 | B126: 2010-07-06 | C126: 1752.98 | D126: 1815.24 | E126: 1719.2 | F126: 1814.79 | G126: 1999792500 | H126: 1814.79 | I126: 1 | J126: 1752.98 | K126: 1815.24 | L126: 1719.2 | M126: 1814.79
A127: 117 | B127: 2010-06-28 | C127: 1843.27 | D127: 1852.66 | E127: 1700.04 | F127: 1728.34 | G127: 2262956000 | H127: 1728.34 | I127: 1 | J127: 1843.27 | K127: 1852.66 | L127: 1700.04 | M127: 1728.34
A128: 118 | B128: 2010-06-21 | C128: 1939.77 | D128: 1939.77 | E128: 1829.3 | F128: 1838.52 | G128: 2275862000 | H128: 1838.52 | I128: 1 | J128: 1939.77 | K128: 1939.77 | L128: 1829.3 | M128: 1838.52
A129: 119 | B129: 2010-06-14 | C129: 1862.7 | D129: 1925.2 | E129: 1844.16 | F129: 1913.48 | G129: 2007256000 | H129: 1913.48 | I129: 1 | J129: 1862.7 | K129: 1925.2 | L129: 1844.16 | M129: 1913.48
A130: 120 | B130: 2010-06-07 | C130: 1839.77 | D130: 1848.62 | E130: 1770.46 | F130: 1847.15 | G130: 2268654000 | H130: 1847.15 | I130: 1 | J130: 1839.77 | K130: 1848.62 | L130: 1770.46 | M130: 1847.15
A131: 121 | B131: 2010-06-01 | C131: 1846.6 | D131: 1898.93 | E131: 1824.71 | F131: 1832.04 | G131: 2237370000 | H131: 1832.04 | I131: 1 | J131: 1846.6 | K131: 1898.93 | L131: 1824.71 | M131: 1832.04
A132: 122 | B132: 2010-05-24 | C132: 1818.46 | D132: 1867.72 | E132: 1756.63 | F132: 1852.39 | G132: 2549502000 | H132: 1852.39 | I132: 1 | J132: 1818.46 | K132: 1867.72 | L132: 1756.63 | M132: 1852.39
A133: 123 | B133: 2010-05-17 | C133: 1911.38 | D133: 1933.25 | E133: 1767.94 | F133: 1822.77 | G133: 2876208000 | H133: 1822.77 | I133: 1 | J133: 1911.38 | K133: 1933.25 | L133: 1767.94 | M133: 1822.77
A134: 124 | B134: 2010-05-10 | C134: 1931.52 | D134: 1983.13 | E134: 1885.51 | F134: 1907.1 | G134: 2560162000 | H134: 1907.1 | I134: 1 | J134: 1931.52 | K134: 1983.13 | L134: 1885.51 | M134: 1907.1
A135: 125 | B135: 2010-05-03 | C135: 2010.94 | D135: 2039.52 | E135: 1752.31 | F135: 1849.44 | G135: 3454752000 | H135: 1849.44 | I135: 1 | J135: 2010.94 | K135: 2039.52 | L135: 1752.31 | M135: 1849.44
A136: 126 | B136: 2010-04-26 | C136: 2054.84 | D136: 2059.42 | E136: 1991.95 | F136: 2000.63 | G136: 2804362000 | H136: 2000.63 | I136: 1 | J136: 2054.84 | K136: 2059.42 | L136: 1991.95 | M136: 2000.63
A137: 127 | B137: 2010-04-19 | C137: 2011.4 | D137: 2055.63 | E137: 1988.37 | F137: 2055.33 | G137: 2482900000 | H137: 2055.33 | I137: 1 | J137: 2011.4 | K137: 2055.63 | L137: 1988.37 | M137: 2055.33
A138: 128 | B138: 2010-04-12 | C138: 1995.35 | D138: 2040.49 | E138: 1986.83 | F138: 2012.84 | G138: 2754390000 | H138: 2012.84 | I138: 1 | J138: 1995.35 | K138: 2040.49 | L138: 1986.83 | M138: 2012.84
A139: 129 | B139: 2010-04-05 | C139: 1964.03 | D139: 1994.48 | E139: 1958.01 | F139: 1994.43 | G139: 2396002000 | H139: 1994.43 | I139: 1 | J139: 1964.03 | K139: 1994.48 | L139: 1958.01 | M139: 1994.43
A140: 130 | B140: 2010-03-29 | C140: 1960.63 | D140: 1979.49 | E140: 1943.97 | F140: 1959.56 | G140: 2206020000 | H140: 1959.56 | I140: 1 | J140: 1960.63 | K140: 1979.49 | L140: 1943.97 | M140: 1959.56
A141: 131 | B141: 2010-03-22 | C141: 1922.73 | D141: 1976.38 | E141: 1921.71 | F141: 1952.63 | G141: 2484452000 | H141: 1952.63 | I141: 1 | J141: 1922.73 | K141: 1976.38 | L141: 1921.71 | M141: 1952.63
A142: 132 | B142: 2010-03-15 | C142: 1918.14 | D142: 1949.14 | E142: 1906.01 | F142: 1932.43 | G142: 2333656000 | H142: 1932.43 | I142: 1 | J142: 1918.14 | K142: 1949.14 | L142: 1906.01 | M142: 1932.43
A143: 133 | B143: 2010-03-08 | C143: 1888.04 | D143: 1930.17 | E143: 1885.99 | F143: 1924.43 | G143: 2368596000 | H143: 1924.43 | I143: 1 | J143: 1888.04 | K143: 1930.17 | L143: 1885.99 | M143: 1924.43
A144: 134 | B144: 2010-03-01 | C144: 1826.62 | D144: 1889.68 | E144: 1826.61 | F144: 1888.56 | G144: 2507644000 | H144: 1888.56 | I144: 1 | J144: 1826.62 | K144: 1889.68 | L144: 1826.61 | M144: 1888.56
A145: 135 | B145: 2010-02-22 | C145: 1828.69 | D145: 1829.18 | E145: 1781.12 | F145: 1818.68 | G145: 2205394000 | H145: 1818.68 | I145: 1 | J145: 1828.69 | K145: 1829.18 | L145: 1781.12 | M145: 1818.68
A146: 136 | B146: 2010-02-16 | C146: 1792.9 | D146: 1830.38 | E146: 1782.73 | F146: 1823.32 | G146: 2104965000 | H146: 1823.32 | I146: 1 | J146: 1792.9 | K146: 1830.38 | L146: 1782.73 | M146: 1823.32
A147: 137 | B147: 2010-02-08 | C147: 1744.02 | D147: 1783.7 | E147: 1734.12 | F147: 1779.11 | G147: 2154016000 | H147: 1779.11 | I147: 1 | J147: 1744.02 | K147: 1783.7 | L147: 1734.12 | M147: 1779.11
A148: 138 | B148: 2010-02-01 | C148: 1745.91 | D148: 1787.89 | E148: 1712.89 | F148: 1746.12 | G148: 2523690000 | H148: 1746.12 | I148: 1 | J148: 1745.91 | K148: 1787.89 | L148: 1712.89 | M148: 1746.12
A149: 139 | B149: 2010-01-25 | C149: 1806.6 | D149: 1825.95 | E149: 1734.03 | F149: 1741.04 | G149: 2581742000 | H149: 1741.04 | I149: 1 | J149: 1806.6 | K149: 1825.95 | L149: 1734.03 | M149: 1741.04
A150: 140 | B150: 2010-01-19 | C150: 1869.24 | D150: 1896.54 | E150: 1791.4 | F150: 1794.82 | G150: 2523150000 | H150: 1794.82 | I150: 1 | J150: 1869.24 | K150: 1896.54 | L150: 1791.4 | M150: 1794.82
A151: 141 | B151: 2010-01-11 | C151: 1896.05 | D151: 1897.49 | E151: 1852.31 | F151: 1864.52 | G151: 2331300000 | H151: 1864.52 | I151: 1 | J151: 1896.05 | K151: 1897.49 | L151: 1852.31 | M151: 1864.52
A152: 142 | B152: 2010-01-04 | C152: 1882.69 | D152: 1893.25 | E152: 1867.62 | F152: 1892.59 | G152: 2193604000 | H152: 1892.59 | I152: 1 | J152: 1882.69 | K152: 1893.25 | L152: 1867.62 | M152: 1892.59
A153: 143 | B153: 2009-12-28 | C153: 1874.71 | D153: 1882.58 | E153: 1860.31 | F153: 1860.31 | G153: 1240082500 | H153: 1860.31 | I153: 1 | J153: 1874.71 | K153: 1882.58 | L153: 1860.31 | M153: 1860.31
A154: 144 | B154: 2009-12-21 | C154: 1818.39 | D154: 1869.9 | E154: 1818.39 | F154: 1869.84 | G154: 1437145000 | H154: 1869.84 | I154: 1 | J154: 1818.39 | K154: 1869.9 | L154: 1818.39 | M154: 1869.84
A155: 145 | B155: 2009-12-14 | C155: 1802.28 | D155: 1814.49 | E155: 1777.08 | F155: 1807.36 | G155: 2112908000 | H155: 1807.36 | I155: 1 | J155: 1802.28 | K155: 1814.49 | L155: 1777.08 | M155: 1807.36
A156: 146 | B156: 2009-12-07 | C156: 1791.35 | D156: 1810.31 | E156: 1759.34 | F156: 1792.06 | G156: 1893558000 | H156: 1792.06 | I156: 1 | J156: 1791.35 | K156: 1810.31 | L156: 1759.34 | M156: 1792.06
A157: 147 | B157: 2009-11-30 | C157: 1762.99 | D157: 1815.6 | E157: 1750.88 | F157: 1791.91 | G157: 2102776000 | H157: 1791.91 | I157: 1 | J157: 1762.99 | K157: 1815.6 | L157: 1750.88 | M157: 1791.91
A158: 148 | B158: 2009-11-23 | C158: 1782.92 | D158: 1801.22 | E158: 1742.2 | F158: 1765.46 | G158: 1517315000 | H158: 1765.46 | I158: 1 | J158: 1782.92 | K158: 1801.22 | L158: 1742.2 | M158: 1765.46
A159: 149 | B159: 2009-11-16 | C159: 1794.88 | D159: 1814.25 | E159: 1758 | F159: 1764.39 | G159: 2030788000 | H159: 1764.39 | I159: 1 | J159: 1794.88 | K159: 1814.25 | L159: 1758 | M159: 1764.39
A160: 150 | B160: 2009-11-09 | C160: 1743.55 | D160: 1794.12 | E160: 1742.97 | F160: 1788.61 | G160: 1988464000 | H160: 1788.61 | I160: 1 | J160: 1743.55 | K160: 1794.12 | L160: 1742.97 | M160: 1788.61
A161: 151 | B161: 2009-11-02 | C161: 1667.06 | D161: 1733.22 | E161: 1652.44 | F161: 1730.76 | G161: 2145146000 | H161: 1730.76 | I161: 1 | J161: 1667.06 | K161: 1733.22 | L161: 1652.44 | M161: 1730.76
A162: 152 | B162: 2009-10-26 | C162: 1756.5 | D162: 1778.48 | E162: 1663.94 | F162: 1667.13 | G162: 2476410000 | H162: 1667.13 | I162: 1 | J162: 1756.5 | K162: 1778.48 | L162: 1663.94 | M162: 1667.13
A163: 153 | B163: 2009-10-19 | C163: 1741.43 | D163: 1780.83 | E163: 1732.02 | F163: 1753.63 | G163: 2270770000 | H163: 1753.63 | I163: 1 | J163: 1741.43 | K163: 1780.83 | L163: 1732.02 | M163: 1753.63
A164: 154 | B164: 2009-10-12 | C164: 1732.75 | D164: 1756.25 | E164: 1719.02 | F164: 1739.32 | G164: 2100610000 | H164: 1739.32 | I164: 1 | J164: 1732.75 | K164: 1756.25 | L164: 1719.02 | M164: 1739.32
A165: 155 | B165: 2009-10-05 | C165: 1668.7 | D165: 1732.11 | E165: 1660.37 | F165: 1727.76 | G165: 2218882000 | H165: 1727.76 | I165: 1 | J165: 1668.7 | K165: 1732.11 | L165: 1660.37 | M165: 1727.76
A166: 156 | B166: 2009-09-28 | C166: 1702.95 | D166: 1733.79 | E166: 1656.57 | F166: 1662.49 | G166: 2349988000 | H166: 1662.49 | I166: 1 | J166: 1702.95 | K166: 1733.79 | L166: 1656.57 | M166: 1662.49
A167: 157 | B167: 2009-09-21 | C167: 1717.37 | D167: 1754.54 | E167: 1690.68 | F167: 1694.15 | G167: 2510760000 | H167: 1694.15 | I167: 1 | J167: 1717.37 | K167: 1754.54 | L167: 1690.68 | M167: 1694.15
A168: 158 | B168: 2009-09-14 | C168: 1673.55 | D168: 1732.42 | E168: 1673.13 | F168: 1725.24 | G168: 2575292000 | H168: 1725.24 | I168: 1 | J168: 1673.55 | K168: 1732.42 | L168: 1673.13 | M168: 1725.24
A169: 159 | B169: 2009-09-08 | C169: 1651.64 | D169: 1689.68 | E169: 1643.44 | F169: 1685.46 | G169: 2325122500 | H169: 1685.46 | I169: 1 | J169: 1651.64 | K169: 1689.68 | L169: 1643.44 | M169: 1685.46
A170: 160 | B170: 2009-08-31 | C170: 1628.21 | D170: 1648.27 | E170: 1585.56 | F170: 1638.07 | G170: 2116942000 | H170: 1638.07 | I170: 1 | J170: 1628.21 | K170: 1648.27 | L170: 1585.56 | M170: 1638.07
A171: 161 | B171: 2009-08-24 | C171: 1641.45 | D171: 1668.01 | E171: 1611.73 | F171: 1643.24 | G171: 2100326000 | H171: 1643.24 | I171: 1 | J171: 1641.45 | K171: 1668.01 | L171: 1611.73 | M171: 1643.24
A172: 162 | B172: 2009-08-17 | C172: 1583.29 | D172: 1639.23 | E172: 1563.14 | F172: 1637.78 | G172: 1973794000 | H172: 1637.78 | I172: 1 | J172: 1583.29 | K172: 1639.23 | L172: 1563.14 | M172: 1637.78
A173: 163 | B173: 2009-08-10 | C173: 1612.73 | D173: 1634.12 | E173: 1587.4 | F173: 1611.58 | G173: 1981640000 | H173: 1611.58 | I173: 1 | J173: 1612.73 | K173: 1634.12 | L173: 1587.4 | M173: 1611.58
A174: 164 | B174: 2009-08-03 | C174: 1619.24 | D174: 1633.16 | E174: 1595.36 | F174: 1619.49 | G174: 2295332000 | H174: 1619.49 | I174: 1 | J174: 1619.24 | K174: 1633.16 | L174: 1595.36 | M174: 1619.49
A175: 165 | B175: 2009-07-27 | C175: 1597.02 | D175: 1632.97 | E175: 1580.52 | F175: 1603.36 | G175: 2227448000 | H175: 1603.36 | I175: 1 | J175: 1597.02 | K175: 1632.97 | L175: 1580.52 | M175: 1603.36
A176: 166 | B176: 2009-07-20 | C176: 1534.39 | D176: 1605.09 | E176: 1529.45 | F176: 1599.06 | G176: 2362454000 | H176: 1599.06 | I176: 1 | J176: 1534.39 | K176: 1605.09 | L176: 1529.45 | M176: 1599.06
A177: 167 | B177: 2009-07-13 | C177: 1423.2 | D177: 1527.26 | E177: 1402.19 | F177: 1527.26 | G177: 2049830000 | H177: 1527.26 | I177: 1 | J177: 1423.2 | K177: 1527.26 | L177: 1402.19 | M177: 1527.26
A178: 168 | B178: 2009-07-06 | C178: 1435.4 | D178: 1444.3 | E178: 1394.87 | F178: 1419.84 | G178: 1998316000 | H178: 1419.84 | I178: 1 | J178: 1435.4 | K178: 1444.3 | L178: 1394.87 | M178: 1419.84
A179: 169 | B179: 2009-06-29 | C179: 1483.66 | D179: 1497.71 | E179: 1443.75 | F179: 1446.28 | G179: 1980137500 | H179: 1446.28 | I179: 1 | J179: 1483.66 | K179: 1497.71 | L179: 1443.75 | M179: 1446.28
A180: 170 | B180: 2009-06-22 | C180: 1455.78 | D180: 1483.57 | E180: 1413.54 | F180: 1480.2 | G180: 2567988000 | H180: 1480.2 | I180: 1 | J180: 1455.78 | K180: 1483.57 | L180: 1413.54 | M180: 1480.2
A181: 171 | B181: 2009-06-15 | C181: 1472.77 | D181: 1477.95 | E181: 1439.38 | F181: 1471.23 | G181: 2367566000 | H181: 1471.23 | I181: 1 | J181: 1472.77 | K181: 1477.95 | L181: 1439.38 | M181: 1471.23
A182: 172 | B182: 2009-06-08 | C182: 1482.21 | D182: 1511.94 | E182: 1467.13 | F182: 1489.97 | G182: 2187728000 | H182: 1489.97 | I182: 1 | J182: 1482.21 | K182: 1511.94 | L182: 1467.13 | M182: 1489.97
A183: 173 | B183: 2009-06-01 | C183: 1451.37 | D183: 1505.77 | E183: 1446.97 | F183: 1493.21 | G183: 2447682000 | H183: 1493.21 | I183: 1 | J183: 1451.37 | K183: 1505.77 | L183: 1446.97 | M183: 1493.21
A184: 174 | B184: 2009-05-26 | C184: 1351.13 | D184: 1435.57 | E184: 1350.95 | F184: 1435.57 | G184: 2217037500 | H184: 1435.57 | I184: 1 | J184: 1351.13 | K184: 1435.57 | L184: 1350.95 | M184: 1435.57
A185: 175 | B185: 2009-05-18 | C185: 1367.05 | D185: 1423.13 | E185: 1353.53 | F185: 1363.17 | G185: 2037510000 | H185: 1363.17 | I185: 1 | J185: 1367.05 | K185: 1423.13 | L185: 1353.53 | M185: 1363.17
A186: 176 | B186: 2009-05-11 | C186: 1375.05 | D186: 1410.43 | E186: 1339.82 | F186: 1355.11 | G186: 2319026000 | H186: 1355.11 | I186: 1 | J186: 1375.05 | K186: 1410.43 | L186: 1339.82 | M186: 1355.11
A187: 177 | B187: 2009-05-04 | C187: 1407.65 | D187: 1435.8 | E187: 1377.06 | F187: 1394.16 | G187: 2907054000 | H187: 1394.16 | I187: 1 | J187: 1407.65 | K187: 1435.8 | L187: 1377.06 | M187: 1394.16
A188: 178 | B188: 2009-04-27 | C188: 1359.88 | D188: 1418.77 | E188: 1355.99 | F188: 1396.62 | G188: 2341412000 | H188: 1396.62 | I188: 1 | J188: 1359.88 | K188: 1418.77 | L188: 1355.99 | M188: 1396.62
A189: 179 | B189: 2009-04-20 | C189: 1330.18 | D189: 1379.38 | E189: 1303.73 | F189: 1373.28 | G189: 2630594000 | H189: 1373.28 | I189: 1 | J189: 1330.18 | K189: 1379.38 | L189: 1303.73 | M189: 1373.28
A190: 180 | B190: 2009-04-13 | C190: 1333.72 | D190: 1361.68 | E190: 1295.1 | F190: 1353.92 | G190: 2185968000 | H190: 1353.92 | I190: 1 | J190: 1333.72 | K190: 1361.68 | L190: 1295.1 | M190: 1353.92
A191: 181 | B191: 2009-04-06 | C191: 1301.43 | D191: 1341.77 | E191: 1268.79 | F191: 1340.28 | G191: 1964035000 | H191: 1340.28 | I191: 1 | J191: 1301.43 | K191: 1341.77 | L191: 1268.79 | M191: 1340.28
A192: 182 | B192: 2009-03-30 | C192: 1230.89 | D192: 1316.71 | E192: 1204.96 | F192: 1316.16 | G192: 2276234000 | H192: 1316.16 | I192: 1 | J192: 1230.89 | K192: 1316.71 | L192: 1204.96 | M192: 1316.16
A193: 183 | B193: 2009-03-23 | C193: 1213.12 | D193: 1281.3 | E193: 1203.85 | F193: 1251.47 | G193: 2244004000 | H193: 1251.47 | I193: 1 | J193: 1213.12 | K193: 1281.3 | L193: 1203.85 | M193: 1251.47
A194: 184 | B194: 2009-03-16 | C194: 1177.33 | D194: 1225.16 | E194: 1144.21 | F194: 1187.18 | G194: 2331124000 | H194: 1187.18 | I194: 1 | J194: 1177.33 | K194: 1225.16 | L194: 1144.21 | M194: 1187.18
A195: 185 | B195: 2009-03-09 | C195: 1058.85 | D195: 1170.48 | E195: 1040.41 | F195: 1168.52 | G195: 2196170000 | H195: 1168.52 | I195: 1 | J195: 1058.85 | K195: 1170.48 | L195: 1040.41 | M195: 1168.52
A196: 186 | B196: 2009-03-02 | C196: 1098.99 | D196: 1124.67 | E196: 1043.6 | F196: 1064.7 | G196: 2289366000 | H196: 1064.7 | I196: 1 | J196: 1098.99 | K196: 1124.67 | L196: 1043.6 | M196: 1064.7
A197: 187 | B197: 2009-02-23 | C197: 1180.1 | D197: 1183.93 | E197: 1112.12 | F197: 1116.99 | G197: 2271610000 | H197: 1116.99 | I197: 1 | J197: 1180.1 | K197: 1183.93 | L197: 1112.12 | M197: 1116.99
A198: 188 | B198: 2009-02-17 | C198: 1197.59 | D198: 1204.56 | E198: 1153.18 | F198: 1172.71 | G198: 2220530000 | H198: 1172.71 | I198: 1 | J198: 1197.59 | K198: 1204.56 | L198: 1153.18 | M198: 1172.71
A199: 189 | B199: 2009-02-09 | C199: 1276.72 | D199: 1286.9 | E199: 1204.38 | F199: 1236.85 | G199: 2201040000 | H199: 1236.85 | I199: 1 | J199: 1276.72 | K199: 1286.9 | L199: 1204.38 | M199: 1236.85
A200: 190 | B200: 2009-02-02 | C200: 1168.13 | D200: 1280.4 | E200: 1167.49 | F200: 1277.49 | G200: 2227050000 | H200: 1277.49 | I200: 1 | J200: 1168.13 | K200: 1280.4 | L200: 1167.49 | M200: 1277.49
A201: 191 | B201: 2009-01-26 | C201: 1177.44 | D201: 1245.98 | E201: 1169.21 | F201: 1180.25 | G201: 1941690000 | H201: 1180.25 | I201: 1 | J201: 1177.44 | K201: 1245.98 | L201: 1169.21 | M201: 1180.25
A202: 192 | B202: 2009-01-20 | C202: 1193.98 | D202: 1195.89 | E202: 1136.61 | F202: 1175.89 | G202: 2151680000 | H202: 1175.89 | I202: 1 | J202: 1193.98 | K202: 1195.89 | L202: 1136.61 | M202: 1175.89
A203: 193 | B203: 2009-01-12 | C203: 1225.12 | D203: 1225.78 | E203: 1141.74 | F203: 1198.14 | G203: 2078416000 | H203: 1198.14 | I203: 1 | J203: 1225.12 | K203: 1225.78 | L203: 1141.74 | M203: 1198.14
A204: 194 | B204: 2009-01-05 | C204: 1254.7 | D204: 1286.08 | E204: 1217.59 | F204: 1223.01 | G204: 1969988000 | H204: 1223.01 | I204: 1 | J204: 1254.7 | K204: 1286.08 | L204: 1217.59 | M204: 1223.01
... 1213 more rows

Sheet CalculationsAndCharts
A1: Identify the Start Of a Trend With DMI
B2: Price Data: | C2: =InputPriceData!A1 -> Weekly NASDAQ-100 (^NDX).csv
A4: User Charting Controls
A5: Data Control
A6: =InputPriceData!$B$7 -> 1407 | B6: Available Input Data Rows | E6: Earliest: | F6: =OFFSET(InputPriceData!B10,CalculationsAndCharts!A6,0,1,1) -> 1985-10-01
E7: Latest: | F7: =OFFSET(InputPriceData!B10,1,0,1,1) -> 2012-09-17
A8: =MIN(A6-A11,COUNTA(B33:B9983)) -> 841 | B8: Logically Available for Calc / Plot
A10: Price Chart Windowing Controls | F10: Y-axis Range
A11: 13 | B11: Input Data Offset (Pan) | E11: Max High+ | F11: =CEILING(MAX(OFFSET($E$33,0,0,$A$12,1)),1)+F14 -> 2866
A12: 180 | B12: Data Points to Plot (Zoom) | E12: Min Low- | F12: =FLOOR(MIN(OFFSET($F$33,0,0,$A$12,1)),1)-F14 -> 970
B13: First: | C13: =OFFSET(B32,A12,0,1,1) -> 2009-01-12 | E13: White space %: | F13: 0.04
B14: Last: | C14: =B33 -> 2012-06-18 | E14: White space Allowance: | F14: =FLOOR((CEILING(MAX(OFFSET($E$33,0,0,$A$12,1)),1)-FLOOR(MIN(OFFSET($F$33,0,0,$A$12,1)),1))*F13,1) -> 70
A16: TAC Indicator Controls
A17: 3 | B17: periods for first ADX set
A18: 4 | B18: periods for second ADX set
A19: 5 | B19: periods for third ADX set
A22: Help! I would like to plot data | D22: Chart Windowing values to use
B23: From | C23: 2009-01-12 | D23: =OFFSET(InputPriceData!$A$10,MATCH(C23,OFFSET(InputPriceData!B10,1,0,InputPriceData!$B$7,1),0),0,1,1)-D24 -> 180 | E23: ==> for Points to Plot
B24: To | C24: 2012-06-18 | D24: =OFFSET(InputPriceData!$A$10,MATCH(C24,OFFSET(InputPriceData!B10,1,0,InputPriceData!$B$7,1),0),0,1,1)-1 -> 13 | E24: ==> for Offset
B26: 90
B27: =A12-B26+1 -> 91
E29: Date at cursor | F29: =OFFSET(B32,B27,0,1,1) -> 2010-09-27
F30: Scroll Cursor Here | G30: =>
A31: Rel Row | D31: Price Sources | K31: =A17 -> 3 | L31: Period Calculations Area | T31: =A18 -> 4 | U31: Period Calculations Area | AC31: =A19 -> 5 | AD31: Period Calculations Area | AL31: Indicator Chart Decision Line Constants
B32: Date | C32: Volume | D32: Open | E32: High | F32: Low | G32: Close | H32: TrueRange | I32: +DM | J32: -DM | K32: ="TR " & A$17 -> TR 3 | L32: ="+DM " & A$17 -> +DM 3 | M32: ="-DM " & A$17 -> -DM 3 | N32: ="+DI " & A$17 -> +DI 3 | O32: ="-DI " & A$17 -> -DI 3 | P32: ="DI " & A$17 & " DIFF" -> DI 3 DIFF | Q32: ="DI " & A$17 & " SUM" -> DI 3 SUM | R32: ="DX " & A$17 -> DX 3 | S32: ="ADX " & A$17 -> ADX 3 | T32: ="TR " & A$18 -> TR 4 | U32: ="+DM " & A$18 -> +DM 4 | V32: ="-DM " & A$18 -> -DM 4 | W32: ="+DI " & A$18 -> +DI 4 | X32: ="-DI " & A$18 -> -DI 4 | Y32: ="DI " & A$18 & " DIFF" -> DI 4 DIFF | Z32: ="DI " & A$18 & " SUM" -> DI 4 SUM | AA32: ="DX " & A$18 -> DX 4 | AB32: ="ADX " & A$18 -> ADX 4 | AC32: ="TR " & A$19 -> TR 5 | AD32: ="+DM " & A$19 -> +DM 5 | AE32: ="-DM " & A$19 -> -DM 5 | AF32: ="+DI " & A$19 -> +DI 5 | AG32: ="-DI " & A$19 -> -DI 5 | AH32: ="DI " & A$19 & " DIFF" -> DI 5 DIFF | AI32: ="DI " & A$19 & " SUM" -> DI 5 SUM | AJ32: ="DX " & A$19 -> DX 5 | AK32: ="ADX " & A$19 -> ADX 5 | AL32: 5 | AM32: 10 | AN32: 20 | AO32: 30 | AP32: 50 | AQ32: 70 | AR32: 90 | AS32: 100 | AT32: =F11 -> 2866
A33: 1 | B33: =OFFSET(InputPriceData!B$10,CalculationsAndCharts!$A33+$A$11,0,1,1) -> 2012-06-18 | C33: =OFFSET(InputPriceData!G$10,CalculationsAndCharts!$A33+$A$11,0,1,1) -> 2070192000 | D33: =OFFSET(InputPriceData!C$10,CalculationsAndCharts!$A33+$A$11,0,1,1) -> 2570.98 | E33: =OFFSET(InputPriceData!D$10,CalculationsAndCharts!$A33+$A$11,0,1,1) -> 2633.21 | F33: =OFFSET(InputPriceData!E$10,CalculationsAndCharts!$A33+$A$11,0,1,1) -> 2554.65 | G33: =OFFSET(InputPriceData!F$10,CalculationsAndCharts!$A33+$A$11,0,1,1) -> 2585.53 | H33: =IF($A33<$A$8,MAX(E33-F33,ABS(E33-G34),ABS(F33-G34)),"") -> 78.56 | I33: =IF($A33<$A$8,IF(E33-E34>F34-F33,MAX(E33-E34,0),0),"") -> 53.98 | J33: =IF($A33<$A$8,IF(F34-F33>E33-E34,MAX(F34-F33,0),0),"") -> 0 | K33: =IF(($A$8-$A33)<A$17,"",IF(($A$8-$A33)=A$17,SUM(OFFSET($H33,0,0,A$17,1)),ROUND(TRUNC((K34-(K34/A$17)+$H33),3),2))) -> 271.93 | L33: =IF(($A$8-$A33)<A$17,"",IF(($A$8-$A33)=A$17,SUM(OFFSET($I33,0,0,A$17,1)),ROUND(TRUNC((L34-(L34/A$17)+$I33),3),2))) -> 61.05 | M33: =IF(($A$8-$A33)<A$17,"",IF(($A$8-$A33)=A$17,SUM(OFFSET($J33,0,0,A$17,1)),ROUND(TRUNC((M34-(M34/A$17)+$J33),3),2))) -> 34.49 | N33: =IF(($A$8-$A33)<A$17,"",ROUND((100*(L33/K33)),0)) -> 22 | O33: =IF(($A$8-$A33)<A$17,"",ROUND((100*(M33/K33)),0)) -> 13 | P33: =IF(($A$8-$A33)<A$17,"",ABS(N33-O33)) -> 9 | Q33: =IF(($A$8-$A33)<A$17,"",N33+O33) -> 35 | R33: =IF(($A$8-$A33)<A$17,"",ROUND(100*(P33/Q33),0)) -> 26 | S33: =IF(($A$8-$A33)<(2*A$17),"",ROUND(IF(($A$8-$A33)=(2*A$17),AVERAGE(OFFSET(R33,0,0,A$17,1)),(((S34*(A$17-1))+R33)/A$17)),0)) -> 61 | T33: =IF(($A$8-$A33)<A$18,"",IF(($A$8-$A33)=A$18,SUM(OFFSET($H33,0,0,A$18,1)),ROUND(TRUNC((T34-(T34/A$18)+$H33),3),2))) -> 369.25 | U33: =IF(($A$8-$A33)<A$18,"",IF(($A$8-$A33)=A$18,SUM(OFFSET($I33,0,0,A$18,1)),ROUND(TRUNC((U34-(U34/A$18)+$I33),3),2))) -> 65.99 | V33: =IF(($A$8-$A33)<A$18,"",IF(($A$8-$A33)=A$18,SUM(OFFSET($J33,0,0,A$18,1)),ROUND(TRUNC((V34-(V34/A$18)+$J33),3),2))) -> 60.52 | W33: =IF(($A$8-$A33)<A$18,"",ROUND((100*(U33/T33)),0)) -> 18 | X33: =IF(($A$8-$A33)<A$18,"",ROUND((100*(V33/T33)),0)) -> 16 | Y33: =IF(($A$8-$A33)<A$18,"",ABS(W33-X33)) -> 2 | Z33: =IF(($A$8-$A33)<A$18,"",W33+X33) -> 34 | AA33: =IF(($A$8-$A33)<A$18,"",ROUND(100*(Y33/Z33),0)) -> 6 | AB33: =IF(($A$8-$A33)<(2*A$18),"",ROUND(IF(($A$8-$A33)=(2*A$18),AVERAGE(OFFSET(AA33,0,0,A$18,1)),(((AB34*(A$18-1))+AA33)/A$18)),0)) -> 53 | AC33: =IF(($A$8-$A33)<A$19,"",IF(($A$8-$A33)=A$19,SUM(OFFSET($H33,0,0,A$19,1)),ROUND(TRUNC((AC34-(AC34/A$19)+$H33),3),2))) -> 461.63 | AD33: =IF(($A$8-$A33)<A$19,"",IF(($A$8-$A33)=A$19,SUM(OFFSET($I33,0,0,A$19,1)),ROUND(TRUNC((AD34-(AD34/A$19)+$I33),3),2))) -> 74.51 | AE33: =IF(($A$8-$A33)<A$19,"",IF(($A$8-$A33)=A$19,SUM(OFFSET($J33,0,0,A$19,1)),ROUND(TRUNC((AE34-(AE34/A$19)+$J33),3),2))) -> 84.67 | AF33: =IF(($A$8-$A33)<A$19,"",ROUND((100*(AD33/AC33)),0)) -> 16 | AG33: =IF(($A$8-$A33)<A$19,"",ROUND((100*(AE33/AC33)),0)) -> 18 | AH33: =IF(($A$8-$A33)<A$19,"",ABS(AF33-AG33)) -> 2 | AI33: =IF(($A$8-$A33)<A$19,"",AF33+AG33) -> 34 | AJ33: =IF(($A$8-$A33)<A$19,"",ROUND(100*(AH33/AI33),0)) -> 6 | AK33: =IF(($A$8-$A33)<(2*A$19),"",ROUND(IF(($A$8-$A33)=(2*A$19),AVERAGE(OFFSET(AJ33,0,0,A$19,1)),(((AK34*(A$19-1))+AJ33)/A$19)),0)) -> 48 | AL33: =AL32 -> 5 | AM33: =AM32 -> 10 | AN33: =AN32 -> 20 | AO33: 30 | AP33: 50 | AQ33: 70 | AR33: 90 | AS33: =IF($A33=$B$27,AS$32,0) -> 0 | AT33: 0
A34: 2 | B34: =OFFSET(InputPriceData!B$10,CalculationsAndCharts!$A34+$A$11,0,1,1) -> 2012-06-11 | C34: =OFFSET(InputPriceData!G$10,CalculationsAndCharts!$A34+$A$11,0,1,1) -> 1666016000 | D34: =OFFSET(InputPriceData!C$10,CalculationsAndCharts!$A34+$A$11,0,1,1) -> 2578.73 | E34: =OFFSET(InputPriceData!D$10,CalculationsAndCharts!$A34+$A$11,0,1,1) -> 2579.23 | F34: =OFFSET(InputPriceData!E$10,CalculationsAndCharts!$A34+$A$11,0,1,1) -> 2510.75 | G34: =OFFSET(InputPriceData!F$10,CalculationsAndCharts!$A34+$A$11,0,1,1) -> 2571.23 | H34: =IF($A34<$A$8,MAX(E34-F34,ABS(E34-G35),ABS(F34-G35)),"") -> 68.48 | I34: =IF($A34<$A$8,IF(E34-E35>F35-F34,MAX(E34-E35,0),0),"") -> 8.75 | J34: =IF($A34<$A$8,IF(F35-F34>E34-E35,MAX(F35-F34,0),0),"") -> 0 | K34: =IF(($A$8-$A34)<A$17,"",IF(($A$8-$A34)=A$17,SUM(OFFSET($H34,0,0,A$17,1)),ROUND(TRUNC((K35-(K35/A$17)+$H34),3),2))) -> 290.06 | L34: =IF(($A$8-$A34)<A$17,"",IF(($A$8-$A34)=A$17,SUM(OFFSET($I34,0,0,A$17,1)),ROUND(TRUNC((L35-(L35/A$17)+$I34),3),2))) -> 10.6 | M34: =IF(($A$8-$A34)<A$17,"",IF(($A$8-$A34)=A$17,SUM(OFFSET($J34,0,0,A$17,1)),ROUND(TRUNC((M35-(M35/A$17)+$J34),3),2))) -> 51.73 | N34: =IF(($A$8-$A34)<A$17,"",ROUND((100*(L34/K34)),0)) -> 4 | O34: =IF(($A$8-$A34)<A$17,"",ROUND((100*(M34/K34)),0)) -> 18 | P34: =IF(($A$8-$A34)<A$17,"",ABS(N34-O34)) -> 14 | Q34: =IF(($A$8-$A34)<A$17,"",N34+O34) -> 22 | R34: =IF(($A$8-$A34)<A$17,"",ROUND(100*(P34/Q34),0)) -> 64 | S34: =IF(($A$8-$A34)<(2*A$17),"",ROUND(IF(($A$8-$A34)=(2*A$17),AVERAGE(OFFSET(R34,0,0,A$17,1)),(((S35*(A$17-1))+R34)/A$17)),0)) -> 78 | T34: =IF(($A$8-$A34)<A$18,"",IF(($A$8-$A34)=A$18,SUM(OFFSET($H34,0,0,A$18,1)),ROUND(TRUNC((T35-(T35/A$18)+$H34),3),2))) -> 387.58 | U34: =IF(($A$8-$A34)<A$18,"",IF(($A$8-$A34)=A$18,SUM(OFFSET($I34,0,0,A$18,1)),ROUND(TRUNC((U35-(U35/A$18)+$I34),3),2))) -> 16.01 | V34: =IF(($A$8-$A34)<A$18,"",IF(($A$8-$A34)=A$18,SUM(OFFSET($J34,0,0,A$18,1)),ROUND(TRUNC((V35-(V35/A$18)+$J34),3),2))) -> 80.69 | W34: =IF(($A$8-$A34)<A$18,"",ROUND((100*(U34/T34)),0)) -> 4 | X34: =IF(($A$8-$A34)<A$18,"",ROUND((100*(V34/T34)),0)) -> 21 | Y34: =IF(($A$8-$A34)<A$18,"",ABS(W34-X34)) -> 17 | Z34: =IF(($A$8-$A34)<A$18,"",W34+X34) -> 25 | AA34: =IF(($A$8-$A34)<A$18,"",ROUND(100*(Y34/Z34),0)) -> 68 | AB34: =IF(($A$8-$A34)<(2*A$18),"",ROUND(IF(($A$8-$A34)=(2*A$18),AVERAGE(OFFSET(AA34,0,0,A$18,1)),(((AB35*(A$18-1))+AA34)/A$18)),0)) -> 69 | AC34: =IF(($A$8-$A34)<A$19,"",IF(($A$8-$A34)=A$19,SUM(OFFSET($H34,0,0,A$19,1)),ROUND(TRUNC((AC35-(AC35/A$19)+$H34),3),2))) -> 478.84 | AD34: =IF(($A$8-$A34)<A$19,"",IF(($A$8-$A34)=A$19,SUM(OFFSET($I34,0,0,A$19,1)),ROUND(TRUNC((AD35-(AD35/A$19)+$I34),3),2))) -> 25.66 | AE34: =IF(($A$8-$A34)<A$19,"",IF(($A$8-$A34)=A$19,SUM(OFFSET($J34,0,0,A$19,1)),ROUND(TRUNC((AE35-(AE35/A$19)+$J34),3),2))) -> 105.84 | AF34: =IF(($A$8-$A34)<A$19,"",ROUND((100*(AD34/AC34)),0)) -> 5 | AG34: =IF(($A$8-$A34)<A$19,"",ROUND((100*(AE34/AC34)),0)) -> 22 | AH34: =IF(($A$8-$A34)<A$19,"",ABS(AF34-AG34)) -> 17 | AI34: =IF(($A$8-$A34)<A$19,"",AF34+AG34) -> 27 | AJ34: =IF(($A$8-$A34)<A$19,"",ROUND(100*(AH34/AI34),0)) -> 63 | AK34: =IF(($A$8-$A34)<(2*A$19),"",ROUND(IF(($A$8-$A34)=(2*A$19),AVERAGE(OFFSET(AJ34,0,0,A$19,1)),(((AK35*(A$19-1))+AJ34)/A$19)),0)) -> 58 | AL34: =AL33 -> 5 | AM34: =AM33 -> 10 | AN34: =AN33 -> 20 | AO34: =AO33 -> 30 | AP34: =AP33 -> 50 | AQ34: =AQ33 -> 70 | AR34: =AR33 -> 90 | AS34: 0 | AT34: 0
A35: 3 | B35: =OFFSET(InputPriceData!B$10,CalculationsAndCharts!$A35+$A$11,0,1,1) -> 2012-06-04 | C35: =OFFSET(InputPriceData!G$10,CalculationsAndCharts!$A35+$A$11,0,1,1) -> 1637606000 | D35: =OFFSET(InputPriceData!C$10,CalculationsAndCharts!$A35+$A$11,0,1,1) -> 2458.97 | E35: =OFFSET(InputPriceData!D$10,CalculationsAndCharts!$A35+$A$11,0,1,1) -> 2570.48 | F35: =OFFSET(InputPriceData!E$10,CalculationsAndCharts!$A35+$A$11,0,1,1) -> 2443.92 | G35: =OFFSET(InputPriceData!F$10,CalculationsAndCharts!$A35+$A$11,0,1,1) -> 2559.21 | H35: 126.56 | I35: 0 | J35: 14.81 | K35: =IF(($A$8-$A35)<A$17,"",IF(($A$8-$A35)=A$17,SUM(OFFSET($H35,0,0,A$17,1)),ROUND(TRUNC((K36-(K36/A$17)+$H35),3),2))) -> 332.37 | L35: =IF(($A$8-$A35)<A$17,"",IF(($A$8-$A35)=A$17,SUM(OFFSET($I35,0,0,A$17,1)),ROUND(TRUNC((L36-(L36/A$17)+$I35),3),2))) -> 2.78 | M35: =IF(($A$8-$A35)<A$17,"",IF(($A$8-$A35)=A$17,SUM(OFFSET($J35,0,0,A$17,1)),ROUND(TRUNC((M36-(M36/A$17)+$J35),3),2))) -> 77.59 | N35: =IF(($A$8-$A35)<A$17,"",ROUND((100*(L35/K35)),0)) -> 1 | O35: =IF(($A$8-$A35)<A$17,"",ROUND((100*(M35/K35)),0)) -> 23 | P35: =IF(($A$8-$A35)<A$17,"",ABS(N35-O35)) -> 22 | Q35: =IF(($A$8-$A35)<A$17,"",N35+O35) -> 24 | R35: =IF(($A$8-$A35)<A$17,"",ROUND(100*(P35/Q35),0)) -> 92 | S35: =IF(($A$8-$A35)<(2*A$17),"",ROUND(IF(($A$8-$A35)=(2*A$17),AVERAGE(OFFSET(R35,0,0,A$17,1)),(((S36*(A$17-1))+R35)/A$17)),0)) -> 85 | T35: =IF(($A$8-$A35)<A$18,"",IF(($A$8-$A35)=A$18,SUM(OFFSET($H35,0,0,A$18,1)),ROUND(TRUNC((T36-(T36/A$18)+$H35),3),2))) -> 425.47 | U35: =IF(($A$8-$A35)<A$18,"",IF(($A$8-$A35)=A$18,SUM(OFFSET($I35,0,0,A$18,1)),ROUND(TRUNC((U36-(U36/A$18)+$I35),3),2))) -> 9.68 | V35: =IF(($A$8-$A35)<A$18,"",IF(($A$8-$A35)=A$18,SUM(OFFSET($J35,0,0,A$18,1)),ROUND(TRUNC((V36-(V36/A$18)+$J35),3),2))) -> 107.58 | W35: =IF(($A$8-$A35)<A$18,"",ROUND((100*(U35/T35)),0)) -> 2 | X35: =IF(($A$8-$A35)<A$18,"",ROUND((100*(V35/T35)),0)) -> 25 | Y35: =IF(($A$8-$A35)<A$18,"",ABS(W35-X35)) -> 23 | Z35: =IF(($A$8-$A35)<A$18,"",W35+X35) -> 27 | AA35: =IF(($A$8-$A35)<A$18,"",ROUND(100*(Y35/Z35),0)) -> 85 | AB35: =IF(($A$8-$A35)<(2*A$18),"",ROUND(IF(($A$8-$A35)=(2*A$18),AVERAGE(OFFSET(AA35,0,0,A$18,1)),(((AB36*(A$18-1))+AA35)/A$18)),0)) -> 69 | AC35: =IF(($A$8-$A35)<A$19,"",IF(($A$8-$A35)=A$19,SUM(OFFSET($H35,0,0,A$19,1)),ROUND(TRUNC((AC36-(AC36/A$19)+$H35),3),2))) -> 512.95 | AD35: =IF(($A$8-$A35)<A$19,"",IF(($A$8-$A35)=A$19,SUM(OFFSET($I35,0,0,A$19,1)),ROUND(TRUNC((AD36-(AD36/A$19)+$I35),3),2))) -> 21.14 | AE35: =IF(($A$8-$A35)<A$19,"",IF(($A$8-$A35)=A$19,SUM(OFFSET($J35,0,0,A$19,1)),ROUND(TRUNC((AE36-(AE36/A$19)+$J35),3),2))) -> 132.3 | AF35: =IF(($A$8-$A35)<A$19,"",ROUND((100*(AD35/AC35)),0)) -> 4 | AG35: =IF(($A$8-$A35)<A$19,"",ROUND((100*(AE35/AC35)),0)) -> 26 | AH35: =IF(($A$8-$A35)<A$19,"",ABS(AF35-AG35)) -> 22 | AI35: =IF(($A$8-$A35)<A$19,"",AF35+AG35) -> 30 | AJ35: =IF(($A$8-$A35)<A$19,"",ROUND(100*(AH35/AI35),0)) -> 73 | AK35: =IF(($A$8-$A35)<(2*A$19),"",ROUND(IF(($A$8-$A35)=(2*A$19),AVERAGE(OFFSET(AJ35,0,0,A$19,1)),(((AK36*(A$19-1))+AJ35)/A$19)),0)) -> 57 | AL35: =AL34 -> 5 | AM35: 10 | AN35: 20 | AO35: 30 | AP35: 50 | AQ35: 70 | AR35: 90 | AS35: 0 | AT35: 0
A36: 4 | B36: =OFFSET(InputPriceData!B$10,CalculationsAndCharts!$A36+$A$11,0,1,1) -> 2012-05-29 | C36: =OFFSET(InputPriceData!G$10,CalculationsAndCharts!$A36+$A$11,0,1,1) -> 1509742500 | D36: =OFFSET(InputPriceData!C$10,CalculationsAndCharts!$A36+$A$11,0,1,1) -> 2542.66 | E36: =OFFSET(InputPriceData!D$10,CalculationsAndCharts!$A36+$A$11,0,1,1) -> 2570.79 | F36: =OFFSET(InputPriceData!E$10,CalculationsAndCharts!$A36+$A$11,0,1,1) -> 2458.73 | G36: =OFFSET(InputPriceData!F$10,CalculationsAndCharts!$A36+$A$11,0,1,1) -> 2458.83 | H36: 112.06 | I36: 0 | J36: 19.63 | K36: =IF(($A$8-$A36)<A$17,"",IF(($A$8-$A36)=A$17,SUM(OFFSET($H36,0,0,A$17,1)),ROUND(TRUNC((K37-(K37/A$17)+$H36),3),2))) -> 308.72 | L36: =IF(($A$8-$A36)<A$17,"",IF(($A$8-$A36)=A$17,SUM(OFFSET($I36,0,0,A$17,1)),ROUND(TRUNC((L37-(L37/A$17)+$I36),3),2))) -> 4.17 | M36: =IF(($A$8-$A36)<A$17,"",IF(($A$8-$A36)=A$17,SUM(OFFSET($J36,0,0,A$17,1)),ROUND(TRUNC((M37-(M37/A$17)+$J36),3),2))) -> 94.17 | N36: =IF(($A$8-$A36)<A$17,"",ROUND((100*(L36/K36)),0)) -> 1 | O36: =IF(($A$8-$A36)<A$17,"",ROUND((100*(M36/K36)),0)) -> 31 | P36: =IF(($A$8-$A36)<A$17,"",ABS(N36-O36)) -> 30 | Q36: =IF(($A$8-$A36)<A$17,"",N36+O36) -> 32 | R36: =IF(($A$8-$A36)<A$17,"",ROUND(100*(P36/Q36),0)) -> 94 | S36: =IF(($A$8-$A36)<(2*A$17),"",ROUND(IF(($A$8-$A36)=(2*A$17),AVERAGE(OFFSET(R36,0,0,A$17,1)),(((S37*(A$17-1))+R36)/A$17)),0)) -> 81 | T36: =IF(($A$8-$A36)<A$18,"",IF(($A$8-$A36)=A$18,SUM(OFFSET($H36,0,0,A$18,1)),ROUND(TRUNC((T37-(T37/A$18)+$H36),3),2))) -> 398.54 | U36: =IF(($A$8-$A36)<A$18,"",IF(($A$8-$A36)=A$18,SUM(OFFSET($I36,0,0,A$18,1)),ROUND(TRUNC((U37-(U37/A$18)+$I36),3),2))) -> 12.91 | V36: =IF(($A$8-$A36)<A$18,"",IF(($A$8-$A36)=A$18,SUM(OFFSET($J36,0,0,A$18,1)),ROUND(TRUNC((V37-(V37/A$18)+$J36),3),2))) -> 123.69 | W36: =IF(($A$8-$A36)<A$18,"",ROUND((100*(U36/T36)),0)) -> 3 | X36: =IF(($A$8-$A36)<A$18,"",ROUND((100*(V36/T36)),0)) -> 31 | Y36: =IF(($A$8-$A36)<A$18,"",ABS(W36-X36)) -> 28 | Z36: =IF(($A$8-$A36)<A$18,"",W36+X36) -> 34 | AA36: =IF(($A$8-$A36)<A$18,"",ROUND(100*(Y36/Z36),0)) -> 82 | AB36: =IF(($A$8-$A36)<(2*A$18),"",ROUND(IF(($A$8-$A36)=(2*A$18),AVERAGE(OFFSET(AA36,0,0,A$18,1)),(((AB37*(A$18-1))+AA36)/A$18)),0)) -> 64 | AC36: =IF(($A$8-$A36)<A$19,"",IF(($A$8-$A36)=A$19,SUM(OFFSET($H36,0,0,A$19,1)),ROUND(TRUNC((AC37-(AC37/A$19)+$H36),3),2))) -> 482.99 | AD36: =IF(($A$8-$A36)<A$19,"",IF(($A$8-$A36)=A$19,SUM(OFFSET($I36,0,0,A$19,1)),ROUND(TRUNC((AD37-(AD37/A$19)+$I36),3),2))) -> 26.42 | AE36: =IF(($A$8-$A36)<A$19,"",IF(($A$8-$A36)=A$19,SUM(OFFSET($J36,0,0,A$19,1)),ROUND(TRUNC((AE37-(AE37/A$19)+$J36),3),2))) -> 146.86 | AF36: =IF(($A$8-$A36)<A$19,"",ROUND((100*(AD36/AC36)),0)) -> 5 | AG36: =IF(($A$8-$A36)<A$19,"",ROUND((100*(AE36/AC36)),0)) -> 30 | AH36: =IF(($A$8-$A36)<A$19,"",ABS(AF36-AG36)) -> 25 | AI36: =IF(($A$8-$A36)<A$19,"",AF36+AG36) -> 35 | AJ36: =IF(($A$8-$A36)<A$19,"",ROUND(100*(AH36/AI36),0)) -> 71 | AK36: =IF(($A$8-$A36)<(2*A$19),"",ROUND(IF(($A$8-$A36)=(2*A$19),AVERAGE(OFFSET(AJ36,0,0,A$19,1)),(((AK37*(A$19-1))+AJ36)/A$19)),0)) -> 53 | AL36: 5 | AM36: 10 | AN36: 20 | AO36: 30 | AP36: 50 | AQ36: 70 | AR36: 90 | AS36: 0 | AT36: 0
A37: 5 | B37: =OFFSET(InputPriceData!B$10,CalculationsAndCharts!$A37+$A$11,0,1,1) -> 2012-05-21 | C37: =OFFSET(InputPriceData!G$10,CalculationsAndCharts!$A37+$A$11,0,1,1) -> 1738976000 | D37: =OFFSET(InputPriceData!C$10,CalculationsAndCharts!$A37+$A$11,0,1,1) -> 2482.31 | E37: =OFFSET(InputPriceData!D$10,CalculationsAndCharts!$A37+$A$11,0,1,1) -> 2562.48 | F37: =OFFSET(InputPriceData!E$10,CalculationsAndCharts!$A37+$A$11,0,1,1) -> 2478.36 | G37: =OFFSET(InputPriceData!F$10,CalculationsAndCharts!$A37+$A$11,0,1,1) -> 2527.05 | H37: 84.12 | I37: 0 | J37: 0 | K37: =IF(($A$8-$A37)<A$17,"",IF(($A$8-$A37)=A$17,SUM(OFFSET($H37,0,0,A$17,1)),ROUND(TRUNC((K38-(K38/A$17)+$H37),3),2))) -> 294.99 | L37: =IF(($A$8-$A37)<A$17,"",IF(($A$8-$A37)=A$17,SUM(OFFSET($I37,0,0,A$17,1)),ROUND(TRUNC((L38-(L38/A$17)+$I37),3),2))) -> 6.25 | M37: =IF(($A$8-$A37)<A$17,"",IF(($A$8-$A37)=A$17,SUM(OFFSET($J37,0,0,A$17,1)),ROUND(TRUNC((M38-(M38/A$17)+$J37),3),2))) -> 111.81 | N37: =IF(($A$8-$A37)<A$17,"",ROUND((100*(L37/K37)),0)) -> 2 | O37: =IF(($A$8-$A37)<A$17,"",ROUND((100*(M37/K37)),0)) -> 38 | P37: =IF(($A$8-$A37)<A$17,"",ABS(N37-O37)) -> 36 | Q37: =IF(($A$8-$A37)<A$17,"",N37+O37) -> 40 | R37: =IF(($A$8-$A37)<A$17,"",ROUND(100*(P37/Q37),0)) -> 90 | S37: =IF(($A$8-$A37)<(2*A$17),"",ROUND(IF(($A$8-$A37)=(2*A$17),AVERAGE(OFFSET(R37,0,0,A$17,1)),(((S38*(A$17-1))+R37)/A$17)),0)) -> 74 | T37: =IF(($A$8-$A37)<A$18,"",IF(($A$8-$A37)=A$18,SUM(OFFSET($H37,0,0,A$18,1)),ROUND(TRUNC((T38-(T38/A$18)+$H37),3),2))) -> 381.97 | U37: =IF(($A$8-$A37)<A$18,"",IF(($A$8-$A37)=A$18,SUM(OFFSET($I37,0,0,A$18,1)),ROUND(TRUNC((U38-(U38/A$18)+$I37),3),2))) -> 17.21 | V37: =IF(($A$8-$A37)<A$18,"",IF(($A$8-$A37)=A$18,SUM(OFFSET($J37,0,0,A$18,1)),ROUND(TRUNC((V38-(V38/A$18)+$J37),3),2))) -> 138.74 | W37: =IF(($A$8-$A37)<A$18,"",ROUND((100*(U37/T37)),0)) -> 5 | X37: =IF(($A$8-$A37)<A$18,"",ROUND((100*(V37/T37)),0)) -> 36 | Y37: =IF(($A$8-$A37)<A$18,"",ABS(W37-X37)) -> 31 | Z37: =IF(($A$8-$A37)<A$18,"",W37+X37) -> 41 | AA37: =IF(($A$8-$A37)<A$18,"",ROUND(100*(Y37/Z37),0)) -> 76 | AB37: =IF(($A$8-$A37)<(2*A$18),"",ROUND(IF(($A$8-$A37)=(2*A$18),AVERAGE(OFFSET(AA37,0,0,A$18,1)),(((AB38*(A$18-1))+AA37)/A$18)),0)) -> 58 | AC37: =IF(($A$8-$A37)<A$19,"",IF(($A$8-$A37)=A$19,SUM(OFFSET($H37,0,0,A$19,1)),ROUND(TRUNC((AC38-(AC38/A$19)+$H37),3),2))) -> 463.66 | AD37: =IF(($A$8-$A37)<A$19,"",IF(($A$8-$A37)=A$19,SUM(OFFSET($I37,0,0,A$19,1)),ROUND(TRUNC((AD38-(AD38/A$19)+$I37),3),2))) -> 33.02 | AE37: =IF(($A$8-$A37)<A$19,"",IF(($A$8-$A37)=A$19,SUM(OFFSET($J37,0,0,A$19,1)),ROUND(TRUNC((AE38-(AE38/A$19)+$J37),3),2))) -> 159.04 | AF37: =IF(($A$8-$A37)<A$19,"",ROUND((100*(AD37/AC37)),0)) -> 7 | AG37: =IF(($A$8-$A37)<A$19,"",ROUND((100*(AE37/AC37)),0)) -> 34 | AH37: =IF(($A$8-$A37)<A$19,"",ABS(AF37-AG37)) -> 27 | AI37: =IF(($A$8-$A37)<A$19,"",AF37+AG37) -> 41 | AJ37: =IF(($A$8-$A37)<A$19,"",ROUND(100*(AH37/AI37),0)) -> 66 | AK37: =IF(($A$8-$A37)<(2*A$19),"",ROUND(IF(($A$8-$A37)=(2*A$19),AVERAGE(OFFSET(AJ37,0,0,A$19,1)),(((AK38*(A$19-1))+AJ37)/A$19)),0)) -> 48 | AL37: 5 | AM37: 10 | AN37: 20 | AO37: 30 | AP37: 50 | AQ37: 70 | AR37: 90 | AS37: 0 | AT37: 0
A38: 6 | B38: =OFFSET(InputPriceData!B$10,CalculationsAndCharts!$A38+$A$11,0,1,1) -> 2012-05-14 | C38: =OFFSET(InputPriceData!G$10,CalculationsAndCharts!$A38+$A$11,0,1,1) -> 2030600000 | D38: =OFFSET(InputPriceData!C$10,CalculationsAndCharts!$A38+$A$11,0,1,1) -> 2593.75 | E38: =OFFSET(InputPriceData!D$10,CalculationsAndCharts!$A38+$A$11,0,1,1) -> 2617.23 | F38: =OFFSET(InputPriceData!E$10,CalculationsAndCharts!$A38+$A$11,0,1,1) -> 2474.7 | G38: =OFFSET(InputPriceData!F$10,CalculationsAndCharts!$A38+$A$11,0,1,1) -> 2478.53 | H38: 142.53 | I38: 0 | J38: 112.83 | K38: =IF(($A$8-$A38)<A$17,"",IF(($A$8-$A38)=A$17,SUM(OFFSET($H38,0,0,A$17,1)),ROUND(TRUNC((K39-(K39/A$17)+$H38),3),2))) -> 316.3 | L38: =IF(($A$8-$A38)<A$17,"",IF(($A$8-$A38)=A$17,SUM(OFFSET($I38,0,0,A$17,1)),ROUND(TRUNC((L39-(L39/A$17)+$I38),3),2))) -> 9.38 | M38: =IF(($A$8-$A38)<A$17,"",IF(($A$8-$A38)=A$17,SUM(OFFSET($J38,0,0,A$17,1)),ROUND(TRUNC((M39-(M39/A$17)+$J38),3),2))) -> 167.72 | N38: =IF(($A$8-$A38)<A$17,"",ROUND((100*(L38/K38)),0)) -> 3 | O38: =IF(($A$8-$A38)<A$17,"",ROUND((100*(M38/K38)),0)) -> 53 | P38: =IF(($A$8-$A38)<A$17,"",ABS(N38-O38)) -> 50 | Q38: =IF(($A$8-$A38)<A$17,"",N38+O38) -> 56 | R38: =IF(($A$8-$A38)<A$17,"",ROUND(100*(P38/Q38),0)) -> 89 | S38: =IF(($A$8-$A38)<(2*A$17),"",ROUND(IF(($A$8-$A38)=(2*A$17),AVERAGE(OFFSET(R38,0,0,A$17,1)),(((S39*(A$17-1))+R38)/A$17)),0)) -> 66 | T38: =IF(($A$8-$A38)<A$18,"",IF(($A$8-$A38)=A$18,SUM(OFFSET($H38,0,0,A$18,1)),ROUND(TRUNC((T39-(T39/A$18)+$H38),3),2))) -> 397.13 | U38: =IF(($A$8-$A38)<A$18,"",IF(($A$8-$A38)=A$18,SUM(OFFSET($I38,0,0,A$18,1)),ROUND(TRUNC((U39-(U39/A$18)+$I38),3),2))) -> 22.94 | V38: =IF(($A$8-$A38)<A$18,"",IF(($A$8-$A38)=A$18,SUM(OFFSET($J38,0,0,A$18,1)),ROUND(TRUNC((V39-(V39/A$18)+$J38),3),2))) -> 184.98 | W38: =IF(($A$8-$A38)<A$18,"",ROUND((100*(U38/T38)),0)) -> 6 | X38: =IF(($A$8-$A38)<A$18,"",ROUND((100*(V38/T38)),0)) -> 47 | Y38: =IF(($A$8-$A38)<A$18,"",ABS(W38-X38)) -> 41 | Z38: =IF(($A$8-$A38)<A$18,"",W38+X38) -> 53 | AA38: =IF(($A$8-$A38)<A$18,"",ROUND(100*(Y38/Z38),0)) -> 77 | AB38: =IF(($A$8-$A38)<(2*A$18),"",ROUND(IF(($A$8-$A38)=(2*A$18),AVERAGE(OFFSET(AA38,0,0,A$18,1)),(((AB39*(A$18-1))+AA38)/A$18)),0)) -> 52 | AC38: =IF(($A$8-$A38)<A$19,"",IF(($A$8-$A38)=A$19,SUM(OFFSET($H38,0,0,A$19,1)),ROUND(TRUNC((AC39-(AC39/A$19)+$H38),3),2))) -> 474.43 | AD38: =IF(($A$8-$A38)<A$19,"",IF(($A$8-$A38)=A$19,SUM(OFFSET($I38,0,0,A$19,1)),ROUND(TRUNC((AD39-(AD39/A$19)+$I38),3),2))) -> 41.27 | AE38: =IF(($A$8-$A38)<A$19,"",IF(($A$8-$A38)=A$19,SUM(OFFSET($J38,0,0,A$19,1)),ROUND(TRUNC((AE39-(AE39/A$19)+$J38),3),2))) -> 198.8 | AF38: =IF(($A$8-$A38)<A$19,"",ROUND((100*(AD38/AC38)),0)) -> 9 | AG38: =IF(($A$8-$A38)<A$19,"",ROUND((100*(AE38/AC38)),0)) -> 42 | AH38: =IF(($A$8-$A38)<A$19,"",ABS(AF38-AG38)) -> 33 | AI38: =IF(($A$8-$A38)<A$19,"",AF38+AG38) -> 51 | AJ38: =IF(($A$8-$A38)<A$19,"",ROUND(100*(AH38/AI38),0)) -> 65 | AK38: =IF(($A$8-$A38)<(2*A$19),"",ROUND(IF(($A$8-$A38)=(2*A$19),AVERAGE(OFFSET(AJ38,0,0,A$19,1)),(((AK39*(A$19-1))+AJ38)/A$19)),0)) -> 44 | AL38: 5 | AM38: 10 | AN38: 20 | AO38: 30 | AP38: 50 | AQ38: 70 | AR38: 90 | AS38: 0 | AT38: 0
A39: 7 | B39: =OFFSET(InputPriceData!B$10,CalculationsAndCharts!$A39+$A$11,0,1,1) -> 2012-05-07 | C39: =OFFSET(InputPriceData!G$10,CalculationsAndCharts!$A39+$A$11,0,1,1) -> 1940578000 | D39: =OFFSET(InputPriceData!C$10,CalculationsAndCharts!$A39+$A$11,0,1,1) -> 2622.67 | E39: =OFFSET(InputPriceData!D$10,CalculationsAndCharts!$A39+$A$11,0,1,1) -> 2651.74 | F39: =OFFSET(InputPriceData!E$10,CalculationsAndCharts!$A39+$A$11,0,1,1) -> 2587.53 | G39: =OFFSET(InputPriceData!F$10,CalculationsAndCharts!$A39+$A$11,0,1,1) -> 2615.98 | H39: 64.21 | I39: 0 | J39: 50.2 | K39: =IF(($A$8-$A39)<A$17,"",IF(($A$8-$A39)=A$17,SUM(OFFSET($H39,0,0,A$17,1)),ROUND(TRUNC((K40-(K40/A$17)+$H39),3),2))) -> 260.65 | L39: =IF(($A$8-$A39)<A$17,"",IF(($A$8-$A39)=A$17,SUM(OFFSET($I39,0,0,A$17,1)),ROUND(TRUNC((L40-(L40/A$17)+$I39),3),2))) -> 14.07 | M39: =IF(($A$8-$A39)<A$17,"",IF(($A$8-$A39)=A$17,SUM(OFFSET($J39,0,0,A$17,1)),ROUND(TRUNC((M40-(M40/A$17)+$J39),3),2))) -> 82.33 | N39: =IF(($A$8-$A39)<A$17,"",ROUND((100*(L39/K39)),0)) -> 5 | O39: =IF(($A$8-$A39)<A$17,"",ROUND((100*(M39/K39)),0)) -> 32 | P39: =IF(($A$8-$A39)<A$17,"",ABS(N39-O39)) -> 27 | Q39: =IF(($A$8-$A39)<A$17,"",N39+O39) -> 37 | R39: =IF(($A$8-$A39)<A$17,"",ROUND(100*(P39/Q39),0)) -> 73 | S39: =IF(($A$8-$A39)<(2*A$17),"",ROUND(IF(($A$8-$A39)=(2*A$17),AVERAGE(OFFSET(R39,0,0,A$17,1)),(((S40*(A$17-1))+R39)/A$17)),0)) -> 55 | T39: =IF(($A$8-$A39)<A$18,"",IF(($A$8-$A39)=A$18,SUM(OFFSET($H39,0,0,A$18,1)),ROUND(TRUNC((T40-(T40/A$18)+$H39),3),2))) -> 339.46 | U39: =IF(($A$8-$A39)<A$18,"",IF(($A$8-$A39)=A$18,SUM(OFFSET($I39,0,0,A$18,1)),ROUND(TRUNC((U40-(U40/A$18)+$I39),3),2))) -> 30.59 | V39: =IF(($A$8-$A39)<A$18,"",IF(($A$8-$A39)=A$18,SUM(OFFSET($J39,0,0,A$18,1)),ROUND(TRUNC((V40-(V40/A$18)+$J39),3),2))) -> 96.2 | W39: =IF(($A$8-$A39)<A$18,"",ROUND((100*(U39/T39)),0)) -> 9 | X39: =IF(($A$8-$A39)<A$18,"",ROUND((100*(V39/T39)),0)) -> 28 | Y39: =IF(($A$8-$A39)<A$18,"",ABS(W39-X39)) -> 19 | Z39: =IF(($A$8-$A39)<A$18,"",W39+X39) -> 37 | AA39: =IF(($A$8-$A39)<A$18,"",ROUND(100*(Y39/Z39),0)) -> 51 | AB39: =IF(($A$8-$A39)<(2*A$18),"",ROUND(IF(($A$8-$A39)=(2*A$18),AVERAGE(OFFSET(AA39,0,0,A$18,1)),(((AB40*(A$18-1))+AA39)/A$18)),0)) -> 44 | AC39: =IF(($A$8-$A39)<A$19,"",IF(($A$8-$A39)=A$19,SUM(OFFSET($H39,0,0,A$19,1)),ROUND(TRUNC((AC40-(AC40/A$19)+$H39),3),2))) -> 414.87 | AD39: =IF(($A$8-$A39)<A$19,"",IF(($A$8-$A39)=A$19,SUM(OFFSET($I39,0,0,A$19,1)),ROUND(TRUNC((AD40-(AD40/A$19)+$I39),3),2))) -> 51.59 | AE39: =IF(($A$8-$A39)<A$19,"",IF(($A$8-$A39)=A$19,SUM(OFFSET($J39,0,0,A$19,1)),ROUND(TRUNC((AE40-(AE40/A$19)+$J39),3),2))) -> 107.46 | AF39: =IF(($A$8-$A39)<A$19,"",ROUND((100*(AD39/AC39)),0)) -> 12 | AG39: =IF(($A$8-$A39)<A$19,"",ROUND((100*(AE39/AC39)),0)) -> 26 | AH39: =IF(($A$8-$A39)<A$19,"",ABS(AF39-AG39)) -> 14 | AI39: =IF(($A$8-$A39)<A$19,"",AF39+AG39) -> 38 | AJ39: =IF(($A$8-$A39)<A$19,"",ROUND(100*(AH39/AI39),0)) -> 37 | AK39: =IF(($A$8-$A39)<(2*A$19),"",ROUND(IF(($A$8-$A39)=(2*A$19),AVERAGE(OFFSET(AJ39,0,0,A$19,1)),(((AK40*(A$19-1))+AJ39)/A$19)),0)) -> 39 | AL39: 5 | AM39: 10 | AN39: 20 | AO39: 30 | AP39: 50 | AQ39: 70 | AR39: 90 | AS39: 0 | AT39: 0
A40: 8 | B40: =OFFSET(InputPriceData!B$10,CalculationsAndCharts!$A40+$A$11,0,1,1) -> 2012-04-30 | C40: =OFFSET(InputPriceData!G$10,CalculationsAndCharts!$A40+$A$11,0,1,1) -> 1825146000 | D40: =OFFSET(InputPriceData!C$10,CalculationsAndCharts!$A40+$A$11,0,1,1) -> 2731.26 | E40: =OFFSET(InputPriceData!D$10,CalculationsAndCharts!$A40+$A$11,0,1,1) -> 2756.81 | F40: =OFFSET(InputPriceData!E$10,CalculationsAndCharts!$A40+$A$11,0,1,1) -> 2637.73 | G40: =OFFSET(InputPriceData!F$10,CalculationsAndCharts!$A40+$A$11,0,1,1) -> 2637.92 | H40: 119.08 | I40: 6.31 | J40: 0 | K40: =IF(($A$8-$A40)<A$17,"",IF(($A$8-$A40)=A$17,SUM(OFFSET($H40,0,0,A$17,1)),ROUND(TRUNC((K41-(K41/A$17)+$H40),3),2))) -> 294.66 | L40: =IF(($A$8-$A40)<A$17,"",IF(($A$8-$A40)=A$17,SUM(OFFSET($I40,0,0,A$17,1)),ROUND(TRUNC((L41-(L41/A$17)+$I40),3),2))) -> 21.11 | M40: =IF(($A$8-$A40)<A$17,"",IF(($A$8-$A40)=A$17,SUM(OFFSET($J40,0,0,A$17,1)),ROUND(TRUNC((M41-(M41/A$17)+$J40),3),2))) -> 48.19 | N40: =IF(($A$8-$A40)<A$17,"",ROUND((100*(L40/K40)),0)) -> 7 | O40: =IF(($A$8-$A40)<A$17,"",ROUND((100*(M40/K40)),0)) -> 16 | P40: =IF(($A$8-$A40)<A$17,"",ABS(N40-O40)) -> 9 | Q40: =IF(($A$8-$A40)<A$17,"",N40+O40) -> 23 | R40: =IF(($A$8-$A40)<A$17,"",ROUND(100*(P40/Q40),0)) -> 39 | S40: =IF(($A$8-$A40)<(2*A$17),"",ROUND(IF(($A$8-$A40)=(2*A$17),AVERAGE(OFFSET(R40,0,0,A$17,1)),(((S41*(A$17-1))+R40)/A$17)),0)) -> 46 | T40: =IF(($A$8-$A40)<A$18,"",IF(($A$8-$A40)=A$18,SUM(OFFSET($H40,0,0,A$18,1)),ROUND(TRUNC((T41-(T41/A$18)+$H40),3),2))) -> 367 | U40: =IF(($A$8-$A40)<A$18,"",IF(($A$8-$A40)=A$18,SUM(OFFSET($I40,0,0,A$18,1)),ROUND(TRUNC((U41-(U41/A$18)+$I40),3),2))) -> 40.78 | V40: =IF(($A$8-$A40)<A$18,"",IF(($A$8-$A40)=A$18,SUM(OFFSET($J40,0,0,A$18,1)),ROUND(TRUNC((V41-(V41/A$18)+$J40),3),2))) -> 61.34 | W40: =IF(($A$8-$A40)<A$18,"",ROUND((100*(U40/T40)),0)) -> 11 | X40: =IF(($A$8-$A40)<A$18,"",ROUND((100*(V40/T40)),0)) -> 17 | Y40: =IF(($A$8-$A40)<A$18,"",ABS(W40-X40)) -> 6 | Z40: =IF(($A$8-$A40)<A$18,"",W40+X40) -> 28 | AA40: =IF(($A$8-$A40)<A$18,"",ROUND(100*(Y40/Z40),0)) -> 21 | AB40: =IF(($A$8-$A40)<(2*A$18),"",ROUND(IF(($A$8-$A40)=(2*A$18),AVERAGE(OFFSET(AA40,0,0,A$18,1)),(((AB41*(A$18-1))+AA40)/A$18)),0)) -> 41 | AC40: =IF(($A$8-$A40)<A$19,"",IF(($A$8-$A40)=A$19,SUM(OFFSET($H40,0,0,A$19,1)),ROUND(TRUNC((AC41-(AC41/A$19)+$H40),3),2))) -> 438.32 | AD40: =IF(($A$8-$A40)<A$19,"",IF(($A$8-$A40)=A$19,SUM(OFFSET($I40,0,0,A$19,1)),ROUND(TRUNC((AD41-(AD41/A$19)+$I40),3),2))) -> 64.49 | AE40: =IF(($A$8-$A40)<A$19,"",IF(($A$8-$A40)=A$19,SUM(OFFSET($J40,0,0,A$19,1)),ROUND(TRUNC((AE41-(AE41/A$19)+$J40),3),2))) -> 71.58 | AF40: =IF(($A$8-$A40)<A$19,"",ROUND((100*(AD40/AC40)),0)) -> 15 | AG40: =IF(($A$8-$A40)<A$19,"",ROUND((100*(AE40/AC40)),0)) -> 16 | AH40: =IF(($A$8-$A40)<A$19,"",ABS(AF40-AG40)) -> 1 | AI40: =IF(($A$8-$A40)<A$19,"",AF40+AG40) -> 31 | AJ40: =IF(($A$8-$A40)<A$19,"",ROUND(100*(AH40/AI40),0)) -> 3 | AK40: =IF(($A$8-$A40)<(2*A$19),"",ROUND(IF(($A$8-$A40)=(2*A$19),AVERAGE(OFFSET(AJ40,0,0,A$19,1)),(((AK41*(A$19-1))+AJ40)/A$19)),0)) -> 39 | AL40: 5 | AM40: 10 | AN40: 20 | AO40: 30 | AP40: 50 | AQ40: 70 | AR40: 90 | AS40: 0 | AT40: 0
A41: 9 | B41: =OFFSET(InputPriceData!B$10,CalculationsAndCharts!$A41+$A$11,0,1,1) -> 2012-04-23 | C41: =OFFSET(InputPriceData!G$10,CalculationsAndCharts!$A41+$A$11,0,1,1) -> 1744158000 | D41: =OFFSET(InputPriceData!C$10,CalculationsAndCharts!$A41+$A$11,0,1,1) -> 2651.13 | E41: =OFFSET(InputPriceData!D$10,CalculationsAndCharts!$A41+$A$11,0,1,1) -> 2750.5 | F41: =OFFSET(InputPriceData!E$10,CalculationsAndCharts!$A41+$A$11,0,1,1) -> 2628.96 | G41: =OFFSET(InputPriceData!F$10,CalculationsAndCharts!$A41+$A$11,0,1,1) -> 2741.34 | H41: 121.54 | I41: 0 | J41: 32 | K41: =IF(($A$8-$A41)<A$17,"",IF(($A$8-$A41)=A$17,SUM(OFFSET($H41,0,0,A$17,1)),ROUND(TRUNC((K42-(K42/A$17)+$H41),3),2))) -> 263.37 | L41: =IF(($A$8-$A41)<A$17,"",IF(($A$8-$A41)=A$17,SUM(OFFSET($I41,0,0,A$17,1)),ROUND(TRUNC((L42-(L42/A$17)+$I41),3),2))) -> 22.2 | M41: =IF(($A$8-$A41)<A$17,"",IF(($A$8-$A41)=A$17,SUM(OFFSET($J41,0,0,A$17,1)),ROUND(TRUNC((M42-(M42/A$17)+$J41),3),2))) -> 72.29 | N41: =IF(($A$8-$A41)<A$17,"",ROUND((100*(L41/K41)),0)) -> 8 | O41: =IF(($A$8-$A41)<A$17,"",ROUND((100*(M41/K41)),0)) -> 27 | P41: =IF(($A$8-$A41)<A$17,"",ABS(N41-O41)) -> 19 | Q41: =IF(($A$8-$A41)<A$17,"",N41+O41) -> 35 | R41: =IF(($A$8-$A41)<A$17,"",ROUND(100*(P41/Q41),0)) -> 54 | S41: =IF(($A$8-$A41)<(2*A$17),"",ROUND(IF(($A$8-$A41)=(2*A$17),AVERAGE(OFFSET(R41,0,0,A$17,1)),(((S42*(A$17-1))+R41)/A$17)),0)) -> 49 | T41: =IF(($A$8-$A41)<A$18,"",IF(($A$8-$A41)=A$18,SUM(OFFSET($H41,0,0,A$18,1)),ROUND(TRUNC((T42-(T42/A$18)+$H41),3),2))) -> 330.56 | U41: =IF(($A$8-$A41)<A$18,"",IF(($A$8-$A41)=A$18,SUM(OFFSET($I41,0,0,A$18,1)),ROUND(TRUNC((U42-(U42/A$18)+$I41),3),2))) -> 45.96 | V41: =IF(($A$8-$A41)<A$18,"",IF(($A$8-$A41)=A$18,SUM(OFFSET($J41,0,0,A$18,1)),ROUND(TRUNC((V42-(V42/A$18)+$J41),3),2))) -> 81.79 | W41: =IF(($A$8-$A41)<A$18,"",ROUND((100*(U41/T41)),0)) -> 14 | X41: =IF(($A$8-$A41)<A$18,"",ROUND((100*(V41/T41)),0)) -> 25 | Y41: =IF(($A$8-$A41)<A$18,"",ABS(W41-X41)) -> 11 | Z41: =IF(($A$8-$A41)<A$18,"",W41+X41) -> 39 | AA41: =IF(($A$8-$A41)<A$18,"",ROUND(100*(Y41/Z41),0)) -> 28 | AB41: =IF(($A$8-$A41)<(2*A$18),"",ROUND(IF(($A$8-$A41)=(2*A$18),AVERAGE(OFFSET(AA41,0,0,A$18,1)),(((AB42*(A$18-1))+AA41)/A$18)),0)) -> 48 | AC41: =IF(($A$8-$A41)<A$19,"",IF(($A$8-$A41)=A$19,SUM(OFFSET($H41,0,0,A$19,1)),ROUND(TRUNC((AC42-(AC42/A$19)+$H41),3),2))) -> 399.05 | AD41: =IF(($A$8-$A41)<A$19,"",IF(($A$8-$A41)=A$19,SUM(OFFSET($I41,0,0,A$19,1)),ROUND(TRUNC((AD42-(AD42/A$19)+$I41),3),2))) -> 72.73 | AE41: =IF(($A$8-$A41)<A$19,"",IF(($A$8-$A41)=A$19,SUM(OFFSET($J41,0,0,A$19,1)),ROUND(TRUNC((AE42-(AE42/A$19)+$J41),3),2))) -> 89.47 | AF41: =IF(($A$8-$A41)<A$19,"",ROUND((100*(AD41/AC41)),0)) -> 18 | AG41: =IF(($A$8-$A41)<A$19,"",ROUND((100*(AE41/AC41)),0)) -> 22 | AH41: =IF(($A$8-$A41)<A$19,"",ABS(AF41-AG41)) -> 4 | AI41: =IF(($A$8-$A41)<A$19,"",AF41+AG41) -> 40 | AJ41: =IF(($A$8-$A41)<A$19,"",ROUND(100*(AH41/AI41),0)) -> 10 | AK41: =IF(($A$8-$A41)<(2*A$19),"",ROUND(IF(($A$8-$A41)=(2*A$19),AVERAGE(OFFSET(AJ41,0,0,A$19,1)),(((AK42*(A$19-1))+AJ41)/A$19)),0)) -> 48 | AL41: 5 | AM41: 10 | AN41: 20 | AO41: 30 | AP41: 50 | AQ41: 70 | AR41: 90 | AS41: 0 | AT41: 0
A42: 10 | B42: =OFFSET(InputPriceData!B$10,CalculationsAndCharts!$A42+$A$11,0,1,1) -> 2012-04-16 | C42: =OFFSET(InputPriceData!G$10,CalculationsAndCharts!$A42+$A$11,0,1,1) -> 1735172000 | D42: =OFFSET(InputPriceData!C$10,CalculationsAndCharts!$A42+$A$11,0,1,1) -> 2713.89 | E42: =OFFSET(InputPriceData!D$10,CalculationsAndCharts!$A42+$A$11,0,1,1) -> 2738.59 | F42: =OFFSET(InputPriceData!E$10,CalculationsAndCharts!$A42+$A$11,0,1,1) -> 2660.96 | G42: =OFFSET(InputPriceData!F$10,CalculationsAndCharts!$A42+$A$11,0,1,1) -> 2676.04 | H42: 77.63 | I42: 0 | J42: 27.25 | K42: =IF(($A$8-$A42)<A$17,"",IF(($A$8-$A42)=A$17,SUM(OFFSET($H42,0,0,A$17,1)),ROUND(TRUNC((K43-(K43/A$17)+$H42),3),2))) -> 212.74 | L42: =IF(($A$8-$A42)<A$17,"",IF(($A$8-$A42)=A$17,SUM(OFFSET($I42,0,0,A$17,1)),ROUND(TRUNC((L43-(L43/A$17)+$I42),3),2))) -> 33.3 | M42: =IF(($A$8-$A42)<A$17,"",IF(($A$8-$A42)=A$17,SUM(OFFSET($J42,0,0,A$17,1)),ROUND(TRUNC((M43-(M43/A$17)+$J42),3),2))) -> 60.44 | N42: =IF(($A$8-$A42)<A$17,"",ROUND((100*(L42/K42)),0)) -> 16 | O42: =IF(($A$8-$A42)<A$17,"",ROUND((100*(M42/K42)),0)) -> 28 | P42: =IF(($A$8-$A42)<A$17,"",ABS(N42-O42)) -> 12 | Q42: =IF(($A$8-$A42)<A$17,"",N42+O42) -> 44 | R42: =IF(($A$8-$A42)<A$17,"",ROUND(100*(P42/Q42),0)) -> 27 | S42: =IF(($A$8-$A42)<(2*A$17),"",ROUND(IF(($A$8-$A42)=(2*A$17),AVERAGE(OFFSET(R42,0,0,A$17,1)),(((S43*(A$17-1))+R42)/A$17)),0)) -> 47 | T42: =IF(($A$8-$A42)<A$18,"",IF(($A$8-$A42)=A$18,SUM(OFFSET($H42,0,0,A$18,1)),ROUND(TRUNC((T43-(T43/A$18)+$H42),3),2))) -> 278.69 | U42: =IF(($A$8-$A42)<A$18,"",IF(($A$8-$A42)=A$18,SUM(OFFSET($I42,0,0,A$18,1)),ROUND(TRUNC((U43-(U43/A$18)+$I42),3),2))) -> 61.28 | V42: =IF(($A$8-$A42)<A$18,"",IF(($A$8-$A42)=A$18,SUM(OFFSET($J42,0,0,A$18,1)),ROUND(TRUNC((V43-(V43/A$18)+$J42),3),2))) -> 66.39 | W42: =IF(($A$8-$A42)<A$18,"",ROUND((100*(U42/T42)),0)) -> 22 | X42: =IF(($A$8-$A42)<A$18,"",ROUND((100*(V42/T42)),0)) -> 24 | Y42: =IF(($A$8-$A42)<A$18,"",ABS(W42-X42)) -> 2 | Z42: =IF(($A$8-$A42)<A$18,"",W42+X42) -> 46 | AA42: =IF(($A$8-$A42)<A$18,"",ROUND(100*(Y42/Z42),0)) -> 4 | AB42: =IF(($A$8-$A42)<(2*A$18),"",ROUND(IF(($A$8-$A42)=(2*A$18),AVERAGE(OFFSET(AA42,0,0,A$18,1)),(((AB43*(A$18-1))+AA42)/A$18)),0)) -> 54 | AC42: =IF(($A$8-$A42)<A$19,"",IF(($A$8-$A42)=A$19,SUM(OFFSET($H42,0,0,A$19,1)),ROUND(TRUNC((AC43-(AC43/A$19)+$H42),3),2))) -> 346.89 | AD42: =IF(($A$8-$A42)<A$19,"",IF(($A$8-$A42)=A$19,SUM(OFFSET($I42,0,0,A$19,1)),ROUND(TRUNC((AD43-(AD43/A$19)+$I42),3),2))) -> 90.91 | AE42: =IF(($A$8-$A42)<A$19,"",IF(($A$8-$A42)=A$19,SUM(OFFSET($J42,0,0,A$19,1)),ROUND(TRUNC((AE43-(AE43/A$19)+$J42),3),2))) -> 71.84 | AF42: =IF(($A$8-$A42)<A$19,"",ROUND((100*(AD42/AC42)),0)) -> 26 | AG42: =IF(($A$8-$A42)<A$19,"",ROUND((100*(AE42/AC42)),0)) -> 21 | AH42: =IF(($A$8-$A42)<A$19,"",ABS(AF42-AG42)) -> 5 | AI42: =IF(($A$8-$A42)<A$19,"",AF42+AG42) -> 47 | AJ42: =IF(($A$8-$A42)<A$19,"",ROUND(100*(AH42/AI42),0)) -> 11 | AK42: =IF(($A$8-$A42)<(2*A$19),"",ROUND(IF(($A$8-$A42)=(2*A$19),AVERAGE(OFFSET(AJ42,0,0,A$19,1)),(((AK43*(A$19-1))+AJ42)/A$19)),0)) -> 57 | AL42: 5 | AM42: 10 | AN42: 20 | AO42: 30 | AP42: 50 | AQ42: 70 | AR42: 90 | AS42: 0 | AT42: 0
A43: 11 | B43: =OFFSET(InputPriceData!B$10,CalculationsAndCharts!$A43+$A$11,0,1,1) -> 2012-04-09 | C43: =OFFSET(InputPriceData!G$10,CalculationsAndCharts!$A43+$A$11,0,1,1) -> 1565964000 | D43: =OFFSET(InputPriceData!C$10,CalculationsAndCharts!$A43+$A$11,0,1,1) -> 2726.08 | E43: =OFFSET(InputPriceData!D$10,CalculationsAndCharts!$A43+$A$11,0,1,1) -> 2751.44 | F43: =OFFSET(InputPriceData!E$10,CalculationsAndCharts!$A43+$A$11,0,1,1) -> 2688.21 | G43: =OFFSET(InputPriceData!F$10,CalculationsAndCharts!$A43+$A$11,0,1,1) -> 2698.99 | H43: 74.29 | I43: 0 | J43: 41 | K43: =IF(($A$8-$A43)<A$17,"",IF(($A$8-$A43)=A$17,SUM(OFFSET($H43,0,0,A$17,1)),ROUND(TRUNC((K44-(K44/A$17)+$H43),3),2))) -> 202.67 | L43: =IF(($A$8-$A43)<A$17,"",IF(($A$8-$A43)=A$17,SUM(OFFSET($I43,0,0,A$17,1)),ROUND(TRUNC((L44-(L44/A$17)+$I43),3),2))) -> 49.95 | M43: =IF(($A$8-$A43)<A$17,"",IF(($A$8-$A43)=A$17,SUM(OFFSET($J43,0,0,A$17,1)),ROUND(TRUNC((M44-(M44/A$17)+$J43),3),2))) -> 49.78 | N43: =IF(($A$8-$A43)<A$17,"",ROUND((100*(L43/K43)),0)) -> 25 | O43: =IF(($A$8-$A43)<A$17,"",ROUND((100*(M43/K43)),0)) -> 25 | P43: =IF(($A$8-$A43)<A$17,"",ABS(N43-O43)) -> 0 | Q43: =IF(($A$8-$A43)<A$17,"",N43+O43) -> 50 | R43: =IF(($A$8-$A43)<A$17,"",ROUND(100*(P43/Q43),0)) -> 0 | S43: =IF(($A$8-$A43)<(2*A$17),"",ROUND(IF(($A$8-$A43)=(2*A$17),AVERAGE(OFFSET(R43,0,0,A$17,1)),(((S44*(A$17-1))+R43)/A$17)),0)) -> 57 | T43: =IF(($A$8-$A43)<A$18,"",IF(($A$8-$A43)=A$18,SUM(OFFSET($H43,0,0,A$18,1)),ROUND(TRUNC((T44-(T44/A$18)+$H43),3),2))) -> 268.08 | U43: =IF(($A$8-$A43)<A$18,"",IF(($A$8-$A43)=A$18,SUM(OFFSET($I43,0,0,A$18,1)),ROUND(TRUNC((U44-(U44/A$18)+$I43),3),2))) -> 81.71 | V43: =IF(($A$8-$A43)<A$18,"",IF(($A$8-$A43)=A$18,SUM(OFFSET($J43,0,0,A$18,1)),ROUND(TRUNC((V44-(V44/A$18)+$J43),3),2))) -> 52.18 | W43: =IF(($A$8-$A43)<A$18,"",ROUND((100*(U43/T43)),0)) -> 30 | X43: =IF(($A$8-$A43)<A$18,"",ROUND((100*(V43/T43)),0)) -> 19 | Y43: =IF(($A$8-$A43)<A$18,"",ABS(W43-X43)) -> 11 | Z43: =IF(($A$8-$A43)<A$18,"",W43+X43) -> 49 | AA43: =IF(($A$8-$A43)<A$18,"",ROUND(100*(Y43/Z43),0)) -> 22 | AB43: =IF(($A$8-$A43)<(2*A$18),"",ROUND(IF(($A$8-$A43)=(2*A$18),AVERAGE(OFFSET(AA43,0,0,A$18,1)),(((AB44*(A$18-1))+AA43)/A$18)),0)) -> 70 | AC43: =IF(($A$8-$A43)<A$19,"",IF(($A$8-$A43)=A$19,SUM(OFFSET($H43,0,0,A$19,1)),ROUND(TRUNC((AC44-(AC44/A$19)+$H43),3),2))) -> 336.58 | AD43: =IF(($A$8-$A43)<A$19,"",IF(($A$8-$A43)=A$19,SUM(OFFSET($I43,0,0,A$19,1)),ROUND(TRUNC((AD44-(AD44/A$19)+$I43),3),2))) -> 113.64 | AE43: =IF(($A$8-$A43)<A$19,"",IF(($A$8-$A43)=A$19,SUM(OFFSET($J43,0,0,A$19,1)),ROUND(TRUNC((AE44-(AE44/A$19)+$J43),3),2))) -> 55.74 | AF43: =IF(($A$8-$A43)<A$19,"",ROUND((100*(AD43/AC43)),0)) -> 34 | AG43: =IF(($A$8-$A43)<A$19,"",ROUND((100*(AE43/AC43)),0)) -> 17 | AH43: =IF(($A$8-$A43)<A$19,"",ABS(AF43-AG43)) -> 17 | AI43: =IF(($A$8-$A43)<A$19,"",AF43+AG43) -> 51 | AJ43: =IF(($A$8-$A43)<A$19,"",ROUND(100*(AH43/AI43),0)) -> 33 | AK43: =IF(($A$8-$A43)<(2*A$19),"",ROUND(IF(($A$8-$A43)=(2*A$19),AVERAGE(OFFSET(AJ43,0,0,A$19,1)),(((AK44*(A$19-1))+AJ43)/A$19)),0)) -> 69 | AL43: 5 | AM43: 10 | AN43: 20 | AO43: 30 | AP43: 50 | AQ43: 70 | AR43: 90 | AS43: 0 | AT43: 0
A44: 12 | B44: =OFFSET(InputPriceData!B$10,CalculationsAndCharts!$A44+$A$11,0,1,1) -> 2012-04-02 | C44: =OFFSET(InputPriceData!G$10,CalculationsAndCharts!$A44+$A$11,0,1,1) -> 1733587500 | D44: =OFFSET(InputPriceData!C$10,CalculationsAndCharts!$A44+$A$11,0,1,1) -> 2752.25 | E44: =OFFSET(InputPriceData!D$10,CalculationsAndCharts!$A44+$A$11,0,1,1) -> 2795.35 | F44: =OFFSET(InputPriceData!E$10,CalculationsAndCharts!$A44+$A$11,0,1,1) -> 2729.21 | G44: =OFFSET(InputPriceData!F$10,CalculationsAndCharts!$A44+$A$11,0,1,1) -> 2762.5 | H44: 66.14 | I44: 0 | J44: 12.11 | K44: =IF(($A$8-$A44)<A$17,"",IF(($A$8-$A44)=A$17,SUM(OFFSET($H44,0,0,A$17,1)),ROUND(TRUNC((K45-(K45/A$17)+$H44),3),2))) -> 192.57 | L44: =IF(($A$8-$A44)<A$17,"",IF(($A$8-$A44)=A$17,SUM(OFFSET($I44,0,0,A$17,1)),ROUND(TRUNC((L45-(L45/A$17)+$I44),3),2))) -> 74.92 | M44: =IF(($A$8-$A44)<A$17,"",IF(($A$8-$A44)=A$17,SUM(OFFSET($J44,0,0,A$17,1)),ROUND(TRUNC((M45-(M45/A$17)+$J44),3),2))) -> 13.17 | N44: =IF(($A$8-$A44)<A$17,"",ROUND((100*(L44/K44)),0)) -> 39 | O44: =IF(($A$8-$A44)<A$17,"",ROUND((100*(M44/K44)),0)) -> 7 | P44: =IF(($A$8-$A44)<A$17,"",ABS(N44-O44)) -> 32 | Q44: =IF(($A$8-$A44)<A$17,"",N44+O44) -> 46 | R44: =IF(($A$8-$A44)<A$17,"",ROUND(100*(P44/Q44),0)) -> 70 | S44: =IF(($A$8-$A44)<(2*A$17),"",ROUND(IF(($A$8-$A44)=(2*A$17),AVERAGE(OFFSET(R44,0,0,A$17,1)),(((S45*(A$17-1))+R44)/A$17)),0)) -> 86 | T44: =IF(($A$8-$A44)<A$18,"",IF(($A$8-$A44)=A$18,SUM(OFFSET($H44,0,0,A$18,1)),ROUND(TRUNC((T45-(T45/A$18)+$H44),3),2))) -> 258.38 | U44: =IF(($A$8-$A44)<A$18,"",IF(($A$8-$A44)=A$18,SUM(OFFSET($I44,0,0,A$18,1)),ROUND(TRUNC((U45-(U45/A$18)+$I44),3),2))) -> 108.95 | V44: =IF(($A$8-$A44)<A$18,"",IF(($A$8-$A44)=A$18,SUM(OFFSET($J44,0,0,A$18,1)),ROUND(TRUNC((V45-(V45/A$18)+$J44),3),2))) -> 14.9 | W44: =IF(($A$8-$A44)<A$18,"",ROUND((100*(U44/T44)),0)) -> 42 | X44: =IF(($A$8-$A44)<A$18,"",ROUND((100*(V44/T44)),0)) -> 6 | Y44: =IF(($A$8-$A44)<A$18,"",ABS(W44-X44)) -> 36 | Z44: =IF(($A$8-$A44)<A$18,"",W44+X44) -> 48 | AA44: =IF(($A$8-$A44)<A$18,"",ROUND(100*(Y44/Z44),0)) -> 75 | AB44: =IF(($A$8-$A44)<(2*A$18),"",ROUND(IF(($A$8-$A44)=(2*A$18),AVERAGE(OFFSET(AA44,0,0,A$18,1)),(((AB45*(A$18-1))+AA44)/A$18)),0)) -> 86 | AC44: =IF(($A$8-$A44)<A$19,"",IF(($A$8-$A44)=A$19,SUM(OFFSET($H44,0,0,A$19,1)),ROUND(TRUNC((AC45-(AC45/A$19)+$H44),3),2))) -> 327.86 | AD44: =IF(($A$8-$A44)<A$19,"",IF(($A$8-$A44)=A$19,SUM(OFFSET($I44,0,0,A$19,1)),ROUND(TRUNC((AD45-(AD45/A$19)+$I44),3),2))) -> 142.05 | AE44: =IF(($A$8-$A44)<A$19,"",IF(($A$8-$A44)=A$19,SUM(OFFSET($J44,0,0,A$19,1)),ROUND(TRUNC((AE45-(AE45/A$19)+$J44),3),2))) -> 18.42 | AF44: =IF(($A$8-$A44)<A$19,"",ROUND((100*(AD44/AC44)),0)) -> 43 | AG44: =IF(($A$8-$A44)<A$19,"",ROUND((100*(AE44/AC44)),0)) -> 6 | AH44: =IF(($A$8-$A44)<A$19,"",ABS(AF44-AG44)) -> 37 | AI44: =IF(($A$8-$A44)<A$19,"",AF44+AG44) -> 49 | AJ44: =IF(($A$8-$A44)<A$19,"",ROUND(100*(AH44/AI44),0)) -> 76 | AK44: =IF(($A$8-$A44)<(2*A$19),"",ROUND(IF(($A$8-$A44)=(2*A$19),AVERAGE(OFFSET(AJ44,0,0,A$19,1)),(((AK45*(A$19-1))+AJ44)/A$19)),0)) -> 78 | AL44: 5 | AM44: 10 | AN44: 20 | AO44: 30 | AP44: 50 | AQ44: 70 | AR44: 90 | AS44: 0 | AT44: 0
A45: 13 | B45: =OFFSET(InputPriceData!B$10,CalculationsAndCharts!$A45+$A$11,0,1,1) -> 2012-03-26 | C45: =OFFSET(InputPriceData!G$10,CalculationsAndCharts!$A45+$A$11,0,1,1) -> 1728990000 | D45: =OFFSET(InputPriceData!C$10,CalculationsAndCharts!$A45+$A$11,0,1,1) -> 2746.98 | E45: =OFFSET(InputPriceData!D$10,CalculationsAndCharts!$A45+$A$11,0,1,1) -> 2794 | F45: =OFFSET(InputPriceData!E$10,CalculationsAndCharts!$A45+$A$11,0,1,1) -> 2741.32 | G45: =OFFSET(InputPriceData!F$10,CalculationsAndCharts!$A45+$A$11,0,1,1) -> 2755.27 | H45: 65.45 | I45: 41.54 | J45: 0 | K45: =IF(($A$8-$A45)<A$17,"",IF(($A$8-$A45)=A$17,SUM(OFFSET($H45,0,0,A$17,1)),ROUND(TRUNC((K46-(K46/A$17)+$H45),3),2))) -> 189.64 | L45: =IF(($A$8-$A45)<A$17,"",IF(($A$8-$A45)=A$17,SUM(OFFSET($I45,0,0,A$17,1)),ROUND(TRUNC((L46-(L46/A$17)+$I45),3),2))) -> 112.38 | M45: =IF(($A$8-$A45)<A$17,"",IF(($A$8-$A45)=A$17,SUM(OFFSET($J45,0,0,A$17,1)),ROUND(TRUNC((M46-(M46/A$17)+$J45),3),2))) -> 1.59 | N45: =IF(($A$8-$A45)<A$17,"",ROUND((100*(L45/K45)),0)) -> 59 | O45: =IF(($A$8-$A45)<A$17,"",ROUND((100*(M45/K45)),0)) -> 1 | P45: =IF(($A$8-$A45)<A$17,"",ABS(N45-O45)) -> 58 | Q45: =IF(($A$8-$A45)<A$17,"",N45+O45) -> 60 | R45: =IF(($A$8-$A45)<A$17,"",ROUND(100*(P45/Q45),0)) -> 97 | S45: =IF(($A$8-$A45)<(2*A$17),"",ROUND(IF(($A$8-$A45)=(2*A$17),AVERAGE(OFFSET(R45,0,0,A$17,1)),(((S46*(A$17-1))+R45)/A$17)),0)) -> 94 | T45: =IF(($A$8-$A45)<A$18,"",IF(($A$8-$A45)=A$18,SUM(OFFSET($H45,0,0,A$18,1)),ROUND(TRUNC((T46-(T46/A$18)+$H45),3),2))) -> 256.32 | U45: =IF(($A$8-$A45)<A$18,"",IF(($A$8-$A45)=A$18,SUM(OFFSET($I45,0,0,A$18,1)),ROUND(TRUNC((U46-(U46/A$18)+$I45),3),2))) -> 145.26 | V45: =IF(($A$8-$A45)<A$18,"",IF(($A$8-$A45)=A$18,SUM(OFFSET($J45,0,0,A$18,1)),ROUND(TRUNC((V46-(V46/A$18)+$J45),3),2))) -> 3.72 | W45: =IF(($A$8-$A45)<A$18,"",ROUND((100*(U45/T45)),0)) -> 57 | X45: =IF(($A$8-$A45)<A$18,"",ROUND((100*(V45/T45)),0)) -> 1 | Y45: =IF(($A$8-$A45)<A$18,"",ABS(W45-X45)) -> 56 | Z45: =IF(($A$8-$A45)<A$18,"",W45+X45) -> 58 | AA45: =IF(($A$8-$A45)<A$18,"",ROUND(100*(Y45/Z45),0)) -> 97 | AB45: =IF(($A$8-$A45)<(2*A$18),"",ROUND(IF(($A$8-$A45)=(2*A$18),AVERAGE(OFFSET(AA45,0,0,A$18,1)),(((AB46*(A$18-1))+AA45)/A$18)),0)) -> 89 | AC45: =IF(($A$8-$A45)<A$19,"",IF(($A$8-$A45)=A$19,SUM(OFFSET($H45,0,0,A$19,1)),ROUND(TRUNC((AC46-(AC46/A$19)+$H45),3),2))) -> 327.15 | AD45: =IF(($A$8-$A45)<A$19,"",IF(($A$8-$A45)=A$19,SUM(OFFSET($I45,0,0,A$19,1)),ROUND(TRUNC((AD46-(AD46/A$19)+$I45),3),2))) -> 177.56 | AE45: =IF(($A$8-$A45)<A$19,"",IF(($A$8-$A45)=A$19,SUM(OFFSET($J45,0,0,A$19,1)),ROUND(TRUNC((AE46-(AE46/A$19)+$J45),3),2))) -> 7.89 | AF45: =IF(($A$8-$A45)<A$19,"",ROUND((100*(AD45/AC45)),0)) -> 54 | AG45: =IF(($A$8-$A45)<A$19,"",ROUND((100*(AE45/AC45)),0)) -> 2 | AH45: =IF(($A$8-$A45)<A$19,"",ABS(AF45-AG45)) -> 52 | AI45: =IF(($A$8-$A45)<A$19,"",AF45+AG45) -> 56 | AJ45: =IF(($A$8-$A45)<A$19,"",ROUND(100*(AH45/AI45),0)) -> 93 | AK45: =IF(($A$8-$A45)<(2*A$19),"",ROUND(IF(($A$8-$A45)=(2*A$19),AVERAGE(OFFSET(AJ45,0,0,A$19,1)),(((AK46*(A$19-1))+AJ45)/A$19)),0)) -> 79 | AL45: 5 | AM45: 10 | AN45: 20 | AO45: 30 | AP45: 50 | AQ45: 70 | AR45: 90 | AS45: 0 | AT45: 0
A46: 14 | B46: =OFFSET(InputPriceData!B$10,CalculationsAndCharts!$A46+$A$11,0,1,1) -> 2012-03-19 | C46: =OFFSET(InputPriceData!G$10,CalculationsAndCharts!$A46+$A$11,0,1,1) -> 1512624000 | D46: =OFFSET(InputPriceData!C$10,CalculationsAndCharts!$A46+$A$11,0,1,1) -> 2716.98 | E46: =OFFSET(InputPriceData!D$10,CalculationsAndCharts!$A46+$A$11,0,1,1) -> 2752.46 | F46: =OFFSET(InputPriceData!E$10,CalculationsAndCharts!$A46+$A$11,0,1,1) -> 2710.63 | G46: =OFFSET(InputPriceData!F$10,CalculationsAndCharts!$A46+$A$11,0,1,1) -> 2728.55 | H46: 41.83 | I46: 31.97 | J46: 0 | K46: =IF(($A$8-$A46)<A$17,"",IF(($A$8-$A46)=A$17,SUM(OFFSET($H46,0,0,A$17,1)),ROUND(TRUNC((K47-(K47/A$17)+$H46),3),2))) -> 186.29 | L46: =IF(($A$8-$A46)<A$17,"",IF(($A$8-$A46)=A$17,SUM(OFFSET($I46,0,0,A$17,1)),ROUND(TRUNC((L47-(L47/A$17)+$I46),3),2))) -> 106.26 | M46: =IF(($A$8-$A46)<A$17,"",IF(($A$8-$A46)=A$17,SUM(OFFSET($J46,0,0,A$17,1)),ROUND(TRUNC((M47-(M47/A$17)+$J46),3),2))) -> 2.39 | N46: =IF(($A$8-$A46)<A$17,"",ROUND((100*(L46/K46)),0)) -> 57 | O46: =IF(($A$8-$A46)<A$17,"",ROUND((100*(M46/K46)),0)) -> 1 | P46: =IF(($A$8-$A46)<A$17,"",ABS(N46-O46)) -> 56 | Q46: =IF(($A$8-$A46)<A$17,"",N46+O46) -> 58 | R46: =IF(($A$8-$A46)<A$17,"",ROUND(100*(P46/Q46),0)) -> 97 | S46: =IF(($A$8-$A46)<(2*A$17),"",ROUND(IF(($A$8-$A46)=(2*A$17),AVERAGE(OFFSET(R46,0,0,A$17,1)),(((S47*(A$17-1))+R46)/A$17)),0)) -> 92 | T46: =IF(($A$8-$A46)<A$18,"",IF(($A$8-$A46)=A$18,SUM(OFFSET($H46,0,0,A$18,1)),ROUND(TRUNC((T47-(T47/A$18)+$H46),3),2))) -> 254.49 | U46: =IF(($A$8-$A46)<A$18,"",IF(($A$8-$A46)=A$18,SUM(OFFSET($I46,0,0,A$18,1)),ROUND(TRUNC((U47-(U47/A$18)+$I46),3),2))) -> 138.29 | V46: =IF(($A$8-$A46)<A$18,"",IF(($A$8-$A46)=A$18,SUM(OFFSET($J46,0,0,A$18,1)),ROUND(TRUNC((V47-(V47/A$18)+$J46),3),2))) -> 4.96 | W46: =IF(($A$8-$A46)<A$18,"",ROUND((100*(U46/T46)),0)) -> 54 | X46: =IF(($A$8-$A46)<A$18,"",ROUND((100*(V46/T46)),0)) -> 2 | Y46: =IF(($A$8-$A46)<A$18,"",ABS(W46-X46)) -> 52 | Z46: =IF(($A$8-$A46)<A$18,"",W46+X46) -> 56 | AA46: =IF(($A$8-$A46)<A$18,"",ROUND(100*(Y46/Z46),0)) -> 93 | AB46: =IF(($A$8-$A46)<(2*A$18),"",ROUND(IF(($A$8-$A46)=(2*A$18),AVERAGE(OFFSET(AA46,0,0,A$18,1)),(((AB47*(A$18-1))+AA46)/A$18)),0)) -> 86 | AC46: =IF(($A$8-$A46)<A$19,"",IF(($A$8-$A46)=A$19,SUM(OFFSET($H46,0,0,A$19,1)),ROUND(TRUNC((AC47-(AC47/A$19)+$H46),3),2))) -> 327.13 | AD46: =IF(($A$8-$A46)<A$19,"",IF(($A$8-$A46)=A$19,SUM(OFFSET($I46,0,0,A$19,1)),ROUND(TRUNC((AD47-(AD47/A$19)+$I46),3),2))) -> 170.02 | AE46: =IF(($A$8-$A46)<A$19,"",IF(($A$8-$A46)=A$19,SUM(OFFSET($J46,0,0,A$19,1)),ROUND(TRUNC((AE47-(AE47/A$19)+$J46),3),2))) -> 9.86 | AF46: =IF(($A$8-$A46)<A$19,"",ROUND((100*(AD46/AC46)),0)) -> 52 | AG46: =IF(($A$8-$A46)<A$19,"",ROUND((100*(AE46/AC46)),0)) -> 3 | AH46: =IF(($A$8-$A46)<A$19,"",ABS(AF46-AG46)) -> 49 | AI46: =IF(($A$8-$A46)<A$19,"",AF46+AG46) -> 55 | AJ46: =IF(($A$8-$A46)<A$19,"",ROUND(100*(AH46/AI46),0)) -> 89 | AK46: =IF(($A$8-$A46)<(2*A$19),"",ROUND(IF(($A$8-$A46)=(2*A$19),AVERAGE(OFFSET(AJ46,0,0,A$19,1)),(((AK47*(A$19-1))+AJ46)/A$19)),0)) -> 75 | AL46: 5 | AM46: 10 | AN46: 20 | AO46: 30 | AP46: 50 | AQ46: 70 | AR46: 90 | AS46: 0 | AT46: 0
A47: 15 | B47: =OFFSET(InputPriceData!B$10,CalculationsAndCharts!$A47+$A$11,0,1,1) -> 2012-03-12 | C47: =OFFSET(InputPriceData!G$10,CalculationsAndCharts!$A47+$A$11,0,1,1) -> 1696002000 | D47: =OFFSET(InputPriceData!C$10,CalculationsAndCharts!$A47+$A$11,0,1,1) -> 2646.98 | E47: =OFFSET(InputPriceData!D$10,CalculationsAndCharts!$A47+$A$11,0,1,1) -> 2720.49 | F47: =OFFSET(InputPriceData!E$10,CalculationsAndCharts!$A47+$A$11,0,1,1) -> 2635.76 | G47: =OFFSET(InputPriceData!F$10,CalculationsAndCharts!$A47+$A$11,0,1,1) -> 2712.78 | H47: 84.73 | I47: 68.51 | J47: 0 | K47: =IF(($A$8-$A47)<A$17,"",IF(($A$8-$A47)=A$17,SUM(OFFSET($H47,0,0,A$17,1)),ROUND(TRUNC((K48-(K48/A$17)+$H47),3),2))) -> 216.69 | L47: =IF(($A$8-$A47)<A$17,"",IF(($A$8-$A47)=A$17,SUM(OFFSET($I47,0,0,A$17,1)),ROUND(TRUNC((L48-(L48/A$17)+$I47),3),2))) -> 111.44 | M47: =IF(($A$8-$A47)<A$17,"",IF(($A$8-$A47)=A$17,SUM(OFFSET($J47,0,0,A$17,1)),ROUND(TRUNC((M48-(M48/A$17)+$J47),3),2))) -> 3.59 | N47: =IF(($A$8-$A47)<A$17,"",ROUND((100*(L47/K47)),0)) -> 51 | O47: =IF(($A$8-$A47)<A$17,"",ROUND((100*(M47/K47)),0)) -> 2 | P47: =IF(($A$8-$A47)<A$17,"",ABS(N47-O47)) -> 49 | Q47: =IF(($A$8-$A47)<A$17,"",N47+O47) -> 53 | R47: =IF(($A$8-$A47)<A$17,"",ROUND(100*(P47/Q47),0)) -> 92 | S47: =IF(($A$8-$A47)<(2*A$17),"",ROUND(IF(($A$8-$A47)=(2*A$17),AVERAGE(OFFSET(R47,0,0,A$17,1)),(((S48*(A$17-1))+R47)/A$17)),0)) -> 89 | T47: =IF(($A$8-$A47)<A$18,"",IF(($A$8-$A47)=A$18,SUM(OFFSET($H47,0,0,A$18,1)),ROUND(TRUNC((T48-(T48/A$18)+$H47),3),2))) -> 283.54 | U47: =IF(($A$8-$A47)<A$18,"",IF(($A$8-$A47)=A$18,SUM(OFFSET($I47,0,0,A$18,1)),ROUND(TRUNC((U48-(U48/A$18)+$I47),3),2))) -> 141.76 | V47: =IF(($A$8-$A47)<A$18,"",IF(($A$8-$A47)=A$18,SUM(OFFSET($J47,0,0,A$18,1)),ROUND(TRUNC((V48-(V48/A$18)+$J47),3),2))) -> 6.61 | W47: =IF(($A$8-$A47)<A$18,"",ROUND((100*(U47/T47)),0)) -> 50 | X47: =IF(($A$8-$A47)<A$18,"",ROUND((100*(V47/T47)),0)) -> 2 | Y47: =IF(($A$8-$A47)<A$18,"",ABS(W47-X47)) -> 48 | Z47: =IF(($A$8-$A47)<A$18,"",W47+X47) -> 52 | AA47: =IF(($A$8-$A47)<A$18,"",ROUND(100*(Y47/Z47),0)) -> 92 | AB47: =IF(($A$8-$A47)<(2*A$18),"",ROUND(IF(($A$8-$A47)=(2*A$18),AVERAGE(OFFSET(AA47,0,0,A$18,1)),(((AB48*(A$18-1))+AA47)/A$18)),0)) -> 83 | AC47: =IF(($A$8-$A47)<A$19,"",IF(($A$8-$A47)=A$19,SUM(OFFSET($H47,0,0,A$19,1)),ROUND(TRUNC((AC48-(AC48/A$19)+$H47),3),2))) -> 356.62 | AD47: =IF(($A$8-$A47)<A$19,"",IF(($A$8-$A47)=A$19,SUM(OFFSET($I47,0,0,A$19,1)),ROUND(TRUNC((AD48-(AD48/A$19)+$I47),3),2))) -> 172.56 | AE47: =IF(($A$8-$A47)<A$19,"",IF(($A$8-$A47)=A$19,SUM(OFFSET($J47,0,0,A$19,1)),ROUND(TRUNC((AE48-(AE48/A$19)+$J47),3),2))) -> 12.33 | AF47: =IF(($A$8-$A47)<A$19,"",ROUND((100*(AD47/AC47)),0)) -> 48 | AG47: =IF(($A$8-$A47)<A$19,"",ROUND((100*(AE47/AC47)),0)) -> 3 | AH47: =IF(($A$8-$A47)<A$19,"",ABS(AF47-AG47)) -> 45 | AI47: =IF(($A$8-$A47)<A$19,"",AF47+AG47) -> 51 | AJ47: =IF(($A$8-$A47)<A$19,"",ROUND(100*(AH47/AI47),0)) -> 88 | AK47: =IF(($A$8-$A47)<(2*A$19),"",ROUND(IF(($A$8-$A47)=(2*A$19),AVERAGE(OFFSET(AJ47,0,0,A$19,1)),(((AK48*(A$19-1))+AJ47)/A$19)),0)) -> 71 | AL47: 5 | AM47: 10 | AN47: 20 | AO47: 30 | AP47: 50 | AQ47: 70 | AR47: 90 | AS47: 0 | AT47: 0
A48: 16 | B48: =OFFSET(InputPriceData!B$10,CalculationsAndCharts!$A48+$A$11,0,1,1) -> 2012-03-05 | C48: =OFFSET(InputPriceData!G$10,CalculationsAndCharts!$A48+$A$11,0,1,1) -> 1667882000 | D48: =OFFSET(InputPriceData!C$10,CalculationsAndCharts!$A48+$A$11,0,1,1) -> 2636.6 | E48: =OFFSET(InputPriceData!D$10,CalculationsAndCharts!$A48+$A$11,0,1,1) -> 2651.98 | F48: =OFFSET(InputPriceData!E$10,CalculationsAndCharts!$A48+$A$11,0,1,1) -> 2575.13 | G48: =OFFSET(InputPriceData!F$10,CalculationsAndCharts!$A48+$A$11,0,1,1) -> 2646.85 | H48: 76.85 | I48: 0 | J48: 4.5 | K48: =IF(($A$8-$A48)<A$17,"",IF(($A$8-$A48)=A$17,SUM(OFFSET($H48,0,0,A$17,1)),ROUND(TRUNC((K49-(K49/A$17)+$H48),3),2))) -> 197.94 | L48: =IF(($A$8-$A48)<A$17,"",IF(($A$8-$A48)=A$17,SUM(OFFSET($I48,0,0,A$17,1)),ROUND(TRUNC((L49-(L49/A$17)+$I48),3),2))) -> 64.39 | M48: =IF(($A$8-$A48)<A$17,"",IF(($A$8-$A48)=A$17,SUM(OFFSET($J48,0,0,A$17,1)),ROUND(TRUNC((M49-(M49/A$17)+$J48),3),2))) -> 5.38 | N48: =IF(($A$8-$A48)<A$17,"",ROUND((100*(L48/K48)),0)) -> 33 | O48: =IF(($A$8-$A48)<A$17,"",ROUND((100*(M48/K48)),0)) -> 3 | P48: =IF(($A$8-$A48)<A$17,"",ABS(N48-O48)) -> 30 | Q48: =IF(($A$8-$A48)<A$17,"",N48+O48) -> 36 | R48: =IF(($A$8-$A48)<A$17,"",ROUND(100*(P48/Q48),0)) -> 83 | S48: =IF(($A$8-$A48)<(2*A$17),"",ROUND(IF(($A$8-$A48)=(2*A$17),AVERAGE(OFFSET(R48,0,0,A$17,1)),(((S49*(A$17-1))+R48)/A$17)),0)) -> 88 | T48: =IF(($A$8-$A48)<A$18,"",IF(($A$8-$A48)=A$18,SUM(OFFSET($H48,0,0,A$18,1)),ROUND(TRUNC((T49-(T49/A$18)+$H48),3),2))) -> 265.08 | U48: =IF(($A$8-$A48)<A$18,"",IF(($A$8-$A48)=A$18,SUM(OFFSET($I48,0,0,A$18,1)),ROUND(TRUNC((U49-(U49/A$18)+$I48),3),2))) -> 97.67 | V48: =IF(($A$8-$A48)<A$18,"",IF(($A$8-$A48)=A$18,SUM(OFFSET($J48,0,0,A$18,1)),ROUND(TRUNC((V49-(V49/A$18)+$J48),3),2))) -> 8.81 | W48: =IF(($A$8-$A48)<A$18,"",ROUND((100*(U48/T48)),0)) -> 37 | X48: =IF(($A$8-$A48)<A$18,"",ROUND((100*(V48/T48)),0)) -> 3 | Y48: =IF(($A$8-$A48)<A$18,"",ABS(W48-X48)) -> 34 | Z48: =IF(($A$8-$A48)<A$18,"",W48+X48) -> 40 | AA48: =IF(($A$8-$A48)<A$18,"",ROUND(100*(Y48/Z48),0)) -> 85 | AB48: =IF(($A$8-$A48)<(2*A$18),"",ROUND(IF(($A$8-$A48)=(2*A$18),AVERAGE(OFFSET(AA48,0,0,A$18,1)),(((AB49*(A$18-1))+AA48)/A$18)),0)) -> 80 | AC48: =IF(($A$8-$A48)<A$19,"",IF(($A$8-$A48)=A$19,SUM(OFFSET($H48,0,0,A$19,1)),ROUND(TRUNC((AC49-(AC49/A$19)+$H48),3),2))) -> 339.86 | AD48: =IF(($A$8-$A48)<A$19,"",IF(($A$8-$A48)=A$19,SUM(OFFSET($I48,0,0,A$19,1)),ROUND(TRUNC((AD49-(AD49/A$19)+$I48),3),2))) -> 130.06 | AE48: =IF(($A$8-$A48)<A$19,"",IF(($A$8-$A48)=A$19,SUM(OFFSET($J48,0,0,A$19,1)),ROUND(TRUNC((AE49-(AE49/A$19)+$J48),3),2))) -> 15.41 | AF48: =IF(($A$8-$A48)<A$19,"",ROUND((100*(AD48/AC48)),0)) -> 38 | AG48: =IF(($A$8-$A48)<A$19,"",ROUND((100*(AE48/AC48)),0)) -> 5 | AH48: =IF(($A$8-$A48)<A$19,"",ABS(AF48-AG48)) -> 33 | AI48: =IF(($A$8-$A48)<A$19,"",AF48+AG48) -> 43 | AJ48: =IF(($A$8-$A48)<A$19,"",ROUND(100*(AH48/AI48),0)) -> 77 | AK48: =IF(($A$8-$A48)<(2*A$19),"",ROUND(IF(($A$8-$A48)=(2*A$19),AVERAGE(OFFSET(AJ48,0,0,A$19,1)),(((AK49*(A$19-1))+AJ48)/A$19)),0)) -> 67 | AL48: 5 | AM48: 10 | AN48: 20 | AO48: 30 | AP48: 50 | AQ48: 70 | AR48: 90 | AS48: 0 | AT48: 0
A49: 17 | B49: =OFFSET(InputPriceData!B$10,CalculationsAndCharts!$A49+$A$11,0,1,1) -> 2012-02-27 | C49: =OFFSET(InputPriceData!G$10,CalculationsAndCharts!$A49+$A$11,0,1,1) -> 1881030000 | D49: =OFFSET(InputPriceData!C$10,CalculationsAndCharts!$A49+$A$11,0,1,1) -> 2589.44 | E49: =OFFSET(InputPriceData!D$10,CalculationsAndCharts!$A49+$A$11,0,1,1) -> 2650 | F49: =OFFSET(InputPriceData!E$10,CalculationsAndCharts!$A49+$A$11,0,1,1) -> 2579.63 | G49: =OFFSET(InputPriceData!F$10,CalculationsAndCharts!$A49+$A$11,0,1,1) -> 2641.58 | H49: 70.37 | I49: 40.55 | J49: 0 | K49: =IF(($A$8-$A49)<A$17,"",IF(($A$8-$A49)=A$17,SUM(OFFSET($H49,0,0,A$17,1)),ROUND(TRUNC((K50-(K50/A$17)+$H49),3),2))) -> 181.63 | L49: =IF(($A$8-$A49)<A$17,"",IF(($A$8-$A49)=A$17,SUM(OFFSET($I49,0,0,A$17,1)),ROUND(TRUNC((L50-(L50/A$17)+$I49),3),2))) -> 96.58 | M49: =IF(($A$8-$A49)<A$17,"",IF(($A$8-$A49)=A$17,SUM(OFFSET($J49,0,0,A$17,1)),ROUND(TRUNC((M50-(M50/A$17)+$J49),3),2))) -> 1.32 | N49: =IF(($A$8-$A49)<A$17,"",ROUND((100*(L49/K49)),0)) -> 53 | O49: =IF(($A$8-$A49)<A$17,"",ROUND((100*(M49/K49)),0)) -> 1 | P49: =IF(($A$8-$A49)<A$17,"",ABS(N49-O49)) -> 52 | Q49: =IF(($A$8-$A49)<A$17,"",N49+O49) -> 54 | R49: =IF(($A$8-$A49)<A$17,"",ROUND(100*(P49/Q49),0)) -> 96 | S49: =IF(($A$8-$A49)<(2*A$17),"",ROUND(IF(($A$8-$A49)=(2*A$17),AVERAGE(OFFSET(R49,0,0,A$17,1)),(((S50*(A$17-1))+R49)/A$17)),0)) -> 91 | T49: =IF(($A$8-$A49)<A$18,"",IF(($A$8-$A49)=A$18,SUM(OFFSET($H49,0,0,A$18,1)),ROUND(TRUNC((T50-(T50/A$18)+$H49),3),2))) -> 250.97 | U49: =IF(($A$8-$A49)<A$18,"",IF(($A$8-$A49)=A$18,SUM(OFFSET($I49,0,0,A$18,1)),ROUND(TRUNC((U50-(U50/A$18)+$I49),3),2))) -> 130.22 | V49: =IF(($A$8-$A49)<A$18,"",IF(($A$8-$A49)=A$18,SUM(OFFSET($J49,0,0,A$18,1)),ROUND(TRUNC((V50-(V50/A$18)+$J49),3),2))) -> 5.75 | W49: =IF(($A$8-$A49)<A$18,"",ROUND((100*(U49/T49)),0)) -> 52 | X49: =IF(($A$8-$A49)<A$18,"",ROUND((100*(V49/T49)),0)) -> 2 | Y49: =IF(($A$8-$A49)<A$18,"",ABS(W49-X49)) -> 50 | Z49: =IF(($A$8-$A49)<A$18,"",W49+X49) -> 54 | AA49: =IF(($A$8-$A49)<A$18,"",ROUND(100*(Y49/Z49),0)) -> 93 | AB49: =IF(($A$8-$A49)<(2*A$18),"",ROUND(IF(($A$8-$A49)=(2*A$18),AVERAGE(OFFSET(AA49,0,0,A$18,1)),(((AB50*(A$18-1))+AA49)/A$18)),0)) -> 78 | AC49: =IF(($A$8-$A49)<A$19,"",IF(($A$8-$A49)=A$19,SUM(OFFSET($H49,0,0,A$19,1)),ROUND(TRUNC((AC50-(AC50/A$19)+$H49),3),2))) -> 328.76 | AD49: =IF(($A$8-$A49)<A$19,"",IF(($A$8-$A49)=A$19,SUM(OFFSET($I49,0,0,A$19,1)),ROUND(TRUNC((AD50-(AD50/A$19)+$I49),3),2))) -> 162.57 | AE49: =IF(($A$8-$A49)<A$19,"",IF(($A$8-$A49)=A$19,SUM(OFFSET($J49,0,0,A$19,1)),ROUND(TRUNC((AE50-(AE50/A$19)+$J49),3),2))) -> 13.64 | AF49: =IF(($A$8-$A49)<A$19,"",ROUND((100*(AD49/AC49)),0)) -> 49 | AG49: =IF(($A$8-$A49)<A$19,"",ROUND((100*(AE49/AC49)),0)) -> 4 | AH49: =IF(($A$8-$A49)<A$19,"",ABS(AF49-AG49)) -> 45 | AI49: =IF(($A$8-$A49)<A$19,"",AF49+AG49) -> 53 | AJ49: =IF(($A$8-$A49)<A$19,"",ROUND(100*(AH49/AI49),0)) -> 85 | AK49: =IF(($A$8-$A49)<(2*A$19),"",ROUND(IF(($A$8-$A49)=(2*A$19),AVERAGE(OFFSET(AJ49,0,0,A$19,1)),(((AK50*(A$19-1))+AJ49)/A$19)),0)) -> 64 | AL49: 5 | AM49: 10 | AN49: 20 | AO49: 30 | AP49: 50 | AQ49: 70 | AR49: 90 | AS49: 0 | AT49: 0
A50: 18 | B50: =OFFSET(InputPriceData!B$10,CalculationsAndCharts!$A50+$A$11,0,1,1) -> 2012-02-21 | C50: =OFFSET(InputPriceData!G$10,CalculationsAndCharts!$A50+$A$11,0,1,1) -> 1734855000 | D50: =OFFSET(InputPriceData!C$10,CalculationsAndCharts!$A50+$A$11,0,1,1) -> 2589.21 | E50: =OFFSET(InputPriceData!D$10,CalculationsAndCharts!$A50+$A$11,0,1,1) -> 2609.45 | F50: =OFFSET(InputPriceData!E$10,CalculationsAndCharts!$A50+$A$11,0,1,1) -> 2570.07 | G50: =OFFSET(InputPriceData!F$10,CalculationsAndCharts!$A50+$A$11,0,1,1) -> 2604.21 | H50: 39.38 | I50: 8.49 | J50: 0 | K50: =IF(($A$8-$A50)<A$17,"",IF(($A$8-$A50)=A$17,SUM(OFFSET($H50,0,0,A$17,1)),ROUND(TRUNC((K51-(K51/A$17)+$H50),3),2))) -> 166.89 | L50: =IF(($A$8-$A50)<A$17,"",IF(($A$8-$A50)=A$17,SUM(OFFSET($I50,0,0,A$17,1)),ROUND(TRUNC((L51-(L51/A$17)+$I50),3),2))) -> 84.04 | M50: =IF(($A$8-$A50)<A$17,"",IF(($A$8-$A50)=A$17,SUM(OFFSET($J50,0,0,A$17,1)),ROUND(TRUNC((M51-(M51/A$17)+$J50),3),2))) -> 1.98 | N50: =IF(($A$8-$A50)<A$17,"",ROUND((100*(L50/K50)),0)) -> 50 | O50: =IF(($A$8-$A50)<A$17,"",ROUND((100*(M50/K50)),0)) -> 1 | P50: =IF(($A$8-$A50)<A$17,"",ABS(N50-O50)) -> 49 | Q50: =IF(($A$8-$A50)<A$17,"",N50+O50) -> 51 | R50: =IF(($A$8-$A50)<A$17,"",ROUND(100*(P50/Q50),0)) -> 96 | S50: =IF(($A$8-$A50)<(2*A$17),"",ROUND(IF(($A$8-$A50)=(2*A$17),AVERAGE(OFFSET(R50,0,0,A$17,1)),(((S51*(A$17-1))+R50)/A$17)),0)) -> 88 | T50: =IF(($A$8-$A50)<A$18,"",IF(($A$8-$A50)=A$18,SUM(OFFSET($H50,0,0,A$18,1)),ROUND(TRUNC((T51-(T51/A$18)+$H50),3),2))) -> 240.8 | U50: =IF(($A$8-$A50)<A$18,"",IF(($A$8-$A50)=A$18,SUM(OFFSET($I50,0,0,A$18,1)),ROUND(TRUNC((U51-(U51/A$18)+$I50),3),2))) -> 119.56 | V50: =IF(($A$8-$A50)<A$18,"",IF(($A$8-$A50)=A$18,SUM(OFFSET($J50,0,0,A$18,1)),ROUND(TRUNC((V51-(V51/A$18)+$J50),3),2))) -> 7.67 | W50: =IF(($A$8-$A50)<A$18,"",ROUND((100*(U50/T50)),0)) -> 50 | X50: =IF(($A$8-$A50)<A$18,"",ROUND((100*(V50/T50)),0)) -> 3 | Y50: =IF(($A$8-$A50)<A$18,"",ABS(W50-X50)) -> 47 | Z50: =IF(($A$8-$A50)<A$18,"",W50+X50) -> 53 | AA50: =IF(($A$8-$A50)<A$18,"",ROUND(100*(Y50/Z50),0)) -> 89 | AB50: =IF(($A$8-$A50)<(2*A$18),"",ROUND(IF(($A$8-$A50)=(2*A$18),AVERAGE(OFFSET(AA50,0,0,A$18,1)),(((AB51*(A$18-1))+AA50)/A$18)),0)) -> 73 | AC50: =IF(($A$8-$A50)<A$19,"",IF(($A$8-$A50)=A$19,SUM(OFFSET($H50,0,0,A$19,1)),ROUND(TRUNC((AC51-(AC51/A$19)+$H50),3),2))) -> 322.99 | AD50: =IF(($A$8-$A50)<A$19,"",IF(($A$8-$A50)=A$19,SUM(OFFSET($I50,0,0,A$19,1)),ROUND(TRUNC((AD51-(AD51/A$19)+$I50),3),2))) -> 152.53 | AE50: =IF(($A$8-$A50)<A$19,"",IF(($A$8-$A50)=A$19,SUM(OFFSET($J50,0,0,A$19,1)),ROUND(TRUNC((AE51-(AE51/A$19)+$J50),3),2))) -> 17.05 | AF50: =IF(($A$8-$A50)<A$19,"",ROUND((100*(AD50/AC50)),0)) -> 47 | AG50: =IF(($A$8-$A50)<A$19,"",ROUND((100*(AE50/AC50)),0)) -> 5 | AH50: =IF(($A$8-$A50)<A$19,"",ABS(AF50-AG50)) -> 42 | AI50: =IF(($A$8-$A50)<A$19,"",AF50+AG50) -> 52 | AJ50: =IF(($A$8-$A50)<A$19,"",ROUND(100*(AH50/AI50),0)) -> 81 | AK50: =IF(($A$8-$A50)<(2*A$19),"",ROUND(IF(($A$8-$A50)=(2*A$19),AVERAGE(OFFSET(AJ50,0,0,A$19,1)),(((AK51*(A$19-1))+AJ50)/A$19)),0)) -> 59 | AL50: 5 | AM50: 10 | AN50: 20 | AO50: 30 | AP50: 50 | AQ50: 70 | AR50: 90 | AS50: 0 | AT50: 0
A51: 19 | B51: =OFFSET(InputPriceData!B$10,CalculationsAndCharts!$A51+$A$11,0,1,1) -> 2012-02-13 | C51: =OFFSET(InputPriceData!G$10,CalculationsAndCharts!$A51+$A$11,0,1,1) -> 1891944000 | D51: =OFFSET(InputPriceData!C$10,CalculationsAndCharts!$A51+$A$11,0,1,1) -> 2564.93 | E51: =OFFSET(InputPriceData!D$10,CalculationsAndCharts!$A51+$A$11,0,1,1) -> 2600.96 | F51: =OFFSET(InputPriceData!E$10,CalculationsAndCharts!$A51+$A$11,0,1,1) -> 2551.35 | G51: =OFFSET(InputPriceData!F$10,CalculationsAndCharts!$A51+$A$11,0,1,1) -> 2584.24 | H51: 53.64 | I51: 33.68 | J51: 0 | K51: =IF(($A$8-$A51)<A$17,"",IF(($A$8-$A51)=A$17,SUM(OFFSET($H51,0,0,A$17,1)),ROUND(TRUNC((K52-(K52/A$17)+$H51),3),2))) -> 191.27 | L51: =IF(($A$8-$A51)<A$17,"",IF(($A$8-$A51)=A$17,SUM(OFFSET($I51,0,0,A$17,1)),ROUND(TRUNC((L52-(L52/A$17)+$I51),3),2))) -> 113.33 | M51: =IF(($A$8-$A51)<A$17,"",IF(($A$8-$A51)=A$17,SUM(OFFSET($J51,0,0,A$17,1)),ROUND(TRUNC((M52-(M52/A$17)+$J51),3),2))) -> 2.97 | N51: =IF(($A$8-$A51)<A$17,"",ROUND((100*(L51/K51)),0)) -> 59 | O51: =IF(($A$8-$A51)<A$17,"",ROUND((100*(M51/K51)),0)) -> 2 | P51: =IF(($A$8-$A51)<A$17,"",ABS(N51-O51)) -> 57 | Q51: =IF(($A$8-$A51)<A$17,"",N51+O51) -> 61 | R51: =IF(($A$8-$A51)<A$17,"",ROUND(100*(P51/Q51),0)) -> 93 | S51: =IF(($A$8-$A51)<(2*A$17),"",ROUND(IF(($A$8-$A51)=(2*A$17),AVERAGE(OFFSET(R51,0,0,A$17,1)),(((S52*(A$17-1))+R51)/A$17)),0)) -> 84 | T51: =IF(($A$8-$A51)<A$18,"",IF(($A$8-$A51)=A$18,SUM(OFFSET($H51,0,0,A$18,1)),ROUND(TRUNC((T52-(T52/A$18)+$H51),3),2))) -> 268.56 | U51: =IF(($A$8-$A51)<A$18,"",IF(($A$8-$A51)=A$18,SUM(OFFSET($I51,0,0,A$18,1)),ROUND(TRUNC((U52-(U52/A$18)+$I51),3),2))) -> 148.09 | V51: =IF(($A$8-$A51)<A$18,"",IF(($A$8-$A51)=A$18,SUM(OFFSET($J51,0,0,A$18,1)),ROUND(TRUNC((V52-(V52/A$18)+$J51),3),2))) -> 10.22 | W51: =IF(($A$8-$A51)<A$18,"",ROUND((100*(U51/T51)),0)) -> 55 | X51: =IF(($A$8-$A51)<A$18,"",ROUND((100*(V51/T51)),0)) -> 4 | Y51: =IF(($A$8-$A51)<A$18,"",ABS(W51-X51)) -> 51 | Z51: =IF(($A$8-$A51)<A$18,"",W51+X51) -> 59 | AA51: =IF(($A$8-$A51)<A$18,"",ROUND(100*(Y51/Z51),0)) -> 86 | AB51: =IF(($A$8-$A51)<(2*A$18),"",ROUND(IF(($A$8-$A51)=(2*A$18),AVERAGE(OFFSET(AA51,0,0,A$18,1)),(((AB52*(A$18-1))+AA51)/A$18)),0)) -> 67 | AC51: =IF(($A$8-$A51)<A$19,"",IF(($A$8-$A51)=A$19,SUM(OFFSET($H51,0,0,A$19,1)),ROUND(TRUNC((AC52-(AC52/A$19)+$H51),3),2))) -> 354.51 | AD51: =IF(($A$8-$A51)<A$19,"",IF(($A$8-$A51)=A$19,SUM(OFFSET($I51,0,0,A$19,1)),ROUND(TRUNC((AD52-(AD52/A$19)+$I51),3),2))) -> 180.05 | AE51: =IF(($A$8-$A51)<A$19,"",IF(($A$8-$A51)=A$19,SUM(OFFSET($J51,0,0,A$19,1)),ROUND(TRUNC((AE52-(AE52/A$19)+$J51),3),2))) -> 21.31 | AF51: =IF(($A$8-$A51)<A$19,"",ROUND((100*(AD51/AC51)),0)) -> 51 | AG51: =IF(($A$8-$A51)<A$19,"",ROUND((100*(AE51/AC51)),0)) -> 6 | AH51: =IF(($A$8-$A51)<A$19,"",ABS(AF51-AG51)) -> 45 | AI51: =IF(($A$8-$A51)<A$19,"",AF51+AG51) -> 57 | AJ51: =IF(($A$8-$A51)<A$19,"",ROUND(100*(AH51/AI51),0)) -> 79 | AK51: =IF(($A$8-$A51)<(2*A$19),"",ROUND(IF(($A$8-$A51)=(2*A$19),AVERAGE(OFFSET(AJ51,0,0,A$19,1)),(((AK52*(A$19-1))+AJ51)/A$19)),0)) -> 53 | AL51: 5 | AM51: 10 | AN51: 20 | AO51: 30 | AP51: 50 | AQ51: 70 | AR51: 90 | AS51: 0 | AT51: 0
A52: 20 | B52: =OFFSET(InputPriceData!B$10,CalculationsAndCharts!$A52+$A$11,0,1,1) -> 2012-02-06 | C52: =OFFSET(InputPriceData!G$10,CalculationsAndCharts!$A52+$A$11,0,1,1) -> 1878190000 | D52: =OFFSET(InputPriceData!C$10,CalculationsAndCharts!$A52+$A$11,0,1,1) -> 2519.33 | E52: =OFFSET(InputPriceData!D$10,CalculationsAndCharts!$A52+$A$11,0,1,1) -> 2567.28 | F52: =OFFSET(InputPriceData!E$10,CalculationsAndCharts!$A52+$A$11,0,1,1) -> 2513.51 | G52: =OFFSET(InputPriceData!F$10,CalculationsAndCharts!$A52+$A$11,0,1,1) -> 2547.32 | H52: 53.77 | I52: 35.02 | J52: 0 | K52: =IF(($A$8-$A52)<A$17,"",IF(($A$8-$A52)=A$17,SUM(OFFSET($H52,0,0,A$17,1)),ROUND(TRUNC((K53-(K53/A$17)+$H52),3),2))) -> 206.44 | L52: =IF(($A$8-$A52)<A$17,"",IF(($A$8-$A52)=A$17,SUM(OFFSET($I52,0,0,A$17,1)),ROUND(TRUNC((L53-(L53/A$17)+$I52),3),2))) -> 119.48 | M52: =IF(($A$8-$A52)<A$17,"",IF(($A$8-$A52)=A$17,SUM(OFFSET($J52,0,0,A$17,1)),ROUND(TRUNC((M53-(M53/A$17)+$J52),3),2))) -> 4.45 | N52: =IF(($A$8-$A52)<A$17,"",ROUND((100*(L52/K52)),0)) -> 58 | O52: =IF(($A$8-$A52)<A$17,"",ROUND((100*(M52/K52)),0)) -> 2 | P52: =IF(($A$8-$A52)<A$17,"",ABS(N52-O52)) -> 56 | Q52: =IF(($A$8-$A52)<A$17,"",N52+O52) -> 60 | R52: =IF(($A$8-$A52)<A$17,"",ROUND(100*(P52/Q52),0)) -> 93 | S52: =IF(($A$8-$A52)<(2*A$17),"",ROUND(IF(($A$8-$A52)=(2*A$17),AVERAGE(OFFSET(R52,0,0,A$17,1)),(((S53*(A$17-1))+R52)/A$17)),0)) -> 79 | T52: =IF(($A$8-$A52)<A$18,"",IF(($A$8-$A52)=A$18,SUM(OFFSET($H52,0,0,A$18,1)),ROUND(TRUNC((T53-(T53/A$18)+$H52),3),2))) -> 286.56 | U52: =IF(($A$8-$A52)<A$18,"",IF(($A$8-$A52)=A$18,SUM(OFFSET($I52,0,0,A$18,1)),ROUND(TRUNC((U53-(U53/A$18)+$I52),3),2))) -> 152.55 | V52: =IF(($A$8-$A52)<A$18,"",IF(($A$8-$A52)=A$18,SUM(OFFSET($J52,0,0,A$18,1)),ROUND(TRUNC((V53-(V53/A$18)+$J52),3),2))) -> 13.63 | W52: =IF(($A$8-$A52)<A$18,"",ROUND((100*(U52/T52)),0)) -> 53 | X52: =IF(($A$8-$A52)<A$18,"",ROUND((100*(V52/T52)),0)) -> 5 | Y52: =IF(($A$8-$A52)<A$18,"",ABS(W52-X52)) -> 48 | Z52: =IF(($A$8-$A52)<A$18,"",W52+X52) -> 58 | AA52: =IF(($A$8-$A52)<A$18,"",ROUND(100*(Y52/Z52),0)) -> 83 | AB52: =IF(($A$8-$A52)<(2*A$18),"",ROUND(IF(($A$8-$A52)=(2*A$18),AVERAGE(OFFSET(AA52,0,0,A$18,1)),(((AB53*(A$18-1))+AA52)/A$18)),0)) -> 61 | AC52: =IF(($A$8-$A52)<A$19,"",IF(($A$8-$A52)=A$19,SUM(OFFSET($H52,0,0,A$19,1)),ROUND(TRUNC((AC53-(AC53/A$19)+$H52),3),2))) -> 376.09 | AD52: =IF(($A$8-$A52)<A$19,"",IF(($A$8-$A52)=A$19,SUM(OFFSET($I52,0,0,A$19,1)),ROUND(TRUNC((AD53-(AD53/A$19)+$I52),3),2))) -> 182.96 | AE52: =IF(($A$8-$A52)<A$19,"",IF(($A$8-$A52)=A$19,SUM(OFFSET($J52,0,0,A$19,1)),ROUND(TRUNC((AE53-(AE53/A$19)+$J52),3),2))) -> 26.64 | AF52: =IF(($A$8-$A52)<A$19,"",ROUND((100*(AD52/AC52)),0)) -> 49 | AG52: =IF(($A$8-$A52)<A$19,"",ROUND((100*(AE52/AC52)),0)) -> 7 | AH52: =IF(($A$8-$A52)<A$19,"",ABS(AF52-AG52)) -> 42 | AI52: =IF(($A$8-$A52)<A$19,"",AF52+AG52) -> 56 | AJ52: =IF(($A$8-$A52)<A$19,"",ROUND(100*(AH52/AI52),0)) -> 75 | AK52: =IF(($A$8-$A52)<(2*A$19),"",ROUND(IF(($A$8-$A52)=(2*A$19),AVERAGE(OFFSET(AJ52,0,0,A$19,1)),(((AK53*(A$19-1))+AJ52)/A$19)),0)) -> 47 | AL52: 5 | AM52: 10 | AN52: 20 | AO52: 30 | AP52: 50 | AQ52: 70 | AR52: 90 | AS52: 0 | AT52: 0
A53: 21 | B53: =OFFSET(InputPriceData!B$10,CalculationsAndCharts!$A53+$A$11,0,1,1) -> 2012-01-30 | C53: =OFFSET(InputPriceData!G$10,CalculationsAndCharts!$A53+$A$11,0,1,1) -> 1929512000 | D53: =OFFSET(InputPriceData!C$10,CalculationsAndCharts!$A53+$A$11,0,1,1) -> 2438.52 | E53: =OFFSET(InputPriceData!D$10,CalculationsAndCharts!$A53+$A$11,0,1,1) -> 2532.26 | F53: =OFFSET(InputPriceData!E$10,CalculationsAndCharts!$A53+$A$11,0,1,1) -> 2433.63 | G53: =OFFSET(InputPriceData!F$10,CalculationsAndCharts!$A53+$A$11,0,1,1) -> 2529.17 | H53: 98.63 | I53: 52.95 | J53: 0 | K53: =IF(($A$8-$A53)<A$17,"",IF(($A$8-$A53)=A$17,SUM(OFFSET($H53,0,0,A$17,1)),ROUND(TRUNC((K54-(K54/A$17)+$H53),3),2))) -> 229 | L53: =IF(($A$8-$A53)<A$17,"",IF(($A$8-$A53)=A$17,SUM(OFFSET($I53,0,0,A$17,1)),ROUND(TRUNC((L54-(L54/A$17)+$I53),3),2))) -> 126.69 | M53: =IF(($A$8-$A53)<A$17,"",IF(($A$8-$A53)=A$17,SUM(OFFSET($J53,0,0,A$17,1)),ROUND(TRUNC((M54-(M54/A$17)+$J53),3),2))) -> 6.67 | N53: =IF(($A$8-$A53)<A$17,"",ROUND((100*(L53/K53)),0)) -> 55 | O53: =IF(($A$8-$A53)<A$17,"",ROUND((100*(M53/K53)),0)) -> 3 | P53: =IF(($A$8-$A53)<A$17,"",ABS(N53-O53)) -> 52 | Q53: =IF(($A$8-$A53)<A$17,"",N53+O53) -> 58 | R53: =IF(($A$8-$A53)<A$17,"",ROUND(100*(P53/Q53),0)) -> 90 | S53: =IF(($A$8-$A53)<(2*A$17),"",ROUND(IF(($A$8-$A53)=(2*A$17),AVERAGE(OFFSET(R53,0,0,A$17,1)),(((S54*(A$17-1))+R53)/A$17)),0)) -> 72 | T53: =IF(($A$8-$A53)<A$18,"",IF(($A$8-$A53)=A$18,SUM(OFFSET($H53,0,0,A$18,1)),ROUND(TRUNC((T54-(T54/A$18)+$H53),3),2))) -> 310.39 | U53: =IF(($A$8-$A53)<A$18,"",IF(($A$8-$A53)=A$18,SUM(OFFSET($I53,0,0,A$18,1)),ROUND(TRUNC((U54-(U54/A$18)+$I53),3),2))) -> 156.71 | V53: =IF(($A$8-$A53)<A$18,"",IF(($A$8-$A53)=A$18,SUM(OFFSET($J53,0,0,A$18,1)),ROUND(TRUNC((V54-(V54/A$18)+$J53),3),2))) -> 18.17 | W53: =IF(($A$8-$A53)<A$18,"",ROUND((100*(U53/T53)),0)) -> 50 | X53: =IF(($A$8-$A53)<A$18,"",ROUND((100*(V53/T53)),0)) -> 6 | Y53: =IF(($A$8-$A53)<A$18,"",ABS(W53-X53)) -> 44 | Z53: =IF(($A$8-$A53)<A$18,"",W53+X53) -> 56 | AA53: =IF(($A$8-$A53)<A$18,"",ROUND(100*(Y53/Z53),0)) -> 79 | AB53: =IF(($A$8-$A53)<(2*A$18),"",ROUND(IF(($A$8-$A53)=(2*A$18),AVERAGE(OFFSET(AA53,0,0,A$18,1)),(((AB54*(A$18-1))+AA53)/A$18)),0)) -> 53 | AC53: =IF(($A$8-$A53)<A$19,"",IF(($A$8-$A53)=A$19,SUM(OFFSET($H53,0,0,A$19,1)),ROUND(TRUNC((AC54-(AC54/A$19)+$H53),3),2))) -> 402.9 | AD53: =IF(($A$8-$A53)<A$19,"",IF(($A$8-$A53)=A$19,SUM(OFFSET($I53,0,0,A$19,1)),ROUND(TRUNC((AD54-(AD54/A$19)+$I53),3),2))) -> 184.93 | AE53: =IF(($A$8-$A53)<A$19,"",IF(($A$8-$A53)=A$19,SUM(OFFSET($J53,0,0,A$19,1)),ROUND(TRUNC((AE54-(AE54/A$19)+$J53),3),2))) -> 33.3 | AF53: =IF(($A$8-$A53)<A$19,"",ROUND((100*(AD53/AC53)),0)) -> 46 | AG53: =IF(($A$8-$A53)<A$19,"",ROUND((100*(AE53/AC53)),0)) -> 8 | AH53: =IF(($A$8-$A53)<A$19,"",ABS(AF53-AG53)) -> 38 | AI53: =IF(($A$8-$A53)<A$19,"",AF53+AG53) -> 54 | AJ53: =IF(($A$8-$A53)<A$19,"",ROUND(100*(AH53/AI53),0)) -> 70 | AK53: =IF(($A$8-$A53)<(2*A$19),"",ROUND(IF(($A$8-$A53)=(2*A$19),AVERAGE(OFFSET(AJ53,0,0,A$19,1)),(((AK54*(A$19-1))+AJ53)/A$19)),0)) -> 40 | AL53: 5 | AM53: 10 | AN53: 20 | AO53: 30 | AP53: 50 | AQ53: 70 | AR53: 90 | AS53: =IF($A53=$B$27,AS$32,0) -> 0 | AT53: 0
A54: 22 | B54: =OFFSET(InputPriceData!B$10,CalculationsAndCharts!$A54+$A$11,0,1,1) -> 2012-01-23 | C54: =OFFSET(InputPriceData!G$10,CalculationsAndCharts!$A54+$A$11,0,1,1) -> 1779598000 | D54: =OFFSET(InputPriceData!C$10,CalculationsAndCharts!$A54+$A$11,0,1,1) -> 2437.06 | E54: =OFFSET(InputPriceData!D$10,CalculationsAndCharts!$A54+$A$11,0,1,1) -> 2479.31 | F54: =OFFSET(InputPriceData!E$10,CalculationsAndCharts!$A54+$A$11,0,1,1) -> 2423.24 | G54: =OFFSET(InputPriceData!F$10,CalculationsAndCharts!$A54+$A$11,0,1,1) -> 2461.77 | H54: 56.07 | I54: 33.72 | J54: 0 | K54: =IF(($A$8-$A54)<A$17,"",IF(($A$8-$A54)=A$17,SUM(OFFSET($H54,0,0,A$17,1)),ROUND(TRUNC((K55-(K55/A$17)+$H54),3),2))) -> 195.56 | L54: =IF(($A$8-$A54)<A$17,"",IF(($A$8-$A54)=A$17,SUM(OFFSET($I54,0,0,A$17,1)),ROUND(TRUNC((L55-(L55/A$17)+$I54),3),2))) -> 110.61 | M54: =IF(($A$8-$A54)<A$17,"",IF(($A$8-$A54)=A$17,SUM(OFFSET($J54,0,0,A$17,1)),ROUND(TRUNC((M55-(M55/A$17)+$J54),3),2))) -> 10 | N54: =IF(($A$8-$A54)<A$17,"",ROUND((100*(L54/K54)),0)) -> 57 | O54: =IF(($A$8-$A54)<A$17,"",ROUND((100*(M54/K54)),0)) -> 5 | P54: =IF(($A$8-$A54)<A$17,"",ABS(N54-O54)) -> 52 | Q54: =IF(($A$8-$A54)<A$17,"",N54+O54) -> 62 | R54: =IF(($A$8-$A54)<A$17,"",ROUND(100*(P54/Q54),0)) -> 84 | S54: =IF(($A$8-$A54)<(2*A$17),"",ROUND(IF(($A$8-$A54)=(2*A$17),AVERAGE(OFFSET(R54,0,0,A$17,1)),(((S55*(A$17-1))+R54)/A$17)),0)) -> 63 | T54: =IF(($A$8-$A54)<A$18,"",IF(($A$8-$A54)=A$18,SUM(OFFSET($H54,0,0,A$18,1)),ROUND(TRUNC((T55-(T55/A$18)+$H54),3),2))) -> 282.35 | U54: =IF(($A$8-$A54)<A$18,"",IF(($A$8-$A54)=A$18,SUM(OFFSET($I54,0,0,A$18,1)),ROUND(TRUNC((U55-(U55/A$18)+$I54),3),2))) -> 138.35 | V54: =IF(($A$8-$A54)<A$18,"",IF(($A$8-$A54)=A$18,SUM(OFFSET($J54,0,0,A$18,1)),ROUND(TRUNC((V55-(V55/A$18)+$J54),3),2))) -> 24.22 | W54: =IF(($A$8-$A54)<A$18,"",ROUND((100*(U54/T54)),0)) -> 49 | X54: =IF(($A$8-$A54)<A$18,"",ROUND((100*(V54/T54)),0)) -> 9 | Y54: =IF(($A$8-$A54)<A$18,"",ABS(W54-X54)) -> 40 | Z54: =IF(($A$8-$A54)<A$18,"",W54+X54) -> 58 | AA54: =IF(($A$8-$A54)<A$18,"",ROUND(100*(Y54/Z54),0)) -> 69 | AB54: =IF(($A$8-$A54)<(2*A$18),"",ROUND(IF(($A$8-$A54)=(2*A$18),AVERAGE(OFFSET(AA54,0,0,A$18,1)),(((AB55*(A$18-1))+AA54)/A$18)),0)) -> 44 | AC54: =IF(($A$8-$A54)<A$19,"",IF(($A$8-$A54)=A$19,SUM(OFFSET($H54,0,0,A$19,1)),ROUND(TRUNC((AC55-(AC55/A$19)+$H54),3),2))) -> 380.34 | AD54: =IF(($A$8-$A54)<A$19,"",IF(($A$8-$A54)=A$19,SUM(OFFSET($I54,0,0,A$19,1)),ROUND(TRUNC((AD55-(AD55/A$19)+$I54),3),2))) -> 164.98 | AE54: =IF(($A$8-$A54)<A$19,"",IF(($A$8-$A54)=A$19,SUM(OFFSET($J54,0,0,A$19,1)),ROUND(TRUNC((AE55-(AE55/A$19)+$J54),3),2))) -> 41.62 | AF54: =IF(($A$8-$A54)<A$19,"",ROUND((100*(AD54/AC54)),0)) -> 43 | AG54: =IF(($A$8-$A54)<A$19,"",ROUND((100*(AE54/AC54)),0)) -> 11 | AH54: =IF(($A$8-$A54)<A$19,"",ABS(AF54-AG54)) -> 32 | AI54: =IF(($A$8-$A54)<A$19,"",AF54+AG54) -> 54 | AJ54: =IF(($A$8-$A54)<A$19,"",ROUND(100*(AH54/AI54),0)) -> 59 | AK54: =IF(($A$8-$A54)<(2*A$19),"",ROUND(IF(($A$8-$A54)=(2*A$19),AVERAGE(OFFSET(AJ54,0,0,A$19,1)),(((AK55*(A$19-1))+AJ54)/A$19)),0)) -> 33 | AL54: 5 | AM54: 10 | AN54: 20 | AO54: 30 | AP54: 50 | AQ54: 70 | AR54: 90 | AS54: 0 | AT54: 0
A55: 23 | B55: =OFFSET(InputPriceData!B$10,CalculationsAndCharts!$A55+$A$11,0,1,1) -> 2012-01-17 | C55: =OFFSET(InputPriceData!G$10,CalculationsAndCharts!$A55+$A$11,0,1,1) -> 1885690000 | D55: =OFFSET(InputPriceData!C$10,CalculationsAndCharts!$A55+$A$11,0,1,1) -> 2396.14 | E55: =OFFSET(InputPriceData!D$10,CalculationsAndCharts!$A55+$A$11,0,1,1) -> 2445.59 | F55: =OFFSET(InputPriceData!E$10,CalculationsAndCharts!$A55+$A$11,0,1,1) -> 2385.79 | G55: =OFFSET(InputPriceData!F$10,CalculationsAndCharts!$A55+$A$11,0,1,1) -> 2437.02 | H55: 73.61 | I55: 61.33 | J55: 0 | K55: =IF(($A$8-$A55)<A$17,"",IF(($A$8-$A55)=A$17,SUM(OFFSET($H55,0,0,A$17,1)),ROUND(TRUNC((K56-(K56/A$17)+$H55),3),2))) -> 209.23 | L55: =IF(($A$8-$A55)<A$17,"",IF(($A$8-$A55)=A$17,SUM(OFFSET($I55,0,0,A$17,1)),ROUND(TRUNC((L56-(L56/A$17)+$I55),3),2))) -> 115.34 | M55: =IF(($A$8-$A55)<A$17,"",IF(($A$8-$A55)=A$17,SUM(OFFSET($J55,0,0,A$17,1)),ROUND(TRUNC((M56-(M56/A$17)+$J55),3),2))) -> 15 | N55: =IF(($A$8-$A55)<A$17,"",ROUND((100*(L55/K55)),0)) -> 55 | O55: =IF(($A$8-$A55)<A$17,"",ROUND((100*(M55/K55)),0)) -> 7 | P55: =IF(($A$8-$A55)<A$17,"",ABS(N55-O55)) -> 48 | Q55: =IF(($A$8-$A55)<A$17,"",N55+O55) -> 62 | R55: =IF(($A$8-$A55)<A$17,"",ROUND(100*(P55/Q55),0)) -> 77 | S55: =IF(($A$8-$A55)<(2*A$17),"",ROUND(IF(($A$8-$A55)=(2*A$17),AVERAGE(OFFSET(R55,0,0,A$17,1)),(((S56*(A$17-1))+R55)/A$17)),0)) -> 52 | T55: =IF(($A$8-$A55)<A$18,"",IF(($A$8-$A55)=A$18,SUM(OFFSET($H55,0,0,A$18,1)),ROUND(TRUNC((T56-(T56/A$18)+$H55),3),2))) -> 301.71 | U55: =IF(($A$8-$A55)<A$18,"",IF(($A$8-$A55)=A$18,SUM(OFFSET($I55,0,0,A$18,1)),ROUND(TRUNC((U56-(U56/A$18)+$I55),3),2))) -> 139.5 | V55: =IF(($A$8-$A55)<A$18,"",IF(($A$8-$A55)=A$18,SUM(OFFSET($J55,0,0,A$18,1)),ROUND(TRUNC((V56-(V56/A$18)+$J55),3),2))) -> 32.29 | W55: =IF(($A$8-$A55)<A$18,"",ROUND((100*(U55/T55)),0)) -> 46 | X55: =IF(($A$8-$A55)<A$18,"",ROUND((100*(V55/T55)),0)) -> 11 | Y55: =IF(($A$8-$A55)<A$18,"",ABS(W55-X55)) -> 35 | Z55: =IF(($A$8-$A55)<A$18,"",W55+X55) -> 57 | AA55: =IF(($A$8-$A55)<A$18,"",ROUND(100*(Y55/Z55),0)) -> 61 | AB55: =IF(($A$8-$A55)<(2*A$18),"",ROUND(IF(($A$8-$A55)=(2*A$18),AVERAGE(OFFSET(AA55,0,0,A$18,1)),(((AB56*(A$18-1))+AA55)/A$18)),0)) -> 36 | AC55: =IF(($A$8-$A55)<A$19,"",IF(($A$8-$A55)=A$19,SUM(OFFSET($H55,0,0,A$19,1)),ROUND(TRUNC((AC56-(AC56/A$19)+$H55),3),2))) -> 405.34 | AD55: =IF(($A$8-$A55)<A$19,"",IF(($A$8-$A55)=A$19,SUM(OFFSET($I55,0,0,A$19,1)),ROUND(TRUNC((AD56-(AD56/A$19)+$I55),3),2))) -> 164.07 | AE55: =IF(($A$8-$A55)<A$19,"",IF(($A$8-$A55)=A$19,SUM(OFFSET($J55,0,0,A$19,1)),ROUND(TRUNC((AE56-(AE56/A$19)+$J55),3),2))) -> 52.03 | AF55: =IF(($A$8-$A55)<A$19,"",ROUND((100*(AD55/AC55)),0)) -> 40 | AG55: =IF(($A$8-$A55)<A$19,"",ROUND((100*(AE55/AC55)),0)) -> 13 | AH55: =IF(($A$8-$A55)<A$19,"",ABS(AF55-AG55)) -> 27 | AI55: =IF(($A$8-$A55)<A$19,"",AF55+AG55) -> 53 | AJ55: =IF(($A$8-$A55)<A$19,"",ROUND(100*(AH55/AI55),0)) -> 51 | AK55: =IF(($A$8-$A55)<(2*A$19),"",ROUND(IF(($A$8-$A55)=(2*A$19),AVERAGE(OFFSET(AJ55,0,0,A$19,1)),(((AK56*(A$19-1))+AJ55)/A$19)),0)) -> 26 | AL55: 5 | AM55: 10 | AN55: 20 | AO55: 30 | AP55: 50 | AQ55: 70 | AR55: 90 | AS55: 0 | AT55: 0
A56: 24 | B56: =OFFSET(InputPriceData!B$10,CalculationsAndCharts!$A56+$A$11,0,1,1) -> 2012-01-09 | C56: =OFFSET(InputPriceData!G$10,CalculationsAndCharts!$A56+$A$11,0,1,1) -> 1720550000 | D56: =OFFSET(InputPriceData!C$10,CalculationsAndCharts!$A56+$A$11,0,1,1) -> 2362.53 | E56: =OFFSET(InputPriceData!D$10,CalculationsAndCharts!$A56+$A$11,0,1,1) -> 2384.26 | F56: =OFFSET(InputPriceData!E$10,CalculationsAndCharts!$A56+$A$11,0,1,1) -> 2342.34 | G56: =OFFSET(InputPriceData!F$10,CalculationsAndCharts!$A56+$A$11,0,1,1) -> 2371.98 | H56: 41.92 | I56: 21.68 | J56: 0 | K56: =IF(($A$8-$A56)<A$17,"",IF(($A$8-$A56)=A$17,SUM(OFFSET($H56,0,0,A$17,1)),ROUND(TRUNC((K57-(K57/A$17)+$H56),3),2))) -> 203.43 | L56: =IF(($A$8-$A56)<A$17,"",IF(($A$8-$A56)=A$17,SUM(OFFSET($I56,0,0,A$17,1)),ROUND(TRUNC((L57-(L57/A$17)+$I56),3),2))) -> 81.01 | M56: =IF(($A$8-$A56)<A$17,"",IF(($A$8-$A56)=A$17,SUM(OFFSET($J56,0,0,A$17,1)),ROUND(TRUNC((M57-(M57/A$17)+$J56),3),2))) -> 22.5 | N56: =IF(($A$8-$A56)<A$17,"",ROUND((100*(L56/K56)),0)) -> 40 | O56: =IF(($A$8-$A56)<A$17,"",ROUND((100*(M56/K56)),0)) -> 11 | P56: =IF(($A$8-$A56)<A$17,"",ABS(N56-O56)) -> 29 | Q56: =IF(($A$8-$A56)<A$17,"",N56+O56) -> 51 | R56: =IF(($A$8-$A56)<A$17,"",ROUND(100*(P56/Q56),0)) -> 57 | S56: =IF(($A$8-$A56)<(2*A$17),"",ROUND(IF(($A$8-$A56)=(2*A$17),AVERAGE(OFFSET(R56,0,0,A$17,1)),(((S57*(A$17-1))+R56)/A$17)),0)) -> 39 | T56: =IF(($A$8-$A56)<A$18,"",IF(($A$8-$A56)=A$18,SUM(OFFSET($H56,0,0,A$18,1)),ROUND(TRUNC((T57-(T57/A$18)+$H56),3),2))) -> 304.13 | U56: =IF(($A$8-$A56)<A$18,"",IF(($A$8-$A56)=A$18,SUM(OFFSET($I56,0,0,A$18,1)),ROUND(TRUNC((U57-(U57/A$18)+$I56),3),2))) -> 104.22 | V56: =IF(($A$8-$A56)<A$18,"",IF(($A$8-$A56)=A$18,SUM(OFFSET($J56,0,0,A$18,1)),ROUND(TRUNC((V57-(V57/A$18)+$J56),3),2))) -> 43.05 | W56: =IF(($A$8-$A56)<A$18,"",ROUND((100*(U56/T56)),0)) -> 34 | X56: =IF(($A$8-$A56)<A$18,"",ROUND((100*(V56/T56)),0)) -> 14 | Y56: =IF(($A$8-$A56)<A$18,"",ABS(W56-X56)) -> 20 | Z56: =IF(($A$8-$A56)<A$18,"",W56+X56) -> 48 | AA56: =IF(($A$8-$A56)<A$18,"",ROUND(100*(Y56/Z56),0)) -> 42 | AB56: =IF(($A$8-$A56)<(2*A$18),"",ROUND(IF(($A$8-$A56)=(2*A$18),AVERAGE(OFFSET(AA56,0,0,A$18,1)),(((AB57*(A$18-1))+AA56)/A$18)),0)) -> 28 | AC56: =IF(($A$8-$A56)<A$19,"",IF(($A$8-$A56)=A$19,SUM(OFFSET($H56,0,0,A$19,1)),ROUND(TRUNC((AC57-(AC57/A$19)+$H56),3),2))) -> 414.66 | AD56: =IF(($A$8-$A56)<A$19,"",IF(($A$8-$A56)=A$19,SUM(OFFSET($I56,0,0,A$19,1)),ROUND(TRUNC((AD57-(AD57/A$19)+$I56),3),2))) -> 128.43 | AE56: =IF(($A$8-$A56)<A$19,"",IF(($A$8-$A56)=A$19,SUM(OFFSET($J56,0,0,A$19,1)),ROUND(TRUNC((AE57-(AE57/A$19)+$J56),3),2))) -> 65.04 | AF56: =IF(($A$8-$A56)<A$19,"",ROUND((100*(AD56/AC56)),0)) -> 31 | AG56: =IF(($A$8-$A56)<A$19,"",ROUND((100*(AE56/AC56)),0)) -> 16 | AH56: =IF(($A$8-$A56)<A$19,"",ABS(AF56-AG56)) -> 15 | AI56: =IF(($A$8-$A56)<A$19,"",AF56+AG56) -> 47 | AJ56: =IF(($A$8-$A56)<A$19,"",ROUND(100*(AH56/AI56),0)) -> 32 | AK56: =IF(($A$8-$A56)<(2*A$19),"",ROUND(IF(($A$8-$A56)=(2*A$19),AVERAGE(OFFSET(AJ56,0,0,A$19,1)),(((AK57*(A$19-1))+AJ56)/A$19)),0)) -> 20 | AL56: 5 | AM56: 10 | AN56: 20 | AO56: 30 | AP56: 50 | AQ56: 70 | AR56: 90 | AS56: 0 | AT56: 0
A57: 25 | B57: =OFFSET(InputPriceData!B$10,CalculationsAndCharts!$A57+$A$11,0,1,1) -> 2012-01-03 | C57: =OFFSET(InputPriceData!G$10,CalculationsAndCharts!$A57+$A$11,0,1,1) -> 1706720000 | D57: =OFFSET(InputPriceData!C$10,CalculationsAndCharts!$A57+$A$11,0,1,1) -> 2323.16 | E57: =OFFSET(InputPriceData!D$10,CalculationsAndCharts!$A57+$A$11,0,1,1) -> 2362.58 | F57: =OFFSET(InputPriceData!E$10,CalculationsAndCharts!$A57+$A$11,0,1,1) -> 2307.56 | G57: =OFFSET(InputPriceData!F$10,CalculationsAndCharts!$A57+$A$11,0,1,1) -> 2356.17 | H57: 84.75 | I57: 61.28 | J57: 0 | K57: =IF(($A$8-$A57)<A$17,"",IF(($A$8-$A57)=A$17,SUM(OFFSET($H57,0,0,A$17,1)),ROUND(TRUNC((K58-(K58/A$17)+$H57),3),2))) -> 242.27 | L57: =IF(($A$8-$A57)<A$17,"",IF(($A$8-$A57)=A$17,SUM(OFFSET($I57,0,0,A$17,1)),ROUND(TRUNC((L58-(L58/A$17)+$I57),3),2))) -> 89 | M57: =IF(($A$8-$A57)<A$17,"",IF(($A$8-$A57)=A$17,SUM(OFFSET($J57,0,0,A$17,1)),ROUND(TRUNC((M58-(M58/A$17)+$J57),3),2))) -> 33.75 | N57: =IF(($A$8-$A57)<A$17,"",ROUND((100*(L57/K57)),0)) -> 37 | O57: =IF(($A$8-$A57)<A$17,"",ROUND((100*(M57/K57)),0)) -> 14 | P57: =IF(($A$8-$A57)<A$17,"",ABS(N57-O57)) -> 23 | Q57: =IF(($A$8-$A57)<A$17,"",N57+O57) -> 51 | R57: =IF(($A$8-$A57)<A$17,"",ROUND(100*(P57/Q57),0)) -> 45 | S57: =IF(($A$8-$A57)<(2*A$17),"",ROUND(IF(($A$8-$A57)=(2*A$17),AVERAGE(OFFSET(R57,0,0,A$17,1)),(((S58*(A$17-1))+R57)/A$17)),0)) -> 30 | T57: =IF(($A$8-$A57)<A$18,"",IF(($A$8-$A57)=A$18,SUM(OFFSET($H57,0,0,A$18,1)),ROUND(TRUNC((T58-(T58/A$18)+$H57),3),2))) -> 349.61 | U57: =IF(($A$8-$A57)<A$18,"",IF(($A$8-$A57)=A$18,SUM(OFFSET($I57,0,0,A$18,1)),ROUND(TRUNC((U58-(U58/A$18)+$I57),3),2))) -> 110.05 | V57: =IF(($A$8-$A57)<A$18,"",IF(($A$8-$A57)=A$18,SUM(OFFSET($J57,0,0,A$18,1)),ROUND(TRUNC((V58-(V58/A$18)+$J57),3),2))) -> 57.4 | W57: =IF(($A$8-$A57)<A$18,"",ROUND((100*(U57/T57)),0)) -> 31 | X57: =IF(($A$8-$A57)<A$18,"",ROUND((100*(V57/T57)),0)) -> 16 | Y57: =IF(($A$8-$A57)<A$18,"",ABS(W57-X57)) -> 15 | Z57: =IF(($A$8-$A57)<A$18,"",W57+X57) -> 47 | AA57: =IF(($A$8-$A57)<A$18,"",ROUND(100*(Y57/Z57),0)) -> 32 | AB57: =IF(($A$8-$A57)<(2*A$18),"",ROUND(IF(($A$8-$A57)=(2*A$18),AVERAGE(OFFSET(AA57,0,0,A$18,1)),(((AB58*(A$18-1))+AA57)/A$18)),0)) -> 23 | AC57: =IF(($A$8-$A57)<A$19,"",IF(($A$8-$A57)=A$19,SUM(OFFSET($H57,0,0,A$19,1)),ROUND(TRUNC((AC58-(AC58/A$19)+$H57),3),2))) -> 465.92 | AD57: =IF(($A$8-$A57)<A$19,"",IF(($A$8-$A57)=A$19,SUM(OFFSET($I57,0,0,A$19,1)),ROUND(TRUNC((AD58-(AD58/A$19)+$I57),3),2))) -> 133.44 | AE57: =IF(($A$8-$A57)<A$19,"",IF(($A$8-$A57)=A$19,SUM(OFFSET($J57,0,0,A$19,1)),ROUND(TRUNC((AE58-(AE58/A$19)+$J57),3),2))) -> 81.3 | AF57: =IF(($A$8-$A57)<A$19,"",ROUND((100*(AD57/AC57)),0)) -> 29 | AG57: =IF(($A$8-$A57)<A$19,"",ROUND((100*(AE57/AC57)),0)) -> 17 | AH57: =IF(($A$8-$A57)<A$19,"",ABS(AF57-AG57)) -> 12 | AI57: =IF(($A$8-$A57)<A$19,"",AF57+AG57) -> 46 | AJ57: =IF(($A$8-$A57)<A$19,"",ROUND(100*(AH57/AI57),0)) -> 26 | AK57: =IF(($A$8-$A57)<(2*A$19),"",ROUND(IF(($A$8-$A57)=(2*A$19),AVERAGE(OFFSET(AJ57,0,0,A$19,1)),(((AK58*(A$19-1))+AJ57)/A$19)),0)) -> 17 | AL57: 5 | AM57: 10 | AN57: 20 | AO57: 30 | AP57: 50 | AQ57: 70 | AR57: 90 | AS57: 0 | AT57: 0
A58: 26 | B58: =OFFSET(InputPriceData!B$10,CalculationsAndCharts!$A58+$A$11,0,1,1) -> 2011-12-27 | C58: =OFFSET(InputPriceData!G$10,CalculationsAndCharts!$A58+$A$11,0,1,1) -> 1020922500 | D58: =OFFSET(InputPriceData!C$10,CalculationsAndCharts!$A58+$A$11,0,1,1) -> 2284.29 | E58: =OFFSET(InputPriceData!D$10,CalculationsAndCharts!$A58+$A$11,0,1,1) -> 2301.3 | F58: =OFFSET(InputPriceData!E$10,CalculationsAndCharts!$A58+$A$11,0,1,1) -> 2262.22 | G58: =OFFSET(InputPriceData!F$10,CalculationsAndCharts!$A58+$A$11,0,1,1) -> 2277.83 | H58: 39.08 | I58: 13.34 | J58: 0 | K58: =IF(($A$8-$A58)<A$17,"",IF(($A$8-$A58)=A$17,SUM(OFFSET($H58,0,0,A$17,1)),ROUND(TRUNC((K59-(K59/A$17)+$H58),3),2))) -> 236.28 | L58: =IF(($A$8-$A58)<A$17,"",IF(($A$8-$A58)=A$17,SUM(OFFSET($I58,0,0,A$17,1)),ROUND(TRUNC((L59-(L59/A$17)+$I58),3),2))) -> 41.58 | M58: =IF(($A$8-$A58)<A$17,"",IF(($A$8-$A58)=A$17,SUM(OFFSET($J58,0,0,A$17,1)),ROUND(TRUNC((M59-(M59/A$17)+$J58),3),2))) -> 50.63 | N58: =IF(($A$8-$A58)<A$17,"",ROUND((100*(L58/K58)),0)) -> 18 | O58: =IF(($A$8-$A58)<A$17,"",ROUND((100*(M58/K58)),0)) -> 21 | P58: =IF(($A$8-$A58)<A$17,"",ABS(N58-O58)) -> 3 | Q58: =IF(($A$8-$A58)<A$17,"",N58+O58) -> 39 | R58: =IF(($A$8-$A58)<A$17,"",ROUND(100*(P58/Q58),0)) -> 8 | S58: =IF(($A$8-$A58)<(2*A$17),"",ROUND(IF(($A$8-$A58)=(2*A$17),AVERAGE(OFFSET(R58,0,0,A$17,1)),(((S59*(A$17-1))+R58)/A$17)),0)) -> 22 | T58: =IF(($A$8-$A58)<A$18,"",IF(($A$8-$A58)=A$18,SUM(OFFSET($H58,0,0,A$18,1)),ROUND(TRUNC((T59-(T59/A$18)+$H58),3),2))) -> 353.15 | U58: =IF(($A$8-$A58)<A$18,"",IF(($A$8-$A58)=A$18,SUM(OFFSET($I58,0,0,A$18,1)),ROUND(TRUNC((U59-(U59/A$18)+$I58),3),2))) -> 65.03 | V58: =IF(($A$8-$A58)<A$18,"",IF(($A$8-$A58)=A$18,SUM(OFFSET($J58,0,0,A$18,1)),ROUND(TRUNC((V59-(V59/A$18)+$J58),3),2))) -> 76.53 | W58: =IF(($A$8-$A58)<A$18,"",ROUND((100*(U58/T58)),0)) -> 18 | X58: =IF(($A$8-$A58)<A$18,"",ROUND((100*(V58/T58)),0)) -> 22 | Y58: =IF(($A$8-$A58)<A$18,"",ABS(W58-X58)) -> 4 | Z58: =IF(($A$8-$A58)<A$18,"",W58+X58) -> 40 | AA58: =IF(($A$8-$A58)<A$18,"",ROUND(100*(Y58/Z58),0)) -> 10 | AB58: =IF(($A$8-$A58)<(2*A$18),"",ROUND(IF(($A$8-$A58)=(2*A$18),AVERAGE(OFFSET(AA58,0,0,A$18,1)),(((AB59*(A$18-1))+AA58)/A$18)),0)) -> 20 | AC58: =IF(($A$8-$A58)<A$19,"",IF(($A$8-$A58)=A$19,SUM(OFFSET($H58,0,0,A$19,1)),ROUND(TRUNC((AC59-(AC59/A$19)+$H58),3),2))) -> 476.46 | AD58: =IF(($A$8-$A58)<A$19,"",IF(($A$8-$A58)=A$19,SUM(OFFSET($I58,0,0,A$19,1)),ROUND(TRUNC((AD59-(AD59/A$19)+$I58),3),2))) -> 90.2 | AE58: =IF(($A$8-$A58)<A$19,"",IF(($A$8-$A58)=A$19,SUM(OFFSET($J58,0,0,A$19,1)),ROUND(TRUNC((AE59-(AE59/A$19)+$J58),3),2))) -> 101.62 | AF58: =IF(($A$8-$A58)<A$19,"",ROUND((100*(AD58/AC58)),0)) -> 19 | AG58: =IF(($A$8-$A58)<A$19,"",ROUND((100*(AE58/AC58)),0)) -> 21 | AH58: =IF(($A$8-$A58)<A$19,"",ABS(AF58-AG58)) -> 2 | AI58: =IF(($A$8-$A58)<A$19,"",AF58+AG58) -> 40 | AJ58: =IF(($A$8-$A58)<A$19,"",ROUND(100*(AH58/AI58),0)) -> 5 | AK58: =IF(($A$8-$A58)<(2*A$19),"",ROUND(IF(($A$8-$A58)=(2*A$19),AVERAGE(OFFSET(AJ58,0,0,A$19,1)),(((AK59*(A$19-1))+AJ58)/A$19)),0)) -> 15 | AL58: 5 | AM58: 10 | AN58: 20 | AO58: 30 | AP58: 50 | AQ58: 70 | AR58: 90 | AS58: 0 | AT58: 0
A59: 27 | B59: =OFFSET(InputPriceData!B$10,CalculationsAndCharts!$A59+$A$11,0,1,1) -> 2011-12-19 | C59: =OFFSET(InputPriceData!G$10,CalculationsAndCharts!$A59+$A$11,0,1,1) -> 1545218000 | D59: =OFFSET(InputPriceData!C$10,CalculationsAndCharts!$A59+$A$11,0,1,1) -> 2244.37 | E59: =OFFSET(InputPriceData!D$10,CalculationsAndCharts!$A59+$A$11,0,1,1) -> 2287.96 | F59: =OFFSET(InputPriceData!E$10,CalculationsAndCharts!$A59+$A$11,0,1,1) -> 2209.57 | G59: =OFFSET(InputPriceData!F$10,CalculationsAndCharts!$A59+$A$11,0,1,1) -> 2287.57 | H59: 78.39 | I59: 0 | J59: 10.11 | K59: =IF(($A$8-$A59)<A$17,"",IF(($A$8-$A59)=A$17,SUM(OFFSET($H59,0,0,A$17,1)),ROUND(TRUNC((K60-(K60/A$17)+$H59),3),2))) -> 295.8 | L59: =IF(($A$8-$A59)<A$17,"",IF(($A$8-$A59)=A$17,SUM(OFFSET($I59,0,0,A$17,1)),ROUND(TRUNC((L60-(L60/A$17)+$I59),3),2))) -> 42.36 | M59: =IF(($A$8-$A59)<A$17,"",IF(($A$8-$A59)=A$17,SUM(OFFSET($J59,0,0,A$17,1)),ROUND(TRUNC((M60-(M60/A$17)+$J59),3),2))) -> 75.94 | N59: =IF(($A$8-$A59)<A$17,"",ROUND((100*(L59/K59)),0)) -> 14 | O59: =IF(($A$8-$A59)<A$17,"",ROUND((100*(M59/K59)),0)) -> 26 | P59: =IF(($A$8-$A59)<A$17,"",ABS(N59-O59)) -> 12 | Q59: =IF(($A$8-$A59)<A$17,"",N59+O59) -> 40 | R59: =IF(($A$8-$A59)<A$17,"",ROUND(100*(P59/Q59),0)) -> 30 | S59: =IF(($A$8-$A59)<(2*A$17),"",ROUND(IF(($A$8-$A59)=(2*A$17),AVERAGE(OFFSET(R59,0,0,A$17,1)),(((S60*(A$17-1))+R59)/A$17)),0)) -> 29 | T59: =IF(($A$8-$A59)<A$18,"",IF(($A$8-$A59)=A$18,SUM(OFFSET($H59,0,0,A$18,1)),ROUND(TRUNC((T60-(T60/A$18)+$H59),3),2))) -> 418.76 | U59: =IF(($A$8-$A59)<A$18,"",IF(($A$8-$A59)=A$18,SUM(OFFSET($I59,0,0,A$18,1)),ROUND(TRUNC((U60-(U60/A$18)+$I59),3),2))) -> 68.92 | V59: =IF(($A$8-$A59)<A$18,"",IF(($A$8-$A59)=A$18,SUM(OFFSET($J59,0,0,A$18,1)),ROUND(TRUNC((V60-(V60/A$18)+$J59),3),2))) -> 102.04 | W59: =IF(($A$8-$A59)<A$18,"",ROUND((100*(U59/T59)),0)) -> 16 | X59: =IF(($A$8-$A59)<A$18,"",ROUND((100*(V59/T59)),0)) -> 24 | Y59: =IF(($A$8-$A59)<A$18,"",ABS(W59-X59)) -> 8 | Z59: =IF(($A$8-$A59)<A$18,"",W59+X59) -> 40 | AA59: =IF(($A$8-$A59)<A$18,"",ROUND(100*(Y59/Z59),0)) -> 20 | AB59: =IF(($A$8-$A59)<(2*A$18),"",ROUND(IF(($A$8-$A59)=(2*A$18),AVERAGE(OFFSET(AA59,0,0,A$18,1)),(((AB60*(A$18-1))+AA59)/A$18)),0)) -> 23 | AC59: =IF(($A$8-$A59)<A$19,"",IF(($A$8-$A59)=A$19,SUM(OFFSET($H59,0,0,A$19,1)),ROUND(TRUNC((AC60-(AC60/A$19)+$H59),3),2))) -> 546.73 | AD59: =IF(($A$8-$A59)<A$19,"",IF(($A$8-$A59)=A$19,SUM(OFFSET($I59,0,0,A$19,1)),ROUND(TRUNC((AD60-(AD60/A$19)+$I59),3),2))) -> 96.08 | AE59: =IF(($A$8-$A59)<A$19,"",IF(($A$8-$A59)=A$19,SUM(OFFSET($J59,0,0,A$19,1)),ROUND(TRUNC((AE60-(AE60/A$19)+$J59),3),2))) -> 127.03 | AF59: =IF(($A$8-$A59)<A$19,"",ROUND((100*(AD59/AC59)),0)) -> 18 | AG59: =IF(($A$8-$A59)<A$19,"",ROUND((100*(AE59/AC59)),0)) -> 23 | AH59: =IF(($A$8-$A59)<A$19,"",ABS(AF59-AG59)) -> 5 | AI59: =IF(($A$8-$A59)<A$19,"",AF59+AG59) -> 41 | AJ59: =IF(($A$8-$A59)<A$19,"",ROUND(100*(AH59/AI59),0)) -> 12 | AK59: =IF(($A$8-$A59)<(2*A$19),"",ROUND(IF(($A$8-$A59)=(2*A$19),AVERAGE(OFFSET(AJ59,0,0,A$19,1)),(((AK60*(A$19-1))+AJ59)/A$19)),0)) -> 18 | AL59: 5 | AM59: 10 | AN59: 20 | AO59: 30 | AP59: 50 | AQ59: 70 | AR59: 90 | AS59: 0 | AT59: 0
A60: 28 | B60: =OFFSET(InputPriceData!B$10,CalculationsAndCharts!$A60+$A$11,0,1,1) -> 2011-12-12 | C60: =OFFSET(InputPriceData!G$10,CalculationsAndCharts!$A60+$A$11,0,1,1) -> 1906394000 | D60: =OFFSET(InputPriceData!C$10,CalculationsAndCharts!$A60+$A$11,0,1,1) -> 2295.43 | E60: =OFFSET(InputPriceData!D$10,CalculationsAndCharts!$A60+$A$11,0,1,1) -> 2316.9 | F60: =OFFSET(InputPriceData!E$10,CalculationsAndCharts!$A60+$A$11,0,1,1) -> 2219.68 | G60: =OFFSET(InputPriceData!F$10,CalculationsAndCharts!$A60+$A$11,0,1,1) -> 2238.18 | H60: 99 | I60: 0 | J60: 58.74 | K60: =IF(($A$8-$A60)<A$17,"",IF(($A$8-$A60)=A$17,SUM(OFFSET($H60,0,0,A$17,1)),ROUND(TRUNC((K61-(K61/A$17)+$H60),3),2))) -> 326.11 | L60: =IF(($A$8-$A60)<A$17,"",IF(($A$8-$A60)=A$17,SUM(OFFSET($I60,0,0,A$17,1)),ROUND(TRUNC((L61-(L61/A$17)+$I60),3),2))) -> 63.54 | M60: =IF(($A$8-$A60)<A$17,"",IF(($A$8-$A60)=A$17,SUM(OFFSET($J60,0,0,A$17,1)),ROUND(TRUNC((M61-(M61/A$17)+$J60),3),2))) -> 98.75 | N60: =IF(($A$8-$A60)<A$17,"",ROUND((100*(L60/K60)),0)) -> 19 | O60: =IF(($A$8-$A60)<A$17,"",ROUND((100*(M60/K60)),0)) -> 30 | P60: =IF(($A$8-$A60)<A$17,"",ABS(N60-O60)) -> 11 | Q60: =IF(($A$8-$A60)<A$17,"",N60+O60) -> 49 | R60: =IF(($A$8-$A60)<A$17,"",ROUND(100*(P60/Q60),0)) -> 22 | S60: =IF(($A$8-$A60)<(2*A$17),"",ROUND(IF(($A$8-$A60)=(2*A$17),AVERAGE(OFFSET(R60,0,0,A$17,1)),(((S61*(A$17-1))+R60)/A$17)),0)) -> 28 | T60: =IF(($A$8-$A60)<A$18,"",IF(($A$8-$A60)=A$18,SUM(OFFSET($H60,0,0,A$18,1)),ROUND(TRUNC((T61-(T61/A$18)+$H60),3),2))) -> 453.83 | U60: =IF(($A$8-$A60)<A$18,"",IF(($A$8-$A60)=A$18,SUM(OFFSET($I60,0,0,A$18,1)),ROUND(TRUNC((U61-(U61/A$18)+$I60),3),2))) -> 91.89 | V60: =IF(($A$8-$A60)<A$18,"",IF(($A$8-$A60)=A$18,SUM(OFFSET($J60,0,0,A$18,1)),ROUND(TRUNC((V61-(V61/A$18)+$J60),3),2))) -> 122.57 | W60: =IF(($A$8-$A60)<A$18,"",ROUND((100*(U60/T60)),0)) -> 20 | X60: =IF(($A$8-$A60)<A$18,"",ROUND((100*(V60/T60)),0)) -> 27 | Y60: =IF(($A$8-$A60)<A$18,"",ABS(W60-X60)) -> 7 | Z60: =IF(($A$8-$A60)<A$18,"",W60+X60) -> 47 | AA60: =IF(($A$8-$A60)<A$18,"",ROUND(100*(Y60/Z60),0)) -> 15 | AB60: =IF(($A$8-$A60)<(2*A$18),"",ROUND(IF(($A$8-$A60)=(2*A$18),AVERAGE(OFFSET(AA60,0,0,A$18,1)),(((AB61*(A$18-1))+AA60)/A$18)),0)) -> 24 | AC60: =IF(($A$8-$A60)<A$19,"",IF(($A$8-$A60)=A$19,SUM(OFFSET($H60,0,0,A$19,1)),ROUND(TRUNC((AC61-(AC61/A$19)+$H60),3),2))) -> 585.42 | AD60: =IF(($A$8-$A60)<A$19,"",IF(($A$8-$A60)=A$19,SUM(OFFSET($I60,0,0,A$19,1)),ROUND(TRUNC((AD61-(AD61/A$19)+$I60),3),2))) -> 120.1 | AE60: =IF(($A$8-$A60)<A$19,"",IF(($A$8-$A60)=A$19,SUM(OFFSET($J60,0,0,A$19,1)),ROUND(TRUNC((AE61-(AE61/A$19)+$J60),3),2))) -> 146.15 | AF60: =IF(($A$8-$A60)<A$19,"",ROUND((100*(AD60/AC60)),0)) -> 21 | AG60: =IF(($A$8-$A60)<A$19,"",ROUND((100*(AE60/AC60)),0)) -> 25 | AH60: =IF(($A$8-$A60)<A$19,"",ABS(AF60-AG60)) -> 4 | AI60: =IF(($A$8-$A60)<A$19,"",AF60+AG60) -> 46 | AJ60: =IF(($A$8-$A60)<A$19,"",ROUND(100*(AH60/AI60),0)) -> 9 | AK60: =IF(($A$8-$A60)<(2*A$19),"",ROUND(IF(($A$8-$A60)=(2*A$19),AVERAGE(OFFSET(AJ60,0,0,A$19,1)),(((AK61*(A$19-1))+AJ60)/A$19)),0)) -> 19 | AL60: 5 | AM60: 10 | AN60: 20 | AO60: 30 | AP60: 50 | AQ60: 70 | AR60: 90 | AS60: 0 | AT60: 0
A61: 29 | B61: =OFFSET(InputPriceData!B$10,CalculationsAndCharts!$A61+$A$11,0,1,1) -> 2011-12-05 | C61: =OFFSET(InputPriceData!G$10,CalculationsAndCharts!$A61+$A$11,0,1,1) -> 1669230000 | D61: =OFFSET(InputPriceData!C$10,CalculationsAndCharts!$A61+$A$11,0,1,1) -> 2336.55 | E61: =OFFSET(InputPriceData!D$10,CalculationsAndCharts!$A61+$A$11,0,1,1) -> 2343.1 | F61: =OFFSET(InputPriceData!E$10,CalculationsAndCharts!$A61+$A$11,0,1,1) -> 2278.42 | G61: =OFFSET(InputPriceData!F$10,CalculationsAndCharts!$A61+$A$11,0,1,1) -> 2318.68 | H61: 64.68 | I61: 11.98 | J61: 0 | K61: =IF(($A$8-$A61)<A$17,"",IF(($A$8-$A61)=A$17,SUM(OFFSET($H61,0,0,A$17,1)),ROUND(TRUNC((K62-(K62/A$17)+$H61),3),2))) -> 340.67 | L61: =IF(($A$8-$A61)<A$17,"",IF(($A$8-$A61)=A$17,SUM(OFFSET($I61,0,0,A$17,1)),ROUND(TRUNC((L62-(L62/A$17)+$I61),3),2))) -> 95.31 | M61: =IF(($A$8-$A61)<A$17,"",IF(($A$8-$A61)=A$17,SUM(OFFSET($J61,0,0,A$17,1)),ROUND(TRUNC((M62-(M62/A$17)+$J61),3),2))) -> 60.01 | N61: =IF(($A$8-$A61)<A$17,"",ROUND((100*(L61/K61)),0)) -> 28 | O61: =IF(($A$8-$A61)<A$17,"",ROUND((100*(M61/K61)),0)) -> 18 | P61: =IF(($A$8-$A61)<A$17,"",ABS(N61-O61)) -> 10 | Q61: =IF(($A$8-$A61)<A$17,"",N61+O61) -> 46 | R61: =IF(($A$8-$A61)<A$17,"",ROUND(100*(P61/Q61),0)) -> 22 | S61: =IF(($A$8-$A61)<(2*A$17),"",ROUND(IF(($A$8-$A61)=(2*A$17),AVERAGE(OFFSET(R61,0,0,A$17,1)),(((S62*(A$17-1))+R61)/A$17)),0)) -> 31 | T61: =IF(($A$8-$A61)<A$18,"",IF(($A$8-$A61)=A$18,SUM(OFFSET($H61,0,0,A$18,1)),ROUND(TRUNC((T62-(T62/A$18)+$H61),3),2))) -> 473.1 | U61: =IF(($A$8-$A61)<A$18,"",IF(($A$8-$A61)=A$18,SUM(OFFSET($I61,0,0,A$18,1)),ROUND(TRUNC((U62-(U62/A$18)+$I61),3),2))) -> 122.52 | V61: =IF(($A$8-$A61)<A$18,"",IF(($A$8-$A61)=A$18,SUM(OFFSET($J61,0,0,A$18,1)),ROUND(TRUNC((V62-(V62/A$18)+$J61),3),2))) -> 85.11 | W61: =IF(($A$8-$A61)<A$18,"",ROUND((100*(U61/T61)),0)) -> 26 | X61: =IF(($A$8-$A61)<A$18,"",ROUND((100*(V61/T61)),0)) -> 18 | Y61: =IF(($A$8-$A61)<A$18,"",ABS(W61-X61)) -> 8 | Z61: =IF(($A$8-$A61)<A$18,"",W61+X61) -> 44 | AA61: =IF(($A$8-$A61)<A$18,"",ROUND(100*(Y61/Z61),0)) -> 18 | AB61: =IF(($A$8-$A61)<(2*A$18),"",ROUND(IF(($A$8-$A61)=(2*A$18),AVERAGE(OFFSET(AA61,0,0,A$18,1)),(((AB62*(A$18-1))+AA61)/A$18)),0)) -> 27 | AC61: =IF(($A$8-$A61)<A$19,"",IF(($A$8-$A61)=A$19,SUM(OFFSET($H61,0,0,A$19,1)),ROUND(TRUNC((AC62-(AC62/A$19)+$H61),3),2))) -> 608.03 | AD61: =IF(($A$8-$A61)<A$19,"",IF(($A$8-$A61)=A$19,SUM(OFFSET($I61,0,0,A$19,1)),ROUND(TRUNC((AD62-(AD62/A$19)+$I61),3),2))) -> 150.12 | AE61: =IF(($A$8-$A61)<A$19,"",IF(($A$8-$A61)=A$19,SUM(OFFSET($J61,0,0,A$19,1)),ROUND(TRUNC((AE62-(AE62/A$19)+$J61),3),2))) -> 109.26 | AF61: =IF(($A$8-$A61)<A$19,"",ROUND((100*(AD61/AC61)),0)) -> 25 | AG61: =IF(($A$8-$A61)<A$19,"",ROUND((100*(AE61/AC61)),0)) -> 18 | AH61: =IF(($A$8-$A61)<A$19,"",ABS(AF61-AG61)) -> 7 | AI61: =IF(($A$8-$A61)<A$19,"",AF61+AG61) -> 43 | AJ61: =IF(($A$8-$A61)<A$19,"",ROUND(100*(AH61/AI61),0)) -> 16 | AK61: =IF(($A$8-$A61)<(2*A$19),"",ROUND(IF(($A$8-$A61)=(2*A$19),AVERAGE(OFFSET(AJ61,0,0,A$19,1)),(((AK62*(A$19-1))+AJ61)/A$19)),0)) -> 22 | AL61: 5 | AM61: 10 | AN61: 20 | AO61: 30 | AP61: 50 | AQ61: 70 | AR61: 90 | AS61: 0 | AT61: 0
A62: 30 | B62: =OFFSET(InputPriceData!B$10,CalculationsAndCharts!$A62+$A$11,0,1,1) -> 2011-11-28 | C62: =OFFSET(InputPriceData!G$10,CalculationsAndCharts!$A62+$A$11,0,1,1) -> 1836032000 | D62: =OFFSET(InputPriceData!C$10,CalculationsAndCharts!$A62+$A$11,0,1,1) -> 2207.68 | E62: =OFFSET(InputPriceData!D$10,CalculationsAndCharts!$A62+$A$11,0,1,1) -> 2331.12 | F62: =OFFSET(InputPriceData!E$10,CalculationsAndCharts!$A62+$A$11,0,1,1) -> 2205.77 | G62: =OFFSET(InputPriceData!F$10,CalculationsAndCharts!$A62+$A$11,0,1,1) -> 2302.04 | H62: 180.24 | I62: 105.58 | J62: 0 | K62: =IF(($A$8-$A62)<A$17,"",IF(($A$8-$A62)=A$17,SUM(OFFSET($H62,0,0,A$17,1)),ROUND(TRUNC((K63-(K63/A$17)+$H62),3),2))) -> 413.98 | L62: =IF(($A$8-$A62)<A$17,"",IF(($A$8-$A62)=A$17,SUM(OFFSET($I62,0,0,A$17,1)),ROUND(TRUNC((L63-(L63/A$17)+$I62),3),2))) -> 125 | M62: =IF(($A$8-$A62)<A$17,"",IF(($A$8-$A62)=A$17,SUM(OFFSET($J62,0,0,A$17,1)),ROUND(TRUNC((M63-(M63/A$17)+$J62),3),2))) -> 90.01 | N62: =IF(($A$8-$A62)<A$17,"",ROUND((100*(L62/K62)),0)) -> 30 | O62: =IF(($A$8-$A62)<A$17,"",ROUND((100*(M62/K62)),0)) -> 22 | P62: =IF(($A$8-$A62)<A$17,"",ABS(N62-O62)) -> 8 | Q62: =IF(($A$8-$A62)<A$17,"",N62+O62) -> 52 | R62: =IF(($A$8-$A62)<A$17,"",ROUND(100*(P62/Q62),0)) -> 15 | S62: =IF(($A$8-$A62)<(2*A$17),"",ROUND(IF(($A$8-$A62)=(2*A$17),AVERAGE(OFFSET(R62,0,0,A$17,1)),(((S63*(A$17-1))+R62)/A$17)),0)) -> 35 | T62: =IF(($A$8-$A62)<A$18,"",IF(($A$8-$A62)=A$18,SUM(OFFSET($H62,0,0,A$18,1)),ROUND(TRUNC((T63-(T63/A$18)+$H62),3),2))) -> 544.56 | U62: =IF(($A$8-$A62)<A$18,"",IF(($A$8-$A62)=A$18,SUM(OFFSET($I62,0,0,A$18,1)),ROUND(TRUNC((U63-(U63/A$18)+$I62),3),2))) -> 147.39 | V62: =IF(($A$8-$A62)<A$18,"",IF(($A$8-$A62)=A$18,SUM(OFFSET($J62,0,0,A$18,1)),ROUND(TRUNC((V63-(V63/A$18)+$J62),3),2))) -> 113.48 | W62: =IF(($A$8-$A62)<A$18,"",ROUND((100*(U62/T62)),0)) -> 27 | X62: =IF(($A$8-$A62)<A$18,"",ROUND((100*(V62/T62)),0)) -> 21 | Y62: =IF(($A$8-$A62)<A$18,"",ABS(W62-X62)) -> 6 | Z62: =IF(($A$8-$A62)<A$18,"",W62+X62) -> 48 | AA62: =IF(($A$8-$A62)<A$18,"",ROUND(100*(Y62/Z62),0)) -> 13 | AB62: =IF(($A$8-$A62)<(2*A$18),"",ROUND(IF(($A$8-$A62)=(2*A$18),AVERAGE(OFFSET(AA62,0,0,A$18,1)),(((AB63*(A$18-1))+AA62)/A$18)),0)) -> 30 | AC62: =IF(($A$8-$A62)<A$19,"",IF(($A$8-$A62)=A$19,SUM(OFFSET($H62,0,0,A$19,1)),ROUND(TRUNC((AC63-(AC63/A$19)+$H62),3),2))) -> 679.19 | AD62: =IF(($A$8-$A62)<A$19,"",IF(($A$8-$A62)=A$19,SUM(OFFSET($I62,0,0,A$19,1)),ROUND(TRUNC((AD63-(AD63/A$19)+$I62),3),2))) -> 172.67 | AE62: =IF(($A$8-$A62)<A$19,"",IF(($A$8-$A62)=A$19,SUM(OFFSET($J62,0,0,A$19,1)),ROUND(TRUNC((AE63-(AE63/A$19)+$J62),3),2))) -> 136.58 | AF62: =IF(($A$8-$A62)<A$19,"",ROUND((100*(AD62/AC62)),0)) -> 25 | AG62: =IF(($A$8-$A62)<A$19,"",ROUND((100*(AE62/AC62)),0)) -> 20 | AH62: =IF(($A$8-$A62)<A$19,"",ABS(AF62-AG62)) -> 5 | AI62: =IF(($A$8-$A62)<A$19,"",AF62+AG62) -> 45 | AJ62: =IF(($A$8-$A62)<A$19,"",ROUND(100*(AH62/AI62),0)) -> 11 | AK62: =IF(($A$8-$A62)<(2*A$19),"",ROUND(IF(($A$8-$A62)=(2*A$19),AVERAGE(OFFSET(AJ62,0,0,A$19,1)),(((AK63*(A$19-1))+AJ62)/A$19)),0)) -> 24 | AL62: 5 | AM62: 10 | AN62: 20 | AO62: 30 | AP62: 50 | AQ62: 70 | AR62: 90 | AS62: 0 | AT62: 0
A63: 31 | B63: =OFFSET(InputPriceData!B$10,CalculationsAndCharts!$A63+$A$11,0,1,1) -> 2011-11-21 | C63: =OFFSET(InputPriceData!G$10,CalculationsAndCharts!$A63+$A$11,0,1,1) -> 1560025000 | D63: =OFFSET(InputPriceData!C$10,CalculationsAndCharts!$A63+$A$11,0,1,1) -> 2219.88 | E63: =OFFSET(InputPriceData!D$10,CalculationsAndCharts!$A63+$A$11,0,1,1) -> 2225.54 | F63: =OFFSET(InputPriceData!E$10,CalculationsAndCharts!$A63+$A$11,0,1,1) -> 2150.71 | G63: =OFFSET(InputPriceData!F$10,CalculationsAndCharts!$A63+$A$11,0,1,1) -> 2150.88 | H63: 103.24 | I63: 0 | J63: 100.23 | K63: =IF(($A$8-$A63)<A$17,"",IF(($A$8-$A63)=A$17,SUM(OFFSET($H63,0,0,A$17,1)),ROUND(TRUNC((K64-(K64/A$17)+$H63),3),2))) -> 350.61 | L63: =IF(($A$8-$A63)<A$17,"",IF(($A$8-$A63)=A$17,SUM(OFFSET($I63,0,0,A$17,1)),ROUND(TRUNC((L64-(L64/A$17)+$I63),3),2))) -> 29.13 | M63: =IF(($A$8-$A63)<A$17,"",IF(($A$8-$A63)=A$17,SUM(OFFSET($J63,0,0,A$17,1)),ROUND(TRUNC((M64-(M64/A$17)+$J63),3),2))) -> 135.01 | N63: =IF(($A$8-$A63)<A$17,"",ROUND((100*(L63/K63)),0)) -> 8 | O63: =IF(($A$8-$A63)<A$17,"",ROUND((100*(M63/K63)),0)) -> 39 | P63: =IF(($A$8-$A63)<A$17,"",ABS(N63-O63)) -> 31 | Q63: =IF(($A$8-$A63)<A$17,"",N63+O63) -> 47 | R63: =IF(($A$8-$A63)<A$17,"",ROUND(100*(P63/Q63),0)) -> 66 | S63: =IF(($A$8-$A63)<(2*A$17),"",ROUND(IF(($A$8-$A63)=(2*A$17),AVERAGE(OFFSET(R63,0,0,A$17,1)),(((S64*(A$17-1))+R63)/A$17)),0)) -> 45 | T63: =IF(($A$8-$A63)<A$18,"",IF(($A$8-$A63)=A$18,SUM(OFFSET($H63,0,0,A$18,1)),ROUND(TRUNC((T64-(T64/A$18)+$H63),3),2))) -> 485.76 | U63: =IF(($A$8-$A63)<A$18,"",IF(($A$8-$A63)=A$18,SUM(OFFSET($I63,0,0,A$18,1)),ROUND(TRUNC((U64-(U64/A$18)+$I63),3),2))) -> 55.75 | V63: =IF(($A$8-$A63)<A$18,"",IF(($A$8-$A63)=A$18,SUM(OFFSET($J63,0,0,A$18,1)),ROUND(TRUNC((V64-(V64/A$18)+$J63),3),2))) -> 151.31 | W63: =IF(($A$8-$A63)<A$18,"",ROUND((100*(U63/T63)),0)) -> 11 | X63: =IF(($A$8-$A63)<A$18,"",ROUND((100*(V63/T63)),0)) -> 31 | Y63: =IF(($A$8-$A63)<A$18,"",ABS(W63-X63)) -> 20 | Z63: =IF(($A$8-$A63)<A$18,"",W63+X63) -> 42 | AA63: =IF(($A$8-$A63)<A$18,"",ROUND(100*(Y63/Z63),0)) -> 48 | AB63: =IF(($A$8-$A63)<(2*A$18),"",ROUND(IF(($A$8-$A63)=(2*A$18),AVERAGE(OFFSET(AA63,0,0,A$18,1)),(((AB64*(A$18-1))+AA63)/A$18)),0)) -> 35 | AC63: =IF(($A$8-$A63)<A$19,"",IF(($A$8-$A63)=A$19,SUM(OFFSET($H63,0,0,A$19,1)),ROUND(TRUNC((AC64-(AC64/A$19)+$H63),3),2))) -> 623.69 | AD63: =IF(($A$8-$A63)<A$19,"",IF(($A$8-$A63)=A$19,SUM(OFFSET($I63,0,0,A$19,1)),ROUND(TRUNC((AD64-(AD64/A$19)+$I63),3),2))) -> 83.86 | AE63: =IF(($A$8-$A63)<A$19,"",IF(($A$8-$A63)=A$19,SUM(OFFSET($J63,0,0,A$19,1)),ROUND(TRUNC((AE64-(AE64/A$19)+$J63),3),2))) -> 170.73 | AF63: =IF(($A$8-$A63)<A$19,"",ROUND((100*(AD63/AC63)),0)) -> 13 | AG63: =IF(($A$8-$A63)<A$19,"",ROUND((100*(AE63/AC63)),0)) -> 27 | AH63: =IF(($A$8-$A63)<A$19,"",ABS(AF63-AG63)) -> 14 | AI63: =IF(($A$8-$A63)<A$19,"",AF63+AG63) -> 40 | AJ63: =IF(($A$8-$A63)<A$19,"",ROUND(100*(AH63/AI63),0)) -> 35 | AK63: =IF(($A$8-$A63)<(2*A$19),"",ROUND(IF(($A$8-$A63)=(2*A$19),AVERAGE(OFFSET(AJ63,0,0,A$19,1)),(((AK64*(A$19-1))+AJ63)/A$19)),0)) -> 27 | AL63: 5 | AM63: 10 | AN63: 20 | AO63: 30 | AP63: 50 | AQ63: 70 | AR63: 90 | AS63: 0 | AT63: 0
A64: 32 | B64: =OFFSET(InputPriceData!B$10,CalculationsAndCharts!$A64+$A$11,0,1,1) -> 2011-11-14 | C64: =OFFSET(InputPriceData!G$10,CalculationsAndCharts!$A64+$A$11,0,1,1) -> 1802276000 | D64: =OFFSET(InputPriceData!C$10,CalculationsAndCharts!$A64+$A$11,0,1,1) -> 2350.91 | E64: =OFFSET(InputPriceData!D$10,CalculationsAndCharts!$A64+$A$11,0,1,1) -> 2375.1 | F64: =OFFSET(InputPriceData!E$10,CalculationsAndCharts!$A64+$A$11,0,1,1) -> 2250.94 | G64: =OFFSET(InputPriceData!F$10,CalculationsAndCharts!$A64+$A$11,0,1,1) -> 2253.95 | H64: 124.16 | I64: 0 | J64: 39.59 | K64: =IF(($A$8-$A64)<A$17,"",IF(($A$8-$A64)=A$17,SUM(OFFSET($H64,0,0,A$17,1)),ROUND(TRUNC((K65-(K65/A$17)+$H64),3),2))) -> 371.06 | L64: =IF(($A$8-$A64)<A$17,"",IF(($A$8-$A64)=A$17,SUM(OFFSET($I64,0,0,A$17,1)),ROUND(TRUNC((L65-(L65/A$17)+$I64),3),2))) -> 43.69 | M64: =IF(($A$8-$A64)<A$17,"",IF(($A$8-$A64)=A$17,SUM(OFFSET($J64,0,0,A$17,1)),ROUND(TRUNC((M65-(M65/A$17)+$J64),3),2))) -> 52.17 | N64: =IF(($A$8-$A64)<A$17,"",ROUND((100*(L64/K64)),0)) -> 12 | O64: =IF(($A$8-$A64)<A$17,"",ROUND((100*(M64/K64)),0)) -> 14 | P64: =IF(($A$8-$A64)<A$17,"",ABS(N64-O64)) -> 2 | Q64: =IF(($A$8-$A64)<A$17,"",N64+O64) -> 26 | R64: =IF(($A$8-$A64)<A$17,"",ROUND(100*(P64/Q64),0)) -> 8 | S64: =IF(($A$8-$A64)<(2*A$17),"",ROUND(IF(($A$8-$A64)=(2*A$17),AVERAGE(OFFSET(R64,0,0,A$17,1)),(((S65*(A$17-1))+R64)/A$17)),0)) -> 35 | T64: =IF(($A$8-$A64)<A$18,"",IF(($A$8-$A64)=A$18,SUM(OFFSET($H64,0,0,A$18,1)),ROUND(TRUNC((T65-(T65/A$18)+$H64),3),2))) -> 510.02 | U64: =IF(($A$8-$A64)<A$18,"",IF(($A$8-$A64)=A$18,SUM(OFFSET($I64,0,0,A$18,1)),ROUND(TRUNC((U65-(U65/A$18)+$I64),3),2))) -> 74.33 | V64: =IF(($A$8-$A64)<A$18,"",IF(($A$8-$A64)=A$18,SUM(OFFSET($J64,0,0,A$18,1)),ROUND(TRUNC((V65-(V65/A$18)+$J64),3),2))) -> 68.1 | W64: =IF(($A$8-$A64)<A$18,"",ROUND((100*(U64/T64)),0)) -> 15 | X64: =IF(($A$8-$A64)<A$18,"",ROUND((100*(V64/T64)),0)) -> 13 | Y64: =IF(($A$8-$A64)<A$18,"",ABS(W64-X64)) -> 2 | Z64: =IF(($A$8-$A64)<A$18,"",W64+X64) -> 28 | AA64: =IF(($A$8-$A64)<A$18,"",ROUND(100*(Y64/Z64),0)) -> 7 | AB64: =IF(($A$8-$A64)<(2*A$18),"",ROUND(IF(($A$8-$A64)=(2*A$18),AVERAGE(OFFSET(AA64,0,0,A$18,1)),(((AB65*(A$18-1))+AA64)/A$18)),0)) -> 30 | AC64: =IF(($A$8-$A64)<A$19,"",IF(($A$8-$A64)=A$19,SUM(OFFSET($H64,0,0,A$19,1)),ROUND(TRUNC((AC65-(AC65/A$19)+$H64),3),2))) -> 650.56 | AD64: =IF(($A$8-$A64)<A$19,"",IF(($A$8-$A64)=A$19,SUM(OFFSET($I64,0,0,A$19,1)),ROUND(TRUNC((AD65-(AD65/A$19)+$I64),3),2))) -> 104.82 | AE64: =IF(($A$8-$A64)<A$19,"",IF(($A$8-$A64)=A$19,SUM(OFFSET($J64,0,0,A$19,1)),ROUND(TRUNC((AE65-(AE65/A$19)+$J64),3),2))) -> 88.13 | AF64: =IF(($A$8-$A64)<A$19,"",ROUND((100*(AD64/AC64)),0)) -> 16 | AG64: =IF(($A$8-$A64)<A$19,"",ROUND((100*(AE64/AC64)),0)) -> 14 | AH64: =IF(($A$8-$A64)<A$19,"",ABS(AF64-AG64)) -> 2 | AI64: =IF(($A$8-$A64)<A$19,"",AF64+AG64) -> 30 | AJ64: =IF(($A$8-$A64)<A$19,"",ROUND(100*(AH64/AI64),0)) -> 7 | AK64: =IF(($A$8-$A64)<(2*A$19),"",ROUND(IF(($A$8-$A64)=(2*A$19),AVERAGE(OFFSET(AJ64,0,0,A$19,1)),(((AK65*(A$19-1))+AJ64)/A$19)),0)) -> 25 | AL64: 5 | AM64: 10 | AN64: 20 | AO64: 30 | AP64: 50 | AQ64: 70 | AR64: 90 | AS64: 0 | AT64: 0
A65: 33 | B65: =OFFSET(InputPriceData!B$10,CalculationsAndCharts!$A65+$A$11,0,1,1) -> 2011-11-07 | C65: =OFFSET(InputPriceData!G$10,CalculationsAndCharts!$A65+$A$11,0,1,1) -> 1840432000 | D65: =OFFSET(InputPriceData!C$10,CalculationsAndCharts!$A65+$A$11,0,1,1) -> 2353.82 | E65: =OFFSET(InputPriceData!D$10,CalculationsAndCharts!$A65+$A$11,0,1,1) -> 2402.51 | F65: =OFFSET(InputPriceData!E$10,CalculationsAndCharts!$A65+$A$11,0,1,1) -> 2290.53 | G65: =OFFSET(InputPriceData!F$10,CalculationsAndCharts!$A65+$A$11,0,1,1) -> 2355.78 | H65: 111.98 | I65: 13.22 | J65: 0 | K65: =IF(($A$8-$A65)<A$17,"",IF(($A$8-$A65)=A$17,SUM(OFFSET($H65,0,0,A$17,1)),ROUND(TRUNC((K66-(K66/A$17)+$H65),3),2))) -> 370.35 | L65: =IF(($A$8-$A65)<A$17,"",IF(($A$8-$A65)=A$17,SUM(OFFSET($I65,0,0,A$17,1)),ROUND(TRUNC((L66-(L66/A$17)+$I65),3),2))) -> 65.54 | M65: =IF(($A$8-$A65)<A$17,"",IF(($A$8-$A65)=A$17,SUM(OFFSET($J65,0,0,A$17,1)),ROUND(TRUNC((M66-(M66/A$17)+$J65),3),2))) -> 18.87 | N65: =IF(($A$8-$A65)<A$17,"",ROUND((100*(L65/K65)),0)) -> 18 | O65: =IF(($A$8-$A65)<A$17,"",ROUND((100*(M65/K65)),0)) -> 5 | P65: =IF(($A$8-$A65)<A$17,"",ABS(N65-O65)) -> 13 | Q65: =IF(($A$8-$A65)<A$17,"",N65+O65) -> 23 | R65: =IF(($A$8-$A65)<A$17,"",ROUND(100*(P65/Q65),0)) -> 57 | S65: =IF(($A$8-$A65)<(2*A$17),"",ROUND(IF(($A$8-$A65)=(2*A$17),AVERAGE(OFFSET(R65,0,0,A$17,1)),(((S66*(A$17-1))+R65)/A$17)),0)) -> 49 | T65: =IF(($A$8-$A65)<A$18,"",IF(($A$8-$A65)=A$18,SUM(OFFSET($H65,0,0,A$18,1)),ROUND(TRUNC((T66-(T66/A$18)+$H65),3),2))) -> 514.48 | U65: =IF(($A$8-$A65)<A$18,"",IF(($A$8-$A65)=A$18,SUM(OFFSET($I65,0,0,A$18,1)),ROUND(TRUNC((U66-(U66/A$18)+$I65),3),2))) -> 99.1 | V65: =IF(($A$8-$A65)<A$18,"",IF(($A$8-$A65)=A$18,SUM(OFFSET($J65,0,0,A$18,1)),ROUND(TRUNC((V66-(V66/A$18)+$J65),3),2))) -> 38.01 | W65: =IF(($A$8-$A65)<A$18,"",ROUND((100*(U65/T65)),0)) -> 19 | X65: =IF(($A$8-$A65)<A$18,"",ROUND((100*(V65/T65)),0)) -> 7 | Y65: =IF(($A$8-$A65)<A$18,"",ABS(W65-X65)) -> 12 | Z65: =IF(($A$8-$A65)<A$18,"",W65+X65) -> 26 | AA65: =IF(($A$8-$A65)<A$18,"",ROUND(100*(Y65/Z65),0)) -> 46 | AB65: =IF(($A$8-$A65)<(2*A$18),"",ROUND(IF(($A$8-$A65)=(2*A$18),AVERAGE(OFFSET(AA65,0,0,A$18,1)),(((AB66*(A$18-1))+AA65)/A$18)),0)) -> 37 | AC65: =IF(($A$8-$A65)<A$19,"",IF(($A$8-$A65)=A$19,SUM(OFFSET($H65,0,0,A$19,1)),ROUND(TRUNC((AC66-(AC66/A$19)+$H65),3),2))) -> 658 | AD65: =IF(($A$8-$A65)<A$19,"",IF(($A$8-$A65)=A$19,SUM(OFFSET($I65,0,0,A$19,1)),ROUND(TRUNC((AD66-(AD66/A$19)+$I65),3),2))) -> 131.02 | AE65: =IF(($A$8-$A65)<A$19,"",IF(($A$8-$A65)=A$19,SUM(OFFSET($J65,0,0,A$19,1)),ROUND(TRUNC((AE66-(AE66/A$19)+$J65),3),2))) -> 60.67 | AF65: =IF(($A$8-$A65)<A$19,"",ROUND((100*(AD65/AC65)),0)) -> 20 | AG65: =IF(($A$8-$A65)<A$19,"",ROUND((100*(AE65/AC65)),0)) -> 9 | AH65: =IF(($A$8-$A65)<A$19,"",ABS(AF65-AG65)) -> 11 | AI65: =IF(($A$8-$A65)<A$19,"",AF65+AG65) -> 29 | AJ65: =IF(($A$8-$A65)<A$19,"",ROUND(100*(AH65/AI65),0)) -> 38 | AK65: =IF(($A$8-$A65)<(2*A$19),"",ROUND(IF(($A$8-$A65)=(2*A$19),AVERAGE(OFFSET(AJ65,0,0,A$19,1)),(((AK66*(A$19-1))+AJ65)/A$19)),0)) -> 29 | AL65: 5 | AM65: 10 | AN65: 20 | AO65: 30 | AP65: 50 | AQ65: 70 | AR65: 90 | AS65: 0 | AT65: 0
A66: 34 | B66: =OFFSET(InputPriceData!B$10,CalculationsAndCharts!$A66+$A$11,0,1,1) -> 2011-10-31 | C66: =OFFSET(InputPriceData!G$10,CalculationsAndCharts!$A66+$A$11,0,1,1) -> 2005112000 | D66: =OFFSET(InputPriceData!C$10,CalculationsAndCharts!$A66+$A$11,0,1,1) -> 2376.99 | E66: =OFFSET(InputPriceData!D$10,CalculationsAndCharts!$A66+$A$11,0,1,1) -> 2389.29 | F66: =OFFSET(InputPriceData!E$10,CalculationsAndCharts!$A66+$A$11,0,1,1) -> 2287.74 | G66: =OFFSET(InputPriceData!F$10,CalculationsAndCharts!$A66+$A$11,0,1,1) -> 2356.32 | H66: 113.55 | I66: 0 | J66: 4.04 | K66: =IF(($A$8-$A66)<A$17,"",IF(($A$8-$A66)=A$17,SUM(OFFSET($H66,0,0,A$17,1)),ROUND(TRUNC((K67-(K67/A$17)+$H66),3),2))) -> 387.56 | L66: =IF(($A$8-$A66)<A$17,"",IF(($A$8-$A66)=A$17,SUM(OFFSET($I66,0,0,A$17,1)),ROUND(TRUNC((L67-(L67/A$17)+$I66),3),2))) -> 78.48 | M66: =IF(($A$8-$A66)<A$17,"",IF(($A$8-$A66)=A$17,SUM(OFFSET($J66,0,0,A$17,1)),ROUND(TRUNC((M67-(M67/A$17)+$J66),3),2))) -> 28.31 | N66: =IF(($A$8-$A66)<A$17,"",ROUND((100*(L66/K66)),0)) -> 20 | O66: =IF(($A$8-$A66)<A$17,"",ROUND((100*(M66/K66)),0)) -> 7 | P66: =IF(($A$8-$A66)<A$17,"",ABS(N66-O66)) -> 13 | Q66: =IF(($A$8-$A66)<A$17,"",N66+O66) -> 27 | R66: =IF(($A$8-$A66)<A$17,"",ROUND(100*(P66/Q66),0)) -> 48 | S66: =IF(($A$8-$A66)<(2*A$17),"",ROUND(IF(($A$8-$A66)=(2*A$17),AVERAGE(OFFSET(R66,0,0,A$17,1)),(((S67*(A$17-1))+R66)/A$17)),0)) -> 45 | T66: =IF(($A$8-$A66)<A$18,"",IF(($A$8-$A66)=A$18,SUM(OFFSET($H66,0,0,A$18,1)),ROUND(TRUNC((T67-(T67/A$18)+$H66),3),2))) -> 536.66 | U66: =IF(($A$8-$A66)<A$18,"",IF(($A$8-$A66)=A$18,SUM(OFFSET($I66,0,0,A$18,1)),ROUND(TRUNC((U67-(U67/A$18)+$I66),3),2))) -> 114.5 | V66: =IF(($A$8-$A66)<A$18,"",IF(($A$8-$A66)=A$18,SUM(OFFSET($J66,0,0,A$18,1)),ROUND(TRUNC((V67-(V67/A$18)+$J66),3),2))) -> 50.68 | W66: =IF(($A$8-$A66)<A$18,"",ROUND((100*(U66/T66)),0)) -> 21 | X66: =IF(($A$8-$A66)<A$18,"",ROUND((100*(V66/T66)),0)) -> 9 | Y66: =IF(($A$8-$A66)<A$18,"",ABS(W66-X66)) -> 12 | Z66: =IF(($A$8-$A66)<A$18,"",W66+X66) -> 30 | AA66: =IF(($A$8-$A66)<A$18,"",ROUND(100*(Y66/Z66),0)) -> 40 | AB66: =IF(($A$8-$A66)<(2*A$18),"",ROUND(IF(($A$8-$A66)=(2*A$18),AVERAGE(OFFSET(AA66,0,0,A$18,1)),(((AB67*(A$18-1))+AA66)/A$18)),0)) -> 34 | AC66: =IF(($A$8-$A66)<A$19,"",IF(($A$8-$A66)=A$19,SUM(OFFSET($H66,0,0,A$19,1)),ROUND(TRUNC((AC67-(AC67/A$19)+$H66),3),2))) -> 682.53 | AD66: =IF(($A$8-$A66)<A$19,"",IF(($A$8-$A66)=A$19,SUM(OFFSET($I66,0,0,A$19,1)),ROUND(TRUNC((AD67-(AD67/A$19)+$I66),3),2))) -> 147.25 | AE66: =IF(($A$8-$A66)<A$19,"",IF(($A$8-$A66)=A$19,SUM(OFFSET($J66,0,0,A$19,1)),ROUND(TRUNC((AE67-(AE67/A$19)+$J66),3),2))) -> 75.84 | AF66: =IF(($A$8-$A66)<A$19,"",ROUND((100*(AD66/AC66)),0)) -> 22 | AG66: =IF(($A$8-$A66)<A$19,"",ROUND((100*(AE66/AC66)),0)) -> 11 | AH66: =IF(($A$8-$A66)<A$19,"",ABS(AF66-AG66)) -> 11 | AI66: =IF(($A$8-$A66)<A$19,"",AF66+AG66) -> 33 | AJ66: =IF(($A$8-$A66)<A$19,"",ROUND(100*(AH66/AI66),0)) -> 33 | AK66: =IF(($A$8-$A66)<(2*A$19),"",ROUND(IF(($A$8-$A66)=(2*A$19),AVERAGE(OFFSET(AJ66,0,0,A$19,1)),(((AK67*(A$19-1))+AJ66)/A$19)),0)) -> 27 | AL66: 5 | AM66: 10 | AN66: 20 | AO66: 30 | AP66: 50 | AQ66: 70 | AR66: 90 | AS66: 0 | AT66: 0
A67: 35 | B67: =OFFSET(InputPriceData!B$10,CalculationsAndCharts!$A67+$A$11,0,1,1) -> 2011-10-24 | C67: =OFFSET(InputPriceData!G$10,CalculationsAndCharts!$A67+$A$11,0,1,1) -> 2086016000 | D67: =OFFSET(InputPriceData!C$10,CalculationsAndCharts!$A67+$A$11,0,1,1) -> 2341.71 | E67: =OFFSET(InputPriceData!D$10,CalculationsAndCharts!$A67+$A$11,0,1,1) -> 2412.52 | F67: =OFFSET(InputPriceData!E$10,CalculationsAndCharts!$A67+$A$11,0,1,1) -> 2291.78 | G67: =OFFSET(InputPriceData!F$10,CalculationsAndCharts!$A67+$A$11,0,1,1) -> 2401.29 | H67: 120.74 | I67: 37.26 | J67: 0 | K67: =IF(($A$8-$A67)<A$17,"",IF(($A$8-$A67)=A$17,SUM(OFFSET($H67,0,0,A$17,1)),ROUND(TRUNC((K68-(K68/A$17)+$H67),3),2))) -> 411.02 | L67: =IF(($A$8-$A67)<A$17,"",IF(($A$8-$A67)=A$17,SUM(OFFSET($I67,0,0,A$17,1)),ROUND(TRUNC((L68-(L68/A$17)+$I67),3),2))) -> 117.72 | M67: =IF(($A$8-$A67)<A$17,"",IF(($A$8-$A67)=A$17,SUM(OFFSET($J67,0,0,A$17,1)),ROUND(TRUNC((M68-(M68/A$17)+$J67),3),2))) -> 36.41 | N67: =IF(($A$8-$A67)<A$17,"",ROUND((100*(L67/K67)),0)) -> 29 | O67: =IF(($A$8-$A67)<A$17,"",ROUND((100*(M67/K67)),0)) -> 9 | P67: =IF(($A$8-$A67)<A$17,"",ABS(N67-O67)) -> 20 | Q67: =IF(($A$8-$A67)<A$17,"",N67+O67) -> 38 | R67: =IF(($A$8-$A67)<A$17,"",ROUND(100*(P67/Q67),0)) -> 53 | S67: =IF(($A$8-$A67)<(2*A$17),"",ROUND(IF(($A$8-$A67)=(2*A$17),AVERAGE(OFFSET(R67,0,0,A$17,1)),(((S68*(A$17-1))+R67)/A$17)),0)) -> 43 | T67: =IF(($A$8-$A67)<A$18,"",IF(($A$8-$A67)=A$18,SUM(OFFSET($H67,0,0,A$18,1)),ROUND(TRUNC((T68-(T68/A$18)+$H67),3),2))) -> 564.14 | U67: =IF(($A$8-$A67)<A$18,"",IF(($A$8-$A67)=A$18,SUM(OFFSET($I67,0,0,A$18,1)),ROUND(TRUNC((U68-(U68/A$18)+$I67),3),2))) -> 152.66 | V67: =IF(($A$8-$A67)<A$18,"",IF(($A$8-$A67)=A$18,SUM(OFFSET($J67,0,0,A$18,1)),ROUND(TRUNC((V68-(V68/A$18)+$J67),3),2))) -> 62.19 | W67: =IF(($A$8-$A67)<A$18,"",ROUND((100*(U67/T67)),0)) -> 27 | X67: =IF(($A$8-$A67)<A$18,"",ROUND((100*(V67/T67)),0)) -> 11 | Y67: =IF(($A$8-$A67)<A$18,"",ABS(W67-X67)) -> 16 | Z67: =IF(($A$8-$A67)<A$18,"",W67+X67) -> 38 | AA67: =IF(($A$8-$A67)<A$18,"",ROUND(100*(Y67/Z67),0)) -> 42 | AB67: =IF(($A$8-$A67)<(2*A$18),"",ROUND(IF(($A$8-$A67)=(2*A$18),AVERAGE(OFFSET(AA67,0,0,A$18,1)),(((AB68*(A$18-1))+AA67)/A$18)),0)) -> 32 | AC67: =IF(($A$8-$A67)<A$19,"",IF(($A$8-$A67)=A$19,SUM(OFFSET($H67,0,0,A$19,1)),ROUND(TRUNC((AC68-(AC68/A$19)+$H67),3),2))) -> 711.22 | AD67: =IF(($A$8-$A67)<A$19,"",IF(($A$8-$A67)=A$19,SUM(OFFSET($I67,0,0,A$19,1)),ROUND(TRUNC((AD68-(AD68/A$19)+$I67),3),2))) -> 184.06 | AE67: =IF(($A$8-$A67)<A$19,"",IF(($A$8-$A67)=A$19,SUM(OFFSET($J67,0,0,A$19,1)),ROUND(TRUNC((AE68-(AE68/A$19)+$J67),3),2))) -> 89.75 | AF67: =IF(($A$8-$A67)<A$19,"",ROUND((100*(AD67/AC67)),0)) -> 26 | AG67: =IF(($A$8-$A67)<A$19,"",ROUND((100*(AE67/AC67)),0)) -> 13 | AH67: =IF(($A$8-$A67)<A$19,"",ABS(AF67-AG67)) -> 13 | AI67: =IF(($A$8-$A67)<A$19,"",AF67+AG67) -> 39 | AJ67: =IF(($A$8-$A67)<A$19,"",ROUND(100*(AH67/AI67),0)) -> 33 | AK67: =IF(($A$8-$A67)<(2*A$19),"",ROUND(IF(($A$8-$A67)=(2*A$19),AVERAGE(OFFSET(AJ67,0,0,A$19,1)),(((AK68*(A$19-1))+AJ67)/A$19)),0)) -> 26 | AL67: 5 | AM67: 10 | AN67: 20 | AO67: 30 | AP67: 50 | AQ67: 70 | AR67: 90 | AS67: 0 | AT67: 0
A68: 36 | B68: =OFFSET(InputPriceData!B$10,CalculationsAndCharts!$A68+$A$11,0,1,1) -> 2011-10-17 | C68: =OFFSET(InputPriceData!G$10,CalculationsAndCharts!$A68+$A$11,0,1,1) -> 1929442000 | D68: =OFFSET(InputPriceData!C$10,CalculationsAndCharts!$A68+$A$11,0,1,1) -> 2359.53 | E68: =OFFSET(InputPriceData!D$10,CalculationsAndCharts!$A68+$A$11,0,1,1) -> 2375.26 | F68: =OFFSET(InputPriceData!E$10,CalculationsAndCharts!$A68+$A$11,0,1,1) -> 2274.49 | G68: =OFFSET(InputPriceData!F$10,CalculationsAndCharts!$A68+$A$11,0,1,1) -> 2335.93 | H68: 100.77 | I68: 3.32 | J68: 0 | K68: =IF(($A$8-$A68)<A$17,"",IF(($A$8-$A68)=A$17,SUM(OFFSET($H68,0,0,A$17,1)),ROUND(TRUNC((K69-(K69/A$17)+$H68),3),2))) -> 435.42 | L68: =IF(($A$8-$A68)<A$17,"",IF(($A$8-$A68)=A$17,SUM(OFFSET($I68,0,0,A$17,1)),ROUND(TRUNC((L69-(L69/A$17)+$I68),3),2))) -> 120.69 | M68: =IF(($A$8-$A68)<A$17,"",IF(($A$8-$A68)=A$17,SUM(OFFSET($J68,0,0,A$17,1)),ROUND(TRUNC((M69-(M69/A$17)+$J68),3),2))) -> 54.62 | N68: =IF(($A$8-$A68)<A$17,"",ROUND((100*(L68/K68)),0)) -> 28 | O68: =IF(($A$8-$A68)<A$17,"",ROUND((100*(M68/K68)),0)) -> 13 | P68: =IF(($A$8-$A68)<A$17,"",ABS(N68-O68)) -> 15 | Q68: =IF(($A$8-$A68)<A$17,"",N68+O68) -> 41 | R68: =IF(($A$8-$A68)<A$17,"",ROUND(100*(P68/Q68),0)) -> 37 | S68: =IF(($A$8-$A68)<(2*A$17),"",ROUND(IF(($A$8-$A68)=(2*A$17),AVERAGE(OFFSET(R68,0,0,A$17,1)),(((S69*(A$17-1))+R68)/A$17)),0)) -> 38 | T68: =IF(($A$8-$A68)<A$18,"",IF(($A$8-$A68)=A$18,SUM(OFFSET($H68,0,0,A$18,1)),ROUND(TRUNC((T69-(T69/A$18)+$H68),3),2))) -> 591.2 | U68: =IF(($A$8-$A68)<A$18,"",IF(($A$8-$A68)=A$18,SUM(OFFSET($I68,0,0,A$18,1)),ROUND(TRUNC((U69-(U69/A$18)+$I68),3),2))) -> 153.87 | V68: =IF(($A$8-$A68)<A$18,"",IF(($A$8-$A68)=A$18,SUM(OFFSET($J68,0,0,A$18,1)),ROUND(TRUNC((V69-(V69/A$18)+$J68),3),2))) -> 82.92 | W68: =IF(($A$8-$A68)<A$18,"",ROUND((100*(U68/T68)),0)) -> 26 | X68: =IF(($A$8-$A68)<A$18,"",ROUND((100*(V68/T68)),0)) -> 14 | Y68: =IF(($A$8-$A68)<A$18,"",ABS(W68-X68)) -> 12 | Z68: =IF(($A$8-$A68)<A$18,"",W68+X68) -> 40 | AA68: =IF(($A$8-$A68)<A$18,"",ROUND(100*(Y68/Z68),0)) -> 30 | AB68: =IF(($A$8-$A68)<(2*A$18),"",ROUND(IF(($A$8-$A68)=(2*A$18),AVERAGE(OFFSET(AA68,0,0,A$18,1)),(((AB69*(A$18-1))+AA68)/A$18)),0)) -> 29 | AC68: =IF(($A$8-$A68)<A$19,"",IF(($A$8-$A68)=A$19,SUM(OFFSET($H68,0,0,A$19,1)),ROUND(TRUNC((AC69-(AC69/A$19)+$H68),3),2))) -> 738.1 | AD68: =IF(($A$8-$A68)<A$19,"",IF(($A$8-$A68)=A$19,SUM(OFFSET($I68,0,0,A$19,1)),ROUND(TRUNC((AD69-(AD69/A$19)+$I68),3),2))) -> 183.5 | AE68: =IF(($A$8-$A68)<A$19,"",IF(($A$8-$A68)=A$19,SUM(OFFSET($J68,0,0,A$19,1)),ROUND(TRUNC((AE69-(AE69/A$19)+$J68),3),2))) -> 112.19 | AF68: =IF(($A$8-$A68)<A$19,"",ROUND((100*(AD68/AC68)),0)) -> 25 | AG68: =IF(($A$8-$A68)<A$19,"",ROUND((100*(AE68/AC68)),0)) -> 15 | AH68: =IF(($A$8-$A68)<A$19,"",ABS(AF68-AG68)) -> 10 | AI68: =IF(($A$8-$A68)<A$19,"",AF68+AG68) -> 40 | AJ68: =IF(($A$8-$A68)<A$19,"",ROUND(100*(AH68/AI68),0)) -> 25 | AK68: =IF(($A$8-$A68)<(2*A$19),"",ROUND(IF(($A$8-$A68)=(2*A$19),AVERAGE(OFFSET(AJ68,0,0,A$19,1)),(((AK69*(A$19-1))+AJ68)/A$19)),0)) -> 24 | AL68: 5 | AM68: 10 | AN68: 20 | AO68: 30 | AP68: 50 | AQ68: 70 | AR68: 90 | AS68: 0 | AT68: 0
A69: 37 | B69: =OFFSET(InputPriceData!B$10,CalculationsAndCharts!$A69+$A$11,0,1,1) -> 2011-10-10 | C69: =OFFSET(InputPriceData!G$10,CalculationsAndCharts!$A69+$A$11,0,1,1) -> 1708582000 | D69: =OFFSET(InputPriceData!C$10,CalculationsAndCharts!$A69+$A$11,0,1,1) -> 2241.17 | E69: =OFFSET(InputPriceData!D$10,CalculationsAndCharts!$A69+$A$11,0,1,1) -> 2371.94 | F69: =OFFSET(InputPriceData!E$10,CalculationsAndCharts!$A69+$A$11,0,1,1) -> 2237.48 | G69: =OFFSET(InputPriceData!F$10,CalculationsAndCharts!$A69+$A$11,0,1,1) -> 2371.94 | H69: 169.18 | I69: 144.56 | J69: 0 | K69: =IF(($A$8-$A69)<A$17,"",IF(($A$8-$A69)=A$17,SUM(OFFSET($H69,0,0,A$17,1)),ROUND(TRUNC((K70-(K70/A$17)+$H69),3),2))) -> 501.97 | L69: =IF(($A$8-$A69)<A$17,"",IF(($A$8-$A69)=A$17,SUM(OFFSET($I69,0,0,A$17,1)),ROUND(TRUNC((L70-(L70/A$17)+$I69),3),2))) -> 176.05 | M69: =IF(($A$8-$A69)<A$17,"",IF(($A$8-$A69)=A$17,SUM(OFFSET($J69,0,0,A$17,1)),ROUND(TRUNC((M70-(M70/A$17)+$J69),3),2))) -> 81.93 | N69: =IF(($A$8-$A69)<A$17,"",ROUND((100*(L69/K69)),0)) -> 35 | O69: =IF(($A$8-$A69)<A$17,"",ROUND((100*(M69/K69)),0)) -> 16 | P69: =IF(($A$8-$A69)<A$17,"",ABS(N69-O69)) -> 19 | Q69: =IF(($A$8-$A69)<A$17,"",N69+O69) -> 51 | R69: =IF(($A$8-$A69)<A$17,"",ROUND(100*(P69/Q69),0)) -> 37 | S69: =IF(($A$8-$A69)<(2*A$17),"",ROUND(IF(($A$8-$A69)=(2*A$17),AVERAGE(OFFSET(R69,0,0,A$17,1)),(((S70*(A$17-1))+R69)/A$17)),0)) -> 38 | T69: =IF(($A$8-$A69)<A$18,"",IF(($A$8-$A69)=A$18,SUM(OFFSET($H69,0,0,A$18,1)),ROUND(TRUNC((T70-(T70/A$18)+$H69),3),2))) -> 653.9 | U69: =IF(($A$8-$A69)<A$18,"",IF(($A$8-$A69)=A$18,SUM(OFFSET($I69,0,0,A$18,1)),ROUND(TRUNC((U70-(U70/A$18)+$I69),3),2))) -> 200.73 | V69: =IF(($A$8-$A69)<A$18,"",IF(($A$8-$A69)=A$18,SUM(OFFSET($J69,0,0,A$18,1)),ROUND(TRUNC((V70-(V70/A$18)+$J69),3),2))) -> 110.56 | W69: =IF(($A$8-$A69)<A$18,"",ROUND((100*(U69/T69)),0)) -> 31 | X69: =IF(($A$8-$A69)<A$18,"",ROUND((100*(V69/T69)),0)) -> 17 | Y69: =IF(($A$8-$A69)<A$18,"",ABS(W69-X69)) -> 14 | Z69: =IF(($A$8-$A69)<A$18,"",W69+X69) -> 48 | AA69: =IF(($A$8-$A69)<A$18,"",ROUND(100*(Y69/Z69),0)) -> 29 | AB69: =IF(($A$8-$A69)<(2*A$18),"",ROUND(IF(($A$8-$A69)=(2*A$18),AVERAGE(OFFSET(AA69,0,0,A$18,1)),(((AB70*(A$18-1))+AA69)/A$18)),0)) -> 28 | AC69: =IF(($A$8-$A69)<A$19,"",IF(($A$8-$A69)=A$19,SUM(OFFSET($H69,0,0,A$19,1)),ROUND(TRUNC((AC70-(AC70/A$19)+$H69),3),2))) -> 796.66 | AD69: =IF(($A$8-$A69)<A$19,"",IF(($A$8-$A69)=A$19,SUM(OFFSET($I69,0,0,A$19,1)),ROUND(TRUNC((AD70-(AD70/A$19)+$I69),3),2))) -> 225.22 | AE69: =IF(($A$8-$A69)<A$19,"",IF(($A$8-$A69)=A$19,SUM(OFFSET($J69,0,0,A$19,1)),ROUND(TRUNC((AE70-(AE70/A$19)+$J69),3),2))) -> 140.24 | AF69: =IF(($A$8-$A69)<A$19,"",ROUND((100*(AD69/AC69)),0)) -> 28 | AG69: =IF(($A$8-$A69)<A$19,"",ROUND((100*(AE69/AC69)),0)) -> 18 | AH69: =IF(($A$8-$A69)<A$19,"",ABS(AF69-AG69)) -> 10 | AI69: =IF(($A$8-$A69)<A$19,"",AF69+AG69) -> 46 | AJ69: =IF(($A$8-$A69)<A$19,"",ROUND(100*(AH69/AI69),0)) -> 22 | AK69: =IF(($A$8-$A69)<(2*A$19),"",ROUND(IF(($A$8-$A69)=(2*A$19),AVERAGE(OFFSET(AJ69,0,0,A$19,1)),(((AK70*(A$19-1))+AJ69)/A$19)),0)) -> 24 | AL69: 5 | AM69: 10 | AN69: 20 | AO69: 30 | AP69: 50 | AQ69: 70 | AR69: 90 | AS69: 0 | AT69: 0
A70: 38 | B70: =OFFSET(InputPriceData!B$10,CalculationsAndCharts!$A70+$A$11,0,1,1) -> 2011-10-03 | C70: =OFFSET(InputPriceData!G$10,CalculationsAndCharts!$A70+$A$11,0,1,1) -> 2479014000 | D70: =OFFSET(InputPriceData!C$10,CalculationsAndCharts!$A70+$A$11,0,1,1) -> 2128.02 | E70: =OFFSET(InputPriceData!D$10,CalculationsAndCharts!$A70+$A$11,0,1,1) -> 2227.38 | F70: =OFFSET(InputPriceData!E$10,CalculationsAndCharts!$A70+$A$11,0,1,1) -> 2042.9 | G70: =OFFSET(InputPriceData!F$10,CalculationsAndCharts!$A70+$A$11,0,1,1) -> 2202.76 | H70: 184.48 | I70: 0 | J70: 96.27 | K70: =IF(($A$8-$A70)<A$17,"",IF(($A$8-$A70)=A$17,SUM(OFFSET($H70,0,0,A$17,1)),ROUND(TRUNC((K71-(K71/A$17)+$H70),3),2))) -> 499.18 | L70: =IF(($A$8-$A70)<A$17,"",IF(($A$8-$A70)=A$17,SUM(OFFSET($I70,0,0,A$17,1)),ROUND(TRUNC((L71-(L71/A$17)+$I70),3),2))) -> 47.23 | M70: =IF(($A$8-$A70)<A$17,"",IF(($A$8-$A70)=A$17,SUM(OFFSET($J70,0,0,A$17,1)),ROUND(TRUNC((M71-(M71/A$17)+$J70),3),2))) -> 122.9 | N70: =IF(($A$8-$A70)<A$17,"",ROUND((100*(L70/K70)),0)) -> 9 | O70: =IF(($A$8-$A70)<A$17,"",ROUND((100*(M70/K70)),0)) -> 25 | P70: =IF(($A$8-$A70)<A$17,"",ABS(N70-O70)) -> 16 | Q70: =IF(($A$8-$A70)<A$17,"",N70+O70) -> 34 | R70: =IF(($A$8-$A70)<A$17,"",ROUND(100*(P70/Q70),0)) -> 47 | S70: =IF(($A$8-$A70)<(2*A$17),"",ROUND(IF(($A$8-$A70)=(2*A$17),AVERAGE(OFFSET(R70,0,0,A$17,1)),(((S71*(A$17-1))+R70)/A$17)),0)) -> 38 | T70: =IF(($A$8-$A70)<A$18,"",IF(($A$8-$A70)=A$18,SUM(OFFSET($H70,0,0,A$18,1)),ROUND(TRUNC((T71-(T71/A$18)+$H70),3),2))) -> 646.29 | U70: =IF(($A$8-$A70)<A$18,"",IF(($A$8-$A70)=A$18,SUM(OFFSET($I70,0,0,A$18,1)),ROUND(TRUNC((U71-(U71/A$18)+$I70),3),2))) -> 74.89 | V70: =IF(($A$8-$A70)<A$18,"",IF(($A$8-$A70)=A$18,SUM(OFFSET($J70,0,0,A$18,1)),ROUND(TRUNC((V71-(V71/A$18)+$J70),3),2))) -> 147.41 | W70: =IF(($A$8-$A70)<A$18,"",ROUND((100*(U70/T70)),0)) -> 12 | X70: =IF(($A$8-$A70)<A$18,"",ROUND((100*(V70/T70)),0)) -> 23 | Y70: =IF(($A$8-$A70)<A$18,"",ABS(W70-X70)) -> 11 | Z70: =IF(($A$8-$A70)<A$18,"",W70+X70) -> 35 | AA70: =IF(($A$8-$A70)<A$18,"",ROUND(100*(Y70/Z70),0)) -> 31 | AB70: =IF(($A$8-$A70)<(2*A$18),"",ROUND(IF(($A$8-$A70)=(2*A$18),AVERAGE(OFFSET(AA70,0,0,A$18,1)),(((AB71*(A$18-1))+AA70)/A$18)),0)) -> 28 | AC70: =IF(($A$8-$A70)<A$19,"",IF(($A$8-$A70)=A$19,SUM(OFFSET($H70,0,0,A$19,1)),ROUND(TRUNC((AC71-(AC71/A$19)+$H70),3),2))) -> 784.35 | AD70: =IF(($A$8-$A70)<A$19,"",IF(($A$8-$A70)=A$19,SUM(OFFSET($I70,0,0,A$19,1)),ROUND(TRUNC((AD71-(AD71/A$19)+$I70),3),2))) -> 100.82 | AE70: =IF(($A$8-$A70)<A$19,"",IF(($A$8-$A70)=A$19,SUM(OFFSET($J70,0,0,A$19,1)),ROUND(TRUNC((AE71-(AE71/A$19)+$J70),3),2))) -> 175.3 | AF70: =IF(($A$8-$A70)<A$19,"",ROUND((100*(AD70/AC70)),0)) -> 13 | AG70: =IF(($A$8-$A70)<A$19,"",ROUND((100*(AE70/AC70)),0)) -> 22 | AH70: =IF(($A$8-$A70)<A$19,"",ABS(AF70-AG70)) -> 9 | AI70: =IF(($A$8-$A70)<A$19,"",AF70+AG70) -> 35 | AJ70: =IF(($A$8-$A70)<A$19,"",ROUND(100*(AH70/AI70),0)) -> 26 | AK70: =IF(($A$8-$A70)<(2*A$19),"",ROUND(IF(($A$8-$A70)=(2*A$19),AVERAGE(OFFSET(AJ70,0,0,A$19,1)),(((AK71*(A$19-1))+AJ70)/A$19)),0)) -> 24 | AL70: 5 | AM70: 10 | AN70: 20 | AO70: 30 | AP70: 50 | AQ70: 70 | AR70: 90 | AS70: 0 | AT70: 0
A71: 39 | B71: =OFFSET(InputPriceData!B$10,CalculationsAndCharts!$A71+$A$11,0,1,1) -> 2011-09-26 | C71: =OFFSET(InputPriceData!G$10,CalculationsAndCharts!$A71+$A$11,0,1,1) -> 2067876000 | D71: =OFFSET(InputPriceData!C$10,CalculationsAndCharts!$A71+$A$11,0,1,1) -> 2216.66 | E71: =OFFSET(InputPriceData!D$10,CalculationsAndCharts!$A71+$A$11,0,1,1) -> 2290.71 | F71: =OFFSET(InputPriceData!E$10,CalculationsAndCharts!$A71+$A$11,0,1,1) -> 2139.17 | G71: =OFFSET(InputPriceData!F$10,CalculationsAndCharts!$A71+$A$11,0,1,1) -> 2139.18 | H71: 151.54 | I71: 0 | J71: 12.31 | K71: =IF(($A$8-$A71)<A$17,"",IF(($A$8-$A71)=A$17,SUM(OFFSET($H71,0,0,A$17,1)),ROUND(TRUNC((K72-(K72/A$17)+$H71),3),2))) -> 472.05 | L71: =IF(($A$8-$A71)<A$17,"",IF(($A$8-$A71)=A$17,SUM(OFFSET($I71,0,0,A$17,1)),ROUND(TRUNC((L72-(L72/A$17)+$I71),3),2))) -> 70.84 | M71: =IF(($A$8-$A71)<A$17,"",IF(($A$8-$A71)=A$17,SUM(OFFSET($J71,0,0,A$17,1)),ROUND(TRUNC((M72-(M72/A$17)+$J71),3),2))) -> 39.94 | N71: =IF(($A$8-$A71)<A$17,"",ROUND((100*(L71/K71)),0)) -> 15 | O71: =IF(($A$8-$A71)<A$17,"",ROUND((100*(M71/K71)),0)) -> 8 | P71: =IF(($A$8-$A71)<A$17,"",ABS(N71-O71)) -> 7 | Q71: =IF(($A$8-$A71)<A$17,"",N71+O71) -> 23 | R71: =IF(($A$8-$A71)<A$17,"",ROUND(100*(P71/Q71),0)) -> 30 | S71: =IF(($A$8-$A71)<(2*A$17),"",ROUND(IF(($A$8-$A71)=(2*A$17),AVERAGE(OFFSET(R71,0,0,A$17,1)),(((S72*(A$17-1))+R71)/A$17)),0)) -> 34 | T71: =IF(($A$8-$A71)<A$18,"",IF(($A$8-$A71)=A$18,SUM(OFFSET($H71,0,0,A$18,1)),ROUND(TRUNC((T72-(T72/A$18)+$H71),3),2))) -> 615.74 | U71: =IF(($A$8-$A71)<A$18,"",IF(($A$8-$A71)=A$18,SUM(OFFSET($I71,0,0,A$18,1)),ROUND(TRUNC((U72-(U72/A$18)+$I71),3),2))) -> 99.85 | V71: =IF(($A$8-$A71)<A$18,"",IF(($A$8-$A71)=A$18,SUM(OFFSET($J71,0,0,A$18,1)),ROUND(TRUNC((V72-(V72/A$18)+$J71),3),2))) -> 68.19 | W71: =IF(($A$8-$A71)<A$18,"",ROUND((100*(U71/T71)),0)) -> 16 | X71: =IF(($A$8-$A71)<A$18,"",ROUND((100*(V71/T71)),0)) -> 11 | Y71: =IF(($A$8-$A71)<A$18,"",ABS(W71-X71)) -> 5 | Z71: =IF(($A$8-$A71)<A$18,"",W71+X71) -> 27 | AA71: =IF(($A$8-$A71)<A$18,"",ROUND(100*(Y71/Z71),0)) -> 19 | AB71: =IF(($A$8-$A71)<(2*A$18),"",ROUND(IF(($A$8-$A71)=(2*A$18),AVERAGE(OFFSET(AA71,0,0,A$18,1)),(((AB72*(A$18-1))+AA71)/A$18)),0)) -> 27 | AC71: =IF(($A$8-$A71)<A$19,"",IF(($A$8-$A71)=A$19,SUM(OFFSET($H71,0,0,A$19,1)),ROUND(TRUNC((AC72-(AC72/A$19)+$H71),3),2))) -> 749.84 | AD71: =IF(($A$8-$A71)<A$19,"",IF(($A$8-$A71)=A$19,SUM(OFFSET($I71,0,0,A$19,1)),ROUND(TRUNC((AD72-(AD72/A$19)+$I71),3),2))) -> 126.02 | AE71: =IF(($A$8-$A71)<A$19,"",IF(($A$8-$A71)=A$19,SUM(OFFSET($J71,0,0,A$19,1)),ROUND(TRUNC((AE72-(AE72/A$19)+$J71),3),2))) -> 98.79 | AF71: =IF(($A$8-$A71)<A$19,"",ROUND((100*(AD71/AC71)),0)) -> 17 | AG71: =IF(($A$8-$A71)<A$19,"",ROUND((100*(AE71/AC71)),0)) -> 13 | AH71: =IF(($A$8-$A71)<A$19,"",ABS(AF71-AG71)) -> 4 | AI71: =IF(($A$8-$A71)<A$19,"",AF71+AG71) -> 30 | AJ71: =IF(($A$8-$A71)<A$19,"",ROUND(100*(AH71/AI71),0)) -> 13 | AK71: =IF(($A$8-$A71)<(2*A$19),"",ROUND(IF(($A$8-$A71)=(2*A$19),AVERAGE(OFFSET(AJ71,0,0,A$19,1)),(((AK72*(A$19-1))+AJ71)/A$19)),0)) -> 23 | AL71: 5 | AM71: 10 | AN71: 20 | AO71: 30 | AP71: 50 | AQ71: 70 | AR71: 90 | AS71: 0 | AT71: 0
A72: 40 | B72: =OFFSET(InputPriceData!B$10,CalculationsAndCharts!$A72+$A$11,0,1,1) -> 2011-09-19 | C72: =OFFSET(InputPriceData!G$10,CalculationsAndCharts!$A72+$A$11,0,1,1) -> 2174664000 | D72: =OFFSET(InputPriceData!C$10,CalculationsAndCharts!$A72+$A$11,0,1,1) -> 2277.64 | E72: =OFFSET(InputPriceData!D$10,CalculationsAndCharts!$A72+$A$11,0,1,1) -> 2337.7 | F72: =OFFSET(InputPriceData!E$10,CalculationsAndCharts!$A72+$A$11,0,1,1) -> 2151.48 | G72: =OFFSET(InputPriceData!F$10,CalculationsAndCharts!$A72+$A$11,0,1,1) -> 2206.86 | H72: 186.22 | I72: 28.74 | J72: 0 | K72: =IF(($A$8-$A72)<A$17,"",IF(($A$8-$A72)=A$17,SUM(OFFSET($H72,0,0,A$17,1)),ROUND(TRUNC((K73-(K73/A$17)+$H72),3),2))) -> 480.76 | L72: =IF(($A$8-$A72)<A$17,"",IF(($A$8-$A72)=A$17,SUM(OFFSET($I72,0,0,A$17,1)),ROUND(TRUNC((L73-(L73/A$17)+$I72),3),2))) -> 106.26 | M72: =IF(($A$8-$A72)<A$17,"",IF(($A$8-$A72)=A$17,SUM(OFFSET($J72,0,0,A$17,1)),ROUND(TRUNC((M73-(M73/A$17)+$J72),3),2))) -> 41.45 | N72: =IF(($A$8-$A72)<A$17,"",ROUND((100*(L72/K72)),0)) -> 22 | O72: =IF(($A$8-$A72)<A$17,"",ROUND((100*(M72/K72)),0)) -> 9 | P72: =IF(($A$8-$A72)<A$17,"",ABS(N72-O72)) -> 13 | Q72: =IF(($A$8-$A72)<A$17,"",N72+O72) -> 31 | R72: =IF(($A$8-$A72)<A$17,"",ROUND(100*(P72/Q72),0)) -> 42 | S72: =IF(($A$8-$A72)<(2*A$17),"",ROUND(IF(($A$8-$A72)=(2*A$17),AVERAGE(OFFSET(R72,0,0,A$17,1)),(((S73*(A$17-1))+R72)/A$17)),0)) -> 36 | T72: =IF(($A$8-$A72)<A$18,"",IF(($A$8-$A72)=A$18,SUM(OFFSET($H72,0,0,A$18,1)),ROUND(TRUNC((T73-(T73/A$18)+$H72),3),2))) -> 618.93 | U72: =IF(($A$8-$A72)<A$18,"",IF(($A$8-$A72)=A$18,SUM(OFFSET($I72,0,0,A$18,1)),ROUND(TRUNC((U73-(U73/A$18)+$I72),3),2))) -> 133.13 | V72: =IF(($A$8-$A72)<A$18,"",IF(($A$8-$A72)=A$18,SUM(OFFSET($J72,0,0,A$18,1)),ROUND(TRUNC((V73-(V73/A$18)+$J72),3),2))) -> 74.51 | W72: =IF(($A$8-$A72)<A$18,"",ROUND((100*(U72/T72)),0)) -> 22 | X72: =IF(($A$8-$A72)<A$18,"",ROUND((100*(V72/T72)),0)) -> 12 | Y72: =IF(($A$8-$A72)<A$18,"",ABS(W72-X72)) -> 10 | Z72: =IF(($A$8-$A72)<A$18,"",W72+X72) -> 34 | AA72: =IF(($A$8-$A72)<A$18,"",ROUND(100*(Y72/Z72),0)) -> 29 | AB72: =IF(($A$8-$A72)<(2*A$18),"",ROUND(IF(($A$8-$A72)=(2*A$18),AVERAGE(OFFSET(AA72,0,0,A$18,1)),(((AB73*(A$18-1))+AA72)/A$18)),0)) -> 29 | AC72: =IF(($A$8-$A72)<A$19,"",IF(($A$8-$A72)=A$19,SUM(OFFSET($H72,0,0,A$19,1)),ROUND(TRUNC((AC73-(AC73/A$19)+$H72),3),2))) -> 747.87 | AD72: =IF(($A$8-$A72)<A$19,"",IF(($A$8-$A72)=A$19,SUM(OFFSET($I72,0,0,A$19,1)),ROUND(TRUNC((AD73-(AD73/A$19)+$I72),3),2))) -> 157.52 | AE72: =IF(($A$8-$A72)<A$19,"",IF(($A$8-$A72)=A$19,SUM(OFFSET($J72,0,0,A$19,1)),ROUND(TRUNC((AE73-(AE73/A$19)+$J72),3),2))) -> 108.1 | AF72: =IF(($A$8-$A72)<A$19,"",ROUND((100*(AD72/AC72)),0)) -> 21 | AG72: =IF(($A$8-$A72)<A$19,"",ROUND((100*(AE72/AC72)),0)) -> 14 | AH72: =IF(($A$8-$A72)<A$19,"",ABS(AF72-AG72)) -> 7 | AI72: =IF(($A$8-$A72)<A$19,"",AF72+AG72) -> 35 | AJ72: =IF(($A$8-$A72)<A$19,"",ROUND(100*(AH72/AI72),0)) -> 20 | AK72: =IF(($A$8-$A72)<(2*A$19),"",ROUND(IF(($A$8-$A72)=(2*A$19),AVERAGE(OFFSET(AJ72,0,0,A$19,1)),(((AK73*(A$19-1))+AJ72)/A$19)),0)) -> 25 | AL72: 5 | AM72: 10 | AN72: 20 | AO72: 30 | AP72: 50 | AQ72: 70 | AR72: 90 | AS72: 0 | AT72: 0
A73: 41 | B73: =OFFSET(InputPriceData!B$10,CalculationsAndCharts!$A73+$A$11,0,1,1) -> 2011-09-12 | C73: =OFFSET(InputPriceData!G$10,CalculationsAndCharts!$A73+$A$11,0,1,1) -> 2181394000 | D73: =OFFSET(InputPriceData!C$10,CalculationsAndCharts!$A73+$A$11,0,1,1) -> 2145.78 | E73: =OFFSET(InputPriceData!D$10,CalculationsAndCharts!$A73+$A$11,0,1,1) -> 2308.96 | F73: =OFFSET(InputPriceData!E$10,CalculationsAndCharts!$A73+$A$11,0,1,1) -> 2139.58 | G73: =OFFSET(InputPriceData!F$10,CalculationsAndCharts!$A73+$A$11,0,1,1) -> 2306.09 | H73: 169.38 | I73: 64.45 | J73: 0 | K73: =IF(($A$8-$A73)<A$17,"",IF(($A$8-$A73)=A$17,SUM(OFFSET($H73,0,0,A$17,1)),ROUND(TRUNC((K74-(K74/A$17)+$H73),3),2))) -> 441.81 | L73: =IF(($A$8-$A73)<A$17,"",IF(($A$8-$A73)=A$17,SUM(OFFSET($I73,0,0,A$17,1)),ROUND(TRUNC((L74-(L74/A$17)+$I73),3),2))) -> 116.28 | M73: =IF(($A$8-$A73)<A$17,"",IF(($A$8-$A73)=A$17,SUM(OFFSET($J73,0,0,A$17,1)),ROUND(TRUNC((M74-(M74/A$17)+$J73),3),2))) -> 62.17 | N73: =IF(($A$8-$A73)<A$17,"",ROUND((100*(L73/K73)),0)) -> 26 | O73: =IF(($A$8-$A73)<A$17,"",ROUND((100*(M73/K73)),0)) -> 14 | P73: =IF(($A$8-$A73)<A$17,"",ABS(N73-O73)) -> 12 | Q73: =IF(($A$8-$A73)<A$17,"",N73+O73) -> 40 | R73: =IF(($A$8-$A73)<A$17,"",ROUND(100*(P73/Q73),0)) -> 30 | S73: =IF(($A$8-$A73)<(2*A$17),"",ROUND(IF(($A$8-$A73)=(2*A$17),AVERAGE(OFFSET(R73,0,0,A$17,1)),(((S74*(A$17-1))+R73)/A$17)),0)) -> 33 | T73: =IF(($A$8-$A73)<A$18,"",IF(($A$8-$A73)=A$18,SUM(OFFSET($H73,0,0,A$18,1)),ROUND(TRUNC((T74-(T74/A$18)+$H73),3),2))) -> 576.95 | U73: =IF(($A$8-$A73)<A$18,"",IF(($A$8-$A73)=A$18,SUM(OFFSET($I73,0,0,A$18,1)),ROUND(TRUNC((U74-(U74/A$18)+$I73),3),2))) -> 139.19 | V73: =IF(($A$8-$A73)<A$18,"",IF(($A$8-$A73)=A$18,SUM(OFFSET($J73,0,0,A$18,1)),ROUND(TRUNC((V74-(V74/A$18)+$J73),3),2))) -> 99.35 | W73: =IF(($A$8-$A73)<A$18,"",ROUND((100*(U73/T73)),0)) -> 24 | X73: =IF(($A$8-$A73)<A$18,"",ROUND((100*(V73/T73)),0)) -> 17 | Y73: =IF(($A$8-$A73)<A$18,"",ABS(W73-X73)) -> 7 | Z73: =IF(($A$8-$A73)<A$18,"",W73+X73) -> 41 | AA73: =IF(($A$8-$A73)<A$18,"",ROUND(100*(Y73/Z73),0)) -> 17 | AB73: =IF(($A$8-$A73)<(2*A$18),"",ROUND(IF(($A$8-$A73)=(2*A$18),AVERAGE(OFFSET(AA73,0,0,A$18,1)),(((AB74*(A$18-1))+AA73)/A$18)),0)) -> 29 | AC73: =IF(($A$8-$A73)<A$19,"",IF(($A$8-$A73)=A$19,SUM(OFFSET($H73,0,0,A$19,1)),ROUND(TRUNC((AC74-(AC74/A$19)+$H73),3),2))) -> 702.06 | AD73: =IF(($A$8-$A73)<A$19,"",IF(($A$8-$A73)=A$19,SUM(OFFSET($I73,0,0,A$19,1)),ROUND(TRUNC((AD74-(AD74/A$19)+$I73),3),2))) -> 160.98 | AE73: =IF(($A$8-$A73)<A$19,"",IF(($A$8-$A73)=A$19,SUM(OFFSET($J73,0,0,A$19,1)),ROUND(TRUNC((AE74-(AE74/A$19)+$J73),3),2))) -> 135.12 | AF73: =IF(($A$8-$A73)<A$19,"",ROUND((100*(AD73/AC73)),0)) -> 23 | AG73: =IF(($A$8-$A73)<A$19,"",ROUND((100*(AE73/AC73)),0)) -> 19 | AH73: =IF(($A$8-$A73)<A$19,"",ABS(AF73-AG73)) -> 4 | AI73: =IF(($A$8-$A73)<A$19,"",AF73+AG73) -> 42 | AJ73: =IF(($A$8-$A73)<A$19,"",ROUND(100*(AH73/AI73),0)) -> 10 | AK73: =IF(($A$8-$A73)<(2*A$19),"",ROUND(IF(($A$8-$A73)=(2*A$19),AVERAGE(OFFSET(AJ73,0,0,A$19,1)),(((AK74*(A$19-1))+AJ73)/A$19)),0)) -> 26 | AL73: 5 | AM73: 10 | AN73: 20 | AO73: 30 | AP73: 50 | AQ73: 70 | AR73: 90 | AS73: =IF($A73=$B$27,AS$32,0) -> 0 | AT73: 0
A74: 42 | B74: =OFFSET(InputPriceData!B$10,CalculationsAndCharts!$A74+$A$11,0,1,1) -> 2011-09-06 | C74: =OFFSET(InputPriceData!G$10,CalculationsAndCharts!$A74+$A$11,0,1,1) -> 1890707500 | D74: =OFFSET(InputPriceData!C$10,CalculationsAndCharts!$A74+$A$11,0,1,1) -> 2116.48 | E74: =OFFSET(InputPriceData!D$10,CalculationsAndCharts!$A74+$A$11,0,1,1) -> 2244.51 | F74: =OFFSET(InputPriceData!E$10,CalculationsAndCharts!$A74+$A$11,0,1,1) -> 2112.84 | G74: =OFFSET(InputPriceData!F$10,CalculationsAndCharts!$A74+$A$11,0,1,1) -> 2163.66 | H74: 131.67 | I74: 0 | J74: 44.15 | K74: =IF(($A$8-$A74)<A$17,"",IF(($A$8-$A74)=A$17,SUM(OFFSET($H74,0,0,A$17,1)),ROUND(TRUNC((K75-(K75/A$17)+$H74),3),2))) -> 408.65 | L74: =IF(($A$8-$A74)<A$17,"",IF(($A$8-$A74)=A$17,SUM(OFFSET($I74,0,0,A$17,1)),ROUND(TRUNC((L75-(L75/A$17)+$I74),3),2))) -> 77.74 | M74: =IF(($A$8-$A74)<A$17,"",IF(($A$8-$A74)=A$17,SUM(OFFSET($J74,0,0,A$17,1)),ROUND(TRUNC((M75-(M75/A$17)+$J74),3),2))) -> 93.26 | N74: =IF(($A$8-$A74)<A$17,"",ROUND((100*(L74/K74)),0)) -> 19 | O74: =IF(($A$8-$A74)<A$17,"",ROUND((100*(M74/K74)),0)) -> 23 | P74: =IF(($A$8-$A74)<A$17,"",ABS(N74-O74)) -> 4 | Q74: =IF(($A$8-$A74)<A$17,"",N74+O74) -> 42 | R74: =IF(($A$8-$A74)<A$17,"",ROUND(100*(P74/Q74),0)) -> 10 | S74: =IF(($A$8-$A74)<(2*A$17),"",ROUND(IF(($A$8-$A74)=(2*A$17),AVERAGE(OFFSET(R74,0,0,A$17,1)),(((S75*(A$17-1))+R74)/A$17)),0)) -> 35 | T74: =IF(($A$8-$A74)<A$18,"",IF(($A$8-$A74)=A$18,SUM(OFFSET($H74,0,0,A$18,1)),ROUND(TRUNC((T75-(T75/A$18)+$H74),3),2))) -> 543.43 | U74: =IF(($A$8-$A74)<A$18,"",IF(($A$8-$A74)=A$18,SUM(OFFSET($I74,0,0,A$18,1)),ROUND(TRUNC((U75-(U75/A$18)+$I74),3),2))) -> 99.65 | V74: =IF(($A$8-$A74)<A$18,"",IF(($A$8-$A74)=A$18,SUM(OFFSET($J74,0,0,A$18,1)),ROUND(TRUNC((V75-(V75/A$18)+$J74),3),2))) -> 132.46 | W74: =IF(($A$8-$A74)<A$18,"",ROUND((100*(U74/T74)),0)) -> 18 | X74: =IF(($A$8-$A74)<A$18,"",ROUND((100*(V74/T74)),0)) -> 24 | Y74: =IF(($A$8-$A74)<A$18,"",ABS(W74-X74)) -> 6 | Z74: =IF(($A$8-$A74)<A$18,"",W74+X74) -> 42 | AA74: =IF(($A$8-$A74)<A$18,"",ROUND(100*(Y74/Z74),0)) -> 14 | AB74: =IF(($A$8-$A74)<(2*A$18),"",ROUND(IF(($A$8-$A74)=(2*A$18),AVERAGE(OFFSET(AA74,0,0,A$18,1)),(((AB75*(A$18-1))+AA74)/A$18)),0)) -> 33 | AC74: =IF(($A$8-$A74)<A$19,"",IF(($A$8-$A74)=A$19,SUM(OFFSET($H74,0,0,A$19,1)),ROUND(TRUNC((AC75-(AC75/A$19)+$H74),3),2))) -> 665.85 | AD74: =IF(($A$8-$A74)<A$19,"",IF(($A$8-$A74)=A$19,SUM(OFFSET($I74,0,0,A$19,1)),ROUND(TRUNC((AD75-(AD75/A$19)+$I74),3),2))) -> 120.66 | AE74: =IF(($A$8-$A74)<A$19,"",IF(($A$8-$A74)=A$19,SUM(OFFSET($J74,0,0,A$19,1)),ROUND(TRUNC((AE75-(AE75/A$19)+$J74),3),2))) -> 168.9 | AF74: =IF(($A$8-$A74)<A$19,"",ROUND((100*(AD74/AC74)),0)) -> 18 | AG74: =IF(($A$8-$A74)<A$19,"",ROUND((100*(AE74/AC74)),0)) -> 25 | AH74: =IF(($A$8-$A74)<A$19,"",ABS(AF74-AG74)) -> 7 | AI74: =IF(($A$8-$A74)<A$19,"",AF74+AG74) -> 43 | AJ74: =IF(($A$8-$A74)<A$19,"",ROUND(100*(AH74/AI74),0)) -> 16 | AK74: =IF(($A$8-$A74)<(2*A$19),"",ROUND(IF(($A$8-$A74)=(2*A$19),AVERAGE(OFFSET(AJ74,0,0,A$19,1)),(((AK75*(A$19-1))+AJ74)/A$19)),0)) -> 30 | AL74: 5 | AM74: 10 | AN74: 20 | AO74: 30 | AP74: 50 | AQ74: 70 | AR74: 90 | AS74: 0 | AT74: 0
A75: 43 | B75: =OFFSET(InputPriceData!B$10,CalculationsAndCharts!$A75+$A$11,0,1,1) -> 2011-08-29 | C75: =OFFSET(InputPriceData!G$10,CalculationsAndCharts!$A75+$A$11,0,1,1) -> 1759354000 | D75: =OFFSET(InputPriceData!C$10,CalculationsAndCharts!$A75+$A$11,0,1,1) -> 2188.67 | E75: =OFFSET(InputPriceData!D$10,CalculationsAndCharts!$A75+$A$11,0,1,1) -> 2268.07 | F75: =OFFSET(InputPriceData!E$10,CalculationsAndCharts!$A75+$A$11,0,1,1) -> 2156.99 | G75: =OFFSET(InputPriceData!F$10,CalculationsAndCharts!$A75+$A$11,0,1,1) -> 2167.83 | H75: 111.08 | I75: 98.66 | J75: 0 | K75: =IF(($A$8-$A75)<A$17,"",IF(($A$8-$A75)=A$17,SUM(OFFSET($H75,0,0,A$17,1)),ROUND(TRUNC((K76-(K76/A$17)+$H75),3),2))) -> 415.47 | L75: =IF(($A$8-$A75)<A$17,"",IF(($A$8-$A75)=A$17,SUM(OFFSET($I75,0,0,A$17,1)),ROUND(TRUNC((L76-(L76/A$17)+$I75),3),2))) -> 116.61 | M75: =IF(($A$8-$A75)<A$17,"",IF(($A$8-$A75)=A$17,SUM(OFFSET($J75,0,0,A$17,1)),ROUND(TRUNC((M76-(M76/A$17)+$J75),3),2))) -> 73.66 | N75: =IF(($A$8-$A75)<A$17,"",ROUND((100*(L75/K75)),0)) -> 28 | O75: =IF(($A$8-$A75)<A$17,"",ROUND((100*(M75/K75)),0)) -> 18 | P75: =IF(($A$8-$A75)<A$17,"",ABS(N75-O75)) -> 10 | Q75: =IF(($A$8-$A75)<A$17,"",N75+O75) -> 46 | R75: =IF(($A$8-$A75)<A$17,"",ROUND(100*(P75/Q75),0)) -> 22 | S75: =IF(($A$8-$A75)<(2*A$17),"",ROUND(IF(($A$8-$A75)=(2*A$17),AVERAGE(OFFSET(R75,0,0,A$17,1)),(((S76*(A$17-1))+R75)/A$17)),0)) -> 48 | T75: =IF(($A$8-$A75)<A$18,"",IF(($A$8-$A75)=A$18,SUM(OFFSET($H75,0,0,A$18,1)),ROUND(TRUNC((T76-(T76/A$18)+$H75),3),2))) -> 549.01 | U75: =IF(($A$8-$A75)<A$18,"",IF(($A$8-$A75)=A$18,SUM(OFFSET($I75,0,0,A$18,1)),ROUND(TRUNC((U76-(U76/A$18)+$I75),3),2))) -> 132.87 | V75: =IF(($A$8-$A75)<A$18,"",IF(($A$8-$A75)=A$18,SUM(OFFSET($J75,0,0,A$18,1)),ROUND(TRUNC((V76-(V76/A$18)+$J75),3),2))) -> 117.74 | W75: =IF(($A$8-$A75)<A$18,"",ROUND((100*(U75/T75)),0)) -> 24 | X75: =IF(($A$8-$A75)<A$18,"",ROUND((100*(V75/T75)),0)) -> 21 | Y75: =IF(($A$8-$A75)<A$18,"",ABS(W75-X75)) -> 3 | Z75: =IF(($A$8-$A75)<A$18,"",W75+X75) -> 45 | AA75: =IF(($A$8-$A75)<A$18,"",ROUND(100*(Y75/Z75),0)) -> 7 | AB75: =IF(($A$8-$A75)<(2*A$18),"",ROUND(IF(($A$8-$A75)=(2*A$18),AVERAGE(OFFSET(AA75,0,0,A$18,1)),(((AB76*(A$18-1))+AA75)/A$18)),0)) -> 39 | AC75: =IF(($A$8-$A75)<A$19,"",IF(($A$8-$A75)=A$19,SUM(OFFSET($H75,0,0,A$19,1)),ROUND(TRUNC((AC76-(AC76/A$19)+$H75),3),2))) -> 667.72 | AD75: =IF(($A$8-$A75)<A$19,"",IF(($A$8-$A75)=A$19,SUM(OFFSET($I75,0,0,A$19,1)),ROUND(TRUNC((AD76-(AD76/A$19)+$I75),3),2))) -> 150.83 | AE75: =IF(($A$8-$A75)<A$19,"",IF(($A$8-$A75)=A$19,SUM(OFFSET($J75,0,0,A$19,1)),ROUND(TRUNC((AE76-(AE76/A$19)+$J75),3),2))) -> 155.94 | AF75: =IF(($A$8-$A75)<A$19,"",ROUND((100*(AD75/AC75)),0)) -> 23 | AG75: =IF(($A$8-$A75)<A$19,"",ROUND((100*(AE75/AC75)),0)) -> 23 | AH75: =IF(($A$8-$A75)<A$19,"",ABS(AF75-AG75)) -> 0 | AI75: =IF(($A$8-$A75)<A$19,"",AF75+AG75) -> 46 | AJ75: =IF(($A$8-$A75)<A$19,"",ROUND(100*(AH75/AI75),0)) -> 0 | AK75: =IF(($A$8-$A75)<(2*A$19),"",ROUND(IF(($A$8-$A75)=(2*A$19),AVERAGE(OFFSET(AJ75,0,0,A$19,1)),(((AK76*(A$19-1))+AJ75)/A$19)),0)) -> 34 | AL75: 5 | AM75: 10 | AN75: 20 | AO75: 30 | AP75: 50 | AQ75: 70 | AR75: 90 | AS75: 0 | AT75: 0
A76: 44 | B76: =OFFSET(InputPriceData!B$10,CalculationsAndCharts!$A76+$A$11,0,1,1) -> 2011-08-22 | C76: =OFFSET(InputPriceData!G$10,CalculationsAndCharts!$A76+$A$11,0,1,1) -> 1926900000 | D76: =OFFSET(InputPriceData!C$10,CalculationsAndCharts!$A76+$A$11,0,1,1) -> 2084.27 | E76: =OFFSET(InputPriceData!D$10,CalculationsAndCharts!$A76+$A$11,0,1,1) -> 2169.41 | F76: =OFFSET(InputPriceData!E$10,CalculationsAndCharts!$A76+$A$11,0,1,1) -> 2038.14 | G76: =OFFSET(InputPriceData!F$10,CalculationsAndCharts!$A76+$A$11,0,1,1) -> 2161.97 | H76: 131.27 | I76: 0 | J76: 0 | K76: =IF(($A$8-$A76)<A$17,"",IF(($A$8-$A76)=A$17,SUM(OFFSET($H76,0,0,A$17,1)),ROUND(TRUNC((K77-(K77/A$17)+$H76),3),2))) -> 456.58 | L76: =IF(($A$8-$A76)<A$17,"",IF(($A$8-$A76)=A$17,SUM(OFFSET($I76,0,0,A$17,1)),ROUND(TRUNC((L77-(L77/A$17)+$I76),3),2))) -> 26.92 | M76: =IF(($A$8-$A76)<A$17,"",IF(($A$8-$A76)=A$17,SUM(OFFSET($J76,0,0,A$17,1)),ROUND(TRUNC((M77-(M77/A$17)+$J76),3),2))) -> 110.49 | N76: =IF(($A$8-$A76)<A$17,"",ROUND((100*(L76/K76)),0)) -> 6 | O76: =IF(($A$8-$A76)<A$17,"",ROUND((100*(M76/K76)),0)) -> 24 | P76: =IF(($A$8-$A76)<A$17,"",ABS(N76-O76)) -> 18 | Q76: =IF(($A$8-$A76)<A$17,"",N76+O76) -> 30 | R76: =IF(($A$8-$A76)<A$17,"",ROUND(100*(P76/Q76),0)) -> 60 | S76: =IF(($A$8-$A76)<(2*A$17),"",ROUND(IF(($A$8-$A76)=(2*A$17),AVERAGE(OFFSET(R76,0,0,A$17,1)),(((S77*(A$17-1))+R76)/A$17)),0)) -> 61 | T76: =IF(($A$8-$A76)<A$18,"",IF(($A$8-$A76)=A$18,SUM(OFFSET($H76,0,0,A$18,1)),ROUND(TRUNC((T77-(T77/A$18)+$H76),3),2))) -> 583.9 | U76: =IF(($A$8-$A76)<A$18,"",IF(($A$8-$A76)=A$18,SUM(OFFSET($I76,0,0,A$18,1)),ROUND(TRUNC((U77-(U77/A$18)+$I76),3),2))) -> 45.61 | V76: =IF(($A$8-$A76)<A$18,"",IF(($A$8-$A76)=A$18,SUM(OFFSET($J76,0,0,A$18,1)),ROUND(TRUNC((V77-(V77/A$18)+$J76),3),2))) -> 156.99 | W76: =IF(($A$8-$A76)<A$18,"",ROUND((100*(U76/T76)),0)) -> 8 | X76: =IF(($A$8-$A76)<A$18,"",ROUND((100*(V76/T76)),0)) -> 27 | Y76: =IF(($A$8-$A76)<A$18,"",ABS(W76-X76)) -> 19 | Z76: =IF(($A$8-$A76)<A$18,"",W76+X76) -> 35 | AA76: =IF(($A$8-$A76)<A$18,"",ROUND(100*(Y76/Z76),0)) -> 54 | AB76: =IF(($A$8-$A76)<(2*A$18),"",ROUND(IF(($A$8-$A76)=(2*A$18),AVERAGE(OFFSET(AA76,0,0,A$18,1)),(((AB77*(A$18-1))+AA76)/A$18)),0)) -> 50 | AC76: =IF(($A$8-$A76)<A$19,"",IF(($A$8-$A76)=A$19,SUM(OFFSET($H76,0,0,A$19,1)),ROUND(TRUNC((AC77-(AC77/A$19)+$H76),3),2))) -> 695.8 | AD76: =IF(($A$8-$A76)<A$19,"",IF(($A$8-$A76)=A$19,SUM(OFFSET($I76,0,0,A$19,1)),ROUND(TRUNC((AD77-(AD77/A$19)+$I76),3),2))) -> 65.21 | AE76: =IF(($A$8-$A76)<A$19,"",IF(($A$8-$A76)=A$19,SUM(OFFSET($J76,0,0,A$19,1)),ROUND(TRUNC((AE77-(AE77/A$19)+$J76),3),2))) -> 194.93 | AF76: =IF(($A$8-$A76)<A$19,"",ROUND((100*(AD76/AC76)),0)) -> 9 | AG76: =IF(($A$8-$A76)<A$19,"",ROUND((100*(AE76/AC76)),0)) -> 28 | AH76: =IF(($A$8-$A76)<A$19,"",ABS(AF76-AG76)) -> 19 | AI76: =IF(($A$8-$A76)<A$19,"",AF76+AG76) -> 37 | AJ76: =IF(($A$8-$A76)<A$19,"",ROUND(100*(AH76/AI76),0)) -> 51 | AK76: =IF(($A$8-$A76)<(2*A$19),"",ROUND(IF(($A$8-$A76)=(2*A$19),AVERAGE(OFFSET(AJ76,0,0,A$19,1)),(((AK77*(A$19-1))+AJ76)/A$19)),0)) -> 42 | AL76: 5 | AM76: 10 | AN76: 20 | AO76: 30 | AP76: 50 | AQ76: 70 | AR76: 90 | AS76: 0 | AT76: 0
A77: 45 | B77: =OFFSET(InputPriceData!B$10,CalculationsAndCharts!$A77+$A$11,0,1,1) -> 2011-08-15 | C77: =OFFSET(InputPriceData!G$10,CalculationsAndCharts!$A77+$A$11,0,1,1) -> 2218884000 | D77: =OFFSET(InputPriceData!C$10,CalculationsAndCharts!$A77+$A$11,0,1,1) -> 2189.49 | E77: =OFFSET(InputPriceData!D$10,CalculationsAndCharts!$A77+$A$11,0,1,1) -> 2214.26 | F77: =OFFSET(InputPriceData!E$10,CalculationsAndCharts!$A77+$A$11,0,1,1) -> 2035.3 | G77: =OFFSET(InputPriceData!F$10,CalculationsAndCharts!$A77+$A$11,0,1,1) -> 2038.22 | H77: 178.96 | I77: 19.01 | J77: 0 | K77: =IF(($A$8-$A77)<A$17,"",IF(($A$8-$A77)=A$17,SUM(OFFSET($H77,0,0,A$17,1)),ROUND(TRUNC((K78-(K78/A$17)+$H77),3),2))) -> 487.97 | L77: =IF(($A$8-$A77)<A$17,"",IF(($A$8-$A77)=A$17,SUM(OFFSET($I77,0,0,A$17,1)),ROUND(TRUNC((L78-(L78/A$17)+$I77),3),2))) -> 40.38 | M77: =IF(($A$8-$A77)<A$17,"",IF(($A$8-$A77)=A$17,SUM(OFFSET($J77,0,0,A$17,1)),ROUND(TRUNC((M78-(M78/A$17)+$J77),3),2))) -> 165.73 | N77: =IF(($A$8-$A77)<A$17,"",ROUND((100*(L77/K77)),0)) -> 8 | O77: =IF(($A$8-$A77)<A$17,"",ROUND((100*(M77/K77)),0)) -> 34 | P77: =IF(($A$8-$A77)<A$17,"",ABS(N77-O77)) -> 26 | Q77: =IF(($A$8-$A77)<A$17,"",N77+O77) -> 42 | R77: =IF(($A$8-$A77)<A$17,"",ROUND(100*(P77/Q77),0)) -> 62 | S77: =IF(($A$8-$A77)<(2*A$17),"",ROUND(IF(($A$8-$A77)=(2*A$17),AVERAGE(OFFSET(R77,0,0,A$17,1)),(((S78*(A$17-1))+R77)/A$17)),0)) -> 61 | T77: =IF(($A$8-$A77)<A$18,"",IF(($A$8-$A77)=A$18,SUM(OFFSET($H77,0,0,A$18,1)),ROUND(TRUNC((T78-(T78/A$18)+$H77),3),2))) -> 603.51 | U77: =IF(($A$8-$A77)<A$18,"",IF(($A$8-$A77)=A$18,SUM(OFFSET($I77,0,0,A$18,1)),ROUND(TRUNC((U78-(U78/A$18)+$I77),3),2))) -> 60.81 | V77: =IF(($A$8-$A77)<A$18,"",IF(($A$8-$A77)=A$18,SUM(OFFSET($J77,0,0,A$18,1)),ROUND(TRUNC((V78-(V78/A$18)+$J77),3),2))) -> 209.32 | W77: =IF(($A$8-$A77)<A$18,"",ROUND((100*(U77/T77)),0)) -> 10 | X77: =IF(($A$8-$A77)<A$18,"",ROUND((100*(V77/T77)),0)) -> 35 | Y77: =IF(($A$8-$A77)<A$18,"",ABS(W77-X77)) -> 25 | Z77: =IF(($A$8-$A77)<A$18,"",W77+X77) -> 45 | AA77: =IF(($A$8-$A77)<A$18,"",ROUND(100*(Y77/Z77),0)) -> 56 | AB77: =IF(($A$8-$A77)<(2*A$18),"",ROUND(IF(($A$8-$A77)=(2*A$18),AVERAGE(OFFSET(AA77,0,0,A$18,1)),(((AB78*(A$18-1))+AA77)/A$18)),0)) -> 49 | AC77: =IF(($A$8-$A77)<A$19,"",IF(($A$8-$A77)=A$19,SUM(OFFSET($H77,0,0,A$19,1)),ROUND(TRUNC((AC78-(AC78/A$19)+$H77),3),2))) -> 705.66 | AD77: =IF(($A$8-$A77)<A$19,"",IF(($A$8-$A77)=A$19,SUM(OFFSET($I77,0,0,A$19,1)),ROUND(TRUNC((AD78-(AD78/A$19)+$I77),3),2))) -> 81.51 | AE77: =IF(($A$8-$A77)<A$19,"",IF(($A$8-$A77)=A$19,SUM(OFFSET($J77,0,0,A$19,1)),ROUND(TRUNC((AE78-(AE78/A$19)+$J77),3),2))) -> 243.66 | AF77: =IF(($A$8-$A77)<A$19,"",ROUND((100*(AD77/AC77)),0)) -> 12 | AG77: =IF(($A$8-$A77)<A$19,"",ROUND((100*(AE77/AC77)),0)) -> 35 | AH77: =IF(($A$8-$A77)<A$19,"",ABS(AF77-AG77)) -> 23 | AI77: =IF(($A$8-$A77)<A$19,"",AF77+AG77) -> 47 | AJ77: =IF(($A$8-$A77)<A$19,"",ROUND(100*(AH77/AI77),0)) -> 49 | AK77: =IF(($A$8-$A77)<(2*A$19),"",ROUND(IF(($A$8-$A77)=(2*A$19),AVERAGE(OFFSET(AJ77,0,0,A$19,1)),(((AK78*(A$19-1))+AJ77)/A$19)),0)) -> 40 | AL77: 5 | AM77: 10 | AN77: 20 | AO77: 30 | AP77: 50 | AQ77: 70 | AR77: 90 | AS77: 0 | AT77: 0
A78: 46 | B78: =OFFSET(InputPriceData!B$10,CalculationsAndCharts!$A78+$A$11,0,1,1) -> 2011-08-08 | C78: =OFFSET(InputPriceData!G$10,CalculationsAndCharts!$A78+$A$11,0,1,1) -> 3310932000 | D78: =OFFSET(InputPriceData!C$10,CalculationsAndCharts!$A78+$A$11,0,1,1) -> 2127.87 | E78: =OFFSET(InputPriceData!D$10,CalculationsAndCharts!$A78+$A$11,0,1,1) -> 2195.25 | F78: =OFFSET(InputPriceData!E$10,CalculationsAndCharts!$A78+$A$11,0,1,1) -> 2034.92 | G78: =OFFSET(InputPriceData!F$10,CalculationsAndCharts!$A78+$A$11,0,1,1) -> 2182.05 | H78: 160.33 | I78: 0 | J78: 96.6 | K78: =IF(($A$8-$A78)<A$17,"",IF(($A$8-$A78)=A$17,SUM(OFFSET($H78,0,0,A$17,1)),ROUND(TRUNC((K79-(K79/A$17)+$H78),3),2))) -> 463.52 | L78: =IF(($A$8-$A78)<A$17,"",IF(($A$8-$A78)=A$17,SUM(OFFSET($I78,0,0,A$17,1)),ROUND(TRUNC((L79-(L79/A$17)+$I78),3),2))) -> 32.05 | M78: =IF(($A$8-$A78)<A$17,"",IF(($A$8-$A78)=A$17,SUM(OFFSET($J78,0,0,A$17,1)),ROUND(TRUNC((M79-(M79/A$17)+$J78),3),2))) -> 248.59 | N78: =IF(($A$8-$A78)<A$17,"",ROUND((100*(L78/K78)),0)) -> 7 | O78: =IF(($A$8-$A78)<A$17,"",ROUND((100*(M78/K78)),0)) -> 54 | P78: =IF(($A$8-$A78)<A$17,"",ABS(N78-O78)) -> 47 | Q78: =IF(($A$8-$A78)<A$17,"",N78+O78) -> 61 | R78: =IF(($A$8-$A78)<A$17,"",ROUND(100*(P78/Q78),0)) -> 77 | S78: =IF(($A$8-$A78)<(2*A$17),"",ROUND(IF(($A$8-$A78)=(2*A$17),AVERAGE(OFFSET(R78,0,0,A$17,1)),(((S79*(A$17-1))+R78)/A$17)),0)) -> 60 | T78: =IF(($A$8-$A78)<A$18,"",IF(($A$8-$A78)=A$18,SUM(OFFSET($H78,0,0,A$18,1)),ROUND(TRUNC((T79-(T79/A$18)+$H78),3),2))) -> 566.07 | U78: =IF(($A$8-$A78)<A$18,"",IF(($A$8-$A78)=A$18,SUM(OFFSET($I78,0,0,A$18,1)),ROUND(TRUNC((U79-(U79/A$18)+$I78),3),2))) -> 55.73 | V78: =IF(($A$8-$A78)<A$18,"",IF(($A$8-$A78)=A$18,SUM(OFFSET($J78,0,0,A$18,1)),ROUND(TRUNC((V79-(V79/A$18)+$J78),3),2))) -> 279.09 | W78: =IF(($A$8-$A78)<A$18,"",ROUND((100*(U78/T78)),0)) -> 10 | X78: =IF(($A$8-$A78)<A$18,"",ROUND((100*(V78/T78)),0)) -> 49 | Y78: =IF(($A$8-$A78)<A$18,"",ABS(W78-X78)) -> 39 | Z78: =IF(($A$8-$A78)<A$18,"",W78+X78) -> 59 | AA78: =IF(($A$8-$A78)<A$18,"",ROUND(100*(Y78/Z78),0)) -> 66 | AB78: =IF(($A$8-$A78)<(2*A$18),"",ROUND(IF(($A$8-$A78)=(2*A$18),AVERAGE(OFFSET(AA78,0,0,A$18,1)),(((AB79*(A$18-1))+AA78)/A$18)),0)) -> 47 | AC78: =IF(($A$8-$A78)<A$19,"",IF(($A$8-$A78)=A$19,SUM(OFFSET($H78,0,0,A$19,1)),ROUND(TRUNC((AC79-(AC79/A$19)+$H78),3),2))) -> 658.38 | AD78: =IF(($A$8-$A78)<A$19,"",IF(($A$8-$A78)=A$19,SUM(OFFSET($I78,0,0,A$19,1)),ROUND(TRUNC((AD79-(AD79/A$19)+$I78),3),2))) -> 78.13 | AE78: =IF(($A$8-$A78)<A$19,"",IF(($A$8-$A78)=A$19,SUM(OFFSET($J78,0,0,A$19,1)),ROUND(TRUNC((AE79-(AE79/A$19)+$J78),3),2))) -> 304.57 | AF78: =IF(($A$8-$A78)<A$19,"",ROUND((100*(AD78/AC78)),0)) -> 12 | AG78: =IF(($A$8-$A78)<A$19,"",ROUND((100*(AE78/AC78)),0)) -> 46 | AH78: =IF(($A$8-$A78)<A$19,"",ABS(AF78-AG78)) -> 34 | AI78: =IF(($A$8-$A78)<A$19,"",AF78+AG78) -> 58 | AJ78: =IF(($A$8-$A78)<A$19,"",ROUND(100*(AH78/AI78),0)) -> 59 | AK78: =IF(($A$8-$A78)<(2*A$19),"",ROUND(IF(($A$8-$A78)=(2*A$19),AVERAGE(OFFSET(AJ78,0,0,A$19,1)),(((AK79*(A$19-1))+AJ78)/A$19)),0)) -> 38 | AL78: 5 | AM78: 10 | AN78: 20 | AO78: 30 | AP78: 50 | AQ78: 70 | AR78: 90 | AS78: 0 | AT78: 0
A79: 47 | B79: =OFFSET(InputPriceData!B$10,CalculationsAndCharts!$A79+$A$11,0,1,1) -> 2011-08-01 | C79: =OFFSET(InputPriceData!G$10,CalculationsAndCharts!$A79+$A$11,0,1,1) -> 2842298000 | D79: =OFFSET(InputPriceData!C$10,CalculationsAndCharts!$A79+$A$11,0,1,1) -> 2391.42 | E79: =OFFSET(InputPriceData!D$10,CalculationsAndCharts!$A79+$A$11,0,1,1) -> 2396.5 | F79: =OFFSET(InputPriceData!E$10,CalculationsAndCharts!$A79+$A$11,0,1,1) -> 2131.52 | G79: =OFFSET(InputPriceData!F$10,CalculationsAndCharts!$A79+$A$11,0,1,1) -> 2194.38 | H79: 264.98 | I79: 0 | J79: 210.3 | K79: =IF(($A$8-$A79)<A$17,"",IF(($A$8-$A79)=A$17,SUM(OFFSET($H79,0,0,A$17,1)),ROUND(TRUNC((K80-(K80/A$17)+$H79),3),2))) -> 454.79 | L79: =IF(($A$8-$A79)<A$17,"",IF(($A$8-$A79)=A$17,SUM(OFFSET($I79,0,0,A$17,1)),ROUND(TRUNC((L80-(L80/A$17)+$I79),3),2))) -> 48.07 | M79: =IF(($A$8-$A79)<A$17,"",IF(($A$8-$A79)=A$17,SUM(OFFSET($J79,0,0,A$17,1)),ROUND(TRUNC((M80-(M80/A$17)+$J79),3),2))) -> 227.99 | N79: =IF(($A$8-$A79)<A$17,"",ROUND((100*(L79/K79)),0)) -> 11 | O79: =IF(($A$8-$A79)<A$17,"",ROUND((100*(M79/K79)),0)) -> 50 | P79: =IF(($A$8-$A79)<A$17,"",ABS(N79-O79)) -> 39 | Q79: =IF(($A$8-$A79)<A$17,"",N79+O79) -> 61 | R79: =IF(($A$8-$A79)<A$17,"",ROUND(100*(P79/Q79),0)) -> 64 | S79: =IF(($A$8-$A79)<(2*A$17),"",ROUND(IF(($A$8-$A79)=(2*A$17),AVERAGE(OFFSET(R79,0,0,A$17,1)),(((S80*(A$17-1))+R79)/A$17)),0)) -> 51 | T79: =IF(($A$8-$A79)<A$18,"",IF(($A$8-$A79)=A$18,SUM(OFFSET($H79,0,0,A$18,1)),ROUND(TRUNC((T80-(T80/A$18)+$H79),3),2))) -> 540.99 | U79: =IF(($A$8-$A79)<A$18,"",IF(($A$8-$A79)=A$18,SUM(OFFSET($I79,0,0,A$18,1)),ROUND(TRUNC((U80-(U80/A$18)+$I79),3),2))) -> 74.31 | V79: =IF(($A$8-$A79)<A$18,"",IF(($A$8-$A79)=A$18,SUM(OFFSET($J79,0,0,A$18,1)),ROUND(TRUNC((V80-(V80/A$18)+$J79),3),2))) -> 243.32 | W79: =IF(($A$8-$A79)<A$18,"",ROUND((100*(U79/T79)),0)) -> 14 | X79: =IF(($A$8-$A79)<A$18,"",ROUND((100*(V79/T79)),0)) -> 45 | Y79: =IF(($A$8-$A79)<A$18,"",ABS(W79-X79)) -> 31 | Z79: =IF(($A$8-$A79)<A$18,"",W79+X79) -> 59 | AA79: =IF(($A$8-$A79)<A$18,"",ROUND(100*(Y79/Z79),0)) -> 53 | AB79: =IF(($A$8-$A79)<(2*A$18),"",ROUND(IF(($A$8-$A79)=(2*A$18),AVERAGE(OFFSET(AA79,0,0,A$18,1)),(((AB80*(A$18-1))+AA79)/A$18)),0)) -> 41 | AC79: =IF(($A$8-$A79)<A$19,"",IF(($A$8-$A79)=A$19,SUM(OFFSET($H79,0,0,A$19,1)),ROUND(TRUNC((AC80-(AC80/A$19)+$H79),3),2))) -> 622.56 | AD79: =IF(($A$8-$A79)<A$19,"",IF(($A$8-$A79)=A$19,SUM(OFFSET($I79,0,0,A$19,1)),ROUND(TRUNC((AD80-(AD80/A$19)+$I79),3),2))) -> 97.66 | AE79: =IF(($A$8-$A79)<A$19,"",IF(($A$8-$A79)=A$19,SUM(OFFSET($J79,0,0,A$19,1)),ROUND(TRUNC((AE80-(AE80/A$19)+$J79),3),2))) -> 259.96 | AF79: =IF(($A$8-$A79)<A$19,"",ROUND((100*(AD79/AC79)),0)) -> 16 | AG79: =IF(($A$8-$A79)<A$19,"",ROUND((100*(AE79/AC79)),0)) -> 42 | AH79: =IF(($A$8-$A79)<A$19,"",ABS(AF79-AG79)) -> 26 | AI79: =IF(($A$8-$A79)<A$19,"",AF79+AG79) -> 58 | AJ79: =IF(($A$8-$A79)<A$19,"",ROUND(100*(AH79/AI79),0)) -> 45 | AK79: =IF(($A$8-$A79)<(2*A$19),"",ROUND(IF(($A$8-$A79)=(2*A$19),AVERAGE(OFFSET(AJ79,0,0,A$19,1)),(((AK80*(A$19-1))+AJ79)/A$19)),0)) -> 33 | AL79: 5 | AM79: 10 | AN79: 20 | AO79: 30 | AP79: 50 | AQ79: 70 | AR79: 90 | AS79: 0 | AT79: 0
A80: 48 | B80: =OFFSET(InputPriceData!B$10,CalculationsAndCharts!$A80+$A$11,0,1,1) -> 2011-07-25 | C80: =OFFSET(InputPriceData!G$10,CalculationsAndCharts!$A80+$A$11,0,1,1) -> 2017784000 | D80: =OFFSET(InputPriceData!C$10,CalculationsAndCharts!$A80+$A$11,0,1,1) -> 2408.65 | E80: =OFFSET(InputPriceData!D$10,CalculationsAndCharts!$A80+$A$11,0,1,1) -> 2438.44 | F80: =OFFSET(InputPriceData!E$10,CalculationsAndCharts!$A80+$A$11,0,1,1) -> 2341.82 | G80: =OFFSET(InputPriceData!F$10,CalculationsAndCharts!$A80+$A$11,0,1,1) -> 2362.81 | H80: 96.62 | I80: 5.6 | J80: 0 | K80: =IF(($A$8-$A80)<A$17,"",IF(($A$8-$A80)=A$17,SUM(OFFSET($H80,0,0,A$17,1)),ROUND(TRUNC((K81-(K81/A$17)+$H80),3),2))) -> 284.72 | L80: =IF(($A$8-$A80)<A$17,"",IF(($A$8-$A80)=A$17,SUM(OFFSET($I80,0,0,A$17,1)),ROUND(TRUNC((L81-(L81/A$17)+$I80),3),2))) -> 72.1 | M80: =IF(($A$8-$A80)<A$17,"",IF(($A$8-$A80)=A$17,SUM(OFFSET($J80,0,0,A$17,1)),ROUND(TRUNC((M81-(M81/A$17)+$J80),3),2))) -> 26.54 | N80: =IF(($A$8-$A80)<A$17,"",ROUND((100*(L80/K80)),0)) -> 25 | O80: =IF(($A$8-$A80)<A$17,"",ROUND((100*(M80/K80)),0)) -> 9 | P80: =IF(($A$8-$A80)<A$17,"",ABS(N80-O80)) -> 16 | Q80: =IF(($A$8-$A80)<A$17,"",N80+O80) -> 34 | R80: =IF(($A$8-$A80)<A$17,"",ROUND(100*(P80/Q80),0)) -> 47 | S80: =IF(($A$8-$A80)<(2*A$17),"",ROUND(IF(($A$8-$A80)=(2*A$17),AVERAGE(OFFSET(R80,0,0,A$17,1)),(((S81*(A$17-1))+R80)/A$17)),0)) -> 45 | T80: =IF(($A$8-$A80)<A$18,"",IF(($A$8-$A80)=A$18,SUM(OFFSET($H80,0,0,A$18,1)),ROUND(TRUNC((T81-(T81/A$18)+$H80),3),2))) -> 368.01 | U80: =IF(($A$8-$A80)<A$18,"",IF(($A$8-$A80)=A$18,SUM(OFFSET($I80,0,0,A$18,1)),ROUND(TRUNC((U81-(U81/A$18)+$I80),3),2))) -> 99.08 | V80: =IF(($A$8-$A80)<A$18,"",IF(($A$8-$A80)=A$18,SUM(OFFSET($J80,0,0,A$18,1)),ROUND(TRUNC((V81-(V81/A$18)+$J80),3),2))) -> 44.03 | W80: =IF(($A$8-$A80)<A$18,"",ROUND((100*(U80/T80)),0)) -> 27 | X80: =IF(($A$8-$A80)<A$18,"",ROUND((100*(V80/T80)),0)) -> 12 | Y80: =IF(($A$8-$A80)<A$18,"",ABS(W80-X80)) -> 15 | Z80: =IF(($A$8-$A80)<A$18,"",W80+X80) -> 39 | AA80: =IF(($A$8-$A80)<A$18,"",ROUND(100*(Y80/Z80),0)) -> 38 | AB80: =IF(($A$8-$A80)<(2*A$18),"",ROUND(IF(($A$8-$A80)=(2*A$18),AVERAGE(OFFSET(AA80,0,0,A$18,1)),(((AB81*(A$18-1))+AA80)/A$18)),0)) -> 37 | AC80: =IF(($A$8-$A80)<A$19,"",IF(($A$8-$A80)=A$19,SUM(OFFSET($H80,0,0,A$19,1)),ROUND(TRUNC((AC81-(AC81/A$19)+$H80),3),2))) -> 446.97 | AD80: =IF(($A$8-$A80)<A$19,"",IF(($A$8-$A80)=A$19,SUM(OFFSET($I80,0,0,A$19,1)),ROUND(TRUNC((AD81-(AD81/A$19)+$I80),3),2))) -> 122.08 | AE80: =IF(($A$8-$A80)<A$19,"",IF(($A$8-$A80)=A$19,SUM(OFFSET($J80,0,0,A$19,1)),ROUND(TRUNC((AE81-(AE81/A$19)+$J80),3),2))) -> 62.08 | AF80: =IF(($A$8-$A80)<A$19,"",ROUND((100*(AD80/AC80)),0)) -> 27 | AG80: =IF(($A$8-$A80)<A$19,"",ROUND((100*(AE80/AC80)),0)) -> 14 | AH80: =IF(($A$8-$A80)<A$19,"",ABS(AF80-AG80)) -> 13 | AI80: =IF(($A$8-$A80)<A$19,"",AF80+AG80) -> 41 | AJ80: =IF(($A$8-$A80)<A$19,"",ROUND(100*(AH80/AI80),0)) -> 32 | AK80: =IF(($A$8-$A80)<(2*A$19),"",ROUND(IF(($A$8-$A80)=(2*A$19),AVERAGE(OFFSET(AJ80,0,0,A$19,1)),(((AK81*(A$19-1))+AJ80)/A$19)),0)) -> 30 | AL80: 5 | AM80: 10 | AN80: 20 | AO80: 30 | AP80: 50 | AQ80: 70 | AR80: 90 | AS80: 0 | AT80: 0
A81: 49 | B81: =OFFSET(InputPriceData!B$10,CalculationsAndCharts!$A81+$A$11,0,1,1) -> 2011-07-18 | C81: =OFFSET(InputPriceData!G$10,CalculationsAndCharts!$A81+$A$11,0,1,1) -> 1889604000 | D81: =OFFSET(InputPriceData!C$10,CalculationsAndCharts!$A81+$A$11,0,1,1) -> 2346.53 | E81: =OFFSET(InputPriceData!D$10,CalculationsAndCharts!$A81+$A$11,0,1,1) -> 2432.84 | F81: =OFFSET(InputPriceData!E$10,CalculationsAndCharts!$A81+$A$11,0,1,1) -> 2322.62 | G81: =OFFSET(InputPriceData!F$10,CalculationsAndCharts!$A81+$A$11,0,1,1) -> 2429.5 | H81: 110.22 | I81: 40.75 | J81: 0 | K81: =IF(($A$8-$A81)<A$17,"",IF(($A$8-$A81)=A$17,SUM(OFFSET($H81,0,0,A$17,1)),ROUND(TRUNC((K82-(K82/A$17)+$H81),3),2))) -> 282.15 | L81: =IF(($A$8-$A81)<A$17,"",IF(($A$8-$A81)=A$17,SUM(OFFSET($I81,0,0,A$17,1)),ROUND(TRUNC((L82-(L82/A$17)+$I81),3),2))) -> 99.75 | M81: =IF(($A$8-$A81)<A$17,"",IF(($A$8-$A81)=A$17,SUM(OFFSET($J81,0,0,A$17,1)),ROUND(TRUNC((M82-(M82/A$17)+$J81),3),2))) -> 39.81 | N81: =IF(($A$8-$A81)<A$17,"",ROUND((100*(L81/K81)),0)) -> 35 | O81: =IF(($A$8-$A81)<A$17,"",ROUND((100*(M81/K81)),0)) -> 14 | P81: =IF(($A$8-$A81)<A$17,"",ABS(N81-O81)) -> 21 | Q81: =IF(($A$8-$A81)<A$17,"",N81+O81) -> 49 | R81: =IF(($A$8-$A81)<A$17,"",ROUND(100*(P81/Q81),0)) -> 43 | S81: =IF(($A$8-$A81)<(2*A$17),"",ROUND(IF(($A$8-$A81)=(2*A$17),AVERAGE(OFFSET(R81,0,0,A$17,1)),(((S82*(A$17-1))+R81)/A$17)),0)) -> 44 | T81: =IF(($A$8-$A81)<A$18,"",IF(($A$8-$A81)=A$18,SUM(OFFSET($H81,0,0,A$18,1)),ROUND(TRUNC((T82-(T82/A$18)+$H81),3),2))) -> 361.85 | U81: =IF(($A$8-$A81)<A$18,"",IF(($A$8-$A81)=A$18,SUM(OFFSET($I81,0,0,A$18,1)),ROUND(TRUNC((U82-(U82/A$18)+$I81),3),2))) -> 124.64 | V81: =IF(($A$8-$A81)<A$18,"",IF(($A$8-$A81)=A$18,SUM(OFFSET($J81,0,0,A$18,1)),ROUND(TRUNC((V82-(V82/A$18)+$J81),3),2))) -> 58.7 | W81: =IF(($A$8-$A81)<A$18,"",ROUND((100*(U81/T81)),0)) -> 34 | X81: =IF(($A$8-$A81)<A$18,"",ROUND((100*(V81/T81)),0)) -> 16 | Y81: =IF(($A$8-$A81)<A$18,"",ABS(W81-X81)) -> 18 | Z81: =IF(($A$8-$A81)<A$18,"",W81+X81) -> 50 | AA81: =IF(($A$8-$A81)<A$18,"",ROUND(100*(Y81/Z81),0)) -> 36 | AB81: =IF(($A$8-$A81)<(2*A$18),"",ROUND(IF(($A$8-$A81)=(2*A$18),AVERAGE(OFFSET(AA81,0,0,A$18,1)),(((AB82*(A$18-1))+AA81)/A$18)),0)) -> 36 | AC81: =IF(($A$8-$A81)<A$19,"",IF(($A$8-$A81)=A$19,SUM(OFFSET($H81,0,0,A$19,1)),ROUND(TRUNC((AC82-(AC82/A$19)+$H81),3),2))) -> 437.94 | AD81: =IF(($A$8-$A81)<A$19,"",IF(($A$8-$A81)=A$19,SUM(OFFSET($I81,0,0,A$19,1)),ROUND(TRUNC((AD82-(AD82/A$19)+$I81),3),2))) -> 145.6 | AE81: =IF(($A$8-$A81)<A$19,"",IF(($A$8-$A81)=A$19,SUM(OFFSET($J81,0,0,A$19,1)),ROUND(TRUNC((AE82-(AE82/A$19)+$J81),3),2))) -> 77.6 | AF81: =IF(($A$8-$A81)<A$19,"",ROUND((100*(AD81/AC81)),0)) -> 33 | AG81: =IF(($A$8-$A81)<A$19,"",ROUND((100*(AE81/AC81)),0)) -> 18 | AH81: =IF(($A$8-$A81)<A$19,"",ABS(AF81-AG81)) -> 15 | AI81: =IF(($A$8-$A81)<A$19,"",AF81+AG81) -> 51 | AJ81: =IF(($A$8-$A81)<A$19,"",ROUND(100*(AH81/AI81),0)) -> 29 | AK81: =IF(($A$8-$A81)<(2*A$19),"",ROUND(IF(($A$8-$A81)=(2*A$19),AVERAGE(OFFSET(AJ81,0,0,A$19,1)),(((AK82*(A$19-1))+AJ81)/A$19)),0)) -> 29 | AL81: 5 | AM81: 10 | AN81: 20 | AO81: 30 | AP81: 50 | AQ81: 70 | AR81: 90 | AS81: 0 | AT81: 0
A82: 50 | B82: =OFFSET(InputPriceData!B$10,CalculationsAndCharts!$A82+$A$11,0,1,1) -> 2011-07-11 | C82: =OFFSET(InputPriceData!G$10,CalculationsAndCharts!$A82+$A$11,0,1,1) -> 1883544000 | D82: =OFFSET(InputPriceData!C$10,CalculationsAndCharts!$A82+$A$11,0,1,1) -> 2380.56 | E82: =OFFSET(InputPriceData!D$10,CalculationsAndCharts!$A82+$A$11,0,1,1) -> 2392.09 | F82: =OFFSET(InputPriceData!E$10,CalculationsAndCharts!$A82+$A$11,0,1,1) -> 2318.2 | G82: =OFFSET(InputPriceData!F$10,CalculationsAndCharts!$A82+$A$11,0,1,1) -> 2356.67 | H82: 87.69 | I82: 0 | J82: 39.11 | K82: =IF(($A$8-$A82)<A$17,"",IF(($A$8-$A82)=A$17,SUM(OFFSET($H82,0,0,A$17,1)),ROUND(TRUNC((K83-(K83/A$17)+$H82),3),2))) -> 257.89 | L82: =IF(($A$8-$A82)<A$17,"",IF(($A$8-$A82)=A$17,SUM(OFFSET($I82,0,0,A$17,1)),ROUND(TRUNC((L83-(L83/A$17)+$I82),3),2))) -> 88.5 | M82: =IF(($A$8-$A82)<A$17,"",IF(($A$8-$A82)=A$17,SUM(OFFSET($J82,0,0,A$17,1)),ROUND(TRUNC((M83-(M83/A$17)+$J82),3),2))) -> 59.72 | N82: =IF(($A$8-$A82)<A$17,"",ROUND((100*(L82/K82)),0)) -> 34 | O82: =IF(($A$8-$A82)<A$17,"",ROUND((100*(M82/K82)),0)) -> 23 | P82: =IF(($A$8-$A82)<A$17,"",ABS(N82-O82)) -> 11 | Q82: =IF(($A$8-$A82)<A$17,"",N82+O82) -> 57 | R82: =IF(($A$8-$A82)<A$17,"",ROUND(100*(P82/Q82),0)) -> 19 | S82: =IF(($A$8-$A82)<(2*A$17),"",ROUND(IF(($A$8-$A82)=(2*A$17),AVERAGE(OFFSET(R82,0,0,A$17,1)),(((S83*(A$17-1))+R82)/A$17)),0)) -> 44 | T82: =IF(($A$8-$A82)<A$18,"",IF(($A$8-$A82)=A$18,SUM(OFFSET($H82,0,0,A$18,1)),ROUND(TRUNC((T83-(T83/A$18)+$H82),3),2))) -> 335.51 | U82: =IF(($A$8-$A82)<A$18,"",IF(($A$8-$A82)=A$18,SUM(OFFSET($I82,0,0,A$18,1)),ROUND(TRUNC((U83-(U83/A$18)+$I82),3),2))) -> 111.85 | V82: =IF(($A$8-$A82)<A$18,"",IF(($A$8-$A82)=A$18,SUM(OFFSET($J82,0,0,A$18,1)),ROUND(TRUNC((V83-(V83/A$18)+$J82),3),2))) -> 78.26 | W82: =IF(($A$8-$A82)<A$18,"",ROUND((100*(U82/T82)),0)) -> 33 | X82: =IF(($A$8-$A82)<A$18,"",ROUND((100*(V82/T82)),0)) -> 23 | Y82: =IF(($A$8-$A82)<A$18,"",ABS(W82-X82)) -> 10 | Z82: =IF(($A$8-$A82)<A$18,"",W82+X82) -> 56 | AA82: =IF(($A$8-$A82)<A$18,"",ROUND(100*(Y82/Z82),0)) -> 18 | AB82: =IF(($A$8-$A82)<(2*A$18),"",ROUND(IF(($A$8-$A82)=(2*A$18),AVERAGE(OFFSET(AA82,0,0,A$18,1)),(((AB83*(A$18-1))+AA82)/A$18)),0)) -> 36 | AC82: =IF(($A$8-$A82)<A$19,"",IF(($A$8-$A82)=A$19,SUM(OFFSET($H82,0,0,A$19,1)),ROUND(TRUNC((AC83-(AC83/A$19)+$H82),3),2))) -> 409.65 | AD82: =IF(($A$8-$A82)<A$19,"",IF(($A$8-$A82)=A$19,SUM(OFFSET($I82,0,0,A$19,1)),ROUND(TRUNC((AD83-(AD83/A$19)+$I82),3),2))) -> 131.06 | AE82: =IF(($A$8-$A82)<A$19,"",IF(($A$8-$A82)=A$19,SUM(OFFSET($J82,0,0,A$19,1)),ROUND(TRUNC((AE83-(AE83/A$19)+$J82),3),2))) -> 97 | AF82: =IF(($A$8-$A82)<A$19,"",ROUND((100*(AD82/AC82)),0)) -> 32 | AG82: =IF(($A$8-$A82)<A$19,"",ROUND((100*(AE82/AC82)),0)) -> 24 | AH82: =IF(($A$8-$A82)<A$19,"",ABS(AF82-AG82)) -> 8 | AI82: =IF(($A$8-$A82)<A$19,"",AF82+AG82) -> 56 | AJ82: =IF(($A$8-$A82)<A$19,"",ROUND(100*(AH82/AI82),0)) -> 14 | AK82: =IF(($A$8-$A82)<(2*A$19),"",ROUND(IF(($A$8-$A82)=(2*A$19),AVERAGE(OFFSET(AJ82,0,0,A$19,1)),(((AK83*(A$19-1))+AJ82)/A$19)),0)) -> 29 | AL82: 5 | AM82: 10 | AN82: 20 | AO82: 30 | AP82: 50 | AQ82: 70 | AR82: 90 | AS82: 0 | AT82: 0
A83: 51 | B83: =OFFSET(InputPriceData!B$10,CalculationsAndCharts!$A83+$A$11,0,1,1) -> 2011-07-05 | C83: =OFFSET(InputPriceData!G$10,CalculationsAndCharts!$A83+$A$11,0,1,1) -> 1670485000 | D83: =OFFSET(InputPriceData!C$10,CalculationsAndCharts!$A83+$A$11,0,1,1) -> 2363.08 | E83: =OFFSET(InputPriceData!D$10,CalculationsAndCharts!$A83+$A$11,0,1,1) -> 2418.99 | F83: =OFFSET(InputPriceData!E$10,CalculationsAndCharts!$A83+$A$11,0,1,1) -> 2357.31 | G83: =OFFSET(InputPriceData!F$10,CalculationsAndCharts!$A83+$A$11,0,1,1) -> 2405.89 | H83: 61.68 | I83: 55.63 | J83: 0 | K83: =IF(($A$8-$A83)<A$17,"",IF(($A$8-$A83)=A$17,SUM(OFFSET($H83,0,0,A$17,1)),ROUND(TRUNC((K84-(K84/A$17)+$H83),3),2))) -> 255.3 | L83: =IF(($A$8-$A83)<A$17,"",IF(($A$8-$A83)=A$17,SUM(OFFSET($I83,0,0,A$17,1)),ROUND(TRUNC((L84-(L84/A$17)+$I83),3),2))) -> 132.75 | M83: =IF(($A$8-$A83)<A$17,"",IF(($A$8-$A83)=A$17,SUM(OFFSET($J83,0,0,A$17,1)),ROUND(TRUNC((M84-(M84/A$17)+$J83),3),2))) -> 30.91 | N83: =IF(($A$8-$A83)<A$17,"",ROUND((100*(L83/K83)),0)) -> 52 | O83: =IF(($A$8-$A83)<A$17,"",ROUND((100*(M83/K83)),0)) -> 12 | P83: =IF(($A$8-$A83)<A$17,"",ABS(N83-O83)) -> 40 | Q83: =IF(($A$8-$A83)<A$17,"",N83+O83) -> 64 | R83: =IF(($A$8-$A83)<A$17,"",ROUND(100*(P83/Q83),0)) -> 63 | S83: =IF(($A$8-$A83)<(2*A$17),"",ROUND(IF(($A$8-$A83)=(2*A$17),AVERAGE(OFFSET(R83,0,0,A$17,1)),(((S84*(A$17-1))+R83)/A$17)),0)) -> 56 | T83: =IF(($A$8-$A83)<A$18,"",IF(($A$8-$A83)=A$18,SUM(OFFSET($H83,0,0,A$18,1)),ROUND(TRUNC((T84-(T84/A$18)+$H83),3),2))) -> 330.43 | U83: =IF(($A$8-$A83)<A$18,"",IF(($A$8-$A83)=A$18,SUM(OFFSET($I83,0,0,A$18,1)),ROUND(TRUNC((U84-(U84/A$18)+$I83),3),2))) -> 149.13 | V83: =IF(($A$8-$A83)<A$18,"",IF(($A$8-$A83)=A$18,SUM(OFFSET($J83,0,0,A$18,1)),ROUND(TRUNC((V84-(V84/A$18)+$J83),3),2))) -> 52.2 | W83: =IF(($A$8-$A83)<A$18,"",ROUND((100*(U83/T83)),0)) -> 45 | X83: =IF(($A$8-$A83)<A$18,"",ROUND((100*(V83/T83)),0)) -> 16 | Y83: =IF(($A$8-$A83)<A$18,"",ABS(W83-X83)) -> 29 | Z83: =IF(($A$8-$A83)<A$18,"",W83+X83) -> 61 | AA83: =IF(($A$8-$A83)<A$18,"",ROUND(100*(Y83/Z83),0)) -> 48 | AB83: =IF(($A$8-$A83)<(2*A$18),"",ROUND(IF(($A$8-$A83)=(2*A$18),AVERAGE(OFFSET(AA83,0,0,A$18,1)),(((AB84*(A$18-1))+AA83)/A$18)),0)) -> 42 | AC83: =IF(($A$8-$A83)<A$19,"",IF(($A$8-$A83)=A$19,SUM(OFFSET($H83,0,0,A$19,1)),ROUND(TRUNC((AC84-(AC84/A$19)+$H83),3),2))) -> 402.45 | AD83: =IF(($A$8-$A83)<A$19,"",IF(($A$8-$A83)=A$19,SUM(OFFSET($I83,0,0,A$19,1)),ROUND(TRUNC((AD84-(AD84/A$19)+$I83),3),2))) -> 163.83 | AE83: =IF(($A$8-$A83)<A$19,"",IF(($A$8-$A83)=A$19,SUM(OFFSET($J83,0,0,A$19,1)),ROUND(TRUNC((AE84-(AE84/A$19)+$J83),3),2))) -> 72.36 | AF83: =IF(($A$8-$A83)<A$19,"",ROUND((100*(AD83/AC83)),0)) -> 41 | AG83: =IF(($A$8-$A83)<A$19,"",ROUND((100*(AE83/AC83)),0)) -> 18 | AH83: =IF(($A$8-$A83)<A$19,"",ABS(AF83-AG83)) -> 23 | AI83: =IF(($A$8-$A83)<A$19,"",AF83+AG83) -> 59 | AJ83: =IF(($A$8-$A83)<A$19,"",ROUND(100*(AH83/AI83),0)) -> 39 | AK83: =IF(($A$8-$A83)<(2*A$19),"",ROUND(IF(($A$8-$A83)=(2*A$19),AVERAGE(OFFSET(AJ83,0,0,A$19,1)),(((AK84*(A$19-1))+AJ83)/A$19)),0)) -> 33 | AL83: 5 | AM83: 10 | AN83: 20 | AO83: 30 | AP83: 50 | AQ83: 70 | AR83: 90 | AS83: 0 | AT83: 0
A84: 52 | B84: =OFFSET(InputPriceData!B$10,CalculationsAndCharts!$A84+$A$11,0,1,1) -> 2011-06-27 | C84: =OFFSET(InputPriceData!G$10,CalculationsAndCharts!$A84+$A$11,0,1,1) -> 1740666000 | D84: =OFFSET(InputPriceData!C$10,CalculationsAndCharts!$A84+$A$11,0,1,1) -> 2217.63 | E84: =OFFSET(InputPriceData!D$10,CalculationsAndCharts!$A84+$A$11,0,1,1) -> 2363.36 | F84: =OFFSET(InputPriceData!E$10,CalculationsAndCharts!$A84+$A$11,0,1,1) -> 2215.14 | G84: =OFFSET(InputPriceData!F$10,CalculationsAndCharts!$A84+$A$11,0,1,1) -> 2361.39 | H84: 148.22 | I84: 106.66 | J84: 0 | K84: =IF(($A$8-$A84)<A$17,"",IF(($A$8-$A84)=A$17,SUM(OFFSET($H84,0,0,A$17,1)),ROUND(TRUNC((K85-(K85/A$17)+$H84),3),2))) -> 290.43 | L84: =IF(($A$8-$A84)<A$17,"",IF(($A$8-$A84)=A$17,SUM(OFFSET($I84,0,0,A$17,1)),ROUND(TRUNC((L85-(L85/A$17)+$I84),3),2))) -> 115.68 | M84: =IF(($A$8-$A84)<A$17,"",IF(($A$8-$A84)=A$17,SUM(OFFSET($J84,0,0,A$17,1)),ROUND(TRUNC((M85-(M85/A$17)+$J84),3),2))) -> 46.37 | N84: =IF(($A$8-$A84)<A$17,"",ROUND((100*(L84/K84)),0)) -> 40 | O84: =IF(($A$8-$A84)<A$17,"",ROUND((100*(M84/K84)),0)) -> 16 | P84: =IF(($A$8-$A84)<A$17,"",ABS(N84-O84)) -> 24 | Q84: =IF(($A$8-$A84)<A$17,"",N84+O84) -> 56 | R84: =IF(($A$8-$A84)<A$17,"",ROUND(100*(P84/Q84),0)) -> 43 | S84: =IF(($A$8-$A84)<(2*A$17),"",ROUND(IF(($A$8-$A84)=(2*A$17),AVERAGE(OFFSET(R84,0,0,A$17,1)),(((S85*(A$17-1))+R84)/A$17)),0)) -> 52 | T84: =IF(($A$8-$A84)<A$18,"",IF(($A$8-$A84)=A$18,SUM(OFFSET($H84,0,0,A$18,1)),ROUND(TRUNC((T85-(T85/A$18)+$H84),3),2))) -> 358.33 | U84: =IF(($A$8-$A84)<A$18,"",IF(($A$8-$A84)=A$18,SUM(OFFSET($I84,0,0,A$18,1)),ROUND(TRUNC((U85-(U85/A$18)+$I84),3),2))) -> 124.67 | V84: =IF(($A$8-$A84)<A$18,"",IF(($A$8-$A84)=A$18,SUM(OFFSET($J84,0,0,A$18,1)),ROUND(TRUNC((V85-(V85/A$18)+$J84),3),2))) -> 69.6 | W84: =IF(($A$8-$A84)<A$18,"",ROUND((100*(U84/T84)),0)) -> 35 | X84: =IF(($A$8-$A84)<A$18,"",ROUND((100*(V84/T84)),0)) -> 19 | Y84: =IF(($A$8-$A84)<A$18,"",ABS(W84-X84)) -> 16 | Z84: =IF(($A$8-$A84)<A$18,"",W84+X84) -> 54 | AA84: =IF(($A$8-$A84)<A$18,"",ROUND(100*(Y84/Z84),0)) -> 30 | AB84: =IF(($A$8-$A84)<(2*A$18),"",ROUND(IF(($A$8-$A84)=(2*A$18),AVERAGE(OFFSET(AA84,0,0,A$18,1)),(((AB85*(A$18-1))+AA84)/A$18)),0)) -> 40 | AC84: =IF(($A$8-$A84)<A$19,"",IF(($A$8-$A84)=A$19,SUM(OFFSET($H84,0,0,A$19,1)),ROUND(TRUNC((AC85-(AC85/A$19)+$H84),3),2))) -> 425.96 | AD84: =IF(($A$8-$A84)<A$19,"",IF(($A$8-$A84)=A$19,SUM(OFFSET($I84,0,0,A$19,1)),ROUND(TRUNC((AD85-(AD85/A$19)+$I84),3),2))) -> 135.25 | AE84: =IF(($A$8-$A84)<A$19,"",IF(($A$8-$A84)=A$19,SUM(OFFSET($J84,0,0,A$19,1)),ROUND(TRUNC((AE85-(AE85/A$19)+$J84),3),2))) -> 90.45 | AF84: =IF(($A$8-$A84)<A$19,"",ROUND((100*(AD84/AC84)),0)) -> 32 | AG84: =IF(($A$8-$A84)<A$19,"",ROUND((100*(AE84/AC84)),0)) -> 21 | AH84: =IF(($A$8-$A84)<A$19,"",ABS(AF84-AG84)) -> 11 | AI84: =IF(($A$8-$A84)<A$19,"",AF84+AG84) -> 53 | AJ84: =IF(($A$8-$A84)<A$19,"",ROUND(100*(AH84/AI84),0)) -> 21 | AK84: =IF(($A$8-$A84)<(2*A$19),"",ROUND(IF(($A$8-$A84)=(2*A$19),AVERAGE(OFFSET(AJ84,0,0,A$19,1)),(((AK85*(A$19-1))+AJ84)/A$19)),0)) -> 32 | AL84: 5 | AM84: 10 | AN84: 20 | AO84: 30 | AP84: 50 | AQ84: 70 | AR84: 90 | AS84: 0 | AT84: 0
A85: 53 | B85: =OFFSET(InputPriceData!B$10,CalculationsAndCharts!$A85+$A$11,0,1,1) -> 2011-06-20 | C85: =OFFSET(InputPriceData!G$10,CalculationsAndCharts!$A85+$A$11,0,1,1) -> 2005806000 | D85: =OFFSET(InputPriceData!C$10,CalculationsAndCharts!$A85+$A$11,0,1,1) -> 2187.21 | E85: =OFFSET(InputPriceData!D$10,CalculationsAndCharts!$A85+$A$11,0,1,1) -> 2256.7 | F85: =OFFSET(InputPriceData!E$10,CalculationsAndCharts!$A85+$A$11,0,1,1) -> 2186.77 | G85: =OFFSET(InputPriceData!F$10,CalculationsAndCharts!$A85+$A$11,0,1,1) -> 2217.06 | H85: 69.93 | I85: 0.24 | J85: 0 | K85: =IF(($A$8-$A85)<A$17,"",IF(($A$8-$A85)=A$17,SUM(OFFSET($H85,0,0,A$17,1)),ROUND(TRUNC((K86-(K86/A$17)+$H85),3),2))) -> 213.32 | L85: =IF(($A$8-$A85)<A$17,"",IF(($A$8-$A85)=A$17,SUM(OFFSET($I85,0,0,A$17,1)),ROUND(TRUNC((L86-(L86/A$17)+$I85),3),2))) -> 13.53 | M85: =IF(($A$8-$A85)<A$17,"",IF(($A$8-$A85)=A$17,SUM(OFFSET($J85,0,0,A$17,1)),ROUND(TRUNC((M86-(M86/A$17)+$J85),3),2))) -> 69.55 | N85: =IF(($A$8-$A85)<A$17,"",ROUND((100*(L85/K85)),0)) -> 6 | O85: =IF(($A$8-$A85)<A$17,"",ROUND((100*(M85/K85)),0)) -> 33 | P85: =IF(($A$8-$A85)<A$17,"",ABS(N85-O85)) -> 27 | Q85: =IF(($A$8-$A85)<A$17,"",N85+O85) -> 39 | R85: =IF(($A$8-$A85)<A$17,"",ROUND(100*(P85/Q85),0)) -> 69 | S85: =IF(($A$8-$A85)<(2*A$17),"",ROUND(IF(($A$8-$A85)=(2*A$17),AVERAGE(OFFSET(R85,0,0,A$17,1)),(((S86*(A$17-1))+R85)/A$17)),0)) -> 56 | T85: =IF(($A$8-$A85)<A$18,"",IF(($A$8-$A85)=A$18,SUM(OFFSET($H85,0,0,A$18,1)),ROUND(TRUNC((T86-(T86/A$18)+$H85),3),2))) -> 280.15 | U85: =IF(($A$8-$A85)<A$18,"",IF(($A$8-$A85)=A$18,SUM(OFFSET($I85,0,0,A$18,1)),ROUND(TRUNC((U86-(U86/A$18)+$I85),3),2))) -> 24.01 | V85: =IF(($A$8-$A85)<A$18,"",IF(($A$8-$A85)=A$18,SUM(OFFSET($J85,0,0,A$18,1)),ROUND(TRUNC((V86-(V86/A$18)+$J85),3),2))) -> 92.8 | W85: =IF(($A$8-$A85)<A$18,"",ROUND((100*(U85/T85)),0)) -> 9 | X85: =IF(($A$8-$A85)<A$18,"",ROUND((100*(V85/T85)),0)) -> 33 | Y85: =IF(($A$8-$A85)<A$18,"",ABS(W85-X85)) -> 24 | Z85: =IF(($A$8-$A85)<A$18,"",W85+X85) -> 42 | AA85: =IF(($A$8-$A85)<A$18,"",ROUND(100*(Y85/Z85),0)) -> 57 | AB85: =IF(($A$8-$A85)<(2*A$18),"",ROUND(IF(($A$8-$A85)=(2*A$18),AVERAGE(OFFSET(AA85,0,0,A$18,1)),(((AB86*(A$18-1))+AA85)/A$18)),0)) -> 43 | AC85: =IF(($A$8-$A85)<A$19,"",IF(($A$8-$A85)=A$19,SUM(OFFSET($H85,0,0,A$19,1)),ROUND(TRUNC((AC86-(AC86/A$19)+$H85),3),2))) -> 347.17 | AD85: =IF(($A$8-$A85)<A$19,"",IF(($A$8-$A85)=A$19,SUM(OFFSET($I85,0,0,A$19,1)),ROUND(TRUNC((AD86-(AD86/A$19)+$I85),3),2))) -> 35.74 | AE85: =IF(($A$8-$A85)<A$19,"",IF(($A$8-$A85)=A$19,SUM(OFFSET($J85,0,0,A$19,1)),ROUND(TRUNC((AE86-(AE86/A$19)+$J85),3),2))) -> 113.06 | AF85: =IF(($A$8-$A85)<A$19,"",ROUND((100*(AD85/AC85)),0)) -> 10 | AG85: =IF(($A$8-$A85)<A$19,"",ROUND((100*(AE85/AC85)),0)) -> 33 | AH85: =IF(($A$8-$A85)<A$19,"",ABS(AF85-AG85)) -> 23 | AI85: =IF(($A$8-$A85)<A$19,"",AF85+AG85) -> 43 | AJ85: =IF(($A$8-$A85)<A$19,"",ROUND(100*(AH85/AI85),0)) -> 53 | AK85: =IF(($A$8-$A85)<(2*A$19),"",ROUND(IF(($A$8-$A85)=(2*A$19),AVERAGE(OFFSET(AJ85,0,0,A$19,1)),(((AK86*(A$19-1))+AJ85)/A$19)),0)) -> 35 | AL85: 5 | AM85: 10 | AN85: 20 | AO85: 30 | AP85: 50 | AQ85: 70 | AR85: 90 | AS85: 0 | AT85: 0
A86: 54 | B86: =OFFSET(InputPriceData!B$10,CalculationsAndCharts!$A86+$A$11,0,1,1) -> 2011-06-13 | C86: =OFFSET(InputPriceData!G$10,CalculationsAndCharts!$A86+$A$11,0,1,1) -> 1976544000 | D86: =OFFSET(InputPriceData!C$10,CalculationsAndCharts!$A86+$A$11,0,1,1) -> 2225.21 | E86: =OFFSET(InputPriceData!D$10,CalculationsAndCharts!$A86+$A$11,0,1,1) -> 2256.46 | F86: =OFFSET(InputPriceData!E$10,CalculationsAndCharts!$A86+$A$11,0,1,1) -> 2180.94 | G86: =OFFSET(InputPriceData!F$10,CalculationsAndCharts!$A86+$A$11,0,1,1) -> 2192.96 | H86: 75.52 | I86: 0 | J86: 39.89 | K86: =IF(($A$8-$A86)<A$17,"",IF(($A$8-$A86)=A$17,SUM(OFFSET($H86,0,0,A$17,1)),ROUND(TRUNC((K87-(K87/A$17)+$H86),3),2))) -> 215.09 | L86: =IF(($A$8-$A86)<A$17,"",IF(($A$8-$A86)=A$17,SUM(OFFSET($I86,0,0,A$17,1)),ROUND(TRUNC((L87-(L87/A$17)+$I86),3),2))) -> 19.93 | M86: =IF(($A$8-$A86)<A$17,"",IF(($A$8-$A86)=A$17,SUM(OFFSET($J86,0,0,A$17,1)),ROUND(TRUNC((M87-(M87/A$17)+$J86),3),2))) -> 104.32 | N86: =IF(($A$8-$A86)<A$17,"",ROUND((100*(L86/K86)),0)) -> 9 | O86: =IF(($A$8-$A86)<A$17,"",ROUND((100*(M86/K86)),0)) -> 49 | P86: =IF(($A$8-$A86)<A$17,"",ABS(N86-O86)) -> 40 | Q86: =IF(($A$8-$A86)<A$17,"",N86+O86) -> 58 | R86: =IF(($A$8-$A86)<A$17,"",ROUND(100*(P86/Q86),0)) -> 69 | S86: =IF(($A$8-$A86)<(2*A$17),"",ROUND(IF(($A$8-$A86)=(2*A$17),AVERAGE(OFFSET(R86,0,0,A$17,1)),(((S87*(A$17-1))+R86)/A$17)),0)) -> 50 | T86: =IF(($A$8-$A86)<A$18,"",IF(($A$8-$A86)=A$18,SUM(OFFSET($H86,0,0,A$18,1)),ROUND(TRUNC((T87-(T87/A$18)+$H86),3),2))) -> 280.29 | U86: =IF(($A$8-$A86)<A$18,"",IF(($A$8-$A86)=A$18,SUM(OFFSET($I86,0,0,A$18,1)),ROUND(TRUNC((U87-(U87/A$18)+$I86),3),2))) -> 31.7 | V86: =IF(($A$8-$A86)<A$18,"",IF(($A$8-$A86)=A$18,SUM(OFFSET($J86,0,0,A$18,1)),ROUND(TRUNC((V87-(V87/A$18)+$J86),3),2))) -> 123.73 | W86: =IF(($A$8-$A86)<A$18,"",ROUND((100*(U86/T86)),0)) -> 11 | X86: =IF(($A$8-$A86)<A$18,"",ROUND((100*(V86/T86)),0)) -> 44 | Y86: =IF(($A$8-$A86)<A$18,"",ABS(W86-X86)) -> 33 | Z86: =IF(($A$8-$A86)<A$18,"",W86+X86) -> 55 | AA86: =IF(($A$8-$A86)<A$18,"",ROUND(100*(Y86/Z86),0)) -> 60 | AB86: =IF(($A$8-$A86)<(2*A$18),"",ROUND(IF(($A$8-$A86)=(2*A$18),AVERAGE(OFFSET(AA86,0,0,A$18,1)),(((AB87*(A$18-1))+AA86)/A$18)),0)) -> 38 | AC86: =IF(($A$8-$A86)<A$19,"",IF(($A$8-$A86)=A$19,SUM(OFFSET($H86,0,0,A$19,1)),ROUND(TRUNC((AC87-(AC87/A$19)+$H86),3),2))) -> 346.55 | AD86: =IF(($A$8-$A86)<A$19,"",IF(($A$8-$A86)=A$19,SUM(OFFSET($I86,0,0,A$19,1)),ROUND(TRUNC((AD87-(AD87/A$19)+$I86),3),2))) -> 44.37 | AE86: =IF(($A$8-$A86)<A$19,"",IF(($A$8-$A86)=A$19,SUM(OFFSET($J86,0,0,A$19,1)),ROUND(TRUNC((AE87-(AE87/A$19)+$J86),3),2))) -> 141.33 | AF86: =IF(($A$8-$A86)<A$19,"",ROUND((100*(AD86/AC86)),0)) -> 13 | AG86: =IF(($A$8-$A86)<A$19,"",ROUND((100*(AE86/AC86)),0)) -> 41 | AH86: =IF(($A$8-$A86)<A$19,"",ABS(AF86-AG86)) -> 28 | AI86: =IF(($A$8-$A86)<A$19,"",AF86+AG86) -> 54 | AJ86: =IF(($A$8-$A86)<A$19,"",ROUND(100*(AH86/AI86),0)) -> 52 | AK86: =IF(($A$8-$A86)<(2*A$19),"",ROUND(IF(($A$8-$A86)=(2*A$19),AVERAGE(OFFSET(AJ86,0,0,A$19,1)),(((AK87*(A$19-1))+AJ86)/A$19)),0)) -> 31 | AL86: 5 | AM86: 10 | AN86: 20 | AO86: 30 | AP86: 50 | AQ86: 70 | AR86: 90 | AS86: 0 | AT86: 0
A87: 55 | B87: =OFFSET(InputPriceData!B$10,CalculationsAndCharts!$A87+$A$11,0,1,1) -> 2011-06-06 | C87: =OFFSET(InputPriceData!G$10,CalculationsAndCharts!$A87+$A$11,0,1,1) -> 1898346000 | D87: =OFFSET(InputPriceData!C$10,CalculationsAndCharts!$A87+$A$11,0,1,1) -> 2288.61 | E87: =OFFSET(InputPriceData!D$10,CalculationsAndCharts!$A87+$A$11,0,1,1) -> 2299.4 | F87: =OFFSET(InputPriceData!E$10,CalculationsAndCharts!$A87+$A$11,0,1,1) -> 2220.83 | G87: =OFFSET(InputPriceData!F$10,CalculationsAndCharts!$A87+$A$11,0,1,1) -> 2221.09 | H87: 78.57 | I87: 0 | J87: 68.58 | K87: =IF(($A$8-$A87)<A$17,"",IF(($A$8-$A87)=A$17,SUM(OFFSET($H87,0,0,A$17,1)),ROUND(TRUNC((K88-(K88/A$17)+$H87),3),2))) -> 209.36 | L87: =IF(($A$8-$A87)<A$17,"",IF(($A$8-$A87)=A$17,SUM(OFFSET($I87,0,0,A$17,1)),ROUND(TRUNC((L88-(L88/A$17)+$I87),3),2))) -> 29.89 | M87: =IF(($A$8-$A87)<A$17,"",IF(($A$8-$A87)=A$17,SUM(OFFSET($J87,0,0,A$17,1)),ROUND(TRUNC((M88-(M88/A$17)+$J87),3),2))) -> 96.65 | N87: =IF(($A$8-$A87)<A$17,"",ROUND((100*(L87/K87)),0)) -> 14 | O87: =IF(($A$8-$A87)<A$17,"",ROUND((100*(M87/K87)),0)) -> 46 | P87: =IF(($A$8-$A87)<A$17,"",ABS(N87-O87)) -> 32 | Q87: =IF(($A$8-$A87)<A$17,"",N87+O87) -> 60 | R87: =IF(($A$8-$A87)<A$17,"",ROUND(100*(P87/Q87),0)) -> 53 | S87: =IF(($A$8-$A87)<(2*A$17),"",ROUND(IF(($A$8-$A87)=(2*A$17),AVERAGE(OFFSET(R87,0,0,A$17,1)),(((S88*(A$17-1))+R87)/A$17)),0)) -> 40 | T87: =IF(($A$8-$A87)<A$18,"",IF(($A$8-$A87)=A$18,SUM(OFFSET($H87,0,0,A$18,1)),ROUND(TRUNC((T88-(T88/A$18)+$H87),3),2))) -> 273.02 | U87: =IF(($A$8-$A87)<A$18,"",IF(($A$8-$A87)=A$18,SUM(OFFSET($I87,0,0,A$18,1)),ROUND(TRUNC((U88-(U88/A$18)+$I87),3),2))) -> 42.27 | V87: =IF(($A$8-$A87)<A$18,"",IF(($A$8-$A87)=A$18,SUM(OFFSET($J87,0,0,A$18,1)),ROUND(TRUNC((V88-(V88/A$18)+$J87),3),2))) -> 111.78 | W87: =IF(($A$8-$A87)<A$18,"",ROUND((100*(U87/T87)),0)) -> 15 | X87: =IF(($A$8-$A87)<A$18,"",ROUND((100*(V87/T87)),0)) -> 41 | Y87: =IF(($A$8-$A87)<A$18,"",ABS(W87-X87)) -> 26 | Z87: =IF(($A$8-$A87)<A$18,"",W87+X87) -> 56 | AA87: =IF(($A$8-$A87)<A$18,"",ROUND(100*(Y87/Z87),0)) -> 46 | AB87: =IF(($A$8-$A87)<(2*A$18),"",ROUND(IF(($A$8-$A87)=(2*A$18),AVERAGE(OFFSET(AA87,0,0,A$18,1)),(((AB88*(A$18-1))+AA87)/A$18)),0)) -> 31 | AC87: =IF(($A$8-$A87)<A$19,"",IF(($A$8-$A87)=A$19,SUM(OFFSET($H87,0,0,A$19,1)),ROUND(TRUNC((AC88-(AC88/A$19)+$H87),3),2))) -> 338.79 | AD87: =IF(($A$8-$A87)<A$19,"",IF(($A$8-$A87)=A$19,SUM(OFFSET($I87,0,0,A$19,1)),ROUND(TRUNC((AD88-(AD88/A$19)+$I87),3),2))) -> 55.46 | AE87: =IF(($A$8-$A87)<A$19,"",IF(($A$8-$A87)=A$19,SUM(OFFSET($J87,0,0,A$19,1)),ROUND(TRUNC((AE88-(AE88/A$19)+$J87),3),2))) -> 126.8 | AF87: =IF(($A$8-$A87)<A$19,"",ROUND((100*(AD87/AC87)),0)) -> 16 | AG87: =IF(($A$8-$A87)<A$19,"",ROUND((100*(AE87/AC87)),0)) -> 37 | AH87: =IF(($A$8-$A87)<A$19,"",ABS(AF87-AG87)) -> 21 | AI87: =IF(($A$8-$A87)<A$19,"",AF87+AG87) -> 53 | AJ87: =IF(($A$8-$A87)<A$19,"",ROUND(100*(AH87/AI87),0)) -> 40 | AK87: =IF(($A$8-$A87)<(2*A$19),"",ROUND(IF(($A$8-$A87)=(2*A$19),AVERAGE(OFFSET(AJ87,0,0,A$19,1)),(((AK88*(A$19-1))+AJ87)/A$19)),0)) -> 26 | AL87: 5 | AM87: 10 | AN87: 20 | AO87: 30 | AP87: 50 | AQ87: 70 | AR87: 90 | AS87: 0 | AT87: 0
A88: 56 | B88: =OFFSET(InputPriceData!B$10,CalculationsAndCharts!$A88+$A$11,0,1,1) -> 2011-05-31 | C88: =OFFSET(InputPriceData!G$10,CalculationsAndCharts!$A88+$A$11,0,1,1) -> 19206486900 | D88: =OFFSET(InputPriceData!C$10,CalculationsAndCharts!$A88+$A$11,0,1,1) -> 2359.05 | E88: =OFFSET(InputPriceData!D$10,CalculationsAndCharts!$A88+$A$11,0,1,1) -> 2373.82 | F88: =OFFSET(InputPriceData!E$10,CalculationsAndCharts!$A88+$A$11,0,1,1) -> 2289.41 | G88: =OFFSET(InputPriceData!F$10,CalculationsAndCharts!$A88+$A$11,0,1,1) -> 2292.31 | H88: 84.41 | I88: 34.72 | J88: 0 | K88: =IF(($A$8-$A88)<A$17,"",IF(($A$8-$A88)=A$17,SUM(OFFSET($H88,0,0,A$17,1)),ROUND(TRUNC((K89-(K89/A$17)+$H88),3),2))) -> 196.19 | L88: =IF(($A$8-$A88)<A$17,"",IF(($A$8-$A88)=A$17,SUM(OFFSET($I88,0,0,A$17,1)),ROUND(TRUNC((L89-(L89/A$17)+$I88),3),2))) -> 44.84 | M88: =IF(($A$8-$A88)<A$17,"",IF(($A$8-$A88)=A$17,SUM(OFFSET($J88,0,0,A$17,1)),ROUND(TRUNC((M89-(M89/A$17)+$J88),3),2))) -> 42.11 | N88: =IF(($A$8-$A88)<A$17,"",ROUND((100*(L88/K88)),0)) -> 23 | O88: =IF(($A$8-$A88)<A$17,"",ROUND((100*(M88/K88)),0)) -> 21 | P88: =IF(($A$8-$A88)<A$17,"",ABS(N88-O88)) -> 2 | Q88: =IF(($A$8-$A88)<A$17,"",N88+O88) -> 44 | R88: =IF(($A$8-$A88)<A$17,"",ROUND(100*(P88/Q88),0)) -> 5 | S88: =IF(($A$8-$A88)<(2*A$17),"",ROUND(IF(($A$8-$A88)=(2*A$17),AVERAGE(OFFSET(R88,0,0,A$17,1)),(((S89*(A$17-1))+R88)/A$17)),0)) -> 33 | T88: =IF(($A$8-$A88)<A$18,"",IF(($A$8-$A88)=A$18,SUM(OFFSET($H88,0,0,A$18,1)),ROUND(TRUNC((T89-(T89/A$18)+$H88),3),2))) -> 259.27 | U88: =IF(($A$8-$A88)<A$18,"",IF(($A$8-$A88)=A$18,SUM(OFFSET($I88,0,0,A$18,1)),ROUND(TRUNC((U89-(U89/A$18)+$I88),3),2))) -> 56.36 | V88: =IF(($A$8-$A88)<A$18,"",IF(($A$8-$A88)=A$18,SUM(OFFSET($J88,0,0,A$18,1)),ROUND(TRUNC((V89-(V89/A$18)+$J88),3),2))) -> 57.6 | W88: =IF(($A$8-$A88)<A$18,"",ROUND((100*(U88/T88)),0)) -> 22 | X88: =IF(($A$8-$A88)<A$18,"",ROUND((100*(V88/T88)),0)) -> 22 | Y88: =IF(($A$8-$A88)<A$18,"",ABS(W88-X88)) -> 0 | Z88: =IF(($A$8-$A88)<A$18,"",W88+X88) -> 44 | AA88: =IF(($A$8-$A88)<A$18,"",ROUND(100*(Y88/Z88),0)) -> 0 | AB88: =IF(($A$8-$A88)<(2*A$18),"",ROUND(IF(($A$8-$A88)=(2*A$18),AVERAGE(OFFSET(AA88,0,0,A$18,1)),(((AB89*(A$18-1))+AA88)/A$18)),0)) -> 26 | AC88: =IF(($A$8-$A88)<A$19,"",IF(($A$8-$A88)=A$19,SUM(OFFSET($H88,0,0,A$19,1)),ROUND(TRUNC((AC89-(AC89/A$19)+$H88),3),2))) -> 325.28 | AD88: =IF(($A$8-$A88)<A$19,"",IF(($A$8-$A88)=A$19,SUM(OFFSET($I88,0,0,A$19,1)),ROUND(TRUNC((AD89-(AD89/A$19)+$I88),3),2))) -> 69.33 | AE88: =IF(($A$8-$A88)<A$19,"",IF(($A$8-$A88)=A$19,SUM(OFFSET($J88,0,0,A$19,1)),ROUND(TRUNC((AE89-(AE89/A$19)+$J88),3),2))) -> 72.77 | AF88: =IF(($A$8-$A88)<A$19,"",ROUND((100*(AD88/AC88)),0)) -> 21 | AG88: =IF(($A$8-$A88)<A$19,"",ROUND((100*(AE88/AC88)),0)) -> 22 | AH88: =IF(($A$8-$A88)<A$19,"",ABS(AF88-AG88)) -> 1 | AI88: =IF(($A$8-$A88)<A$19,"",AF88+AG88) -> 43 | AJ88: =IF(($A$8-$A88)<A$19,"",ROUND(100*(AH88/AI88),0)) -> 2 | AK88: =IF(($A$8-$A88)<(2*A$19),"",ROUND(IF(($A$8-$A88)=(2*A$19),AVERAGE(OFFSET(AJ88,0,0,A$19,1)),(((AK89*(A$19-1))+AJ88)/A$19)),0)) -> 22 | AL88: 5 | AM88: 10 | AN88: 20 | AO88: 30 | AP88: 50 | AQ88: 70 | AR88: 90 | AS88: 0 | AT88: 0
A89: 57 | B89: =OFFSET(InputPriceData!B$10,CalculationsAndCharts!$A89+$A$11,0,1,1) -> 2011-05-23 | C89: =OFFSET(InputPriceData!G$10,CalculationsAndCharts!$A89+$A$11,0,1,1) -> 1822256000 | D89: =OFFSET(InputPriceData!C$10,CalculationsAndCharts!$A89+$A$11,0,1,1) -> 2318.16 | E89: =OFFSET(InputPriceData!D$10,CalculationsAndCharts!$A89+$A$11,0,1,1) -> 2339.1 | F89: =OFFSET(InputPriceData!E$10,CalculationsAndCharts!$A89+$A$11,0,1,1) -> 2298.72 | G89: =OFFSET(InputPriceData!F$10,CalculationsAndCharts!$A89+$A$11,0,1,1) -> 2336.09 | H89: 52.71 | I89: 0 | J89: 21.61 | K89: =IF(($A$8-$A89)<A$17,"",IF(($A$8-$A89)=A$17,SUM(OFFSET($H89,0,0,A$17,1)),ROUND(TRUNC((K90-(K90/A$17)+$H89),3),2))) -> 167.67 | L89: =IF(($A$8-$A89)<A$17,"",IF(($A$8-$A89)=A$17,SUM(OFFSET($I89,0,0,A$17,1)),ROUND(TRUNC((L90-(L90/A$17)+$I89),3),2))) -> 15.18 | M89: =IF(($A$8-$A89)<A$17,"",IF(($A$8-$A89)=A$17,SUM(OFFSET($J89,0,0,A$17,1)),ROUND(TRUNC((M90-(M90/A$17)+$J89),3),2))) -> 63.16 | N89: =IF(($A$8-$A89)<A$17,"",ROUND((100*(L89/K89)),0)) -> 9 | O89: =IF(($A$8-$A89)<A$17,"",ROUND((100*(M89/K89)),0)) -> 38 | P89: =IF(($A$8-$A89)<A$17,"",ABS(N89-O89)) -> 29 | Q89: =IF(($A$8-$A89)<A$17,"",N89+O89) -> 47 | R89: =IF(($A$8-$A89)<A$17,"",ROUND(100*(P89/Q89),0)) -> 62 | S89: =IF(($A$8-$A89)<(2*A$17),"",ROUND(IF(($A$8-$A89)=(2*A$17),AVERAGE(OFFSET(R89,0,0,A$17,1)),(((S90*(A$17-1))+R89)/A$17)),0)) -> 47 | T89: =IF(($A$8-$A89)<A$18,"",IF(($A$8-$A89)=A$18,SUM(OFFSET($H89,0,0,A$18,1)),ROUND(TRUNC((T90-(T90/A$18)+$H89),3),2))) -> 233.14 | U89: =IF(($A$8-$A89)<A$18,"",IF(($A$8-$A89)=A$18,SUM(OFFSET($I89,0,0,A$18,1)),ROUND(TRUNC((U90-(U90/A$18)+$I89),3),2))) -> 28.85 | V89: =IF(($A$8-$A89)<A$18,"",IF(($A$8-$A89)=A$18,SUM(OFFSET($J89,0,0,A$18,1)),ROUND(TRUNC((V90-(V90/A$18)+$J89),3),2))) -> 76.8 | W89: =IF(($A$8-$A89)<A$18,"",ROUND((100*(U89/T89)),0)) -> 12 | X89: =IF(($A$8-$A89)<A$18,"",ROUND((100*(V89/T89)),0)) -> 33 | Y89: =IF(($A$8-$A89)<A$18,"",ABS(W89-X89)) -> 21 | Z89: =IF(($A$8-$A89)<A$18,"",W89+X89) -> 45 | AA89: =IF(($A$8-$A89)<A$18,"",ROUND(100*(Y89/Z89),0)) -> 47 | AB89: =IF(($A$8-$A89)<(2*A$18),"",ROUND(IF(($A$8-$A89)=(2*A$18),AVERAGE(OFFSET(AA89,0,0,A$18,1)),(((AB90*(A$18-1))+AA89)/A$18)),0)) -> 35 | AC89: =IF(($A$8-$A89)<A$19,"",IF(($A$8-$A89)=A$19,SUM(OFFSET($H89,0,0,A$19,1)),ROUND(TRUNC((AC90-(AC90/A$19)+$H89),3),2))) -> 301.09 | AD89: =IF(($A$8-$A89)<A$19,"",IF(($A$8-$A89)=A$19,SUM(OFFSET($I89,0,0,A$19,1)),ROUND(TRUNC((AD90-(AD90/A$19)+$I89),3),2))) -> 43.26 | AE89: =IF(($A$8-$A89)<A$19,"",IF(($A$8-$A89)=A$19,SUM(OFFSET($J89,0,0,A$19,1)),ROUND(TRUNC((AE90-(AE90/A$19)+$J89),3),2))) -> 90.96 | AF89: =IF(($A$8-$A89)<A$19,"",ROUND((100*(AD89/AC89)),0)) -> 14 | AG89: =IF(($A$8-$A89)<A$19,"",ROUND((100*(AE89/AC89)),0)) -> 30 | AH89: =IF(($A$8-$A89)<A$19,"",ABS(AF89-AG89)) -> 16 | AI89: =IF(($A$8-$A89)<A$19,"",AF89+AG89) -> 44 | AJ89: =IF(($A$8-$A89)<A$19,"",ROUND(100*(AH89/AI89),0)) -> 36 | AK89: =IF(($A$8-$A89)<(2*A$19),"",ROUND(IF(($A$8-$A89)=(2*A$19),AVERAGE(OFFSET(AJ89,0,0,A$19,1)),(((AK90*(A$19-1))+AJ89)/A$19)),0)) -> 27 | AL89: 5 | AM89: 10 | AN89: 20 | AO89: 30 | AP89: 50 | AQ89: 70 | AR89: 90 | AS89: 0 | AT89: 0
A90: 58 | B90: =OFFSET(InputPriceData!B$10,CalculationsAndCharts!$A90+$A$11,0,1,1) -> 2011-05-16 | C90: =OFFSET(InputPriceData!G$10,CalculationsAndCharts!$A90+$A$11,0,1,1) -> 1939028000 | D90: =OFFSET(InputPriceData!C$10,CalculationsAndCharts!$A90+$A$11,0,1,1) -> 2368.47 | E90: =OFFSET(InputPriceData!D$10,CalculationsAndCharts!$A90+$A$11,0,1,1) -> 2375.36 | F90: =OFFSET(InputPriceData!E$10,CalculationsAndCharts!$A90+$A$11,0,1,1) -> 2320.33 | G90: =OFFSET(InputPriceData!F$10,CalculationsAndCharts!$A90+$A$11,0,1,1) -> 2351.43 | H90: 58.91 | I90: 0 | J90: 51.86 | K90: =IF(($A$8-$A90)<A$17,"",IF(($A$8-$A90)=A$17,SUM(OFFSET($H90,0,0,A$17,1)),ROUND(TRUNC((K91-(K91/A$17)+$H90),3),2))) -> 172.44 | L90: =IF(($A$8-$A90)<A$17,"",IF(($A$8-$A90)=A$17,SUM(OFFSET($I90,0,0,A$17,1)),ROUND(TRUNC((L91-(L91/A$17)+$I90),3),2))) -> 22.77 | M90: =IF(($A$8-$A90)<A$17,"",IF(($A$8-$A90)=A$17,SUM(OFFSET($J90,0,0,A$17,1)),ROUND(TRUNC((M91-(M91/A$17)+$J90),3),2))) -> 62.33 | N90: =IF(($A$8-$A90)<A$17,"",ROUND((100*(L90/K90)),0)) -> 13 | O90: =IF(($A$8-$A90)<A$17,"",ROUND((100*(M90/K90)),0)) -> 36 | P90: =IF(($A$8-$A90)<A$17,"",ABS(N90-O90)) -> 23 | Q90: =IF(($A$8-$A90)<A$17,"",N90+O90) -> 49 | R90: =IF(($A$8-$A90)<A$17,"",ROUND(100*(P90/Q90),0)) -> 47 | S90: =IF(($A$8-$A90)<(2*A$17),"",ROUND(IF(($A$8-$A90)=(2*A$17),AVERAGE(OFFSET(R90,0,0,A$17,1)),(((S91*(A$17-1))+R90)/A$17)),0)) -> 40 | T90: =IF(($A$8-$A90)<A$18,"",IF(($A$8-$A90)=A$18,SUM(OFFSET($H90,0,0,A$18,1)),ROUND(TRUNC((T91-(T91/A$18)+$H90),3),2))) -> 240.57 | U90: =IF(($A$8-$A90)<A$18,"",IF(($A$8-$A90)=A$18,SUM(OFFSET($I90,0,0,A$18,1)),ROUND(TRUNC((U91-(U91/A$18)+$I90),3),2))) -> 38.47 | V90: =IF(($A$8-$A90)<A$18,"",IF(($A$8-$A90)=A$18,SUM(OFFSET($J90,0,0,A$18,1)),ROUND(TRUNC((V91-(V91/A$18)+$J90),3),2))) -> 73.59 | W90: =IF(($A$8-$A90)<A$18,"",ROUND((100*(U90/T90)),0)) -> 16 | X90: =IF(($A$8-$A90)<A$18,"",ROUND((100*(V90/T90)),0)) -> 31 | Y90: =IF(($A$8-$A90)<A$18,"",ABS(W90-X90)) -> 15 | Z90: =IF(($A$8-$A90)<A$18,"",W90+X90) -> 47 | AA90: =IF(($A$8-$A90)<A$18,"",ROUND(100*(Y90/Z90),0)) -> 32 | AB90: =IF(($A$8-$A90)<(2*A$18),"",ROUND(IF(($A$8-$A90)=(2*A$18),AVERAGE(OFFSET(AA90,0,0,A$18,1)),(((AB91*(A$18-1))+AA90)/A$18)),0)) -> 31 | AC90: =IF(($A$8-$A90)<A$19,"",IF(($A$8-$A90)=A$19,SUM(OFFSET($H90,0,0,A$19,1)),ROUND(TRUNC((AC91-(AC91/A$19)+$H90),3),2))) -> 310.48 | AD90: =IF(($A$8-$A90)<A$19,"",IF(($A$8-$A90)=A$19,SUM(OFFSET($I90,0,0,A$19,1)),ROUND(TRUNC((AD91-(AD91/A$19)+$I90),3),2))) -> 54.08 | AE90: =IF(($A$8-$A90)<A$19,"",IF(($A$8-$A90)=A$19,SUM(OFFSET($J90,0,0,A$19,1)),ROUND(TRUNC((AE91-(AE91/A$19)+$J90),3),2))) -> 86.69 | AF90: =IF(($A$8-$A90)<A$19,"",ROUND((100*(AD90/AC90)),0)) -> 17 | AG90: =IF(($A$8-$A90)<A$19,"",ROUND((100*(AE90/AC90)),0)) -> 28 | AH90: =IF(($A$8-$A90)<A$19,"",ABS(AF90-AG90)) -> 11 | AI90: =IF(($A$8-$A90)<A$19,"",AF90+AG90) -> 45 | AJ90: =IF(($A$8-$A90)<A$19,"",ROUND(100*(AH90/AI90),0)) -> 24 | AK90: =IF(($A$8-$A90)<(2*A$19),"",ROUND(IF(($A$8-$A90)=(2*A$19),AVERAGE(OFFSET(AJ90,0,0,A$19,1)),(((AK91*(A$19-1))+AJ90)/A$19)),0)) -> 25 | AL90: 5 | AM90: 10 | AN90: 20 | AO90: 30 | AP90: 50 | AQ90: 70 | AR90: 90 | AS90: 0 | AT90: 0
A91: 59 | B91: =OFFSET(InputPriceData!B$10,CalculationsAndCharts!$A91+$A$11,0,1,1) -> 2011-05-09 | C91: =OFFSET(InputPriceData!G$10,CalculationsAndCharts!$A91+$A$11,0,1,1) -> 2010516000 | D91: =OFFSET(InputPriceData!C$10,CalculationsAndCharts!$A91+$A$11,0,1,1) -> 2384.2 | E91: =OFFSET(InputPriceData!D$10,CalculationsAndCharts!$A91+$A$11,0,1,1) -> 2415.9 | F91: =OFFSET(InputPriceData!E$10,CalculationsAndCharts!$A91+$A$11,0,1,1) -> 2372.19 | G91: =OFFSET(InputPriceData!F$10,CalculationsAndCharts!$A91+$A$11,0,1,1) -> 2379.24 | H91: 43.71 | I91: 0 | J91: 0 | K91: =IF(($A$8-$A91)<A$17,"",IF(($A$8-$A91)=A$17,SUM(OFFSET($H91,0,0,A$17,1)),ROUND(TRUNC((K92-(K92/A$17)+$H91),3),2))) -> 170.3 | L91: =IF(($A$8-$A91)<A$17,"",IF(($A$8-$A91)=A$17,SUM(OFFSET($I91,0,0,A$17,1)),ROUND(TRUNC((L92-(L92/A$17)+$I91),3),2))) -> 34.15 | M91: =IF(($A$8-$A91)<A$17,"",IF(($A$8-$A91)=A$17,SUM(OFFSET($J91,0,0,A$17,1)),ROUND(TRUNC((M92-(M92/A$17)+$J91),3),2))) -> 15.7 | N91: =IF(($A$8-$A91)<A$17,"",ROUND((100*(L91/K91)),0)) -> 20 | O91: =IF(($A$8-$A91)<A$17,"",ROUND((100*(M91/K91)),0)) -> 9 | P91: =IF(($A$8-$A91)<A$17,"",ABS(N91-O91)) -> 11 | Q91: =IF(($A$8-$A91)<A$17,"",N91+O91) -> 29 | R91: =IF(($A$8-$A91)<A$17,"",ROUND(100*(P91/Q91),0)) -> 38 | S91: =IF(($A$8-$A91)<(2*A$17),"",ROUND(IF(($A$8-$A91)=(2*A$17),AVERAGE(OFFSET(R91,0,0,A$17,1)),(((S92*(A$17-1))+R91)/A$17)),0)) -> 37 | T91: =IF(($A$8-$A91)<A$18,"",IF(($A$8-$A91)=A$18,SUM(OFFSET($H91,0,0,A$18,1)),ROUND(TRUNC((T92-(T92/A$18)+$H91),3),2))) -> 242.21 | U91: =IF(($A$8-$A91)<A$18,"",IF(($A$8-$A91)=A$18,SUM(OFFSET($I91,0,0,A$18,1)),ROUND(TRUNC((U92-(U92/A$18)+$I91),3),2))) -> 51.29 | V91: =IF(($A$8-$A91)<A$18,"",IF(($A$8-$A91)=A$18,SUM(OFFSET($J91,0,0,A$18,1)),ROUND(TRUNC((V92-(V92/A$18)+$J91),3),2))) -> 28.97 | W91: =IF(($A$8-$A91)<A$18,"",ROUND((100*(U91/T91)),0)) -> 21 | X91: =IF(($A$8-$A91)<A$18,"",ROUND((100*(V91/T91)),0)) -> 12 | Y91: =IF(($A$8-$A91)<A$18,"",ABS(W91-X91)) -> 9 | Z91: =IF(($A$8-$A91)<A$18,"",W91+X91) -> 33 | AA91: =IF(($A$8-$A91)<A$18,"",ROUND(100*(Y91/Z91),0)) -> 27 | AB91: =IF(($A$8-$A91)<(2*A$18),"",ROUND(IF(($A$8-$A91)=(2*A$18),AVERAGE(OFFSET(AA91,0,0,A$18,1)),(((AB92*(A$18-1))+AA91)/A$18)),0)) -> 30 | AC91: =IF(($A$8-$A91)<A$19,"",IF(($A$8-$A91)=A$19,SUM(OFFSET($H91,0,0,A$19,1)),ROUND(TRUNC((AC92-(AC92/A$19)+$H91),3),2))) -> 314.46 | AD91: =IF(($A$8-$A91)<A$19,"",IF(($A$8-$A91)=A$19,SUM(OFFSET($I91,0,0,A$19,1)),ROUND(TRUNC((AD92-(AD92/A$19)+$I91),3),2))) -> 67.6 | AE91: =IF(($A$8-$A91)<A$19,"",IF(($A$8-$A91)=A$19,SUM(OFFSET($J91,0,0,A$19,1)),ROUND(TRUNC((AE92-(AE92/A$19)+$J91),3),2))) -> 43.54 | AF91: =IF(($A$8-$A91)<A$19,"",ROUND((100*(AD91/AC91)),0)) -> 21 | AG91: =IF(($A$8-$A91)<A$19,"",ROUND((100*(AE91/AC91)),0)) -> 14 | AH91: =IF(($A$8-$A91)<A$19,"",ABS(AF91-AG91)) -> 7 | AI91: =IF(($A$8-$A91)<A$19,"",AF91+AG91) -> 35 | AJ91: =IF(($A$8-$A91)<A$19,"",ROUND(100*(AH91/AI91),0)) -> 20 | AK91: =IF(($A$8-$A91)<(2*A$19),"",ROUND(IF(($A$8-$A91)=(2*A$19),AVERAGE(OFFSET(AJ91,0,0,A$19,1)),(((AK92*(A$19-1))+AJ91)/A$19)),0)) -> 25 | AL91: 5 | AM91: 10 | AN91: 20 | AO91: 30 | AP91: 50 | AQ91: 70 | AR91: 90 | AS91: 0 | AT91: 0
A92: 60 | B92: =OFFSET(InputPriceData!B$10,CalculationsAndCharts!$A92+$A$11,0,1,1) -> 2011-05-02 | C92: =OFFSET(InputPriceData!G$10,CalculationsAndCharts!$A92+$A$11,0,1,1) -> 2151604000 | D92: =OFFSET(InputPriceData!C$10,CalculationsAndCharts!$A92+$A$11,0,1,1) -> 2410.24 | E92: =OFFSET(InputPriceData!D$10,CalculationsAndCharts!$A92+$A$11,0,1,1) -> 2417.83 | F92: =OFFSET(InputPriceData!E$10,CalculationsAndCharts!$A92+$A$11,0,1,1) -> 2366.73 | G92: =OFFSET(InputPriceData!F$10,CalculationsAndCharts!$A92+$A$11,0,1,1) -> 2383.18 | H92: 51.1 | I92: 0 | J92: 8.39 | K92: =IF(($A$8-$A92)<A$17,"",IF(($A$8-$A92)=A$17,SUM(OFFSET($H92,0,0,A$17,1)),ROUND(TRUNC((K93-(K93/A$17)+$H92),3),2))) -> 189.89 | L92: =IF(($A$8-$A92)<A$17,"",IF(($A$8-$A92)=A$17,SUM(OFFSET($I92,0,0,A$17,1)),ROUND(TRUNC((L93-(L93/A$17)+$I92),3),2))) -> 51.22 | M92: =IF(($A$8-$A92)<A$17,"",IF(($A$8-$A92)=A$17,SUM(OFFSET($J92,0,0,A$17,1)),ROUND(TRUNC((M93-(M93/A$17)+$J92),3),2))) -> 23.55 | N92: =IF(($A$8-$A92)<A$17,"",ROUND((100*(L92/K92)),0)) -> 27 | O92: =IF(($A$8-$A92)<A$17,"",ROUND((100*(M92/K92)),0)) -> 12 | P92: =IF(($A$8-$A92)<A$17,"",ABS(N92-O92)) -> 15 | Q92: =IF(($A$8-$A92)<A$17,"",N92+O92) -> 39 | R92: =IF(($A$8-$A92)<A$17,"",ROUND(100*(P92/Q92),0)) -> 38 | S92: =IF(($A$8-$A92)<(2*A$17),"",ROUND(IF(($A$8-$A92)=(2*A$17),AVERAGE(OFFSET(R92,0,0,A$17,1)),(((S93*(A$17-1))+R92)/A$17)),0)) -> 37 | T92: =IF(($A$8-$A92)<A$18,"",IF(($A$8-$A92)=A$18,SUM(OFFSET($H92,0,0,A$18,1)),ROUND(TRUNC((T93-(T93/A$18)+$H92),3),2))) -> 264.66 | U92: =IF(($A$8-$A92)<A$18,"",IF(($A$8-$A92)=A$18,SUM(OFFSET($I92,0,0,A$18,1)),ROUND(TRUNC((U93-(U93/A$18)+$I92),3),2))) -> 68.39 | V92: =IF(($A$8-$A92)<A$18,"",IF(($A$8-$A92)=A$18,SUM(OFFSET($J92,0,0,A$18,1)),ROUND(TRUNC((V93-(V93/A$18)+$J92),3),2))) -> 38.63 | W92: =IF(($A$8-$A92)<A$18,"",ROUND((100*(U92/T92)),0)) -> 26 | X92: =IF(($A$8-$A92)<A$18,"",ROUND((100*(V92/T92)),0)) -> 15 | Y92: =IF(($A$8-$A92)<A$18,"",ABS(W92-X92)) -> 11 | Z92: =IF(($A$8-$A92)<A$18,"",W92+X92) -> 41 | AA92: =IF(($A$8-$A92)<A$18,"",ROUND(100*(Y92/Z92),0)) -> 27 | AB92: =IF(($A$8-$A92)<(2*A$18),"",ROUND(IF(($A$8-$A92)=(2*A$18),AVERAGE(OFFSET(AA92,0,0,A$18,1)),(((AB93*(A$18-1))+AA92)/A$18)),0)) -> 31 | AC92: =IF(($A$8-$A92)<A$19,"",IF(($A$8-$A92)=A$19,SUM(OFFSET($H92,0,0,A$19,1)),ROUND(TRUNC((AC93-(AC93/A$19)+$H92),3),2))) -> 338.44 | AD92: =IF(($A$8-$A92)<A$19,"",IF(($A$8-$A92)=A$19,SUM(OFFSET($I92,0,0,A$19,1)),ROUND(TRUNC((AD93-(AD93/A$19)+$I92),3),2))) -> 84.5 | AE92: =IF(($A$8-$A92)<A$19,"",IF(($A$8-$A92)=A$19,SUM(OFFSET($J92,0,0,A$19,1)),ROUND(TRUNC((AE93-(AE93/A$19)+$J92),3),2))) -> 54.43 | AF92: =IF(($A$8-$A92)<A$19,"",ROUND((100*(AD92/AC92)),0)) -> 25 | AG92: =IF(($A$8-$A92)<A$19,"",ROUND((100*(AE92/AC92)),0)) -> 16 | AH92: =IF(($A$8-$A92)<A$19,"",ABS(AF92-AG92)) -> 9 | AI92: =IF(($A$8-$A92)<A$19,"",AF92+AG92) -> 41 | AJ92: =IF(($A$8-$A92)<A$19,"",ROUND(100*(AH92/AI92),0)) -> 22 | AK92: =IF(($A$8-$A92)<(2*A$19),"",ROUND(IF(($A$8-$A92)=(2*A$19),AVERAGE(OFFSET(AJ92,0,0,A$19,1)),(((AK93*(A$19-1))+AJ92)/A$19)),0)) -> 26 | AL92: 5 | AM92: 10 | AN92: 20 | AO92: 30 | AP92: 50 | AQ92: 70 | AR92: 90 | AS92: 0 | AT92: 0
A93: 61 | B93: =OFFSET(InputPriceData!B$10,CalculationsAndCharts!$A93+$A$11,0,1,1) -> 2011-04-25 | C93: =OFFSET(InputPriceData!G$10,CalculationsAndCharts!$A93+$A$11,0,1,1) -> 2009800000 | D93: =OFFSET(InputPriceData!C$10,CalculationsAndCharts!$A93+$A$11,0,1,1) -> 2377.91 | E93: =OFFSET(InputPriceData!D$10,CalculationsAndCharts!$A93+$A$11,0,1,1) -> 2415.85 | F93: =OFFSET(InputPriceData!E$10,CalculationsAndCharts!$A93+$A$11,0,1,1) -> 2375.12 | G93: =OFFSET(InputPriceData!F$10,CalculationsAndCharts!$A93+$A$11,0,1,1) -> 2404.08 | H93: 40.73 | I93: 34.65 | J93: 0 | K93: =IF(($A$8-$A93)<A$17,"",IF(($A$8-$A93)=A$17,SUM(OFFSET($H93,0,0,A$17,1)),ROUND(TRUNC((K94-(K94/A$17)+$H93),3),2))) -> 208.18 | L93: =IF(($A$8-$A93)<A$17,"",IF(($A$8-$A93)=A$17,SUM(OFFSET($I93,0,0,A$17,1)),ROUND(TRUNC((L94-(L94/A$17)+$I93),3),2))) -> 76.83 | M93: =IF(($A$8-$A93)<A$17,"",IF(($A$8-$A93)=A$17,SUM(OFFSET($J93,0,0,A$17,1)),ROUND(TRUNC((M94-(M94/A$17)+$J93),3),2))) -> 22.74 | N93: =IF(($A$8-$A93)<A$17,"",ROUND((100*(L93/K93)),0)) -> 37 | O93: =IF(($A$8-$A93)<A$17,"",ROUND((100*(M93/K93)),0)) -> 11 | P93: =IF(($A$8-$A93)<A$17,"",ABS(N93-O93)) -> 26 | Q93: =IF(($A$8-$A93)<A$17,"",N93+O93) -> 48 | R93: =IF(($A$8-$A93)<A$17,"",ROUND(100*(P93/Q93),0)) -> 54 | S93: =IF(($A$8-$A93)<(2*A$17),"",ROUND(IF(($A$8-$A93)=(2*A$17),AVERAGE(OFFSET(R93,0,0,A$17,1)),(((S94*(A$17-1))+R93)/A$17)),0)) -> 37 | T93: =IF(($A$8-$A93)<A$18,"",IF(($A$8-$A93)=A$18,SUM(OFFSET($H93,0,0,A$18,1)),ROUND(TRUNC((T94-(T94/A$18)+$H93),3),2))) -> 284.74 | U93: =IF(($A$8-$A93)<A$18,"",IF(($A$8-$A93)=A$18,SUM(OFFSET($I93,0,0,A$18,1)),ROUND(TRUNC((U94-(U94/A$18)+$I93),3),2))) -> 91.19 | V93: =IF(($A$8-$A93)<A$18,"",IF(($A$8-$A93)=A$18,SUM(OFFSET($J93,0,0,A$18,1)),ROUND(TRUNC((V94-(V94/A$18)+$J93),3),2))) -> 40.32 | W93: =IF(($A$8-$A93)<A$18,"",ROUND((100*(U93/T93)),0)) -> 32 | X93: =IF(($A$8-$A93)<A$18,"",ROUND((100*(V93/T93)),0)) -> 14 | Y93: =IF(($A$8-$A93)<A$18,"",ABS(W93-X93)) -> 18 | Z93: =IF(($A$8-$A93)<A$18,"",W93+X93) -> 46 | AA93: =IF(($A$8-$A93)<A$18,"",ROUND(100*(Y93/Z93),0)) -> 39 | AB93: =IF(($A$8-$A93)<(2*A$18),"",ROUND(IF(($A$8-$A93)=(2*A$18),AVERAGE(OFFSET(AA93,0,0,A$18,1)),(((AB94*(A$18-1))+AA93)/A$18)),0)) -> 32 | AC93: =IF(($A$8-$A93)<A$19,"",IF(($A$8-$A93)=A$19,SUM(OFFSET($H93,0,0,A$19,1)),ROUND(TRUNC((AC94-(AC94/A$19)+$H93),3),2))) -> 359.18 | AD93: =IF(($A$8-$A93)<A$19,"",IF(($A$8-$A93)=A$19,SUM(OFFSET($I93,0,0,A$19,1)),ROUND(TRUNC((AD94-(AD94/A$19)+$I93),3),2))) -> 105.63 | AE93: =IF(($A$8-$A93)<A$19,"",IF(($A$8-$A93)=A$19,SUM(OFFSET($J93,0,0,A$19,1)),ROUND(TRUNC((AE94-(AE94/A$19)+$J93),3),2))) -> 57.55 | AF93: =IF(($A$8-$A93)<A$19,"",ROUND((100*(AD93/AC93)),0)) -> 29 | AG93: =IF(($A$8-$A93)<A$19,"",ROUND((100*(AE93/AC93)),0)) -> 16 | AH93: =IF(($A$8-$A93)<A$19,"",ABS(AF93-AG93)) -> 13 | AI93: =IF(($A$8-$A93)<A$19,"",AF93+AG93) -> 45 | AJ93: =IF(($A$8-$A93)<A$19,"",ROUND(100*(AH93/AI93),0)) -> 29 | AK93: =IF(($A$8-$A93)<(2*A$19),"",ROUND(IF(($A$8-$A93)=(2*A$19),AVERAGE(OFFSET(AJ93,0,0,A$19,1)),(((AK94*(A$19-1))+AJ93)/A$19)),0)) -> 27 | AL93: 5 | AM93: 10 | AN93: 20 | AO93: 30 | AP93: 50 | AQ93: 70 | AR93: 90 | AS93: =IF($A93=$B$27,AS$32,0) -> 0 | AT93: 0
A94: 62 | B94: =OFFSET(InputPriceData!B$10,CalculationsAndCharts!$A94+$A$11,0,1,1) -> 2011-04-18 | C94: =OFFSET(InputPriceData!G$10,CalculationsAndCharts!$A94+$A$11,0,1,1) -> 1912785000 | D94: =OFFSET(InputPriceData!C$10,CalculationsAndCharts!$A94+$A$11,0,1,1) -> 2281.92 | E94: =OFFSET(InputPriceData!D$10,CalculationsAndCharts!$A94+$A$11,0,1,1) -> 2381.2 | F94: =OFFSET(InputPriceData!E$10,CalculationsAndCharts!$A94+$A$11,0,1,1) -> 2254.88 | G94: =OFFSET(InputPriceData!F$10,CalculationsAndCharts!$A94+$A$11,0,1,1) -> 2377.3 | H94: 126.32 | I94: 47.22 | J94: 0 | K94: =IF(($A$8-$A94)<A$17,"",IF(($A$8-$A94)=A$17,SUM(OFFSET($H94,0,0,A$17,1)),ROUND(TRUNC((K95-(K95/A$17)+$H94),3),2))) -> 251.17 | L94: =IF(($A$8-$A94)<A$17,"",IF(($A$8-$A94)=A$17,SUM(OFFSET($I94,0,0,A$17,1)),ROUND(TRUNC((L95-(L95/A$17)+$I94),3),2))) -> 63.27 | M94: =IF(($A$8-$A94)<A$17,"",IF(($A$8-$A94)=A$17,SUM(OFFSET($J94,0,0,A$17,1)),ROUND(TRUNC((M95-(M95/A$17)+$J94),3),2))) -> 34.11 | N94: =IF(($A$8-$A94)<A$17,"",ROUND((100*(L94/K94)),0)) -> 25 | O94: =IF(($A$8-$A94)<A$17,"",ROUND((100*(M94/K94)),0)) -> 14 | P94: =IF(($A$8-$A94)<A$17,"",ABS(N94-O94)) -> 11 | Q94: =IF(($A$8-$A94)<A$17,"",N94+O94) -> 39 | R94: =IF(($A$8-$A94)<A$17,"",ROUND(100*(P94/Q94),0)) -> 28 | S94: =IF(($A$8-$A94)<(2*A$17),"",ROUND(IF(($A$8-$A94)=(2*A$17),AVERAGE(OFFSET(R94,0,0,A$17,1)),(((S95*(A$17-1))+R94)/A$17)),0)) -> 29 | T94: =IF(($A$8-$A94)<A$18,"",IF(($A$8-$A94)=A$18,SUM(OFFSET($H94,0,0,A$18,1)),ROUND(TRUNC((T95-(T95/A$18)+$H94),3),2))) -> 325.35 | U94: =IF(($A$8-$A94)<A$18,"",IF(($A$8-$A94)=A$18,SUM(OFFSET($I94,0,0,A$18,1)),ROUND(TRUNC((U95-(U95/A$18)+$I94),3),2))) -> 75.38 | V94: =IF(($A$8-$A94)<A$18,"",IF(($A$8-$A94)=A$18,SUM(OFFSET($J94,0,0,A$18,1)),ROUND(TRUNC((V95-(V95/A$18)+$J94),3),2))) -> 53.76 | W94: =IF(($A$8-$A94)<A$18,"",ROUND((100*(U94/T94)),0)) -> 23 | X94: =IF(($A$8-$A94)<A$18,"",ROUND((100*(V94/T94)),0)) -> 17 | Y94: =IF(($A$8-$A94)<A$18,"",ABS(W94-X94)) -> 6 | Z94: =IF(($A$8-$A94)<A$18,"",W94+X94) -> 40 | AA94: =IF(($A$8-$A94)<A$18,"",ROUND(100*(Y94/Z94),0)) -> 15 | AB94: =IF(($A$8-$A94)<(2*A$18),"",ROUND(IF(($A$8-$A94)=(2*A$18),AVERAGE(OFFSET(AA94,0,0,A$18,1)),(((AB95*(A$18-1))+AA94)/A$18)),0)) -> 29 | AC94: =IF(($A$8-$A94)<A$19,"",IF(($A$8-$A94)=A$19,SUM(OFFSET($H94,0,0,A$19,1)),ROUND(TRUNC((AC95-(AC95/A$19)+$H94),3),2))) -> 398.06 | AD94: =IF(($A$8-$A94)<A$19,"",IF(($A$8-$A94)=A$19,SUM(OFFSET($I94,0,0,A$19,1)),ROUND(TRUNC((AD95-(AD95/A$19)+$I94),3),2))) -> 88.72 | AE94: =IF(($A$8-$A94)<A$19,"",IF(($A$8-$A94)=A$19,SUM(OFFSET($J94,0,0,A$19,1)),ROUND(TRUNC((AE95-(AE95/A$19)+$J94),3),2))) -> 71.94 | AF94: =IF(($A$8-$A94)<A$19,"",ROUND((100*(AD94/AC94)),0)) -> 22 | AG94: =IF(($A$8-$A94)<A$19,"",ROUND((100*(AE94/AC94)),0)) -> 18 | AH94: =IF(($A$8-$A94)<A$19,"",ABS(AF94-AG94)) -> 4 | AI94: =IF(($A$8-$A94)<A$19,"",AF94+AG94) -> 40 | AJ94: =IF(($A$8-$A94)<A$19,"",ROUND(100*(AH94/AI94),0)) -> 10 | AK94: =IF(($A$8-$A94)<(2*A$19),"",ROUND(IF(($A$8-$A94)=(2*A$19),AVERAGE(OFFSET(AJ94,0,0,A$19,1)),(((AK95*(A$19-1))+AJ94)/A$19)),0)) -> 27 | AL94: 5 | AM94: 10 | AN94: 20 | AO94: 30 | AP94: 50 | AQ94: 70 | AR94: 90 | AS94: 0 | AT94: 0
A95: 63 | B95: =OFFSET(InputPriceData!B$10,CalculationsAndCharts!$A95+$A$11,0,1,1) -> 2011-04-11 | C95: =OFFSET(InputPriceData!G$10,CalculationsAndCharts!$A95+$A$11,0,1,1) -> 1823888000 | D95: =OFFSET(InputPriceData!C$10,CalculationsAndCharts!$A95+$A$11,0,1,1) -> 2330.26 | E95: =OFFSET(InputPriceData!D$10,CalculationsAndCharts!$A95+$A$11,0,1,1) -> 2333.98 | F95: =OFFSET(InputPriceData!E$10,CalculationsAndCharts!$A95+$A$11,0,1,1) -> 2288.68 | G95: =OFFSET(InputPriceData!F$10,CalculationsAndCharts!$A95+$A$11,0,1,1) -> 2307.58 | H95: 45.3 | I95: 0 | J95: 24.65 | K95: =IF(($A$8-$A95)<A$17,"",IF(($A$8-$A95)=A$17,SUM(OFFSET($H95,0,0,A$17,1)),ROUND(TRUNC((K96-(K96/A$17)+$H95),3),2))) -> 187.28 | L95: =IF(($A$8-$A95)<A$17,"",IF(($A$8-$A95)=A$17,SUM(OFFSET($I95,0,0,A$17,1)),ROUND(TRUNC((L96-(L96/A$17)+$I95),3),2))) -> 24.07 | M95: =IF(($A$8-$A95)<A$17,"",IF(($A$8-$A95)=A$17,SUM(OFFSET($J95,0,0,A$17,1)),ROUND(TRUNC((M96-(M96/A$17)+$J95),3),2))) -> 51.16 | N95: =IF(($A$8-$A95)<A$17,"",ROUND((100*(L95/K95)),0)) -> 13 | O95: =IF(($A$8-$A95)<A$17,"",ROUND((100*(M95/K95)),0)) -> 27 | P95: =IF(($A$8-$A95)<A$17,"",ABS(N95-O95)) -> 14 | Q95: =IF(($A$8-$A95)<A$17,"",N95+O95) -> 40 | R95: =IF(($A$8-$A95)<A$17,"",ROUND(100*(P95/Q95),0)) -> 35 | S95: =IF(($A$8-$A95)<(2*A$17),"",ROUND(IF(($A$8-$A95)=(2*A$17),AVERAGE(OFFSET(R95,0,0,A$17,1)),(((S96*(A$17-1))+R95)/A$17)),0)) -> 30 | T95: =IF(($A$8-$A95)<A$18,"",IF(($A$8-$A95)=A$18,SUM(OFFSET($H95,0,0,A$18,1)),ROUND(TRUNC((T96-(T96/A$18)+$H95),3),2))) -> 265.37 | U95: =IF(($A$8-$A95)<A$18,"",IF(($A$8-$A95)=A$18,SUM(OFFSET($I95,0,0,A$18,1)),ROUND(TRUNC((U96-(U96/A$18)+$I95),3),2))) -> 37.55 | V95: =IF(($A$8-$A95)<A$18,"",IF(($A$8-$A95)=A$18,SUM(OFFSET($J95,0,0,A$18,1)),ROUND(TRUNC((V96-(V96/A$18)+$J95),3),2))) -> 71.68 | W95: =IF(($A$8-$A95)<A$18,"",ROUND((100*(U95/T95)),0)) -> 14 | X95: =IF(($A$8-$A95)<A$18,"",ROUND((100*(V95/T95)),0)) -> 27 | Y95: =IF(($A$8-$A95)<A$18,"",ABS(W95-X95)) -> 13 | Z95: =IF(($A$8-$A95)<A$18,"",W95+X95) -> 41 | AA95: =IF(($A$8-$A95)<A$18,"",ROUND(100*(Y95/Z95),0)) -> 32 | AB95: =IF(($A$8-$A95)<(2*A$18),"",ROUND(IF(($A$8-$A95)=(2*A$18),AVERAGE(OFFSET(AA95,0,0,A$18,1)),(((AB96*(A$18-1))+AA95)/A$18)),0)) -> 33 | AC95: =IF(($A$8-$A95)<A$19,"",IF(($A$8-$A95)=A$19,SUM(OFFSET($H95,0,0,A$19,1)),ROUND(TRUNC((AC96-(AC96/A$19)+$H95),3),2))) -> 339.68 | AD95: =IF(($A$8-$A95)<A$19,"",IF(($A$8-$A95)=A$19,SUM(OFFSET($I95,0,0,A$19,1)),ROUND(TRUNC((AD96-(AD96/A$19)+$I95),3),2))) -> 51.87 | AE95: =IF(($A$8-$A95)<A$19,"",IF(($A$8-$A95)=A$19,SUM(OFFSET($J95,0,0,A$19,1)),ROUND(TRUNC((AE96-(AE96/A$19)+$J95),3),2))) -> 89.93 | AF95: =IF(($A$8-$A95)<A$19,"",ROUND((100*(AD95/AC95)),0)) -> 15 | AG95: =IF(($A$8-$A95)<A$19,"",ROUND((100*(AE95/AC95)),0)) -> 26 | AH95: =IF(($A$8-$A95)<A$19,"",ABS(AF95-AG95)) -> 11 | AI95: =IF(($A$8-$A95)<A$19,"",AF95+AG95) -> 41 | AJ95: =IF(($A$8-$A95)<A$19,"",ROUND(100*(AH95/AI95),0)) -> 27 | AK95: =IF(($A$8-$A95)<(2*A$19),"",ROUND(IF(($A$8-$A95)=(2*A$19),AVERAGE(OFFSET(AJ95,0,0,A$19,1)),(((AK96*(A$19-1))+AJ95)/A$19)),0)) -> 31 | AL95: 5 | AM95: 10 | AN95: 20 | AO95: 30 | AP95: 50 | AQ95: 70 | AR95: 90 | AS95: 0 | AT95: 0
A96: 64 | B96: =OFFSET(InputPriceData!B$10,CalculationsAndCharts!$A96+$A$11,0,1,1) -> 2011-04-04 | C96: =OFFSET(InputPriceData!G$10,CalculationsAndCharts!$A96+$A$11,0,1,1) -> 1822980000 | D96: =OFFSET(InputPriceData!C$10,CalculationsAndCharts!$A96+$A$11,0,1,1) -> 2347.71 | E96: =OFFSET(InputPriceData!D$10,CalculationsAndCharts!$A96+$A$11,0,1,1) -> 2352.25 | F96: =OFFSET(InputPriceData!E$10,CalculationsAndCharts!$A96+$A$11,0,1,1) -> 2313.33 | G96: =OFFSET(InputPriceData!F$10,CalculationsAndCharts!$A96+$A$11,0,1,1) -> 2321.18 | H96: 38.92 | I96: 0 | J96: 0 | K96: =IF(($A$8-$A96)<A$17,"",IF(($A$8-$A96)=A$17,SUM(OFFSET($H96,0,0,A$17,1)),ROUND(TRUNC((K97-(K97/A$17)+$H96),3),2))) -> 212.97 | L96: =IF(($A$8-$A96)<A$17,"",IF(($A$8-$A96)=A$17,SUM(OFFSET($I96,0,0,A$17,1)),ROUND(TRUNC((L97-(L97/A$17)+$I96),3),2))) -> 36.11 | M96: =IF(($A$8-$A96)<A$17,"",IF(($A$8-$A96)=A$17,SUM(OFFSET($J96,0,0,A$17,1)),ROUND(TRUNC((M97-(M97/A$17)+$J96),3),2))) -> 39.77 | N96: =IF(($A$8-$A96)<A$17,"",ROUND((100*(L96/K96)),0)) -> 17 | O96: =IF(($A$8-$A96)<A$17,"",ROUND((100*(M96/K96)),0)) -> 19 | P96: =IF(($A$8-$A96)<A$17,"",ABS(N96-O96)) -> 2 | Q96: =IF(($A$8-$A96)<A$17,"",N96+O96) -> 36 | R96: =IF(($A$8-$A96)<A$17,"",ROUND(100*(P96/Q96),0)) -> 6 | S96: =IF(($A$8-$A96)<(2*A$17),"",ROUND(IF(($A$8-$A96)=(2*A$17),AVERAGE(OFFSET(R96,0,0,A$17,1)),(((S97*(A$17-1))+R96)/A$17)),0)) -> 27 | T96: =IF(($A$8-$A96)<A$18,"",IF(($A$8-$A96)=A$18,SUM(OFFSET($H96,0,0,A$18,1)),ROUND(TRUNC((T97-(T97/A$18)+$H96),3),2))) -> 293.43 | U96: =IF(($A$8-$A96)<A$18,"",IF(($A$8-$A96)=A$18,SUM(OFFSET($I96,0,0,A$18,1)),ROUND(TRUNC((U97-(U97/A$18)+$I96),3),2))) -> 50.07 | V96: =IF(($A$8-$A96)<A$18,"",IF(($A$8-$A96)=A$18,SUM(OFFSET($J96,0,0,A$18,1)),ROUND(TRUNC((V97-(V97/A$18)+$J96),3),2))) -> 62.7 | W96: =IF(($A$8-$A96)<A$18,"",ROUND((100*(U96/T96)),0)) -> 17 | X96: =IF(($A$8-$A96)<A$18,"",ROUND((100*(V96/T96)),0)) -> 21 | Y96: =IF(($A$8-$A96)<A$18,"",ABS(W96-X96)) -> 4 | Z96: =IF(($A$8-$A96)<A$18,"",W96+X96) -> 38 | AA96: =IF(($A$8-$A96)<A$18,"",ROUND(100*(Y96/Z96),0)) -> 11 | AB96: =IF(($A$8-$A96)<(2*A$18),"",ROUND(IF(($A$8-$A96)=(2*A$18),AVERAGE(OFFSET(AA96,0,0,A$18,1)),(((AB97*(A$18-1))+AA96)/A$18)),0)) -> 33 | AC96: =IF(($A$8-$A96)<A$19,"",IF(($A$8-$A96)=A$19,SUM(OFFSET($H96,0,0,A$19,1)),ROUND(TRUNC((AC97-(AC97/A$19)+$H96),3),2))) -> 367.98 | AD96: =IF(($A$8-$A96)<A$19,"",IF(($A$8-$A96)=A$19,SUM(OFFSET($I96,0,0,A$19,1)),ROUND(TRUNC((AD97-(AD97/A$19)+$I96),3),2))) -> 64.84 | AE96: =IF(($A$8-$A96)<A$19,"",IF(($A$8-$A96)=A$19,SUM(OFFSET($J96,0,0,A$19,1)),ROUND(TRUNC((AE97-(AE97/A$19)+$J96),3),2))) -> 81.6 | AF96: =IF(($A$8-$A96)<A$19,"",ROUND((100*(AD96/AC96)),0)) -> 18 | AG96: =IF(($A$8-$A96)<A$19,"",ROUND((100*(AE96/AC96)),0)) -> 22 | AH96: =IF(($A$8-$A96)<A$19,"",ABS(AF96-AG96)) -> 4 | AI96: =IF(($A$8-$A96)<A$19,"",AF96+AG96) -> 40 | AJ96: =IF(($A$8-$A96)<A$19,"",ROUND(100*(AH96/AI96),0)) -> 10 | AK96: =IF(($A$8-$A96)<(2*A$19),"",ROUND(IF(($A$8-$A96)=(2*A$19),AVERAGE(OFFSET(AJ96,0,0,A$19,1)),(((AK97*(A$19-1))+AJ96)/A$19)),0)) -> 32 | AL96: 5 | AM96: 10 | AN96: 20 | AO96: 30 | AP96: 50 | AQ96: 70 | AR96: 90 | AS96: 0 | AT96: 0
A97: 65 | B97: =OFFSET(InputPriceData!B$10,CalculationsAndCharts!$A97+$A$11,0,1,1) -> 2011-03-28 | C97: =OFFSET(InputPriceData!G$10,CalculationsAndCharts!$A97+$A$11,0,1,1) -> 1821074000 | D97: =OFFSET(InputPriceData!C$10,CalculationsAndCharts!$A97+$A$11,0,1,1) -> 2325.13 | E97: =OFFSET(InputPriceData!D$10,CalculationsAndCharts!$A97+$A$11,0,1,1) -> 2359.16 | F97: =OFFSET(InputPriceData!E$10,CalculationsAndCharts!$A97+$A$11,0,1,1) -> 2291.78 | G97: =OFFSET(InputPriceData!F$10,CalculationsAndCharts!$A97+$A$11,0,1,1) -> 2342.92 | H97: 67.38 | I97: 27.53 | J97: 0 | K97: =IF(($A$8-$A97)<A$17,"",IF(($A$8-$A97)=A$17,SUM(OFFSET($H97,0,0,A$17,1)),ROUND(TRUNC((K98-(K98/A$17)+$H97),3),2))) -> 261.07 | L97: =IF(($A$8-$A97)<A$17,"",IF(($A$8-$A97)=A$17,SUM(OFFSET($I97,0,0,A$17,1)),ROUND(TRUNC((L98-(L98/A$17)+$I97),3),2))) -> 54.17 | M97: =IF(($A$8-$A97)<A$17,"",IF(($A$8-$A97)=A$17,SUM(OFFSET($J97,0,0,A$17,1)),ROUND(TRUNC((M98-(M98/A$17)+$J97),3),2))) -> 59.65 | N97: =IF(($A$8-$A97)<A$17,"",ROUND((100*(L97/K97)),0)) -> 21 | O97: =IF(($A$8-$A97)<A$17,"",ROUND((100*(M97/K97)),0)) -> 23 | P97: =IF(($A$8-$A97)<A$17,"",ABS(N97-O97)) -> 2 | Q97: =IF(($A$8-$A97)<A$17,"",N97+O97) -> 44 | R97: =IF(($A$8-$A97)<A$17,"",ROUND(100*(P97/Q97),0)) -> 5 | S97: =IF(($A$8-$A97)<(2*A$17),"",ROUND(IF(($A$8-$A97)=(2*A$17),AVERAGE(OFFSET(R97,0,0,A$17,1)),(((S98*(A$17-1))+R97)/A$17)),0)) -> 37 | T97: =IF(($A$8-$A97)<A$18,"",IF(($A$8-$A97)=A$18,SUM(OFFSET($H97,0,0,A$18,1)),ROUND(TRUNC((T98-(T98/A$18)+$H97),3),2))) -> 339.35 | U97: =IF(($A$8-$A97)<A$18,"",IF(($A$8-$A97)=A$18,SUM(OFFSET($I97,0,0,A$18,1)),ROUND(TRUNC((U98-(U98/A$18)+$I97),3),2))) -> 66.76 | V97: =IF(($A$8-$A97)<A$18,"",IF(($A$8-$A97)=A$18,SUM(OFFSET($J97,0,0,A$18,1)),ROUND(TRUNC((V98-(V98/A$18)+$J97),3),2))) -> 83.6 | W97: =IF(($A$8-$A97)<A$18,"",ROUND((100*(U97/T97)),0)) -> 20 | X97: =IF(($A$8-$A97)<A$18,"",ROUND((100*(V97/T97)),0)) -> 25 | Y97: =IF(($A$8-$A97)<A$18,"",ABS(W97-X97)) -> 5 | Z97: =IF(($A$8-$A97)<A$18,"",W97+X97) -> 45 | AA97: =IF(($A$8-$A97)<A$18,"",ROUND(100*(Y97/Z97),0)) -> 11 | AB97: =IF(($A$8-$A97)<(2*A$18),"",ROUND(IF(($A$8-$A97)=(2*A$18),AVERAGE(OFFSET(AA97,0,0,A$18,1)),(((AB98*(A$18-1))+AA97)/A$18)),0)) -> 40 | AC97: =IF(($A$8-$A97)<A$19,"",IF(($A$8-$A97)=A$19,SUM(OFFSET($H97,0,0,A$19,1)),ROUND(TRUNC((AC98-(AC98/A$19)+$H97),3),2))) -> 411.33 | AD97: =IF(($A$8-$A97)<A$19,"",IF(($A$8-$A97)=A$19,SUM(OFFSET($I97,0,0,A$19,1)),ROUND(TRUNC((AD98-(AD98/A$19)+$I97),3),2))) -> 81.05 | AE97: =IF(($A$8-$A97)<A$19,"",IF(($A$8-$A97)=A$19,SUM(OFFSET($J97,0,0,A$19,1)),ROUND(TRUNC((AE98-(AE98/A$19)+$J97),3),2))) -> 102 | AF97: =IF(($A$8-$A97)<A$19,"",ROUND((100*(AD97/AC97)),0)) -> 20 | AG97: =IF(($A$8-$A97)<A$19,"",ROUND((100*(AE97/AC97)),0)) -> 25 | AH97: =IF(($A$8-$A97)<A$19,"",ABS(AF97-AG97)) -> 5 | AI97: =IF(($A$8-$A97)<A$19,"",AF97+AG97) -> 45 | AJ97: =IF(($A$8-$A97)<A$19,"",ROUND(100*(AH97/AI97),0)) -> 11 | AK97: =IF(($A$8-$A97)<(2*A$19),"",ROUND(IF(($A$8-$A97)=(2*A$19),AVERAGE(OFFSET(AJ97,0,0,A$19,1)),(((AK98*(A$19-1))+AJ97)/A$19)),0)) -> 37 | AL97: 5 | AM97: 10 | AN97: 20 | AO97: 30 | AP97: 50 | AQ97: 70 | AR97: 90 | AS97: 0 | AT97: 0
A98: 66 | B98: =OFFSET(InputPriceData!B$10,CalculationsAndCharts!$A98+$A$11,0,1,1) -> 2011-03-21 | C98: =OFFSET(InputPriceData!G$10,CalculationsAndCharts!$A98+$A$11,0,1,1) -> 1798038000 | D98: =OFFSET(InputPriceData!C$10,CalculationsAndCharts!$A98+$A$11,0,1,1) -> 2250.89 | E98: =OFFSET(InputPriceData!D$10,CalculationsAndCharts!$A98+$A$11,0,1,1) -> 2331.63 | F98: =OFFSET(InputPriceData!E$10,CalculationsAndCharts!$A98+$A$11,0,1,1) -> 2234.94 | G98: =OFFSET(InputPriceData!F$10,CalculationsAndCharts!$A98+$A$11,0,1,1) -> 2316.36 | H98: =IF($A98<$A$8,MAX(E98-F98,ABS(E98-G99),ABS(F98-G99)),"") -> 110.56 | I98: =IF($A98<$A$8,IF(E98-E99>F99-F98,MAX(E98-E99,0),0),"") -> 28.71 | J98: =IF($A98<$A$8,IF(F99-F98>E98-E99,MAX(F99-F98,0),0),"") -> 0 | K98: =IF(($A$8-$A98)<A$17,"",IF(($A$8-$A98)=A$17,SUM(OFFSET($H98,0,0,A$17,1)),ROUND(TRUNC((K99-(K99/A$17)+$H98),3),2))) -> 290.53 | L98: =IF(($A$8-$A98)<A$17,"",IF(($A$8-$A98)=A$17,SUM(OFFSET($I98,0,0,A$17,1)),ROUND(TRUNC((L99-(L99/A$17)+$I98),3),2))) -> 39.96 | M98: =IF(($A$8-$A98)<A$17,"",IF(($A$8-$A98)=A$17,SUM(OFFSET($J98,0,0,A$17,1)),ROUND(TRUNC((M99-(M99/A$17)+$J98),3),2))) -> 89.47 | N98: =IF(($A$8-$A98)<A$17,"",ROUND((100*(L98/K98)),0)) -> 14 | O98: =IF(($A$8-$A98)<A$17,"",ROUND((100*(M98/K98)),0)) -> 31 | P98: =IF(($A$8-$A98)<A$17,"",ABS(N98-O98)) -> 17 | Q98: =IF(($A$8-$A98)<A$17,"",N98+O98) -> 45 | R98: =IF(($A$8-$A98)<A$17,"",ROUND(100*(P98/Q98),0)) -> 38 | S98: =IF(($A$8-$A98)<(2*A$17),"",ROUND(IF(($A$8-$A98)=(2*A$17),AVERAGE(OFFSET(R98,0,0,A$17,1)),(((S99*(A$17-1))+R98)/A$17)),0)) -> 53 | T98: =IF(($A$8-$A98)<A$18,"",IF(($A$8-$A98)=A$18,SUM(OFFSET($H98,0,0,A$18,1)),ROUND(TRUNC((T99-(T99/A$18)+$H98),3),2))) -> 362.62 | U98: =IF(($A$8-$A98)<A$18,"",IF(($A$8-$A98)=A$18,SUM(OFFSET($I98,0,0,A$18,1)),ROUND(TRUNC((U99-(U99/A$18)+$I98),3),2))) -> 52.31 | V98: =IF(($A$8-$A98)<A$18,"",IF(($A$8-$A98)=A$18,SUM(OFFSET($J98,0,0,A$18,1)),ROUND(TRUNC((V99-(V99/A$18)+$J98),3),2))) -> 111.46 | W98: =IF(($A$8-$A98)<A$18,"",ROUND((100*(U98/T98)),0)) -> 14 | X98: =IF(($A$8-$A98)<A$18,"",ROUND((100*(V98/T98)),0)) -> 31 | Y98: =IF(($A$8-$A98)<A$18,"",ABS(W98-X98)) -> 17 | Z98: =IF(($A$8-$A98)<A$18,"",W98+X98) -> 45 | AA98: =IF(($A$8-$A98)<A$18,"",ROUND(100*(Y98/Z98),0)) -> 38 | AB98: =IF(($A$8-$A98)<(2*A$18),"",ROUND(IF(($A$8-$A98)=(2*A$18),AVERAGE(OFFSET(AA98,0,0,A$18,1)),(((AB99*(A$18-1))+AA98)/A$18)),0)) -> 49 | AC98: =IF(($A$8-$A98)<A$19,"",IF(($A$8-$A98)=A$19,SUM(OFFSET($H98,0,0,A$19,1)),ROUND(TRUNC((AC99-(AC99/A$19)+$H98),3),2))) -> 429.94 | AD98: =IF(($A$8-$A98)<A$19,"",IF(($A$8-$A98)=A$19,SUM(OFFSET($I98,0,0,A$19,1)),ROUND(TRUNC((AD99-(AD99/A$19)+$I98),3),2))) -> 66.9 | AE98: =IF(($A$8-$A98)<A$19,"",IF(($A$8-$A98)=A$19,SUM(OFFSET($J98,0,0,A$19,1)),ROUND(TRUNC((AE99-(AE99/A$19)+$J98),3),2))) -> 127.5 | AF98: =IF(($A$8-$A98)<A$19,"",ROUND((100*(AD98/AC98)),0)) -> 16 | AG98: =IF(($A$8-$A98)<A$19,"",ROUND((100*(AE98/AC98)),0)) -> 30 | AH98: =IF(($A$8-$A98)<A$19,"",ABS(AF98-AG98)) -> 14 | AI98: =IF(($A$8-$A98)<A$19,"",AF98+AG98) -> 46 | AJ98: =IF(($A$8-$A98)<A$19,"",ROUND(100*(AH98/AI98),0)) -> 30 | AK98: =IF(($A$8-$A98)<(2*A$19),"",ROUND(IF(($A$8-$A98)=(2*A$19),AVERAGE(OFFSET(AJ98,0,0,A$19,1)),(((AK99*(A$19-1))+AJ98)/A$19)),0)) -> 44 | AL98: =AL97 -> 5 | AM98: =AM97 -> 10 | AN98: =AN97 -> 20 | AO98: =AO97 -> 30 | AP98: =AP97 -> 50 | AQ98: =AQ97 -> 70 | AR98: =AR97 -> 90 | AS98: 0 | AT98: 0
A99: 67 | B99: =OFFSET(InputPriceData!B$10,CalculationsAndCharts!$A99+$A$11,0,1,1) -> 2011-03-14 | C99: =OFFSET(InputPriceData!G$10,CalculationsAndCharts!$A99+$A$11,0,1,1) -> 2143832000 | D99: =OFFSET(InputPriceData!C$10,CalculationsAndCharts!$A99+$A$11,0,1,1) -> 2286.77 | E99: =OFFSET(InputPriceData!D$10,CalculationsAndCharts!$A99+$A$11,0,1,1) -> 2302.92 | F99: =OFFSET(InputPriceData!E$10,CalculationsAndCharts!$A99+$A$11,0,1,1) -> 2188.92 | G99: =OFFSET(InputPriceData!F$10,CalculationsAndCharts!$A99+$A$11,0,1,1) -> 2221.07 | H99: 114 | I99: 0 | J99: 86.15 | K99: =IF(($A$8-$A99)<A$17,"",IF(($A$8-$A99)=A$17,SUM(OFFSET($H99,0,0,A$17,1)),ROUND(TRUNC((K100-(K100/A$17)+$H99),3),2))) -> 269.95 | L99: =IF(($A$8-$A99)<A$17,"",IF(($A$8-$A99)=A$17,SUM(OFFSET($I99,0,0,A$17,1)),ROUND(TRUNC((L100-(L100/A$17)+$I99),3),2))) -> 16.88 | M99: =IF(($A$8-$A99)<A$17,"",IF(($A$8-$A99)=A$17,SUM(OFFSET($J99,0,0,A$17,1)),ROUND(TRUNC((M100-(M100/A$17)+$J99),3),2))) -> 134.2 | N99: =IF(($A$8-$A99)<A$17,"",ROUND((100*(L99/K99)),0)) -> 6 | O99: =IF(($A$8-$A99)<A$17,"",ROUND((100*(M99/K99)),0)) -> 50 | P99: =IF(($A$8-$A99)<A$17,"",ABS(N99-O99)) -> 44 | Q99: =IF(($A$8-$A99)<A$17,"",N99+O99) -> 56 | R99: =IF(($A$8-$A99)<A$17,"",ROUND(100*(P99/Q99),0)) -> 79 | S99: =IF(($A$8-$A99)<(2*A$17),"",ROUND(IF(($A$8-$A99)=(2*A$17),AVERAGE(OFFSET(R99,0,0,A$17,1)),(((S100*(A$17-1))+R99)/A$17)),0)) -> 60 | T99: =IF(($A$8-$A99)<A$18,"",IF(($A$8-$A99)=A$18,SUM(OFFSET($H99,0,0,A$18,1)),ROUND(TRUNC((T100-(T100/A$18)+$H99),3),2))) -> 336.08 | U99: =IF(($A$8-$A99)<A$18,"",IF(($A$8-$A99)=A$18,SUM(OFFSET($I99,0,0,A$18,1)),ROUND(TRUNC((U100-(U100/A$18)+$I99),3),2))) -> 31.47 | V99: =IF(($A$8-$A99)<A$18,"",IF(($A$8-$A99)=A$18,SUM(OFFSET($J99,0,0,A$18,1)),ROUND(TRUNC((V100-(V100/A$18)+$J99),3),2))) -> 148.61 | W99: =IF(($A$8-$A99)<A$18,"",ROUND((100*(U99/T99)),0)) -> 9 | X99: =IF(($A$8-$A99)<A$18,"",ROUND((100*(V99/T99)),0)) -> 44 | Y99: =IF(($A$8-$A99)<A$18,"",ABS(W99-X99)) -> 35 | Z99: =IF(($A$8-$A99)<A$18,"",W99+X99) -> 53 | AA99: =IF(($A$8-$A99)<A$18,"",ROUND(100*(Y99/Z99),0)) -> 66 | AB99: =IF(($A$8-$A99)<(2*A$18),"",ROUND(IF(($A$8-$A99)=(2*A$18),AVERAGE(OFFSET(AA99,0,0,A$18,1)),(((AB100*(A$18-1))+AA99)/A$18)),0)) -> 53 | AC99: =IF(($A$8-$A99)<A$19,"",IF(($A$8-$A99)=A$19,SUM(OFFSET($H99,0,0,A$19,1)),ROUND(TRUNC((AC100-(AC100/A$19)+$H99),3),2))) -> 399.23 | AD99: =IF(($A$8-$A99)<A$19,"",IF(($A$8-$A99)=A$19,SUM(OFFSET($I99,0,0,A$19,1)),ROUND(TRUNC((AD100-(AD100/A$19)+$I99),3),2))) -> 47.74 | AE99: =IF(($A$8-$A99)<A$19,"",IF(($A$8-$A99)=A$19,SUM(OFFSET($J99,0,0,A$19,1)),ROUND(TRUNC((AE100-(AE100/A$19)+$J99),3),2))) -> 159.37 | AF99: =IF(($A$8-$A99)<A$19,"",ROUND((100*(AD99/AC99)),0)) -> 12 | AG99: =IF(($A$8-$A99)<A$19,"",ROUND((100*(AE99/AC99)),0)) -> 40 | AH99: =IF(($A$8-$A99)<A$19,"",ABS(AF99-AG99)) -> 28 | AI99: =IF(($A$8-$A99)<A$19,"",AF99+AG99) -> 52 | AJ99: =IF(($A$8-$A99)<A$19,"",ROUND(100*(AH99/AI99),0)) -> 54 | AK99: =IF(($A$8-$A99)<(2*A$19),"",ROUND(IF(($A$8-$A99)=(2*A$19),AVERAGE(OFFSET(AJ99,0,0,A$19,1)),(((AK100*(A$19-1))+AJ99)/A$19)),0)) -> 48 | AL99: 5 | AM99: 10 | AN99: 20 | AO99: 30 | AP99: 50 | AQ99: 70 | AR99: 90 | AS99: 0 | AT99: 0
A100: 68 | B100: =OFFSET(InputPriceData!B$10,CalculationsAndCharts!$A100+$A$11,0,1,1) -> 2011-03-07 | C100: =OFFSET(InputPriceData!G$10,CalculationsAndCharts!$A100+$A$11,0,1,1) -> 2047470000 | D100: =OFFSET(InputPriceData!C$10,CalculationsAndCharts!$A100+$A$11,0,1,1) -> 2367.92 | E100: =OFFSET(InputPriceData!D$10,CalculationsAndCharts!$A100+$A$11,0,1,1) -> 2370.91 | F100: =OFFSET(InputPriceData!E$10,CalculationsAndCharts!$A100+$A$11,0,1,1) -> 2275.07 | G100: =OFFSET(InputPriceData!F$10,CalculationsAndCharts!$A100+$A$11,0,1,1) -> 2299.26 | H100: 95.84 | I100: 0 | J100: 32.98 | K100: =IF(($A$8-$A100)<A$17,"",IF(($A$8-$A100)=A$17,SUM(OFFSET($H100,0,0,A$17,1)),ROUND(TRUNC((K101-(K101/A$17)+$H100),3),2))) -> 233.93 | L100: =IF(($A$8-$A100)<A$17,"",IF(($A$8-$A100)=A$17,SUM(OFFSET($I100,0,0,A$17,1)),ROUND(TRUNC((L101-(L101/A$17)+$I100),3),2))) -> 25.32 | M100: =IF(($A$8-$A100)<A$17,"",IF(($A$8-$A100)=A$17,SUM(OFFSET($J100,0,0,A$17,1)),ROUND(TRUNC((M101-(M101/A$17)+$J100),3),2))) -> 72.08 | N100: =IF(($A$8-$A100)<A$17,"",ROUND((100*(L100/K100)),0)) -> 11 | O100: =IF(($A$8-$A100)<A$17,"",ROUND((100*(M100/K100)),0)) -> 31 | P100: =IF(($A$8-$A100)<A$17,"",ABS(N100-O100)) -> 20 | Q100: =IF(($A$8-$A100)<A$17,"",N100+O100) -> 42 | R100: =IF(($A$8-$A100)<A$17,"",ROUND(100*(P100/Q100),0)) -> 48 | S100: =IF(($A$8-$A100)<(2*A$17),"",ROUND(IF(($A$8-$A100)=(2*A$17),AVERAGE(OFFSET(R100,0,0,A$17,1)),(((S101*(A$17-1))+R100)/A$17)),0)) -> 51 | T100: =IF(($A$8-$A100)<A$18,"",IF(($A$8-$A100)=A$18,SUM(OFFSET($H100,0,0,A$18,1)),ROUND(TRUNC((T101-(T101/A$18)+$H100),3),2))) -> 296.11 | U100: =IF(($A$8-$A100)<A$18,"",IF(($A$8-$A100)=A$18,SUM(OFFSET($I100,0,0,A$18,1)),ROUND(TRUNC((U101-(U101/A$18)+$I100),3),2))) -> 41.96 | V100: =IF(($A$8-$A100)<A$18,"",IF(($A$8-$A100)=A$18,SUM(OFFSET($J100,0,0,A$18,1)),ROUND(TRUNC((V101-(V101/A$18)+$J100),3),2))) -> 83.28 | W100: =IF(($A$8-$A100)<A$18,"",ROUND((100*(U100/T100)),0)) -> 14 | X100: =IF(($A$8-$A100)<A$18,"",ROUND((100*(V100/T100)),0)) -> 28 | Y100: =IF(($A$8-$A100)<A$18,"",ABS(W100-X100)) -> 14 | Z100: =IF(($A$8-$A100)<A$18,"",W100+X100) -> 42 | AA100: =IF(($A$8-$A100)<A$18,"",ROUND(100*(Y100/Z100),0)) -> 33 | AB100: =IF(($A$8-$A100)<(2*A$18),"",ROUND(IF(($A$8-$A100)=(2*A$18),AVERAGE(OFFSET(AA100,0,0,A$18,1)),(((AB101*(A$18-1))+AA100)/A$18)),0)) -> 48 | AC100: =IF(($A$8-$A100)<A$19,"",IF(($A$8-$A100)=A$19,SUM(OFFSET($H100,0,0,A$19,1)),ROUND(TRUNC((AC101-(AC101/A$19)+$H100),3),2))) -> 356.54 | AD100: =IF(($A$8-$A100)<A$19,"",IF(($A$8-$A100)=A$19,SUM(OFFSET($I100,0,0,A$19,1)),ROUND(TRUNC((AD101-(AD101/A$19)+$I100),3),2))) -> 59.68 | AE100: =IF(($A$8-$A100)<A$19,"",IF(($A$8-$A100)=A$19,SUM(OFFSET($J100,0,0,A$19,1)),ROUND(TRUNC((AE101-(AE101/A$19)+$J100),3),2))) -> 91.53 | AF100: =IF(($A$8-$A100)<A$19,"",ROUND((100*(AD100/AC100)),0)) -> 17 | AG100: =IF(($A$8-$A100)<A$19,"",ROUND((100*(AE100/AC100)),0)) -> 26 | AH100: =IF(($A$8-$A100)<A$19,"",ABS(AF100-AG100)) -> 9 | AI100: =IF(($A$8-$A100)<A$19,"",AF100+AG100) -> 43 | AJ100: =IF(($A$8-$A100)<A$19,"",ROUND(100*(AH100/AI100),0)) -> 21 | AK100: =IF(($A$8-$A100)<(2*A$19),"",ROUND(IF(($A$8-$A100)=(2*A$19),AVERAGE(OFFSET(AJ100,0,0,A$19,1)),(((AK101*(A$19-1))+AJ100)/A$19)),0)) -> 46 | AL100: 5 | AM100: 10 | AN100: 20 | AO100: 30 | AP100: 50 | AQ100: 70 | AR100: 90 | AS100: 0 | AT100: 0
A101: 69 | B101: =OFFSET(InputPriceData!B$10,CalculationsAndCharts!$A101+$A$11,0,1,1) -> 2011-02-28 | C101: =OFFSET(InputPriceData!G$10,CalculationsAndCharts!$A101+$A$11,0,1,1) -> 2019508000 | D101: =OFFSET(InputPriceData!C$10,CalculationsAndCharts!$A101+$A$11,0,1,1) -> 2354.87 | E101: =OFFSET(InputPriceData!D$10,CalculationsAndCharts!$A101+$A$11,0,1,1) -> 2375.67 | F101: =OFFSET(InputPriceData!E$10,CalculationsAndCharts!$A101+$A$11,0,1,1) -> 2308.05 | G101: =OFFSET(InputPriceData!F$10,CalculationsAndCharts!$A101+$A$11,0,1,1) -> 2359.96 | H101: 67.62 | I101: 9.24 | J101: 0 | K101: =IF(($A$8-$A101)<A$17,"",IF(($A$8-$A101)=A$17,SUM(OFFSET($H101,0,0,A$17,1)),ROUND(TRUNC((K102-(K102/A$17)+$H101),3),2))) -> 207.13 | L101: =IF(($A$8-$A101)<A$17,"",IF(($A$8-$A101)=A$17,SUM(OFFSET($I101,0,0,A$17,1)),ROUND(TRUNC((L102-(L102/A$17)+$I101),3),2))) -> 37.98 | M101: =IF(($A$8-$A101)<A$17,"",IF(($A$8-$A101)=A$17,SUM(OFFSET($J101,0,0,A$17,1)),ROUND(TRUNC((M102-(M102/A$17)+$J101),3),2))) -> 58.65 | N101: =IF(($A$8-$A101)<A$17,"",ROUND((100*(L101/K101)),0)) -> 18 | O101: =IF(($A$8-$A101)<A$17,"",ROUND((100*(M101/K101)),0)) -> 28 | P101: =IF(($A$8-$A101)<A$17,"",ABS(N101-O101)) -> 10 | Q101: =IF(($A$8-$A101)<A$17,"",N101+O101) -> 46 | R101: =IF(($A$8-$A101)<A$17,"",ROUND(100*(P101/Q101),0)) -> 22 | S101: =IF(($A$8-$A101)<(2*A$17),"",ROUND(IF(($A$8-$A101)=(2*A$17),AVERAGE(OFFSET(R101,0,0,A$17,1)),(((S102*(A$17-1))+R101)/A$17)),0)) -> 53 | T101: =IF(($A$8-$A101)<A$18,"",IF(($A$8-$A101)=A$18,SUM(OFFSET($H101,0,0,A$18,1)),ROUND(TRUNC((T102-(T102/A$18)+$H101),3),2))) -> 267.02 | U101: =IF(($A$8-$A101)<A$18,"",IF(($A$8-$A101)=A$18,SUM(OFFSET($I101,0,0,A$18,1)),ROUND(TRUNC((U102-(U102/A$18)+$I101),3),2))) -> 55.94 | V101: =IF(($A$8-$A101)<A$18,"",IF(($A$8-$A101)=A$18,SUM(OFFSET($J101,0,0,A$18,1)),ROUND(TRUNC((V102-(V102/A$18)+$J101),3),2))) -> 67.06 | W101: =IF(($A$8-$A101)<A$18,"",ROUND((100*(U101/T101)),0)) -> 21 | X101: =IF(($A$8-$A101)<A$18,"",ROUND((100*(V101/T101)),0)) -> 25 | Y101: =IF(($A$8-$A101)<A$18,"",ABS(W101-X101)) -> 4 | Z101: =IF(($A$8-$A101)<A$18,"",W101+X101) -> 46 | AA101: =IF(($A$8-$A101)<A$18,"",ROUND(100*(Y101/Z101),0)) -> 9 | AB101: =IF(($A$8-$A101)<(2*A$18),"",ROUND(IF(($A$8-$A101)=(2*A$18),AVERAGE(OFFSET(AA101,0,0,A$18,1)),(((AB102*(A$18-1))+AA101)/A$18)),0)) -> 53 | AC101: =IF(($A$8-$A101)<A$19,"",IF(($A$8-$A101)=A$19,SUM(OFFSET($H101,0,0,A$19,1)),ROUND(TRUNC((AC102-(AC102/A$19)+$H101),3),2))) -> 325.88 | AD101: =IF(($A$8-$A101)<A$19,"",IF(($A$8-$A101)=A$19,SUM(OFFSET($I101,0,0,A$19,1)),ROUND(TRUNC((AD102-(AD102/A$19)+$I101),3),2))) -> 74.6 | AE101: =IF(($A$8-$A101)<A$19,"",IF(($A$8-$A101)=A$19,SUM(OFFSET($J101,0,0,A$19,1)),ROUND(TRUNC((AE102-(AE102/A$19)+$J101),3),2))) -> 73.19 | AF101: =IF(($A$8-$A101)<A$19,"",ROUND((100*(AD101/AC101)),0)) -> 23 | AG101: =IF(($A$8-$A101)<A$19,"",ROUND((100*(AE101/AC101)),0)) -> 22 | AH101: =IF(($A$8-$A101)<A$19,"",ABS(AF101-AG101)) -> 1 | AI101: =IF(($A$8-$A101)<A$19,"",AF101+AG101) -> 45 | AJ101: =IF(($A$8-$A101)<A$19,"",ROUND(100*(AH101/AI101),0)) -> 2 | AK101: =IF(($A$8-$A101)<(2*A$19),"",ROUND(IF(($A$8-$A101)=(2*A$19),AVERAGE(OFFSET(AJ101,0,0,A$19,1)),(((AK102*(A$19-1))+AJ101)/A$19)),0)) -> 52 | AL101: 5 | AM101: 10 | AN101: 20 | AO101: 30 | AP101: 50 | AQ101: 70 | AR101: 90 | AS101: 0 | AT101: 0
A102: 70 | B102: =OFFSET(InputPriceData!B$10,CalculationsAndCharts!$A102+$A$11,0,1,1) -> 2011-02-22 | C102: =OFFSET(InputPriceData!G$10,CalculationsAndCharts!$A102+$A$11,0,1,1) -> 2168590000 | D102: =OFFSET(InputPriceData!C$10,CalculationsAndCharts!$A102+$A$11,0,1,1) -> 2353.81 | E102: =OFFSET(InputPriceData!D$10,CalculationsAndCharts!$A102+$A$11,0,1,1) -> 2366.43 | F102: =OFFSET(InputPriceData!E$10,CalculationsAndCharts!$A102+$A$11,0,1,1) -> 2284.65 | G102: =OFFSET(InputPriceData!F$10,CalculationsAndCharts!$A102+$A$11,0,1,1) -> 2346.29 | H102: 107.82 | I102: 0 | J102: 86.54 | K102: =IF(($A$8-$A102)<A$17,"",IF(($A$8-$A102)=A$17,SUM(OFFSET($H102,0,0,A$17,1)),ROUND(TRUNC((K103-(K103/A$17)+$H102),3),2))) -> 209.27 | L102: =IF(($A$8-$A102)<A$17,"",IF(($A$8-$A102)=A$17,SUM(OFFSET($I102,0,0,A$17,1)),ROUND(TRUNC((L103-(L103/A$17)+$I102),3),2))) -> 43.11 | M102: =IF(($A$8-$A102)<A$17,"",IF(($A$8-$A102)=A$17,SUM(OFFSET($J102,0,0,A$17,1)),ROUND(TRUNC((M103-(M103/A$17)+$J102),3),2))) -> 87.97 | N102: =IF(($A$8-$A102)<A$17,"",ROUND((100*(L102/K102)),0)) -> 21 | O102: =IF(($A$8-$A102)<A$17,"",ROUND((100*(M102/K102)),0)) -> 42 | P102: =IF(($A$8-$A102)<A$17,"",ABS(N102-O102)) -> 21 | Q102: =IF(($A$8-$A102)<A$17,"",N102+O102) -> 63 | R102: =IF(($A$8-$A102)<A$17,"",ROUND(100*(P102/Q102),0)) -> 33 | S102: =IF(($A$8-$A102)<(2*A$17),"",ROUND(IF(($A$8-$A102)=(2*A$17),AVERAGE(OFFSET(R102,0,0,A$17,1)),(((S103*(A$17-1))+R102)/A$17)),0)) -> 69 | T102: =IF(($A$8-$A102)<A$18,"",IF(($A$8-$A102)=A$18,SUM(OFFSET($H102,0,0,A$18,1)),ROUND(TRUNC((T103-(T103/A$18)+$H102),3),2))) -> 265.87 | U102: =IF(($A$8-$A102)<A$18,"",IF(($A$8-$A102)=A$18,SUM(OFFSET($I102,0,0,A$18,1)),ROUND(TRUNC((U103-(U103/A$18)+$I102),3),2))) -> 62.26 | V102: =IF(($A$8-$A102)<A$18,"",IF(($A$8-$A102)=A$18,SUM(OFFSET($J102,0,0,A$18,1)),ROUND(TRUNC((V103-(V103/A$18)+$J102),3),2))) -> 89.41 | W102: =IF(($A$8-$A102)<A$18,"",ROUND((100*(U102/T102)),0)) -> 23 | X102: =IF(($A$8-$A102)<A$18,"",ROUND((100*(V102/T102)),0)) -> 34 | Y102: =IF(($A$8-$A102)<A$18,"",ABS(W102-X102)) -> 11 | Z102: =IF(($A$8-$A102)<A$18,"",W102+X102) -> 57 | AA102: =IF(($A$8-$A102)<A$18,"",ROUND(100*(Y102/Z102),0)) -> 19 | AB102: =IF(($A$8-$A102)<(2*A$18),"",ROUND(IF(($A$8-$A102)=(2*A$18),AVERAGE(OFFSET(AA102,0,0,A$18,1)),(((AB103*(A$18-1))+AA102)/A$18)),0)) -> 67 | AC102: =IF(($A$8-$A102)<A$19,"",IF(($A$8-$A102)=A$19,SUM(OFFSET($H102,0,0,A$19,1)),ROUND(TRUNC((AC103-(AC103/A$19)+$H102),3),2))) -> 322.82 | AD102: =IF(($A$8-$A102)<A$19,"",IF(($A$8-$A102)=A$19,SUM(OFFSET($I102,0,0,A$19,1)),ROUND(TRUNC((AD103-(AD103/A$19)+$I102),3),2))) -> 81.7 | AE102: =IF(($A$8-$A102)<A$19,"",IF(($A$8-$A102)=A$19,SUM(OFFSET($J102,0,0,A$19,1)),ROUND(TRUNC((AE103-(AE103/A$19)+$J102),3),2))) -> 91.49 | AF102: =IF(($A$8-$A102)<A$19,"",ROUND((100*(AD102/AC102)),0)) -> 25 | AG102: =IF(($A$8-$A102)<A$19,"",ROUND((100*(AE102/AC102)),0)) -> 28 | AH102: =IF(($A$8-$A102)<A$19,"",ABS(AF102-AG102)) -> 3 | AI102: =IF(($A$8-$A102)<A$19,"",AF102+AG102) -> 53 | AJ102: =IF(($A$8-$A102)<A$19,"",ROUND(100*(AH102/AI102),0)) -> 6 | AK102: =IF(($A$8-$A102)<(2*A$19),"",ROUND(IF(($A$8-$A102)=(2*A$19),AVERAGE(OFFSET(AJ102,0,0,A$19,1)),(((AK103*(A$19-1))+AJ102)/A$19)),0)) -> 65 | AL102: 5 | AM102: 10 | AN102: 20 | AO102: 30 | AP102: 50 | AQ102: 70 | AR102: 90 | AS102: 0 | AT102: 0
A103: 71 | B103: =OFFSET(InputPriceData!B$10,CalculationsAndCharts!$A103+$A$11,0,1,1) -> 2011-02-14 | C103: =OFFSET(InputPriceData!G$10,CalculationsAndCharts!$A103+$A$11,0,1,1) -> 2059352000 | D103: =OFFSET(InputPriceData!C$10,CalculationsAndCharts!$A103+$A$11,0,1,1) -> 2379.52 | E103: =OFFSET(InputPriceData!D$10,CalculationsAndCharts!$A103+$A$11,0,1,1) -> 2403.52 | F103: =OFFSET(InputPriceData!E$10,CalculationsAndCharts!$A103+$A$11,0,1,1) -> 2371.19 | G103: =OFFSET(InputPriceData!F$10,CalculationsAndCharts!$A103+$A$11,0,1,1) -> 2392.47 | H103: 32.33 | I103: 22.12 | J103: 0 | K103: =IF(($A$8-$A103)<A$17,"",IF(($A$8-$A103)=A$17,SUM(OFFSET($H103,0,0,A$17,1)),ROUND(TRUNC((K104-(K104/A$17)+$H103),3),2))) -> 152.17 | L103: =IF(($A$8-$A103)<A$17,"",IF(($A$8-$A103)=A$17,SUM(OFFSET($I103,0,0,A$17,1)),ROUND(TRUNC((L104-(L104/A$17)+$I103),3),2))) -> 64.67 | M103: =IF(($A$8-$A103)<A$17,"",IF(($A$8-$A103)=A$17,SUM(OFFSET($J103,0,0,A$17,1)),ROUND(TRUNC((M104-(M104/A$17)+$J103),3),2))) -> 2.15 | N103: =IF(($A$8-$A103)<A$17,"",ROUND((100*(L103/K103)),0)) -> 42 | O103: =IF(($A$8-$A103)<A$17,"",ROUND((100*(M103/K103)),0)) -> 1 | P103: =IF(($A$8-$A103)<A$17,"",ABS(N103-O103)) -> 41 | Q103: =IF(($A$8-$A103)<A$17,"",N103+O103) -> 43 | R103: =IF(($A$8-$A103)<A$17,"",ROUND(100*(P103/Q103),0)) -> 95 | S103: =IF(($A$8-$A103)<(2*A$17),"",ROUND(IF(($A$8-$A103)=(2*A$17),AVERAGE(OFFSET(R103,0,0,A$17,1)),(((S104*(A$17-1))+R103)/A$17)),0)) -> 87 | T103: =IF(($A$8-$A103)<A$18,"",IF(($A$8-$A103)=A$18,SUM(OFFSET($H103,0,0,A$18,1)),ROUND(TRUNC((T104-(T104/A$18)+$H103),3),2))) -> 210.73 | U103: =IF(($A$8-$A103)<A$18,"",IF(($A$8-$A103)=A$18,SUM(OFFSET($I103,0,0,A$18,1)),ROUND(TRUNC((U104-(U104/A$18)+$I103),3),2))) -> 83.01 | V103: =IF(($A$8-$A103)<A$18,"",IF(($A$8-$A103)=A$18,SUM(OFFSET($J103,0,0,A$18,1)),ROUND(TRUNC((V104-(V104/A$18)+$J103),3),2))) -> 3.82 | W103: =IF(($A$8-$A103)<A$18,"",ROUND((100*(U103/T103)),0)) -> 39 | X103: =IF(($A$8-$A103)<A$18,"",ROUND((100*(V103/T103)),0)) -> 2 | Y103: =IF(($A$8-$A103)<A$18,"",ABS(W103-X103)) -> 37 | Z103: =IF(($A$8-$A103)<A$18,"",W103+X103) -> 41 | AA103: =IF(($A$8-$A103)<A$18,"",ROUND(100*(Y103/Z103),0)) -> 90 | AB103: =IF(($A$8-$A103)<(2*A$18),"",ROUND(IF(($A$8-$A103)=(2*A$18),AVERAGE(OFFSET(AA103,0,0,A$18,1)),(((AB104*(A$18-1))+AA103)/A$18)),0)) -> 83 | AC103: =IF(($A$8-$A103)<A$19,"",IF(($A$8-$A103)=A$19,SUM(OFFSET($H103,0,0,A$19,1)),ROUND(TRUNC((AC104-(AC104/A$19)+$H103),3),2))) -> 268.75 | AD103: =IF(($A$8-$A103)<A$19,"",IF(($A$8-$A103)=A$19,SUM(OFFSET($I103,0,0,A$19,1)),ROUND(TRUNC((AD104-(AD104/A$19)+$I103),3),2))) -> 102.12 | AE103: =IF(($A$8-$A103)<A$19,"",IF(($A$8-$A103)=A$19,SUM(OFFSET($J103,0,0,A$19,1)),ROUND(TRUNC((AE104-(AE104/A$19)+$J103),3),2))) -> 6.19 | AF103: =IF(($A$8-$A103)<A$19,"",ROUND((100*(AD103/AC103)),0)) -> 38 | AG103: =IF(($A$8-$A103)<A$19,"",ROUND((100*(AE103/AC103)),0)) -> 2 | AH103: =IF(($A$8-$A103)<A$19,"",ABS(AF103-AG103)) -> 36 | AI103: =IF(($A$8-$A103)<A$19,"",AF103+AG103) -> 40 | AJ103: =IF(($A$8-$A103)<A$19,"",ROUND(100*(AH103/AI103),0)) -> 90 | AK103: =IF(($A$8-$A103)<(2*A$19),"",ROUND(IF(($A$8-$A103)=(2*A$19),AVERAGE(OFFSET(AJ103,0,0,A$19,1)),(((AK104*(A$19-1))+AJ103)/A$19)),0)) -> 80 | AL103: 5 | AM103: 10 | AN103: 20 | AO103: 30 | AP103: 50 | AQ103: 70 | AR103: 90 | AS103: 0 | AT103: 0
A104: 72 | B104: =OFFSET(InputPriceData!B$10,CalculationsAndCharts!$A104+$A$11,0,1,1) -> 2011-02-07 | C104: =OFFSET(InputPriceData!G$10,CalculationsAndCharts!$A104+$A$11,0,1,1) -> 2013232000 | D104: =OFFSET(InputPriceData!C$10,CalculationsAndCharts!$A104+$A$11,0,1,1) -> 2340.44 | E104: =OFFSET(InputPriceData!D$10,CalculationsAndCharts!$A104+$A$11,0,1,1) -> 2381.4 | F104: =OFFSET(InputPriceData!E$10,CalculationsAndCharts!$A104+$A$11,0,1,1) -> 2338.87 | G104: =OFFSET(InputPriceData!F$10,CalculationsAndCharts!$A104+$A$11,0,1,1) -> 2379.15 | H104: 43.2 | I104: 42.74 | J104: 0 | K104: =IF(($A$8-$A104)<A$17,"",IF(($A$8-$A104)=A$17,SUM(OFFSET($H104,0,0,A$17,1)),ROUND(TRUNC((K105-(K105/A$17)+$H104),3),2))) -> 179.76 | L104: =IF(($A$8-$A104)<A$17,"",IF(($A$8-$A104)=A$17,SUM(OFFSET($I104,0,0,A$17,1)),ROUND(TRUNC((L105-(L105/A$17)+$I104),3),2))) -> 63.83 | M104: =IF(($A$8-$A104)<A$17,"",IF(($A$8-$A104)=A$17,SUM(OFFSET($J104,0,0,A$17,1)),ROUND(TRUNC((M105-(M105/A$17)+$J104),3),2))) -> 3.22 | N104: =IF(($A$8-$A104)<A$17,"",ROUND((100*(L104/K104)),0)) -> 36 | O104: =IF(($A$8-$A104)<A$17,"",ROUND((100*(M104/K104)),0)) -> 2 | P104: =IF(($A$8-$A104)<A$17,"",ABS(N104-O104)) -> 34 | Q104: =IF(($A$8-$A104)<A$17,"",N104+O104) -> 38 | R104: =IF(($A$8-$A104)<A$17,"",ROUND(100*(P104/Q104),0)) -> 89 | S104: =IF(($A$8-$A104)<(2*A$17),"",ROUND(IF(($A$8-$A104)=(2*A$17),AVERAGE(OFFSET(R104,0,0,A$17,1)),(((S105*(A$17-1))+R104)/A$17)),0)) -> 83 | T104: =IF(($A$8-$A104)<A$18,"",IF(($A$8-$A104)=A$18,SUM(OFFSET($H104,0,0,A$18,1)),ROUND(TRUNC((T105-(T105/A$18)+$H104),3),2))) -> 237.86 | U104: =IF(($A$8-$A104)<A$18,"",IF(($A$8-$A104)=A$18,SUM(OFFSET($I104,0,0,A$18,1)),ROUND(TRUNC((U105-(U105/A$18)+$I104),3),2))) -> 81.19 | V104: =IF(($A$8-$A104)<A$18,"",IF(($A$8-$A104)=A$18,SUM(OFFSET($J104,0,0,A$18,1)),ROUND(TRUNC((V105-(V105/A$18)+$J104),3),2))) -> 5.09 | W104: =IF(($A$8-$A104)<A$18,"",ROUND((100*(U104/T104)),0)) -> 34 | X104: =IF(($A$8-$A104)<A$18,"",ROUND((100*(V104/T104)),0)) -> 2 | Y104: =IF(($A$8-$A104)<A$18,"",ABS(W104-X104)) -> 32 | Z104: =IF(($A$8-$A104)<A$18,"",W104+X104) -> 36 | AA104: =IF(($A$8-$A104)<A$18,"",ROUND(100*(Y104/Z104),0)) -> 89 | AB104: =IF(($A$8-$A104)<(2*A$18),"",ROUND(IF(($A$8-$A104)=(2*A$18),AVERAGE(OFFSET(AA104,0,0,A$18,1)),(((AB105*(A$18-1))+AA104)/A$18)),0)) -> 81 | AC104: =IF(($A$8-$A104)<A$19,"",IF(($A$8-$A104)=A$19,SUM(OFFSET($H104,0,0,A$19,1)),ROUND(TRUNC((AC105-(AC105/A$19)+$H104),3),2))) -> 295.52 | AD104: =IF(($A$8-$A104)<A$19,"",IF(($A$8-$A104)=A$19,SUM(OFFSET($I104,0,0,A$19,1)),ROUND(TRUNC((AD105-(AD105/A$19)+$I104),3),2))) -> 100 | AE104: =IF(($A$8-$A104)<A$19,"",IF(($A$8-$A104)=A$19,SUM(OFFSET($J104,0,0,A$19,1)),ROUND(TRUNC((AE105-(AE105/A$19)+$J104),3),2))) -> 7.74 | AF104: =IF(($A$8-$A104)<A$19,"",ROUND((100*(AD104/AC104)),0)) -> 34 | AG104: =IF(($A$8-$A104)<A$19,"",ROUND((100*(AE104/AC104)),0)) -> 3 | AH104: =IF(($A$8-$A104)<A$19,"",ABS(AF104-AG104)) -> 31 | AI104: =IF(($A$8-$A104)<A$19,"",AF104+AG104) -> 37 | AJ104: =IF(($A$8-$A104)<A$19,"",ROUND(100*(AH104/AI104),0)) -> 84 | AK104: =IF(($A$8-$A104)<(2*A$19),"",ROUND(IF(($A$8-$A104)=(2*A$19),AVERAGE(OFFSET(AJ104,0,0,A$19,1)),(((AK105*(A$19-1))+AJ104)/A$19)),0)) -> 77 | AL104: 5 | AM104: 10 | AN104: 20 | AO104: 30 | AP104: 50 | AQ104: 70 | AR104: 90 | AS104: 0 | AT104: 0
A105: 73 | B105: =OFFSET(InputPriceData!B$10,CalculationsAndCharts!$A105+$A$11,0,1,1) -> 2011-01-31 | C105: =OFFSET(InputPriceData!G$10,CalculationsAndCharts!$A105+$A$11,0,1,1) -> 2026174000 | D105: =OFFSET(InputPriceData!C$10,CalculationsAndCharts!$A105+$A$11,0,1,1) -> 2274.22 | E105: =OFFSET(InputPriceData!D$10,CalculationsAndCharts!$A105+$A$11,0,1,1) -> 2338.66 | F105: =OFFSET(InputPriceData!E$10,CalculationsAndCharts!$A105+$A$11,0,1,1) -> 2258.05 | G105: =OFFSET(InputPriceData!F$10,CalculationsAndCharts!$A105+$A$11,0,1,1) -> 2338.2 | H105: 80.61 | I105: 2.62 | J105: 0 | K105: =IF(($A$8-$A105)<A$17,"",IF(($A$8-$A105)=A$17,SUM(OFFSET($H105,0,0,A$17,1)),ROUND(TRUNC((K106-(K106/A$17)+$H105),3),2))) -> 204.84 | L105: =IF(($A$8-$A105)<A$17,"",IF(($A$8-$A105)=A$17,SUM(OFFSET($I105,0,0,A$17,1)),ROUND(TRUNC((L106-(L106/A$17)+$I105),3),2))) -> 31.63 | M105: =IF(($A$8-$A105)<A$17,"",IF(($A$8-$A105)=A$17,SUM(OFFSET($J105,0,0,A$17,1)),ROUND(TRUNC((M106-(M106/A$17)+$J105),3),2))) -> 4.83 | N105: =IF(($A$8-$A105)<A$17,"",ROUND((100*(L105/K105)),0)) -> 15 | O105: =IF(($A$8-$A105)<A$17,"",ROUND((100*(M105/K105)),0)) -> 2 | P105: =IF(($A$8-$A105)<A$17,"",ABS(N105-O105)) -> 13 | Q105: =IF(($A$8-$A105)<A$17,"",N105+O105) -> 17 | R105: =IF(($A$8-$A105)<A$17,"",ROUND(100*(P105/Q105),0)) -> 76 | S105: =IF(($A$8-$A105)<(2*A$17),"",ROUND(IF(($A$8-$A105)=(2*A$17),AVERAGE(OFFSET(R105,0,0,A$17,1)),(((S106*(A$17-1))+R105)/A$17)),0)) -> 80 | T105: =IF(($A$8-$A105)<A$18,"",IF(($A$8-$A105)=A$18,SUM(OFFSET($H105,0,0,A$18,1)),ROUND(TRUNC((T106-(T106/A$18)+$H105),3),2))) -> 259.55 | U105: =IF(($A$8-$A105)<A$18,"",IF(($A$8-$A105)=A$18,SUM(OFFSET($I105,0,0,A$18,1)),ROUND(TRUNC((U106-(U106/A$18)+$I105),3),2))) -> 51.27 | V105: =IF(($A$8-$A105)<A$18,"",IF(($A$8-$A105)=A$18,SUM(OFFSET($J105,0,0,A$18,1)),ROUND(TRUNC((V106-(V106/A$18)+$J105),3),2))) -> 6.79 | W105: =IF(($A$8-$A105)<A$18,"",ROUND((100*(U105/T105)),0)) -> 20 | X105: =IF(($A$8-$A105)<A$18,"",ROUND((100*(V105/T105)),0)) -> 3 | Y105: =IF(($A$8-$A105)<A$18,"",ABS(W105-X105)) -> 17 | Z105: =IF(($A$8-$A105)<A$18,"",W105+X105) -> 23 | AA105: =IF(($A$8-$A105)<A$18,"",ROUND(100*(Y105/Z105),0)) -> 74 | AB105: =IF(($A$8-$A105)<(2*A$18),"",ROUND(IF(($A$8-$A105)=(2*A$18),AVERAGE(OFFSET(AA105,0,0,A$18,1)),(((AB106*(A$18-1))+AA105)/A$18)),0)) -> 78 | AC105: =IF(($A$8-$A105)<A$19,"",IF(($A$8-$A105)=A$19,SUM(OFFSET($H105,0,0,A$19,1)),ROUND(TRUNC((AC106-(AC106/A$19)+$H105),3),2))) -> 315.4 | AD105: =IF(($A$8-$A105)<A$19,"",IF(($A$8-$A105)=A$19,SUM(OFFSET($I105,0,0,A$19,1)),ROUND(TRUNC((AD106-(AD106/A$19)+$I105),3),2))) -> 71.57 | AE105: =IF(($A$8-$A105)<A$19,"",IF(($A$8-$A105)=A$19,SUM(OFFSET($J105,0,0,A$19,1)),ROUND(TRUNC((AE106-(AE106/A$19)+$J105),3),2))) -> 9.68 | AF105: =IF(($A$8-$A105)<A$19,"",ROUND((100*(AD105/AC105)),0)) -> 23 | AG105: =IF(($A$8-$A105)<A$19,"",ROUND((100*(AE105/AC105)),0)) -> 3 | AH105: =IF(($A$8-$A105)<A$19,"",ABS(AF105-AG105)) -> 20 | AI105: =IF(($A$8-$A105)<A$19,"",AF105+AG105) -> 26 | AJ105: =IF(($A$8-$A105)<A$19,"",ROUND(100*(AH105/AI105),0)) -> 77 | AK105: =IF(($A$8-$A105)<(2*A$19),"",ROUND(IF(($A$8-$A105)=(2*A$19),AVERAGE(OFFSET(AJ105,0,0,A$19,1)),(((AK106*(A$19-1))+AJ105)/A$19)),0)) -> 75 | AL105: 5 | AM105: 10 | AN105: 20 | AO105: 30 | AP105: 50 | AQ105: 70 | AR105: 90 | AS105: 0 | AT105: 0
A106: 74 | B106: =OFFSET(InputPriceData!B$10,CalculationsAndCharts!$A106+$A$11,0,1,1) -> 2011-01-24 | C106: =OFFSET(InputPriceData!G$10,CalculationsAndCharts!$A106+$A$11,0,1,1) -> 2046104000 | D106: =OFFSET(InputPriceData!C$10,CalculationsAndCharts!$A106+$A$11,0,1,1) -> 2271.73 | E106: =OFFSET(InputPriceData!D$10,CalculationsAndCharts!$A106+$A$11,0,1,1) -> 2336.04 | F106: =OFFSET(InputPriceData!E$10,CalculationsAndCharts!$A106+$A$11,0,1,1) -> 2260.6 | G106: =OFFSET(InputPriceData!F$10,CalculationsAndCharts!$A106+$A$11,0,1,1) -> 2270.51 | H106: 75.44 | I106: 0 | J106: 6.57 | K106: =IF(($A$8-$A106)<A$17,"",IF(($A$8-$A106)=A$17,SUM(OFFSET($H106,0,0,A$17,1)),ROUND(TRUNC((K107-(K107/A$17)+$H106),3),2))) -> 186.35 | L106: =IF(($A$8-$A106)<A$17,"",IF(($A$8-$A106)=A$17,SUM(OFFSET($I106,0,0,A$17,1)),ROUND(TRUNC((L107-(L107/A$17)+$I106),3),2))) -> 43.51 | M106: =IF(($A$8-$A106)<A$17,"",IF(($A$8-$A106)=A$17,SUM(OFFSET($J106,0,0,A$17,1)),ROUND(TRUNC((M107-(M107/A$17)+$J106),3),2))) -> 7.25 | N106: =IF(($A$8-$A106)<A$17,"",ROUND((100*(L106/K106)),0)) -> 23 | O106: =IF(($A$8-$A106)<A$17,"",ROUND((100*(M106/K106)),0)) -> 4 | P106: =IF(($A$8-$A106)<A$17,"",ABS(N106-O106)) -> 19 | Q106: =IF(($A$8-$A106)<A$17,"",N106+O106) -> 27 | R106: =IF(($A$8-$A106)<A$17,"",ROUND(100*(P106/Q106),0)) -> 70 | S106: =IF(($A$8-$A106)<(2*A$17),"",ROUND(IF(($A$8-$A106)=(2*A$17),AVERAGE(OFFSET(R106,0,0,A$17,1)),(((S107*(A$17-1))+R106)/A$17)),0)) -> 82 | T106: =IF(($A$8-$A106)<A$18,"",IF(($A$8-$A106)=A$18,SUM(OFFSET($H106,0,0,A$18,1)),ROUND(TRUNC((T107-(T107/A$18)+$H106),3),2))) -> 238.58 | U106: =IF(($A$8-$A106)<A$18,"",IF(($A$8-$A106)=A$18,SUM(OFFSET($I106,0,0,A$18,1)),ROUND(TRUNC((U107-(U107/A$18)+$I106),3),2))) -> 64.87 | V106: =IF(($A$8-$A106)<A$18,"",IF(($A$8-$A106)=A$18,SUM(OFFSET($J106,0,0,A$18,1)),ROUND(TRUNC((V107-(V107/A$18)+$J106),3),2))) -> 9.05 | W106: =IF(($A$8-$A106)<A$18,"",ROUND((100*(U106/T106)),0)) -> 27 | X106: =IF(($A$8-$A106)<A$18,"",ROUND((100*(V106/T106)),0)) -> 4 | Y106: =IF(($A$8-$A106)<A$18,"",ABS(W106-X106)) -> 23 | Z106: =IF(($A$8-$A106)<A$18,"",W106+X106) -> 31 | AA106: =IF(($A$8-$A106)<A$18,"",ROUND(100*(Y106/Z106),0)) -> 74 | AB106: =IF(($A$8-$A106)<(2*A$18),"",ROUND(IF(($A$8-$A106)=(2*A$18),AVERAGE(OFFSET(AA106,0,0,A$18,1)),(((AB107*(A$18-1))+AA106)/A$18)),0)) -> 79 | AC106: =IF(($A$8-$A106)<A$19,"",IF(($A$8-$A106)=A$19,SUM(OFFSET($H106,0,0,A$19,1)),ROUND(TRUNC((AC107-(AC107/A$19)+$H106),3),2))) -> 293.49 | AD106: =IF(($A$8-$A106)<A$19,"",IF(($A$8-$A106)=A$19,SUM(OFFSET($I106,0,0,A$19,1)),ROUND(TRUNC((AD107-(AD107/A$19)+$I106),3),2))) -> 86.19 | AE106: =IF(($A$8-$A106)<A$19,"",IF(($A$8-$A106)=A$19,SUM(OFFSET($J106,0,0,A$19,1)),ROUND(TRUNC((AE107-(AE107/A$19)+$J106),3),2))) -> 12.1 | AF106: =IF(($A$8-$A106)<A$19,"",ROUND((100*(AD106/AC106)),0)) -> 29 | AG106: =IF(($A$8-$A106)<A$19,"",ROUND((100*(AE106/AC106)),0)) -> 4 | AH106: =IF(($A$8-$A106)<A$19,"",ABS(AF106-AG106)) -> 25 | AI106: =IF(($A$8-$A106)<A$19,"",AF106+AG106) -> 33 | AJ106: =IF(($A$8-$A106)<A$19,"",ROUND(100*(AH106/AI106),0)) -> 76 | AK106: =IF(($A$8-$A106)<(2*A$19),"",ROUND(IF(($A$8-$A106)=(2*A$19),AVERAGE(OFFSET(AJ106,0,0,A$19,1)),(((AK107*(A$19-1))+AJ106)/A$19)),0)) -> 74 | AL106: 5 | AM106: 10 | AN106: 20 | AO106: 30 | AP106: 50 | AQ106: 70 | AR106: 90 | AS106: 0 | AT106: 0
A107: 75 | B107: =OFFSET(InputPriceData!B$10,CalculationsAndCharts!$A107+$A$11,0,1,1) -> 2011-01-18 | C107: =OFFSET(InputPriceData!G$10,CalculationsAndCharts!$A107+$A$11,0,1,1) -> 2097832500 | D107: =OFFSET(InputPriceData!C$10,CalculationsAndCharts!$A107+$A$11,0,1,1) -> 2300.93 | E107: =OFFSET(InputPriceData!D$10,CalculationsAndCharts!$A107+$A$11,0,1,1) -> 2331.63 | F107: =OFFSET(InputPriceData!E$10,CalculationsAndCharts!$A107+$A$11,0,1,1) -> 2267.17 | G107: =OFFSET(InputPriceData!F$10,CalculationsAndCharts!$A107+$A$11,0,1,1) -> 2268.32 | H107: 64.46 | I107: 8.2 | J107: 0 | K107: =IF(($A$8-$A107)<A$17,"",IF(($A$8-$A107)=A$17,SUM(OFFSET($H107,0,0,A$17,1)),ROUND(TRUNC((K108-(K108/A$17)+$H107),3),2))) -> 166.37 | L107: =IF(($A$8-$A107)<A$17,"",IF(($A$8-$A107)=A$17,SUM(OFFSET($I107,0,0,A$17,1)),ROUND(TRUNC((L108-(L108/A$17)+$I107),3),2))) -> 65.27 | M107: =IF(($A$8-$A107)<A$17,"",IF(($A$8-$A107)=A$17,SUM(OFFSET($J107,0,0,A$17,1)),ROUND(TRUNC((M108-(M108/A$17)+$J107),3),2))) -> 1.02 | N107: =IF(($A$8-$A107)<A$17,"",ROUND((100*(L107/K107)),0)) -> 39 | O107: =IF(($A$8-$A107)<A$17,"",ROUND((100*(M107/K107)),0)) -> 1 | P107: =IF(($A$8-$A107)<A$17,"",ABS(N107-O107)) -> 38 | Q107: =IF(($A$8-$A107)<A$17,"",N107+O107) -> 40 | R107: =IF(($A$8-$A107)<A$17,"",ROUND(100*(P107/Q107),0)) -> 95 | S107: =IF(($A$8-$A107)<(2*A$17),"",ROUND(IF(($A$8-$A107)=(2*A$17),AVERAGE(OFFSET(R107,0,0,A$17,1)),(((S108*(A$17-1))+R107)/A$17)),0)) -> 88 | T107: =IF(($A$8-$A107)<A$18,"",IF(($A$8-$A107)=A$18,SUM(OFFSET($H107,0,0,A$18,1)),ROUND(TRUNC((T108-(T108/A$18)+$H107),3),2))) -> 217.52 | U107: =IF(($A$8-$A107)<A$18,"",IF(($A$8-$A107)=A$18,SUM(OFFSET($I107,0,0,A$18,1)),ROUND(TRUNC((U108-(U108/A$18)+$I107),3),2))) -> 86.49 | V107: =IF(($A$8-$A107)<A$18,"",IF(($A$8-$A107)=A$18,SUM(OFFSET($J107,0,0,A$18,1)),ROUND(TRUNC((V108-(V108/A$18)+$J107),3),2))) -> 3.3 | W107: =IF(($A$8-$A107)<A$18,"",ROUND((100*(U107/T107)),0)) -> 40 | X107: =IF(($A$8-$A107)<A$18,"",ROUND((100*(V107/T107)),0)) -> 2 | Y107: =IF(($A$8-$A107)<A$18,"",ABS(W107-X107)) -> 38 | Z107: =IF(($A$8-$A107)<A$18,"",W107+X107) -> 42 | AA107: =IF(($A$8-$A107)<A$18,"",ROUND(100*(Y107/Z107),0)) -> 90 | AB107: =IF(($A$8-$A107)<(2*A$18),"",ROUND(IF(($A$8-$A107)=(2*A$18),AVERAGE(OFFSET(AA107,0,0,A$18,1)),(((AB108*(A$18-1))+AA107)/A$18)),0)) -> 80 | AC107: =IF(($A$8-$A107)<A$19,"",IF(($A$8-$A107)=A$19,SUM(OFFSET($H107,0,0,A$19,1)),ROUND(TRUNC((AC108-(AC108/A$19)+$H107),3),2))) -> 272.56 | AD107: =IF(($A$8-$A107)<A$19,"",IF(($A$8-$A107)=A$19,SUM(OFFSET($I107,0,0,A$19,1)),ROUND(TRUNC((AD108-(AD108/A$19)+$I107),3),2))) -> 107.74 | AE107: =IF(($A$8-$A107)<A$19,"",IF(($A$8-$A107)=A$19,SUM(OFFSET($J107,0,0,A$19,1)),ROUND(TRUNC((AE108-(AE108/A$19)+$J107),3),2))) -> 6.91 | AF107: =IF(($A$8-$A107)<A$19,"",ROUND((100*(AD107/AC107)),0)) -> 40 | AG107: =IF(($A$8-$A107)<A$19,"",ROUND((100*(AE107/AC107)),0)) -> 3 | AH107: =IF(($A$8-$A107)<A$19,"",ABS(AF107-AG107)) -> 37 | AI107: =IF(($A$8-$A107)<A$19,"",AF107+AG107) -> 43 | AJ107: =IF(($A$8-$A107)<A$19,"",ROUND(100*(AH107/AI107),0)) -> 86 | AK107: =IF(($A$8-$A107)<(2*A$19),"",ROUND(IF(($A$8-$A107)=(2*A$19),AVERAGE(OFFSET(AJ107,0,0,A$19,1)),(((AK108*(A$19-1))+AJ107)/A$19)),0)) -> 73 | AL107: 5 | AM107: 10 | AN107: 20 | AO107: 30 | AP107: 50 | AQ107: 70 | AR107: 90 | AS107: 0 | AT107: 0
A108: 76 | B108: =OFFSET(InputPriceData!B$10,CalculationsAndCharts!$A108+$A$11,0,1,1) -> 2011-01-10 | C108: =OFFSET(InputPriceData!G$10,CalculationsAndCharts!$A108+$A$11,0,1,1) -> 1916008000 | D108: =OFFSET(InputPriceData!C$10,CalculationsAndCharts!$A108+$A$11,0,1,1) -> 2270.65 | E108: =OFFSET(InputPriceData!D$10,CalculationsAndCharts!$A108+$A$11,0,1,1) -> 2323.43 | F108: =OFFSET(InputPriceData!E$10,CalculationsAndCharts!$A108+$A$11,0,1,1) -> 2265 | G108: =OFFSET(InputPriceData!F$10,CalculationsAndCharts!$A108+$A$11,0,1,1) -> 2323.43 | H108: 58.43 | I108: 40.56 | J108: 0 | K108: =IF(($A$8-$A108)<A$17,"",IF(($A$8-$A108)=A$17,SUM(OFFSET($H108,0,0,A$17,1)),ROUND(TRUNC((K109-(K109/A$17)+$H108),3),2))) -> 152.86 | L108: =IF(($A$8-$A108)<A$17,"",IF(($A$8-$A108)=A$17,SUM(OFFSET($I108,0,0,A$17,1)),ROUND(TRUNC((L109-(L109/A$17)+$I108),3),2))) -> 85.61 | M108: =IF(($A$8-$A108)<A$17,"",IF(($A$8-$A108)=A$17,SUM(OFFSET($J108,0,0,A$17,1)),ROUND(TRUNC((M109-(M109/A$17)+$J108),3),2))) -> 1.53 | N108: =IF(($A$8-$A108)<A$17,"",ROUND((100*(L108/K108)),0)) -> 56 | O108: =IF(($A$8-$A108)<A$17,"",ROUND((100*(M108/K108)),0)) -> 1 | P108: =IF(($A$8-$A108)<A$17,"",ABS(N108-O108)) -> 55 | Q108: =IF(($A$8-$A108)<A$17,"",N108+O108) -> 57 | R108: =IF(($A$8-$A108)<A$17,"",ROUND(100*(P108/Q108),0)) -> 96 | S108: =IF(($A$8-$A108)<(2*A$17),"",ROUND(IF(($A$8-$A108)=(2*A$17),AVERAGE(OFFSET(R108,0,0,A$17,1)),(((S109*(A$17-1))+R108)/A$17)),0)) -> 85 | T108: =IF(($A$8-$A108)<A$18,"",IF(($A$8-$A108)=A$18,SUM(OFFSET($H108,0,0,A$18,1)),ROUND(TRUNC((T109-(T109/A$18)+$H108),3),2))) -> 204.08 | U108: =IF(($A$8-$A108)<A$18,"",IF(($A$8-$A108)=A$18,SUM(OFFSET($I108,0,0,A$18,1)),ROUND(TRUNC((U109-(U109/A$18)+$I108),3),2))) -> 104.39 | V108: =IF(($A$8-$A108)<A$18,"",IF(($A$8-$A108)=A$18,SUM(OFFSET($J108,0,0,A$18,1)),ROUND(TRUNC((V109-(V109/A$18)+$J108),3),2))) -> 4.4 | W108: =IF(($A$8-$A108)<A$18,"",ROUND((100*(U108/T108)),0)) -> 51 | X108: =IF(($A$8-$A108)<A$18,"",ROUND((100*(V108/T108)),0)) -> 2 | Y108: =IF(($A$8-$A108)<A$18,"",ABS(W108-X108)) -> 49 | Z108: =IF(($A$8-$A108)<A$18,"",W108+X108) -> 53 | AA108: =IF(($A$8-$A108)<A$18,"",ROUND(100*(Y108/Z108),0)) -> 92 | AB108: =IF(($A$8-$A108)<(2*A$18),"",ROUND(IF(($A$8-$A108)=(2*A$18),AVERAGE(OFFSET(AA108,0,0,A$18,1)),(((AB109*(A$18-1))+AA108)/A$18)),0)) -> 77 | AC108: =IF(($A$8-$A108)<A$19,"",IF(($A$8-$A108)=A$19,SUM(OFFSET($H108,0,0,A$19,1)),ROUND(TRUNC((AC109-(AC109/A$19)+$H108),3),2))) -> 260.13 | AD108: =IF(($A$8-$A108)<A$19,"",IF(($A$8-$A108)=A$19,SUM(OFFSET($I108,0,0,A$19,1)),ROUND(TRUNC((AD109-(AD109/A$19)+$I108),3),2))) -> 124.42 | AE108: =IF(($A$8-$A108)<A$19,"",IF(($A$8-$A108)=A$19,SUM(OFFSET($J108,0,0,A$19,1)),ROUND(TRUNC((AE109-(AE109/A$19)+$J108),3),2))) -> 8.64 | AF108: =IF(($A$8-$A108)<A$19,"",ROUND((100*(AD108/AC108)),0)) -> 48 | AG108: =IF(($A$8-$A108)<A$19,"",ROUND((100*(AE108/AC108)),0)) -> 3 | AH108: =IF(($A$8-$A108)<A$19,"",ABS(AF108-AG108)) -> 45 | AI108: =IF(($A$8-$A108)<A$19,"",AF108+AG108) -> 51 | AJ108: =IF(($A$8-$A108)<A$19,"",ROUND(100*(AH108/AI108),0)) -> 88 | AK108: =IF(($A$8-$A108)<(2*A$19),"",ROUND(IF(($A$8-$A108)=(2*A$19),AVERAGE(OFFSET(AJ108,0,0,A$19,1)),(((AK109*(A$19-1))+AJ108)/A$19)),0)) -> 70 | AL108: 5 | AM108: 10 | AN108: 20 | AO108: 30 | AP108: 50 | AQ108: 70 | AR108: 90 | AS108: 0 | AT108: 0
A109: 77 | B109: =OFFSET(InputPriceData!B$10,CalculationsAndCharts!$A109+$A$11,0,1,1) -> 2011-01-03 | C109: =OFFSET(InputPriceData!G$10,CalculationsAndCharts!$A109+$A$11,0,1,1) -> 2013512000 | D109: =OFFSET(InputPriceData!C$10,CalculationsAndCharts!$A109+$A$11,0,1,1) -> 2238.66 | E109: =OFFSET(InputPriceData!D$10,CalculationsAndCharts!$A109+$A$11,0,1,1) -> 2282.87 | F109: =OFFSET(InputPriceData!E$10,CalculationsAndCharts!$A109+$A$11,0,1,1) -> 2237.73 | G109: =OFFSET(InputPriceData!F$10,CalculationsAndCharts!$A109+$A$11,0,1,1) -> 2276.7 | H109: 65.01 | I109: 46.68 | J109: 0 | K109: =IF(($A$8-$A109)<A$17,"",IF(($A$8-$A109)=A$17,SUM(OFFSET($H109,0,0,A$17,1)),ROUND(TRUNC((K110-(K110/A$17)+$H109),3),2))) -> 141.64 | L109: =IF(($A$8-$A109)<A$17,"",IF(($A$8-$A109)=A$17,SUM(OFFSET($I109,0,0,A$17,1)),ROUND(TRUNC((L110-(L110/A$17)+$I109),3),2))) -> 67.57 | M109: =IF(($A$8-$A109)<A$17,"",IF(($A$8-$A109)=A$17,SUM(OFFSET($J109,0,0,A$17,1)),ROUND(TRUNC((M110-(M110/A$17)+$J109),3),2))) -> 2.3 | N109: =IF(($A$8-$A109)<A$17,"",ROUND((100*(L109/K109)),0)) -> 48 | O109: =IF(($A$8-$A109)<A$17,"",ROUND((100*(M109/K109)),0)) -> 2 | P109: =IF(($A$8-$A109)<A$17,"",ABS(N109-O109)) -> 46 | Q109: =IF(($A$8-$A109)<A$17,"",N109+O109) -> 50 | R109: =IF(($A$8-$A109)<A$17,"",ROUND(100*(P109/Q109),0)) -> 92 | S109: =IF(($A$8-$A109)<(2*A$17),"",ROUND(IF(($A$8-$A109)=(2*A$17),AVERAGE(OFFSET(R109,0,0,A$17,1)),(((S110*(A$17-1))+R109)/A$17)),0)) -> 79 | T109: =IF(($A$8-$A109)<A$18,"",IF(($A$8-$A109)=A$18,SUM(OFFSET($H109,0,0,A$18,1)),ROUND(TRUNC((T110-(T110/A$18)+$H109),3),2))) -> 194.2 | U109: =IF(($A$8-$A109)<A$18,"",IF(($A$8-$A109)=A$18,SUM(OFFSET($I109,0,0,A$18,1)),ROUND(TRUNC((U110-(U110/A$18)+$I109),3),2))) -> 85.1 | V109: =IF(($A$8-$A109)<A$18,"",IF(($A$8-$A109)=A$18,SUM(OFFSET($J109,0,0,A$18,1)),ROUND(TRUNC((V110-(V110/A$18)+$J109),3),2))) -> 5.86 | W109: =IF(($A$8-$A109)<A$18,"",ROUND((100*(U109/T109)),0)) -> 44 | X109: =IF(($A$8-$A109)<A$18,"",ROUND((100*(V109/T109)),0)) -> 3 | Y109: =IF(($A$8-$A109)<A$18,"",ABS(W109-X109)) -> 41 | Z109: =IF(($A$8-$A109)<A$18,"",W109+X109) -> 47 | AA109: =IF(($A$8-$A109)<A$18,"",ROUND(100*(Y109/Z109),0)) -> 87 | AB109: =IF(($A$8-$A109)<(2*A$18),"",ROUND(IF(($A$8-$A109)=(2*A$18),AVERAGE(OFFSET(AA109,0,0,A$18,1)),(((AB110*(A$18-1))+AA109)/A$18)),0)) -> 72 | AC109: =IF(($A$8-$A109)<A$19,"",IF(($A$8-$A109)=A$19,SUM(OFFSET($H109,0,0,A$19,1)),ROUND(TRUNC((AC110-(AC110/A$19)+$H109),3),2))) -> 252.12 | AD109: =IF(($A$8-$A109)<A$19,"",IF(($A$8-$A109)=A$19,SUM(OFFSET($I109,0,0,A$19,1)),ROUND(TRUNC((AD110-(AD110/A$19)+$I109),3),2))) -> 104.82 | AE109: =IF(($A$8-$A109)<A$19,"",IF(($A$8-$A109)=A$19,SUM(OFFSET($J109,0,0,A$19,1)),ROUND(TRUNC((AE110-(AE110/A$19)+$J109),3),2))) -> 10.8 | AF109: =IF(($A$8-$A109)<A$19,"",ROUND((100*(AD109/AC109)),0)) -> 42 | AG109: =IF(($A$8-$A109)<A$19,"",ROUND((100*(AE109/AC109)),0)) -> 4 | AH109: =IF(($A$8-$A109)<A$19,"",ABS(AF109-AG109)) -> 38 | AI109: =IF(($A$8-$A109)<A$19,"",AF109+AG109) -> 46 | AJ109: =IF(($A$8-$A109)<A$19,"",ROUND(100*(AH109/AI109),0)) -> 83 | AK109: =IF(($A$8-$A109)<(2*A$19),"",ROUND(IF(($A$8-$A109)=(2*A$19),AVERAGE(OFFSET(AJ109,0,0,A$19,1)),(((AK110*(A$19-1))+AJ109)/A$19)),0)) -> 65 | AL109: 5 | AM109: 10 | AN109: 20 | AO109: 30 | AP109: 50 | AQ109: 70 | AR109: 90 | AS109: 0 | AT109: 0
A110: 78 | B110: =OFFSET(InputPriceData!B$10,CalculationsAndCharts!$A110+$A$11,0,1,1) -> 2010-12-27 | C110: =OFFSET(InputPriceData!G$10,CalculationsAndCharts!$A110+$A$11,0,1,1) -> 1090080000 | D110: =OFFSET(InputPriceData!C$10,CalculationsAndCharts!$A110+$A$11,0,1,1) -> 2223.76 | E110: =OFFSET(InputPriceData!D$10,CalculationsAndCharts!$A110+$A$11,0,1,1) -> 2236.19 | F110: =OFFSET(InputPriceData!E$10,CalculationsAndCharts!$A110+$A$11,0,1,1) -> 2208.8 | G110: =OFFSET(InputPriceData!F$10,CalculationsAndCharts!$A110+$A$11,0,1,1) -> 2217.86 | H110: 27.39 | I110: 0 | J110: 0 | K110: =IF(($A$8-$A110)<A$17,"",IF(($A$8-$A110)=A$17,SUM(OFFSET($H110,0,0,A$17,1)),ROUND(TRUNC((K111-(K111/A$17)+$H110),3),2))) -> 114.94 | L110: =IF(($A$8-$A110)<A$17,"",IF(($A$8-$A110)=A$17,SUM(OFFSET($I110,0,0,A$17,1)),ROUND(TRUNC((L111-(L111/A$17)+$I110),3),2))) -> 31.33 | M110: =IF(($A$8-$A110)<A$17,"",IF(($A$8-$A110)=A$17,SUM(OFFSET($J110,0,0,A$17,1)),ROUND(TRUNC((M111-(M111/A$17)+$J110),3),2))) -> 3.45 | N110: =IF(($A$8-$A110)<A$17,"",ROUND((100*(L110/K110)),0)) -> 27 | O110: =IF(($A$8-$A110)<A$17,"",ROUND((100*(M110/K110)),0)) -> 3 | P110: =IF(($A$8-$A110)<A$17,"",ABS(N110-O110)) -> 24 | Q110: =IF(($A$8-$A110)<A$17,"",N110+O110) -> 30 | R110: =IF(($A$8-$A110)<A$17,"",ROUND(100*(P110/Q110),0)) -> 80 | S110: =IF(($A$8-$A110)<(2*A$17),"",ROUND(IF(($A$8-$A110)=(2*A$17),AVERAGE(OFFSET(R110,0,0,A$17,1)),(((S111*(A$17-1))+R110)/A$17)),0)) -> 73 | T110: =IF(($A$8-$A110)<A$18,"",IF(($A$8-$A110)=A$18,SUM(OFFSET($H110,0,0,A$18,1)),ROUND(TRUNC((T111-(T111/A$18)+$H110),3),2))) -> 172.25 | U110: =IF(($A$8-$A110)<A$18,"",IF(($A$8-$A110)=A$18,SUM(OFFSET($I110,0,0,A$18,1)),ROUND(TRUNC((U111-(U111/A$18)+$I110),3),2))) -> 51.23 | V110: =IF(($A$8-$A110)<A$18,"",IF(($A$8-$A110)=A$18,SUM(OFFSET($J110,0,0,A$18,1)),ROUND(TRUNC((V111-(V111/A$18)+$J110),3),2))) -> 7.81 | W110: =IF(($A$8-$A110)<A$18,"",ROUND((100*(U110/T110)),0)) -> 30 | X110: =IF(($A$8-$A110)<A$18,"",ROUND((100*(V110/T110)),0)) -> 5 | Y110: =IF(($A$8-$A110)<A$18,"",ABS(W110-X110)) -> 25 | Z110: =IF(($A$8-$A110)<A$18,"",W110+X110) -> 35 | AA110: =IF(($A$8-$A110)<A$18,"",ROUND(100*(Y110/Z110),0)) -> 71 | AB110: =IF(($A$8-$A110)<(2*A$18),"",ROUND(IF(($A$8-$A110)=(2*A$18),AVERAGE(OFFSET(AA110,0,0,A$18,1)),(((AB111*(A$18-1))+AA110)/A$18)),0)) -> 67 | AC110: =IF(($A$8-$A110)<A$19,"",IF(($A$8-$A110)=A$19,SUM(OFFSET($H110,0,0,A$19,1)),ROUND(TRUNC((AC111-(AC111/A$19)+$H110),3),2))) -> 233.89 | AD110: =IF(($A$8-$A110)<A$19,"",IF(($A$8-$A110)=A$19,SUM(OFFSET($I110,0,0,A$19,1)),ROUND(TRUNC((AD111-(AD111/A$19)+$I110),3),2))) -> 72.67 | AE110: =IF(($A$8-$A110)<A$19,"",IF(($A$8-$A110)=A$19,SUM(OFFSET($J110,0,0,A$19,1)),ROUND(TRUNC((AE111-(AE111/A$19)+$J110),3),2))) -> 13.5 | AF110: =IF(($A$8-$A110)<A$19,"",ROUND((100*(AD110/AC110)),0)) -> 31 | AG110: =IF(($A$8-$A110)<A$19,"",ROUND((100*(AE110/AC110)),0)) -> 6 | AH110: =IF(($A$8-$A110)<A$19,"",ABS(AF110-AG110)) -> 25 | AI110: =IF(($A$8-$A110)<A$19,"",AF110+AG110) -> 37 | AJ110: =IF(($A$8-$A110)<A$19,"",ROUND(100*(AH110/AI110),0)) -> 68 | AK110: =IF(($A$8-$A110)<(2*A$19),"",ROUND(IF(($A$8-$A110)=(2*A$19),AVERAGE(OFFSET(AJ110,0,0,A$19,1)),(((AK111*(A$19-1))+AJ110)/A$19)),0)) -> 61 | AL110: 5 | AM110: 10 | AN110: 20 | AO110: 30 | AP110: 50 | AQ110: 70 | AR110: 90 | AS110: 0 | AT110: 0
A111: 79 | B111: =OFFSET(InputPriceData!B$10,CalculationsAndCharts!$A111+$A$11,0,1,1) -> 2010-12-20 | C111: =OFFSET(InputPriceData!G$10,CalculationsAndCharts!$A111+$A$11,0,1,1) -> 1559957500 | D111: =OFFSET(InputPriceData!C$10,CalculationsAndCharts!$A111+$A$11,0,1,1) -> 2225.41 | E111: =OFFSET(InputPriceData!D$10,CalculationsAndCharts!$A111+$A$11,0,1,1) -> 2238.92 | F111: =OFFSET(InputPriceData!E$10,CalculationsAndCharts!$A111+$A$11,0,1,1) -> 2206.3 | G111: =OFFSET(InputPriceData!F$10,CalculationsAndCharts!$A111+$A$11,0,1,1) -> 2230.27 | H111: 32.62 | I111: 11.88 | J111: 0 | K111: =IF(($A$8-$A111)<A$17,"",IF(($A$8-$A111)=A$17,SUM(OFFSET($H111,0,0,A$17,1)),ROUND(TRUNC((K112-(K112/A$17)+$H111),3),2))) -> 131.33 | L111: =IF(($A$8-$A111)<A$17,"",IF(($A$8-$A111)=A$17,SUM(OFFSET($I111,0,0,A$17,1)),ROUND(TRUNC((L112-(L112/A$17)+$I111),3),2))) -> 46.99 | M111: =IF(($A$8-$A111)<A$17,"",IF(($A$8-$A111)=A$17,SUM(OFFSET($J111,0,0,A$17,1)),ROUND(TRUNC((M112-(M112/A$17)+$J111),3),2))) -> 5.18 | N111: =IF(($A$8-$A111)<A$17,"",ROUND((100*(L111/K111)),0)) -> 36 | O111: =IF(($A$8-$A111)<A$17,"",ROUND((100*(M111/K111)),0)) -> 4 | P111: =IF(($A$8-$A111)<A$17,"",ABS(N111-O111)) -> 32 | Q111: =IF(($A$8-$A111)<A$17,"",N111+O111) -> 40 | R111: =IF(($A$8-$A111)<A$17,"",ROUND(100*(P111/Q111),0)) -> 80 | S111: =IF(($A$8-$A111)<(2*A$17),"",ROUND(IF(($A$8-$A111)=(2*A$17),AVERAGE(OFFSET(R111,0,0,A$17,1)),(((S112*(A$17-1))+R111)/A$17)),0)) -> 69 | T111: =IF(($A$8-$A111)<A$18,"",IF(($A$8-$A111)=A$18,SUM(OFFSET($H111,0,0,A$18,1)),ROUND(TRUNC((T112-(T112/A$18)+$H111),3),2))) -> 193.14 | U111: =IF(($A$8-$A111)<A$18,"",IF(($A$8-$A111)=A$18,SUM(OFFSET($I111,0,0,A$18,1)),ROUND(TRUNC((U112-(U112/A$18)+$I111),3),2))) -> 68.3 | V111: =IF(($A$8-$A111)<A$18,"",IF(($A$8-$A111)=A$18,SUM(OFFSET($J111,0,0,A$18,1)),ROUND(TRUNC((V112-(V112/A$18)+$J111),3),2))) -> 10.41 | W111: =IF(($A$8-$A111)<A$18,"",ROUND((100*(U111/T111)),0)) -> 35 | X111: =IF(($A$8-$A111)<A$18,"",ROUND((100*(V111/T111)),0)) -> 5 | Y111: =IF(($A$8-$A111)<A$18,"",ABS(W111-X111)) -> 30 | Z111: =IF(($A$8-$A111)<A$18,"",W111+X111) -> 40 | AA111: =IF(($A$8-$A111)<A$18,"",ROUND(100*(Y111/Z111),0)) -> 75 | AB111: =IF(($A$8-$A111)<(2*A$18),"",ROUND(IF(($A$8-$A111)=(2*A$18),AVERAGE(OFFSET(AA111,0,0,A$18,1)),(((AB112*(A$18-1))+AA111)/A$18)),0)) -> 65 | AC111: =IF(($A$8-$A111)<A$19,"",IF(($A$8-$A111)=A$19,SUM(OFFSET($H111,0,0,A$19,1)),ROUND(TRUNC((AC112-(AC112/A$19)+$H111),3),2))) -> 258.12 | AD111: =IF(($A$8-$A111)<A$19,"",IF(($A$8-$A111)=A$19,SUM(OFFSET($I111,0,0,A$19,1)),ROUND(TRUNC((AD112-(AD112/A$19)+$I111),3),2))) -> 90.84 | AE111: =IF(($A$8-$A111)<A$19,"",IF(($A$8-$A111)=A$19,SUM(OFFSET($J111,0,0,A$19,1)),ROUND(TRUNC((AE112-(AE112/A$19)+$J111),3),2))) -> 16.88 | AF111: =IF(($A$8-$A111)<A$19,"",ROUND((100*(AD111/AC111)),0)) -> 35 | AG111: =IF(($A$8-$A111)<A$19,"",ROUND((100*(AE111/AC111)),0)) -> 7 | AH111: =IF(($A$8-$A111)<A$19,"",ABS(AF111-AG111)) -> 28 | AI111: =IF(($A$8-$A111)<A$19,"",AF111+AG111) -> 42 | AJ111: =IF(($A$8-$A111)<A$19,"",ROUND(100*(AH111/AI111),0)) -> 67 | AK111: =IF(($A$8-$A111)<(2*A$19),"",ROUND(IF(($A$8-$A111)=(2*A$19),AVERAGE(OFFSET(AJ111,0,0,A$19,1)),(((AK112*(A$19-1))+AJ111)/A$19)),0)) -> 59 | AL111: 5 | AM111: 10 | AN111: 20 | AO111: 30 | AP111: 50 | AQ111: 70 | AR111: 90 | AS111: 0 | AT111: 0
A112: 80 | B112: =OFFSET(InputPriceData!B$10,CalculationsAndCharts!$A112+$A$11,0,1,1) -> 2010-12-13 | C112: =OFFSET(InputPriceData!G$10,CalculationsAndCharts!$A112+$A$11,0,1,1) -> 1941940000 | D112: =OFFSET(InputPriceData!C$10,CalculationsAndCharts!$A112+$A$11,0,1,1) -> 2223.89 | E112: =OFFSET(InputPriceData!D$10,CalculationsAndCharts!$A112+$A$11,0,1,1) -> 2227.04 | F112: =OFFSET(InputPriceData!E$10,CalculationsAndCharts!$A112+$A$11,0,1,1) -> 2196.88 | G112: =OFFSET(InputPriceData!F$10,CalculationsAndCharts!$A112+$A$11,0,1,1) -> 2218.29 | H112: 30.16 | I112: 9.56 | J112: 0 | K112: =IF(($A$8-$A112)<A$17,"",IF(($A$8-$A112)=A$17,SUM(OFFSET($H112,0,0,A$17,1)),ROUND(TRUNC((K113-(K113/A$17)+$H112),3),2))) -> 148.07 | L112: =IF(($A$8-$A112)<A$17,"",IF(($A$8-$A112)=A$17,SUM(OFFSET($I112,0,0,A$17,1)),ROUND(TRUNC((L113-(L113/A$17)+$I112),3),2))) -> 52.66 | M112: =IF(($A$8-$A112)<A$17,"",IF(($A$8-$A112)=A$17,SUM(OFFSET($J112,0,0,A$17,1)),ROUND(TRUNC((M113-(M113/A$17)+$J112),3),2))) -> 7.77 | N112: =IF(($A$8-$A112)<A$17,"",ROUND((100*(L112/K112)),0)) -> 36 | O112: =IF(($A$8-$A112)<A$17,"",ROUND((100*(M112/K112)),0)) -> 5 | P112: =IF(($A$8-$A112)<A$17,"",ABS(N112-O112)) -> 31 | Q112: =IF(($A$8-$A112)<A$17,"",N112+O112) -> 41 | R112: =IF(($A$8-$A112)<A$17,"",ROUND(100*(P112/Q112),0)) -> 76 | S112: =IF(($A$8-$A112)<(2*A$17),"",ROUND(IF(($A$8-$A112)=(2*A$17),AVERAGE(OFFSET(R112,0,0,A$17,1)),(((S113*(A$17-1))+R112)/A$17)),0)) -> 64 | T112: =IF(($A$8-$A112)<A$18,"",IF(($A$8-$A112)=A$18,SUM(OFFSET($H112,0,0,A$18,1)),ROUND(TRUNC((T113-(T113/A$18)+$H112),3),2))) -> 214.02 | U112: =IF(($A$8-$A112)<A$18,"",IF(($A$8-$A112)=A$18,SUM(OFFSET($I112,0,0,A$18,1)),ROUND(TRUNC((U113-(U113/A$18)+$I112),3),2))) -> 75.23 | V112: =IF(($A$8-$A112)<A$18,"",IF(($A$8-$A112)=A$18,SUM(OFFSET($J112,0,0,A$18,1)),ROUND(TRUNC((V113-(V113/A$18)+$J112),3),2))) -> 13.88 | W112: =IF(($A$8-$A112)<A$18,"",ROUND((100*(U112/T112)),0)) -> 35 | X112: =IF(($A$8-$A112)<A$18,"",ROUND((100*(V112/T112)),0)) -> 6 | Y112: =IF(($A$8-$A112)<A$18,"",ABS(W112-X112)) -> 29 | Z112: =IF(($A$8-$A112)<A$18,"",W112+X112) -> 41 | AA112: =IF(($A$8-$A112)<A$18,"",ROUND(100*(Y112/Z112),0)) -> 71 | AB112: =IF(($A$8-$A112)<(2*A$18),"",ROUND(IF(($A$8-$A112)=(2*A$18),AVERAGE(OFFSET(AA112,0,0,A$18,1)),(((AB113*(A$18-1))+AA112)/A$18)),0)) -> 61 | AC112: =IF(($A$8-$A112)<A$19,"",IF(($A$8-$A112)=A$19,SUM(OFFSET($H112,0,0,A$19,1)),ROUND(TRUNC((AC113-(AC113/A$19)+$H112),3),2))) -> 281.87 | AD112: =IF(($A$8-$A112)<A$19,"",IF(($A$8-$A112)=A$19,SUM(OFFSET($I112,0,0,A$19,1)),ROUND(TRUNC((AD113-(AD113/A$19)+$I112),3),2))) -> 98.7 | AE112: =IF(($A$8-$A112)<A$19,"",IF(($A$8-$A112)=A$19,SUM(OFFSET($J112,0,0,A$19,1)),ROUND(TRUNC((AE113-(AE113/A$19)+$J112),3),2))) -> 21.1 | AF112: =IF(($A$8-$A112)<A$19,"",ROUND((100*(AD112/AC112)),0)) -> 35 | AG112: =IF(($A$8-$A112)<A$19,"",ROUND((100*(AE112/AC112)),0)) -> 7 | AH112: =IF(($A$8-$A112)<A$19,"",ABS(AF112-AG112)) -> 28 | AI112: =IF(($A$8-$A112)<A$19,"",AF112+AG112) -> 42 | AJ112: =IF(($A$8-$A112)<A$19,"",ROUND(100*(AH112/AI112),0)) -> 67 | AK112: =IF(($A$8-$A112)<(2*A$19),"",ROUND(IF(($A$8-$A112)=(2*A$19),AVERAGE(OFFSET(AJ112,0,0,A$19,1)),(((AK113*(A$19-1))+AJ112)/A$19)),0)) -> 57 | AL112: 5 | AM112: 10 | AN112: 20 | AO112: 30 | AP112: 50 | AQ112: 70 | AR112: 90 | AS112: 0 | AT112: 0
